Workbook

Sheet Intro

Sheet Input
T2: Flag for TX vs National
C3: Project Name: | T3: TRUE
C4: [[enter name here]]
C6: Facility Size | D6: [[enter size here]] | E6: mgd
C8: Regulatory Approach
C10: Water Quality and Treatment Goal Inputs - Microbial Parameters:
D12: Bacteria | E12: Virus | F12: Cryptosporidium | G12: Giardia
C13: Treatment Goal* | D13: 9 | E13: 12 | F13: 10 | G13: 10
C14: Secondary Effluent Concentration | D14: Not Applicable | E14: 100 | F14: 50 | G14: 230
C15: Purified Water Concentration | E15: =2.2*10^-7 -> 2.2e-07 | F15: =3*10^-5 -> 3e-05 | G15: =6.8*10^-6 -> 6.8e-06
C16: Target Removal* | D16: =IF($T$3=TRUE,D13,7) -> 9 | E16: =IF($T$3=TRUE,E13,(LOG(E14,10)-LOG(E15,10))) -> 12 | F16: =IF($T$3=TRUE,F13,(LOG(F14,10)-LOG(F15,10))) -> 10 | G16: =IF($T$3=TRUE,G13,(LOG(G14,10)-LOG(G15,10))) -> 10
C17: *Microbial target removal includes secondary treatment log removal credits (National case only)
C20: Water Quality and Treatment Goal Inputs - Chemical Parameters:
D22: TOC | E22: Nitrate as N | F22: TOrCs | G22: EEQ | H22: NDMA | I22: PFOS+PFOA
C23: Primary Effluent* | D23: =LOOKUP($C23,$C24:$C25,D24:D25) -> 50 | E23: 50 | F23: 10 | G23: 50 | H23: 80 | I23: 50
C24: Primary Effluent* | D24: 50 | E24: 50 | F24: 10 | G24: 50 | H24: 80 | I24: 50
C25: Secondary Effluent* | D25: 30 | E25: 30 | F25: 10 | G25: 5 | H25: 80 | I25: 50
C26: Secondary - BOD Only | D26: =VLOOKUP($C$26,$C$27:$I$33,2,FALSE) -> 30 | E26: =VLOOKUP($C$26,$C$27:$I$33,3,FALSE) -> 30 | F26: =VLOOKUP($C$26,$C$27:$I$33,4,FALSE) -> 10 | G26: =VLOOKUP($C$26,$C$27:$I$33,5,FALSE) -> 5 | H26: =VLOOKUP($C$26,$C$27:$I$33,6,FALSE) -> 80 | I26: =VLOOKUP($C$26,$C$27:$I$33,7,FALSE) -> 50
C27: Secondary - BOD Only | D27: 30 | E27: 30 | F27: 10 | G27: 5 | H27: 80 | I27: 50
C28: Seconday - Nitrified Only | D28: 25 | E28: 30 | F28: 6 | G28: 3 | H28: 80 | I28: 50
C29: Secondary - Denitrified | D29: 20 | E29: 8 | F29: 3 | G29: 2 | H29: 80 | I29: 50
C30: Tertiary - Nitrified Only | D30: 20 | E30: 30 | F30: 5 | G30: 5 | H30: 80 | I30: 50
C31: Tertiary - Denitrified | D31: 5 | E31: 5 | F31: 3 | G31: 5 | H31: 80 | I31: 50
C32: MBR - Nitrified Only | D32: 4 | E32: 10 | F32: 5 | G32: 5 | H32: 80 | I32: 50
C33: MBR - Denitrified | D33: 3 | E33: 5 | F33: 3 | G33: 5 | H33: 80 | I33: 50
C34: Treatment Goal | D34: 1.5 | E34: 7 | F34: 1 | G34: 1 | H34: 8 | I34: 50
C35: Target Removal | D35: =IF(IF($T$3=TRUE,(D23-D34)/D23,(D26-D34)/D26)<0,0,IF($T$3=TRUE,(D23-D34)/D23,(D26-D34)/D26)) -> 0.97 | E35: =IF(IF($T$3=TRUE,(E23-E34)/E23,(E26-E34)/E26)<0,0,IF($T$3=TRUE,(E23-E34)/E23,(E26-E34)/E26)) -> 0.86 | F35: 0.9 | G35: 0.98 | H35: 0.9 | I35: 0
C36: *Choose "Primary Effluent" or "Secondary Effluent" as your initial monitoring point for chemical parameters.
C40: Water Treatment Plant Log Credits
D41: 0 | E41: 0 | F41: 0 | G41: 0
D42: Bacteria | E42: Virus | F42: Cryptosporidium | G42: Giardia
C43: Plant Log Removal | D43: -1 | E43: -1 | F43: -1 | G43: -1
C49: [[enter name here]]
D51: [[enter size here]]
C55: Treatment Goal | D55: 9 | E55: 12 | F55: 10 | G55: 10
C57: Primary Effluent* | D57: =LOOKUP($C57,$C58:$C59,D58:D59) -> 30 | E57: 30 | F57: 10 | G57: 5 | H57: 80 | I57: 50
C58: Primary Effluent* | D58: 30 | E58: 30 | F58: 10 | G58: 5 | H58: 80 | I58: 50
C59: Secondary Effluent* | D59: 25 | E59: 30 | F59: 6 | G59: 3 | H59: 80 | I59: 50
C60: Secondary - BOD Only | D60: =VLOOKUP($C$26,$C$27:$I$33,2,FALSE) -> 30 | E60: =VLOOKUP($C$26,$C$27:$I$33,3,FALSE) -> 30 | F60: =VLOOKUP($C$26,$C$27:$I$33,4,FALSE) -> 10 | G60: =VLOOKUP($C$26,$C$27:$I$33,5,FALSE) -> 5 | H60: =VLOOKUP($C$26,$C$27:$I$33,6,FALSE) -> 80 | I60: =VLOOKUP($C$26,$C$27:$I$33,7,FALSE) -> 50
C61: Secondary - BOD Only | D61: 30 | E61: 30 | F61: 10 | G61: 5 | H61: 80 | I61: 50
C62: Seconday - Nitrified Only | D62: 25 | E62: 30 | F62: 6 | G62: 3 | H62: 80 | I62: 50
C63: Secondary - Denitrified | D63: 20 | E63: 8 | F63: 3 | G63: 2 | H63: 80 | I63: 50
C64: Tertiary - Nitrified Only | D64: 20 | E64: 30 | F64: 5 | G64: 5 | H64: 80 | I64: 50
C65: Tertiary - Denitrified | D65: 5 | E65: 5 | F65: 3 | G65: 5 | H65: 80 | I65: 50
C66: MBR - Nitrified Only | D66: 4 | E66: 10 | F66: 5 | G66: 5 | H66: 80 | I66: 50
C67: MBR - Denitrified | D67: 3 | E67: 5 | F67: 3 | G67: 5 | H67: 80 | I67: 50
C68: Treatment Goal | D68: 1.5 | E68: 7 | F68: 1 | G68: 1 | H68: 8 | I68: 50

Sheet Train (hidden)
A1: Train Comparison
A3: 0 | E3: Facility Name: | F3: =IF(Input!C4="[[enter name here]]","",Input!C4) -> 
E6: Facility Size: | F6: =IF(Input!D6="[[enter size here]]","",Input!D6) ->  | G6: mgd
E8: SELECT YOUR TREATMENT TRAIN:
B10: =IF(Input!$T$3=TRUE,SECONDARY,E12) -> Secondary - Nitrified Only | E10: Secondary Treatment
A11: =IF(Input!$T$3=TRUE,TRUE,FALSE) -> TRUE | E11: Secondary - Nitrified Only
A12: =IF(Input!$T$3=FALSE,TRUE,FALSE) -> FALSE | E12: =Input!C26 -> Secondary - BOD Only
A13: =IF(Input!C23="Primary Effluent*",TRUE,FALSE) -> TRUE
A14: =AND(FINAL_Secondary="Secondary - BOD Only",Input!C23="Primary Effluent*") -> FALSE | E14: SRT | F14: 5 | G14: days
A15: =AND(Input!C23="Primary Effluent*", NOT(FINAL_Secondary="Secondary - BOD Only")) -> TRUE | E15: SRT | F15: 7 | G15: days
A17: TRUE | B17: =VLOOKUP(TRUE,A18:E21,5,FALSE) -> MF | E17: Advanced 1
A18: =OR(FINAL_Secondary="Secondary - Nitrified Only",FINAL_Secondary="Secondary - Denitrified") -> TRUE | C18: FALSE | E18: MF | F18: =IF(OR(FINAL_Advance1="Ozone",FINAL_Advance1="Ozone/BAF"),"Ozone Bromate Warning",IF(FINAL_Advance1="Tertiary Media Filtration","Denitrification","")) -> 
A19: =FINAL_Secondary="Secondary - BOD Only" -> FALSE | E19: MF | F19: =IF(OR(FINAL_Advance1="Ozone",FINAL_Advance1="Ozone/BAF"),"Ozone Bromate Warning",IF(FINAL_Advance1="Tertiary Media Filtration","Denitrification","")) -> 
A20: =OR(FINAL_Secondary="Tertiary - Nitrified Only",FINAL_Secondary="Tertiary - Denitrified") -> FALSE | E20: Ozone/BAF | F20: =IF(OR(FINAL_Advance1="Ozone",FINAL_Advance1="Ozone/BAF"),"Ozone Bromate Warning",IF(FINAL_Advance1="Tertiary Media Filtration","Denitrification","")) -> 
A21: =OR(FINAL_Secondary="MBR - Nitrified Only",FINAL_Secondary="MBR - Denitrified") -> FALSE | E21: None | Q21: Chlorine Dose
A22: TRUE
A23: =IF(FINAL_Advance1="Cl2",TRUE,FALSE) -> FALSE | E23: Cl2 CT | F23: 30 | G23: mg-min/L | H23: Cl2 Contact Time: | I23: 90 | J23: Initial Cl2 Demand = | K23: =IF(FINAL_Advance1="Cl2", IF(FINAL_Secondary="MBR - Nitrified Only",4, IF(FINAL_Secondary="Secondary - BOD Only",12, IF(FINAL_Secondary="Conventional Activated Sludge - Nutrient Removal",4, 5)))) -> FALSE | L23: Cl2 Decay Rate: | M23: 3 | Q23: =F23/I23+M23*I23/60+K23 -> 4.833333333
A24: =IF(AND(FINAL_Advance1="Cl2",Input!$T$3=FALSE),TRUE,FALSE) -> FALSE | E24: Water pH | F24: 7 | H24: Water Temperature: | I24: 10 | J24: Residual Cl2 Conc = | K24: =F23/I23 -> 0.3333333333
A25: =IF(OR(FINAL_Advance1="Ozone",FINAL_Advance1="Ozone/BAF"),TRUE,FALSE) -> FALSE | E25: Ozone:TOC Ratio | F25: 1.2 | G25: =IF(E25="Ozone CT", "mg-min/L", "") ->  | H25: O3 Contact Time: | I25: 1 | J25: Influent TOC = | K25: =IF(AND(Input!$C$23="Primary Effluent*",Input!$T$3=TRUE),$I$106*(1-$H$120),$I$106) -> 25 | L25: O3:TOC= | M25: =IF(E25="Ozone CT", F25/I25/K25+1,F25) -> 1.2 | N25: =IF(E25="Ozone Ct",F25,IF((M25-1)*K25*I25>=0,(M25-1)*K25*I25,0)) -> 5 | Q25: =IF(A25=TRUE,K25*M25) -> FALSE
A26: =IF(AND(OR(FINAL_Advance1="Ozone",FINAL_Advance1="Ozone/BAF"),Input!$T$3=FALSE),TRUE,FALSE) -> FALSE | E26: Water pH | F26: 7 | H26: Water Temperature: | I26: 15 | J26: Residual O3 Conc = | K26: 2
A27: =IF(OR(FINAL_Advance1="UV/H2O2",FINAL_Advance1="UV"),TRUE,FALSE) -> FALSE | E27: UV Dose | F27: 200 | G27: mJ/cm2 | H27: Feed Water UVT: | I27: =IF(SECONDARY="MBR - Nitrified Only",$AC$160,VLOOKUP(FINAL_Advance1,$AA$145:$AC$160,3,FALSE)) -> 0.7
A28: =OR(FINAL_Advance1="Ozone",FINAL_Advance1="Ozone/BAF") -> FALSE | E28: Level of CNDMA(O3) | F28: 150 | G28: (CNDMA(O3) = NDMA Concentration Formed During Ozonation)
A29: FALSE | E29: H2O2 Dose | F29: 3 | G29: mg/L
A30: FALSE | C30: =VLOOKUP(FINAL_Advance1,$AA$145:$AB$157,2,FALSE) -> 95 | E30: Process Recovery Rate | F30: 95 | G30: %
A31: TRUE
A32: TRUE | B32: =VLOOKUP(TRUE,A33:E39,5,FALSE) -> RO | C32: =OR(FINAL_Advance1="Ozone",FINAL_Advance2="Ozone",FINAL_Advance3="Ozone",FINAL_Advance4="Ozone",FINAL_Advance1="Ozone/BAF",FINAL_Advance2="Ozone/BAF",FINAL_Advance3="Ozone/BAF",FINAL_Advance4="Ozone/BAF",FINAL_Advance1="Ozone/H2O2",FINAL_Advance2="Ozone/H2O2",FINAL_Advance3="Ozone/H2O2",FINAL_Advance4="Ozone/H2O2") -> FALSE | E32: Advanced 2
A33: =OR(FINAL_Advance1="MF",FINAL_Advance1="UF",FINAL_Advance1="None") -> TRUE | E33: RO | F33: =IF(OR(FINAL_Advance2="Ozone",FINAL_Advance2="Ozone/BAF"),"Ozone Bromate Warning","") -> 
A34: =AND( NOT(FINAL_Secondary="MBR - Nitrified Only"), NOT(FINAL_Secondary="MBR - Denitrified"), NOT(FINAL_Secondary="Tertiary - Nitrified Only"), NOT(FINAL_Secondary="Tertiary - Denitrified"), FINAL_Advance1="Tertiary Media Filtration", FINAL_Secondary="Secondary - BOD Only") -> FALSE | E34: UV | F34: =IF(OR(FINAL_Advance2="Ozone",FINAL_Advance2="Ozone/BAF"),"Ozone Bromate Warning","") -> 
A35: =AND( NOT(FINAL_Secondary="MBR - Nitrified Only"), NOT(FINAL_Secondary="MBR - Nitrified Only Denitrification"), NOT(FINAL_Secondary="Tertiary - Nitrified Only"), NOT(FINAL_Secondary="Tertiary - Denitrified"), FINAL_Advance1="Tertiary Media Filtration", NOT(FINAL_Secondary="Secondary - BOD Only")) -> FALSE | E35: UV | F35: =IF(OR(FINAL_Advance2="Ozone",FINAL_Advance2="Ozone/BAF"),"Ozone Bromate Warning","") -> 
A36: =AND( NOT(FINAL_Secondary="MBR - Nitrified Only"), NOT(FINAL_Secondary="MBR - Denitrified"), FINAL_Advance1="Ozone") -> FALSE | E36: MF
A37: =AND( NOT(FINAL_Secondary="MBR - Nitrified Only"), NOT(FINAL_Secondary="MBR - Denitrified"), FINAL_Advance1="Ozone/BAF", FINAL_Secondary="Secondary - BOD Only") -> FALSE | E37: UF | F37: =IF(OR(FINAL_Advance2="Ozone",FINAL_Advance2="Ozone/BAF"),"Ozone Bromate Warning","") -> 
A38: =AND( NOT(FINAL_Secondary="MBR - Nitrified Only"), NOT(FINAL_Secondary="MBR - Denitrified"), FINAL_Advance1="Ozone/BAF", NOT(FINAL_Secondary="Secondary - BOD Only")) -> FALSE | E38: UF | F38: =IF(OR(FINAL_Advance2="Ozone",FINAL_Advance2="Ozone/BAF"),"Ozone Bromate Warning","") -> 
A39: =OR(FINAL_Advance1="Cl2",FINAL_Advance1="UV") -> FALSE | E39: None | F39: =IF(OR(FINAL_Advance2="Ozone",FINAL_Advance2="Ozone/BAF"),"Ozone Bromate Warning","") ->  | Q39: Chlorine Dose
A40: TRUE
A41: =IF(FINAL_Advance2="Cl2",TRUE,FALSE) -> FALSE | E41: Cl2 CT | F41: 30 | G41: mg-min/L | H41: Cl2 Contact Time: | I41: 90 | J41: Initial Cl2 Demand = | K41: =IF(FINAL_Advance2="Cl2", IF(FINAL_Secondary="MBR - Nitrified Only",4, IF(FINAL_Advance1="Tertiary Media Filtration",5, IF(OR(FINAL_Advance1="MF",FINAL_Advance1="UF"), IF(FINAL_Secondary="Secondary - BOD Only",12, IF(FINAL_Secondary="Conventional Activated Sludge - Nutrient Removal",4,5)))))) -> FALSE | L41: Cl2 Decay Rate: | M41: 3 | Q41: =F41/I41+M41*I41/60+K41 -> 4.833333333
A42: =IF(AND(FINAL_Advance2="Cl2",Input!$T$3=FALSE),TRUE,FALSE) -> FALSE | E42: Water pH | F42: 7 | H42: Water Temperature: | I42: 10 | J42: Residual Cl2 Conc = | K42: =F41/CT_2 -> 0.3333333333
A43: =OR(FINAL_Advance2="Ozone",FINAL_Advance2="Ozone/BAF") -> FALSE | E43: Ozone:TOC Ratio | F43: 1 | G43: =IF(E43="Ozone CT", "mg-min/L", "") ->  | H43: O3 Contact Time: | I43: 1 | J43: Influent TOC = | K43: =IF(AND(Input!$C$23="Primary Effluent*",Input!$T$3=TRUE),$I$106*(1-$H$120)*(1-$I$120),$I$106*(1-$I$120)) -> 25 | L43: O3:TOC= | M43: =IF(E43="Ozone CT", F43/I43/K43+1,F43) -> 1 | N43: =IF(E43="Ozone Ct",F43,IF((M43-1)*K43*I43>=0,(M43-1)*K43*I43,0)) -> 0 | Q43: =IF(A43=TRUE,K43*M43) -> FALSE
A44: =IF(AND(FINAL_Advance2="Ozone",Input!$T$3=FALSE),TRUE,FALSE) -> FALSE | E44: Water pH | F44: 7 | H44: Water Temperature: | I44: 15 | J44: Residual O3 Conc = | K44: 2
A45: =IF(OR(FINAL_Advance2="UV/H2O2",FINAL_Advance2="UV"),TRUE,FALSE) -> FALSE | E45: UV Dose | F45: 200 | G45: mJ/cm2 | H45: Feed Water UVT: | I45: =IF(SECONDARY="MBR - Nitrified Only",$AC$160,VLOOKUP(FINAL_Advance1,$AA$145:$AC$160,3,FALSE)) -> 0.7
A46: =OR(FINAL_Advance2="Ozone",FINAL_Advance2="Ozone/BAF") -> FALSE | E46: Level of CNDMA(O3) | F46: 10 | G46: (CNDMA(O3) = NDMA Concentration Formed During Ozonation)
A47: FALSE | E47: H2O2 Dose | F47: 3 | G47: mg/L
A48: FALSE | C48: =VLOOKUP(FINAL_Advance2,$AA$145:$AB$157,2,FALSE) -> 80 | E48: Process Recovery Rate | F48: 80 | G48: %
A49: TRUE
A50: TRUE | B50: =VLOOKUP(TRUE,A51:E62,5,FALSE) -> UV/H2O2 | E50: Advanced 3
A51: =AND( FINAL_Advance2="Ozone/BAF", OR(FINAL_Advance1="MF",FINAL_Advance1="UF",FINAL_Advance1="None"), FINAL_Secondary="Secondary - BOD Only") -> FALSE | E51: UV | F51: =IF(OR(FINAL_Advance3="Ozone",FINAL_Advance3="Ozone/H2O2"),"Ozone Bromate Warning","") -> 
A52: =AND( FINAL_Advance2="Ozone/BAF", OR(FINAL_Advance1="MF",FINAL_Advance1="UF",FINAL_Advance1="None"), NOT(FINAL_Secondary="Secondary - BOD Only")) -> FALSE | E52: Ozone | F52: =IF(OR(FINAL_Advance3="Ozone",FINAL_Advance3="Ozone/H2O2"),"Ozone Bromate Warning","") -> 
A53: =OR(FINAL_Advance2="NF",FINAL_Advance2="RO") -> TRUE | E53: UV/H2O2 | F53: =IF(OR(FINAL_Advance3="Ozone",FINAL_Advance3="Ozone/H2O2"),"Ozone Bromate Warning","") -> 
A54: =AND( OR(FINAL_Advance1="MF",FINAL_Advance1="UF",FINAL_Advance1="None",FINAL_Advance1="Tertiary Media Filtration"), FINAL_Advance2="UV", NOT(FINAL_Secondary="Secondary - BOD Only")) -> FALSE | E54: Cl2
A55: =AND( OR(FINAL_Advance1="MF",FINAL_Advance1="UF",FINAL_Advance1="None",FINAL_Advance1="Tertiary Media Filtration"), FINAL_Advance2="UV", FINAL_Secondary="Secondary - BOD Only") -> FALSE | E55: None
A56: =AND( FINAL_Advance1="Tertiary Media Filtration", FINAL_Advance2="Ozone/BAF", FINAL_Secondary="Secondary - BOD Only") -> FALSE | E56: MF
A57: =AND( FINAL_Advance1="Tertiary Media Filtration", FINAL_Advance2="Ozone/BAF", NOT(FINAL_Secondary="Secondary - BOD Only")) -> FALSE | E57: UF
A58: =AND( OR(FINAL_Advance2="MF",FINAL_Advance2="UF"), FINAL_Advance1="Ozone", FINAL_Secondary="Secondary - BOD Only") -> FALSE | E58: RO
A59: =AND( OR(FINAL_Advance2="MF",FINAL_Advance2="UF"), FINAL_Advance1="Ozone", NOT(FINAL_Secondary="Secondary - BOD Only")) -> FALSE | E59: UV
A60: =AND( OR(FINAL_Advance2="MF",FINAL_Advance2="UF"), FINAL_Advance1="Ozone/BAF", FINAL_Secondary="Secondary - BOD Only") -> FALSE | E60: UV/H2O2
A61: =AND( OR(FINAL_Advance2="MF",FINAL_Advance2="UF"), FINAL_Advance1="Ozone/BAF", NOT(FINAL_Secondary="Secondary - BOD Only")) -> FALSE | E61: UV/H2O2
A62: =OR( FINAL_Advance2="Cl2", FINAL_Advance2="Ozone", AND(FINAL_Advance2="UV",FINAL_Advance1="Ozone/BAF"), FINAL_Advance1="Cl2", FINAL_Advance1="UV") -> FALSE | E62: None | Q62: Chlorine Dose
A63: TRUE
A64: =IF(FINAL_Advance3="Cl2",TRUE,FALSE) -> FALSE | E64: Cl2 CT | F64: 40 | G64: mg-min/L | H64: Cl2 Contact Time: | I64: 90 | J64: Initial Cl2 Demand = | K64: =IF(FINAL_Advance3="Cl2", IF(FINAL_Advance2="Ozone", 3, IF(FINAL_Advance2="Ozone/BAF", 2, IF(OR(FINAL_Advance2="NF",FINAL_Advance2="RO"),0, IF(OR(FINAL_Advance2="MF",OR(FINAL_Advance2="UF",FINAL_Advance2="UV")), IF(FINAL_Advance1="Ozone", 3, IF(FINAL_Advance1="Ozone/BAF", 2, IF(FINAL_Advance1="Tertiary Media Filtration",5 )))))))) -> FALSE | L64: Cl2 Decay Rate: | M64: 3 | Q64: =F64/I64+M64*I64/60+K64 -> 4.944444444
A65: =IF(AND(FINAL_Advance3="Cl2",Input!$T$3=FALSE),TRUE,FALSE) -> FALSE | E65: Water pH | F65: 7 | H65: Water Temperature: | I65: 10 | J65: Residual Cl2 Conc = | K65: =F64/CT_3 -> 0.4444444444
A66: =OR(FINAL_Advance3="Ozone/H2O2",FINAL_Advance3="Ozone") -> FALSE | E66: Ozone:TOC Ratio | F66: 1 | G66: =IF(E66="Ozone CT", "mg-min/L", "") ->  | H66: O3 Contact Time: | I66: 0.5 | J66: Influent TOC = | K66: =IF(AND(Input!$C$23="Primary Effluent*",Input!$T$3=TRUE),$I$106*(1-$H$120)*(1-$I$120)*(1-$J$120),$I$106*(1-$I$120)*(1-$J$120)) -> 0.5 | L66: O3:TOC= | M66: =IF(E66="Ozone CT", F66/I66/K66+1,F66) -> 1 | N66: =IF(E66="Ozone Ct",F66,IF((M66-1)*K66*I66>=0,(M66-1)*K66*I66,0)) -> 0 | Q66: =IF(A66=TRUE,K66*M66) -> FALSE
A67: =IF(AND(FINAL_Advance3="Ozone",Input!$T$3=FALSE),TRUE,FALSE) -> FALSE | E67: Water pH | F67: 7 | H67: Water Temperature: | I67: 15 | J67: Residual O3 Conc = | K67: 2
A68: =IF(OR(FINAL_Advance3="UV",FINAL_Advance3="UV/H2O2"),TRUE,FALSE) -> TRUE | E68: UV Dose | F68: 900 | G68: mJ/cm2 | H68: Feed Water UVT: | I68: =VLOOKUP(FINAL_Advance2,$AA$145:$AC$160,3,FALSE) -> 0.98
A69: =OR(FINAL_Advance3="Ozone",FINAL_Advance3="Ozone/H2O2") -> FALSE | E69: Level of CNDMA(O3) | F69: 10 | G69: (CNDMA(O3) = NDMA Concentration Formed During Ozonation)
A70: FALSE | E70: H2O2 Dose | F70: =IF(FINAL_Advance3="UV/H2O2",IF(OR(FINAL_Advance2="MF",FINAL_Advance2="UF"),15,IF(OR(FINAL_Advance2="NF",FINAL_Advance2="RO"),3,"")),IF(FINAL_Advance3="Ozone/H2O2",Q66*0.5,"")) -> 3 | G70: mg/L
A71: FALSE | C71: =VLOOKUP(FINAL_Advance3,$AA$145:$AB$157,2,FALSE) -> 100 | E71: Process Recovery Rate | F71: 100 | G71: %
A72: TRUE
A73: TRUE | B73: =VLOOKUP(TRUE,A74:E80,5,FALSE) -> Cl2 | E73: Advanced 4
A74: =AND( OR(FINAL_Advance3="NF",FINAL_Advance3="RO"), FINAL_Advance1="Ozone") -> FALSE | E74: UV | F74: =IF(OR(FINAL_Advance4="Ozone",FINAL_Advance4="Ozone/H2O2"),"Ozone Bromate Warning","") -> 
A75: =AND( OR(FINAL_Advance3="NF",FINAL_Advance3="RO"), FINAL_Advance1="Ozone/BAF") -> FALSE | E75: Ozone | F75: =IF(OR(FINAL_Advance4="Ozone",FINAL_Advance4="Ozone/H2O2"),"Ozone Bromate Warning","") -> 
A76: =OR(FINAL_Advance3="MF",FINAL_Advance3="UF") -> FALSE | E76: Cl2
A77: =AND( OR(FINAL_Advance3="UV",FINAL_Advance3="UV/H2O2",FINAL_Advance3="Ozone",FINAL_Advance3="Ozone/H2O2"), OR(FINAL_Advance2="NF",FINAL_Advance2="RO"), OR(FINAL_Advance1="MF",FINAL_Advance1="UF",FINAL_Advance1="None")) -> TRUE | E77: Cl2
A78: =OR( AND(NOT(FINAL_Secondary="Secondary - BOD Only"),FINAL_Advance3="UV",FINAL_Advance2="Ozone/BAF",OR(FINAL_Advance1="MF",FINAL_Advance1="UF",FINAL_Advance1="None",FINAL_Advance1="Tertiary Media Filtration")), AND(NOT(FINAL_Secondary="Secondary - BOD Only"),FINAL_Advance3="UV",OR(FINAL_Advance2="MF",FINAL_Advance2="UF"),FINAL_Advance1="Ozone"), AND(NOT(FINAL_Secondary="Secondary - BOD Only"),OR(FINAL_Advance3="UV",FINAL_Advance3="UV/H2O2"),OR(FINAL_Advance2="MF",FINAL_Advance2="UF"),FINAL_Advance1="Ozone/BAF")) -> FALSE | E78: Cl2
A79: =OR( AND(FINAL_Secondary="Secondary - BOD Only",FINAL_Advance3="UV",FINAL_Advance2="Ozone/BAF",OR(FINAL_Advance1="MF",FINAL_Advance1="UF",FINAL_Advance1="None",FINAL_Advance1="Tertiary Media Filtration")), AND(FINAL_Secondary="Secondary - BOD Only",FINAL_Advance3="UV",OR(FINAL_Advance2="MF",FINAL_Advance2="UF"),FINAL_Advance1="Ozone"), AND(FINAL_Secondary="Secondary - BOD Only",OR(FINAL_Advance3="UV",FINAL_Advance3="UV/H2O2"),OR(FINAL_Advance2="MF",FINAL_Advance2="UF"),FINAL_Advance1="Ozone/BAF")) -> FALSE | E79: None
A80: =OR( AND(FINAL_Advance3="Ozone",FINAL_Advance2="Ozone/BAF",OR(FINAL_Advance1="MF",FINAL_Advance1="UF",FINAL_Advance1="None")), FINAL_Advance3="Cl2", FINAL_Advance3="None") -> FALSE | E80: None | Q80: Chlorine Dose
A81: TRUE
A82: =B73="Cl2" -> TRUE | E82: Cl2 CT | F82: 10 | G82: mg-min/L | H82: Cl2 Contact Time: | I82: 5 | J82: Initial Cl2 Demand = | K82: =IF(FINAL_Advance4="Cl2", IF(OR(FINAL_Advance2="NF", FINAL_Advance2="RO"),0, IF(OR(FINAL_Advance3="NF", FINAL_Advance3="RO"),0, IF(OR(FINAL_Advance1="Ozone", FINAL_Advance1="Ozone/BAF"),2, IF(OR(FINAL_Advance2="Ozone", FINAL_Advance2="Ozone/BAF"),2, IF(OR(FINAL_Advance3="Ozone", FINAL_Advance3="Ozone/BAF"),2, 5)))))) -> 0 | L82: Cl2 Decay Rate: | M82: 3 | Q82: =F82/I82+M82*I82/60+K82 -> 2.25
A83: =IF(AND(FINAL_Advance4="Cl2",Input!$T$3=FALSE),TRUE,FALSE) -> FALSE | E83: Water pH | F83: 7 | H83: Water Temperature: | I83: 20 | J83: Residual Cl2 Conc = | K83: =F82/CT_4 -> 2
A84: =IF(OR(B73="Ozone/H2O2", B73="Ozone"),TRUE,FALSE) -> FALSE | E84: Ozone:TOC Ratio | F84: 1 | G84: =IF(E84="Ozone CT", "mg-min/L", "") ->  | H84: O3 Contact Time: | I84: 0.5 | J84: Influent TOC = | K84: =IF(AND(Input!$C$23="Primary Effluent*",Input!$T$3=TRUE),$I$106*(1-$H$120)*(1-$I$120)*(1-$J$120)*(1-$K$120),$I$106*(1-$I$120)*(1-$J$120)*(1-$K$120)) -> 0.45 | L84: O3:TOC= | M84: =IF(E84="Ozone CT", F84/I84/K84,F84) -> 1 | N84: =IF(E84="Ozone Ct",F84,IF((M84-1)*K84*I84>=0,(M84-1)*K84*I84,0)) -> 0 | Q84: =IF(A84=TRUE,K84*M84) -> FALSE
A85: =IF(AND(FINAL_Advance4="Ozone",Input!$T$3=FALSE),TRUE,FALSE) -> FALSE | E85: Water pH | F85: 7 | H85: Water Temperature: | I85: 15 | J85: Residual O3 Conc = | K85: 2
A86: =OR(B73="UV",B73="UV/H2O2") -> FALSE | E86: UV Dose | F86: 800 | G86: mJ/cm2 | H86: Feed Water UVT: | I86: =VLOOKUP(FINAL_Advance3,$AA$145:$AC$160,3,FALSE) -> 0.85
A87: =OR(FINAL_Advance4="Ozone",FINAL_Advance4="Ozone/H2O2") -> FALSE | E87: Level of CNDMA(O3) | F87: 10 | G87: (CNDMA(O3) = NDMA Concentration Formed During Ozonation)
A88: FALSE | E88: H2O2 Dose | F88: 3 | G88: mg/L
A89: FALSE | C89: =VLOOKUP(B73,$AA$145:$AB$157,2,FALSE) -> 100 | E89: Process Recovery Rate | F89: 100 | G89: %
A90: TRUE
A91: TRUE | B91: =Advance5_select -> Engineered Storage Buffer - Chloramines | E91: Optional Environmental Buffers
A92: TRUE | E92: Engineered Storage Buffer - Chloramines
A93: TRUE
A94: =FINAL_Optional="Surface Water Augmentation" -> FALSE | E94: Travel Time | F94: 7 | G94: days | Q94: Chlorine Dose
A95: =OR(FINAL_Optional="Direct Injection (Subsurface Migration Only)", FINAL_Optional="Soil Aquifer Treatment (Percolation and Subsurface Migration)") -> FALSE | E95: Travel Time | F95: 6 | G95: months
A96: =FINAL_Optional="Engineered Storage Buffer - Cl2" -> FALSE | E96: Cl2 CT | F96: 20 | G96: mg-min/L | H96: Contact Time: | I96: 90 | J96: Initial Cl2 Demand = | K96: =IF(OR(OR(FINAL_Advance4="Cl2",FINAL_Advance3="Cl2"),OR(FINAL_Advance2="Cl2",FINAL_Advance1="CL2")),0, IF(OR(FINAL_Advance2="NF",FINAL_Advance2="RO"),0, IF(OR(FINAL_Advance3="NF",FINAL_Advance3="RO"),0, IF(OR(FINAL_Advance1="Ozone",FINAL_Advance1="Ozone/BAF"),2, IF(OR(FINAL_Advance2="Ozone",FINAL_Advance2="Ozone/BAF"),2, IF(OR(FINAL_Advance3="Ozone",FINAL_Advance3="Ozone/BAF"),2, IF(FINAL_Advance1="UV", IF(FINAL_Secondary="MBR - Nitrified Only",4, IF(FINAL_Secondary="Secondary - BOD Only",12, IF(FINAL_Secondary="Conventional Activated Sludge - Nutrient Removal",4,5))), 5))))))) -> 0 | L96: Cl2 Decay Rate: | M96: 3 | Q96: =F96/I96+M96*I96/60+K96 -> 4.722222222
A97: =FINAL_Optional="Engineered Storage Buffer - Chloramines" -> TRUE | E97: Chloramine CT | F97: 450 | G97: mg-min/L | H97: Contact Time: | I97: 90 | J97: Initial CLA Demand = | K97: =K96 -> 0
A98: =AND(Input!T3="True",OR(FINAL_Optional="Engineered Storage Buffer - Cl2",FINAL_Optional="Engineered Storage Buffer - Chloramines")) -> FALSE | E98: Water pH | F98: 7 | H98: Water Temperature: | I98: 18 | J98: Residual Conc = | K98: =IF(FINAL_Optional="Engineered Storage Buffer - Cl2",$F$96/$I$96,IF(FINAL_Optional="Engineered Storage Buffer - Chloramines",$F$97/$I$97,"NA")) -> 5
A99: TRUE
A100: TRUE | E100: Overall Performance of this Train:
A101: TRUE | H101: Treatment Goal | I101: Influent Water Quality | J101: Effluent Water Quality | K101: Total Achieved Removal | L101: Performance
A102: TRUE | E102: Bacteria | H102: =Input!$D$16 -> 9 | K102: =SUM(H116:N116) -> 18 | L102: =K102-H102 -> 9 | M102: =IF(L102>0,"meets goal",IF(L102=0,"at goal","fails to meet goal")) -> meets goal
A103: TRUE | E103: Virus | H103: =Input!$E$16 -> 12 | K103: =SUM(H117:N117) -> 15.76244153 | L103: 3.76244153 | M103: meets goal
A104: TRUE | E104: Cryptosporidium | H104: =Input!$F$16 -> 10 | K104: =SUM(H118:N118) -> 11 | L104: 1 | M104: meets goal
A105: TRUE | E105: Giardia | H105: =Input!$G$16 -> 10 | K105: =SUM(H119:N119) -> 11 | L105: 1 | M105: meets goal
A106: TRUE | E106: TOC | H106: =Input!D35 -> 0.97 | I106: =IF(Input!$T$3=TRUE,Input!D23,Input!D26) -> 50 | J106: =I106*(1-K106) -> 0.45 | K106: =IF(AND(Input!$C$23="Primary Effluent*",Input!T$3=TRUE),1-(1-H120)*(1-I120)*(1-J120)*(1-K120)*(1-L120)*(1-M120),1-(1-I120)*(1-J120)*(1-K120)*(1-L120)*(1-M120)) -> 0.991 | L106: 0.021 | M106: meets goal
A107: TRUE | E107: Nitrate as N | H107: =Input!E35 -> 0.86 | I107: =IF(Input!$T$3=TRUE,Input!E23,Input!E26) -> 50 | J107: =I107*(1-K107) -> 5 | K107: =IF(AND(Input!$C$23="Primary Effluent*",Input!T$3=TRUE),1-(1-H121)*(1-I121)*(1-J121)*(1-K121)*(1-L121)*(1-M121),1-(1-I121)*(1-J121)*(1-K121)*(1-L121)*(1-M121)) -> 0.9 | L107: 0.04 | M107: meets goal
A108: TRUE | E108: TOrCs | H108: =Input!F35 -> 0.9 | I108: =IF(Input!$T$3=TRUE,Input!F23,Input!F26) -> 10 | J108: =I108*(1-K108) -> 0.054 | K108: =IF(AND(Input!$C$23="Primary Effluent*",Input!T$3=TRUE),1-(1-H122)*(1-I122)*(1-J122)*(1-K122)*(1-L122)*(1-M122),1-(1-I122)*(1-J122)*(1-K122)*(1-L122)*(1-M122)) -> 0.9946 | L108: =K108-H108 -> 0.0946 | M108: =IF(L108>0,"meets goal",IF(L108=0,"at goal","fails to meet goal")) -> meets goal
A109: TRUE | E109: EEQ | H109: =Input!G35 -> 0.98 | I109: =IF(Input!$T$3=TRUE,Input!G23,Input!G26) -> 50 | J109: =I109*(1-K109) -> 0.035 | K109: =IF(AND(Input!$C$23="Primary Effluent*",Input!T$3=TRUE),1-(1-H123)*(1-I123)*(1-J123)*(1-K123)*(1-L123)*(1-M123),1-(1-I123)*(1-J123)*(1-K123)*(1-L123)*(1-M123)) -> 0.9993 | L109: 0.0193 | M109: meets goal
A110: TRUE | E110: NDMA | H110: =Input!H35 -> 0.9 | I110: =IF(Input!$T$3=TRUE,Input!H23,Input!H26) -> 80 | J110: =IF(AND(Input!C23="Primary Effluent*",Input!T3=TRUE),IF(FINAL_Advance1="Ozone",(I110*(1-H124)+F28)*(1-IF(ISNUMBER(J124),J124,0))*(1-IF(ISNUMBER(K124),K124,0))*(1-IF(ISNUMBER(L124),L124,0))*(1-IF(ISNUMBER(M124),M124,0)),IF(FINAL_Advance2="Ozone",(I110*(1-H124)*(1-IF(ISNUMBER(I124),I124,0))+F46)*(1-IF(ISNUMBER(K124),K124,0))*(1-IF(ISNUMBER(L124),L124,0))*(1-IF(ISNUMBER(M124),M124,0)),I110*(1-H124)*(1-IF(ISNUMBER(I124),I124,0))*(1-IF(ISNUMBER(J124),J124,0))*(1-IF(ISNUMBER(K124),K124,0))*(1-L124)*(1-M124))),IF(FINAL_Advance2="Ozone",(I110*(1-H124)*(1-IF(ISNUMBER(I124),I124,0))+F46)*(1-IF(ISNUMBER(K124),K124,0))*(1-IF(ISNUMBER(L124),L124,0))*(1-IF(ISNUMBER(M124),M124,0)),I110*(1-IF(ISNUMBER(I124),I124,0))*(1-IF(ISNUMBER(J124),J124,0))*(1-IF(ISNUMBER(K124),K124,0))*(1-L124)*(1-M124))) -> 4 | K110: =(I110-J110)/I110 -> 0.95 | L110: 0.05 | M110: meets goal
A111: TRUE | E111: PFOS+PFOA | H111: =Input!I35 -> 0 | I111: =IF(Input!$T$3=TRUE,Input!I23,Input!I26) -> 50 | J111: =I111*(1-K111) -> 0.5 | K111: =IF(AND(Input!$C$23="Primary Effluent*",Input!T$3=TRUE),1-(1-H125)*(1-I125)*(1-J125)*(1-K125)*(1-L125)*(1-M125),1-(1-I125)*(1-J125)*(1-K125)*(1-L125)*(1-M125)) -> 0.99 | L111: 0.99 | M111: meets goal
A112: TRUE
A113: TRUE | E113: Breakdown of Train Performance by Unit Process:
A114: TRUE | E114: Categories | H114: Wastewater Treatment | I114: Advanced 1 | J114: Advanced 2 | K114: Advanced 3 | L114: Advanced 4 | M114: Buffer | N114: Water Treatment Plant Credits
A115: TRUE | E115: Selected Process | H115: =FINAL_Secondary -> Secondary - Nitrified Only | I115: =FINAL_Advance1 -> MF | J115: =FINAL_Advance2 -> RO | K115: =FINAL_Advance3 -> UV/H2O2 | L115: =B73 -> Cl2 | M115: =FINAL_Optional -> Engineered Storage Buffer - Chloramines | N115: User-Defined
A116: TRUE | C116: 4 | E116: Bacteria | H116: =IF(Input!$T$3=TRUE,VLOOKUP($H$115,Master_Lookup!$A$10:$Z$16,$C116,FALSE),"Not Accounted") -> 3 | I116: =IF($I$115="Tertiary Media Filtration",IF($C$18=TRUE, VLOOKUP("Tertiary Media Filtration - Denitrification",Master_Lookup!$A$18:$Z$27,$C116,FALSE),VLOOKUP($I$115,Master_Lookup!$A$18:$Z$27,$C116,FALSE)),VLOOKUP($I$115,Master_Lookup!$A$18:$Z$27,$C116,FALSE)) -> 3 | J116: =VLOOKUP($J$115,Master_Lookup!$A$29:$Z$39,$C116,FALSE) -> 2 | K116: =VLOOKUP($K$115,Master_Lookup!$A$41:$Z$51,$C116,FALSE) -> 6 | L116: =VLOOKUP($L$115,Master_Lookup!$A$53:$Z$58,$C116,FALSE) -> 4 | M116: =VLOOKUP($M$115,Master_Lookup!$A$60:$Z$65,$C116,FALSE) -> 0 | N116: =IF(Input!D43=-1,"NA",Input!D43) -> NA
A117: TRUE | C117: 5 | E117: Virus | H117: =IF(Input!$T$3=TRUE,VLOOKUP($H$115,Master_Lookup!$A$10:$Z$16,$C117,FALSE),"Not Accounted") -> 2 | I117: =IF(Input!$T$3=TRUE,VLOOKUP($I$115,Master_Lookup!$A$18:$Z$27,$C117,FALSE),IF($I$115="Tertiary Media Filtration",IF($C$18=TRUE,VLOOKUP("Tertiary Media Filtration - Denitrification",Master_Lookup!$A$18:$Z$27,$C117,FALSE),VLOOKUP($I$115,Master_Lookup!$A$18:$Z$27,$C117,FALSE)),IF(OR($I$115="Ozone",$I$115="Ozone/BAF",$I$115="Ozone/H2O2"),Log_Virus(3,LOG_VIR,Temp_1_O3,pH_1_O3,Conc_1_O3,CT_1_O3),VLOOKUP($I$115,Master_Lookup!$A$18:$Z$27,$C117,FALSE)))) -> 0 | J117: =IF(Input!$T$3=TRUE,VLOOKUP($J$115,Master_Lookup!$A$29:$Z$39,$C117,FALSE),IF(J115="Cl2",Log_Virus(1,LOG_VIR,Temp_2,pH_2,Conc_2,CT_2),IF(OR($J$115="Ozone",$J$115="Ozone/BAF",$J$115="Ozone/H2O2"),Log_Virus(3,LOG_VIR,Temp_2_O3,pH_2_O3,Conc_2_O3,CT_2_O3),VLOOKUP($J$115,Master_Lookup!$A$29:$Z$39,$C117,FALSE)))) -> 2 | K117: =IF(Input!$T$3=TRUE,VLOOKUP($K$115,Master_Lookup!$A$41:$Z$51,$C117,FALSE),IF(K115="Cl2",Log_Virus(1,LOG_VIR,Temp_3,pH_3,Conc_3,CT_3),IF(OR($K$115="Ozone",$K$115="Ozone/BAF",$K$115="Ozone/H2O2"),Log_Virus(3,LOG_VIR,Temp_3_O3,pH_3_O3,Conc_3_O3,CT_3_O3),VLOOKUP($K$115,Master_Lookup!$A$41:$Z$51,$C117,FALSE)))) -> 6 | L117: =IF(Input!$T$3=TRUE,VLOOKUP($L$115,Master_Lookup!$A$53:$Z$58,$C117,FALSE),IF(L115="Cl2",Log_Virus(1,LOG_VIR,Temp_4,pH_4,Conc_4,CT_4),IF(OR($L$115="Ozone",$L$115="Ozone/BAF",$L$115="Ozone/H2O2"),Log_Virus(3,LOG_VIR,Temp_4_O3,pH_4_O3,Conc_4_O3,CT_4_O3),VLOOKUP($L$115,Master_Lookup!$A$53:$Z$58,$C117,FALSE)))) -> 4 | M117: =IF(AND(Input!$T$3=TRUE,OR(M115="Engineered Storage Buffer - Cl2",M115="Engineered Storage Buffer - Chloramines"))=TRUE,IF(M115="Engineered Storage Buffer - Cl2",Log_Virus(1,LOG_VIR,$I$98,$F$98,$K$98,$I$96),IF(M115="Engineered Storage Buffer - Chloramines",Log_Virus(4,LOG_VIR,$I$98,$F$98,$K$98,$I$97),VLOOKUP($M$115,Master_Lookup!$A$60:$Z$65,$C117,FALSE))),VLOOKUP($M$115,Master_Lookup!$A$60:$Z$65,$C117,FALSE)) -> 1.76244153 | N117: =IF(Input!E43=-1,"NA",Input!E43) -> NA
A118: TRUE | C118: 6 | E118: Cryptosporidium | H118: =IF(Input!$T$3=TRUE,VLOOKUP($H$115,Master_Lookup!$A$10:$Z$16,$C118,FALSE),"Not Accounted") -> 0 | I118: =IF(Input!$T$3=TRUE,VLOOKUP($I$115,Master_Lookup!$A$18:$Z$27,$C118,FALSE),IF($I$115="Tertiary Media Filtration",IF($C$18=TRUE,VLOOKUP("Tertiary Media Filtration - Denitrification",Master_Lookup!$A$18:$Z$27,$C118,FALSE),VLOOKUP($I$115,Master_Lookup!$A$18:$Z$27,$C118,FALSE)),IF(OR($I$115="Ozone",$I$115="Ozone/BAF",$I$115="Ozone/H2O2"),(0.0397*(1.09757)^(Temp_1_O3))*CT_1_O3,VLOOKUP($I$115,Master_Lookup!$A$18:$Z$27,$C118,FALSE)))) -> 3 | J118: =IF(Input!$T$3=TRUE,VLOOKUP($J$115,Master_Lookup!$A$29:$Z$39,$C118,FALSE),IF(OR($J$115="Ozone",$J$115="Ozone/BAF",$J$115="Ozone/H2O2"),(0.0397*(1.09757)^(Temp_2_O3))*CT_2_O3,VLOOKUP($J$115,Master_Lookup!$A$29:$Z$39,$C118,FALSE))) -> 2 | K118: =IF(Input!$T$3=TRUE,VLOOKUP($K$115,Master_Lookup!$A$41:$Z$51,$C118,FALSE),IF(OR($K$115="Ozone",$K$115="Ozone/BAF",$K$115="Ozone/H2O2"),(0.0397*(1.09757)^(Temp_3_O3))*CT_3_O3,VLOOKUP($K$115,Master_Lookup!$A$41:$Z$51,$C118,FALSE))) -> 6 | L118: =IF(Input!$T$3=TRUE,VLOOKUP($L$115,Master_Lookup!$A$53:$Z$58,$C118,FALSE),IF(OR($L$115="Ozone",$L$115="Ozone/BAF",$L$115="Ozone/H2O2"),(0.0397*(1.09757)^(Temp_4_O3))*CT_4_O3,VLOOKUP($L$115,Master_Lookup!$A$53:$Z$58,$C118,FALSE))) -> 0 | M118: =VLOOKUP($M$115,Master_Lookup!$A$60:$Z$65,$C118,FALSE) -> 0 | N118: =IF(Input!F43=-1,"NA",Input!F43) -> NA
A119: TRUE | C119: 7 | E119: Giardia | H119: =IF(Input!$T$3=TRUE,VLOOKUP($H$115,Master_Lookup!$A$10:$Z$16,$C119,FALSE),"Not Accounted") -> 0 | I119: =IF(Input!$T$3=TRUE,VLOOKUP($I$115,Master_Lookup!$A$18:$Z$27,$C119,FALSE),IF($I$115="Tertiary Media Filtration",IF($C$18=TRUE,VLOOKUP("Tertiary Media Filtration - Denitrification",Master_Lookup!$A$18:$Z$27,$C119,FALSE),VLOOKUP($I$115,Master_Lookup!$A$18:$Z$27,$C119,FALSE)),IF(OR($I$115="Ozone",$I$115="Ozone/BAF",$I$115="Ozone/H2O2"),Log_Giardia(3,LOG_GIAR,Temp_1_O3,pH_1_O3,Conc_1_O3,CT_1_O3),VLOOKUP($I$115,Master_Lookup!$A$18:$Z$27,$C119,FALSE)))) -> 3 | J119: =IF(Input!$T$3=TRUE,VLOOKUP($J$115,Master_Lookup!$A$29:$Z$39,$C119,FALSE),IF(J115="Cl2",Log_Giardia(1,LOG_GIAR,Temp_2,pH_2,Conc_2,CT_2),IF(OR($J$115="Ozone",$J$115="Ozone/BAF",$J$115="Ozone/H2O2"),Log_Giardia(3,LOG_GIAR,Temp_2_O3,pH_2_O3,Conc_2_O3,CT_2_O3),VLOOKUP($J$115,Master_Lookup!$A$29:$Z$39,$C119,FALSE)))) -> 2 | K119: =IF(Input!$T$3=TRUE,VLOOKUP($K$115,Master_Lookup!$A$41:$Z$51,$C119,FALSE),IF(K115="Cl2",Log_Giardia(1,LOG_GIAR,Temp_3,pH_3,Conc_3,CT_3),IF(OR($K$115="Ozone",$K$115="Ozone/BAF",$K$115="Ozone/H2O2"),Log_Giardia(3,LOG_GIAR,Temp_3_O3,pH_3_O3,Conc_3_O3,CT_3_O3),VLOOKUP($K$115,Master_Lookup!$A$41:$Z$51,$C119,FALSE)))) -> 6 | L119: =IF(Input!$T$3=TRUE,VLOOKUP($L$115,Master_Lookup!$A$53:$Z$58,$C119,FALSE),IF(L115="Cl2",Log_Giardia(1,LOG_GIAR,Temp_4,pH_4,Conc_4,CT_4),IF(OR($L$115="Ozone",$L$115="Ozone/BAF",$L$115="Ozone/H2O2"),Log_Giardia(3,LOG_GIAR,Temp_4_O3,pH_4_O3,Conc_4_O3,CT_4_O3),VLOOKUP($L$115,Master_Lookup!$A$53:$Z$58,$C119,FALSE)))) -> 0 | M119: =IF(AND(Input!$T$3=FALSE,OR(M115="Engineered Storage Buffer - Cl2",M115="Engineered Storage Buffer - Chloramines"))=TRUE,IF(M115="Engineered Storage Buffer - Cl2",Log_Giardia(1,LOG_GIAR,$I$98,$F$98,$K$98,$I$96),IF(M115="Engineered Storage Buffer - Chloramines",Log_Giardia(4,LOG_GIAR,$I$98,$F$98,$K$98,$I$97),VLOOKUP($M$115,Master_Lookup!$A$60:$Z$65,$C119,FALSE))),VLOOKUP($M$115,Master_Lookup!$A$60:$Z$65,$C119,FALSE)) -> 0 | N119: =IF(Input!G43=-1,"NA",Input!G43) -> NA
A120: TRUE | C120: 12 | E120: TOC | H120: =IF(AND(Input!$C$23="Primary Effluent*",Input!$T$3=TRUE),VLOOKUP($H$115,Master_Lookup!$A$10:$Z$16,$C120,FALSE),"Not Accounted") -> 0.5 | I120: =VLOOKUP($I$115,Master_Lookup!$A$18:$Z$27,$C120,FALSE) -> 0 | J120: =IF(J$115<>"RO",VLOOKUP(J$115,Master_Lookup!$A$29:$Z$39,$C120,FALSE),IF(AND(Input!C23="Primary Effluent*",Input!T3=TRUE),MAX((($I$106*(1-$H$120)*(1-$I$120)-Master!$M$42)/($I$106*(1-$H$120)*(1-$I$120))),Master!$J$42),MAX((($I$106*(1-$I$120)-Master!$M$42)/($I$106*(1-$I$120))),Master!$J$42))) -> 0.98 | K120: =IF(K$115<>"RO",VLOOKUP(K$115,Master_Lookup!$A$41:$Z$51,$C120,FALSE),IF(AND(Input!C2="Primary Effluent*",Input!T3=TRUE),MAX((($I$106*(1-$H$120)*(1-$I$120)*(1-$J$120)-Master!$M$42)/($I$106*(1-$H$120)*(1-$I$120)*(1-$J$120))),Master!$J$42),MAX((($I$106*(1-$I$120)*(1-$J$120)-Master!$M$42)/($I$106*(1-$I$120)*(1-$J$120))),Master!$J$42))) -> 0.1 | L120: =VLOOKUP($L$115,Master_Lookup!$A$53:$Z$58,$C120,FALSE) -> 0 | M120: =VLOOKUP($M$115,Master_Lookup!$A$60:$Z$65,$C120,FALSE) -> 0 | N120: NA
A121: TRUE | C121: 11 | E121: Nitrate as N | H121: =IF(AND(Input!$C$23="Primary Effluent*",Input!$T$3=TRUE),VLOOKUP($H$115,Master_Lookup!$A$10:$Z$16,$C121,FALSE),"Not Accounted") -> 0 | I121: =IF($C$18=TRUE,VLOOKUP("Tertiary Media Filtration - Denitrification",Master_Lookup!$A$18:$Z$27,$C121,FALSE),VLOOKUP($I$115,Master_Lookup!$A$18:$Z$27,$C121,FALSE)) -> 0 | J121: =VLOOKUP($J$115,Master_Lookup!$A$29:$Z$39,$C121,FALSE) -> 0.9 | K121: =VLOOKUP($K$115,Master_Lookup!$A$41:$Z$51,$C121,FALSE) -> 0 | L121: =VLOOKUP($L$115,Master_Lookup!$A$53:$Z$58,$C121,FALSE) -> 0 | M121: =VLOOKUP($M$115,Master_Lookup!$A$60:$Z$65,$C121,FALSE) -> 0 | N121: NA
A122: TRUE | C122: 9 | E122: TOrCs | H122: =IF(AND(Input!$C$23="Primary Effluent*",Input!$T$3=TRUE),VLOOKUP($H$115,Master_Lookup!$A$10:$Z$16,$C122,FALSE),"Not Accounted") -> 0.7 | I122: =IF($C$18=TRUE,VLOOKUP("Tertiary Media Filtration - Denitrification",Master_Lookup!$A$18:$Z$27,$C122,FALSE),VLOOKUP($I$115,'Master_Lookup (2)'!$A$18:$Z$27,$C122,FALSE)) -> 0.1 | J122: =VLOOKUP($J$115,Master_Lookup!$A$29:$Z$39,$C122,FALSE) -> 0.95 | K122: =VLOOKUP($K$115,Master_Lookup!$A$41:$Z$51,$C122,FALSE) -> 0.6 | L122: =VLOOKUP($L$115,Master_Lookup!$A$53:$Z$58,$C122,FALSE) -> 0 | M122: =VLOOKUP($M$115,Master_Lookup!$A$60:$Z$65,$C122,FALSE) -> 0 | N122: NA
A123: TRUE | C123: 8 | E123: EEQ | H123: =IF(AND(Input!$C$23="Primary Effluent*",Input!$T$3=TRUE),VLOOKUP($H$115,Master_Lookup!$A$10:$Z$16,$C123,FALSE),"Not Accounted") -> 0.9 | I123: =IF($C$18=TRUE,VLOOKUP("Tertiary Media Filtration - Denitrification",Master_Lookup!$A$18:$Z$27,$C123,FALSE),VLOOKUP($I$115,Master_Lookup!$A$18:$Z$27,$C123,FALSE)) -> 0.3 | J123: =VLOOKUP($J$115,Master_Lookup!$A$29:$Z$39,$C123,FALSE) -> 0.95 | K123: =VLOOKUP($K$115,Master_Lookup!$A$41:$Z$51,$C123,FALSE) -> 0.8 | L123: =VLOOKUP($L$115,Master_Lookup!$A$53:$Z$58,$C123,FALSE) -> 0 | M123: =VLOOKUP($M$115,Master_Lookup!$A$60:$Z$65,$C123,FALSE) -> 0 | N123: NA
A124: TRUE | C124: 10 | E124: NDMA | H124: =IF(AND(Input!$C$23="Primary Effluent*",Input!$T$3=TRUE),VLOOKUP($H$115,Master_Lookup!$A$10:$Z$16,$C124,FALSE),"Not Accounted") -> 0 | I124: =VLOOKUP($I$115,Master_Lookup!$A$18:$Z$27,$C124,FALSE) -> 0 | J124: =VLOOKUP($J$115,Master_Lookup!$A$29:$Z$39,$C124,FALSE) -> 0.5 | K124: =VLOOKUP($K$115,Master_Lookup!$A$41:$Z$51,$C124,FALSE) -> 0.9 | L124: =VLOOKUP($L$115,Master_Lookup!$A$53:$Z$58,$C124,FALSE) -> 0 | M124: =VLOOKUP($M$115,Master_Lookup!$A$60:$Z$65,$C124,FALSE) -> 0 | N124: NA
A125: TRUE | C125: 13 | E125: PFOS+PFOA | H125: =IF(AND(Input!$C$23="Primary Effluent*",Input!$T$3=TRUE),VLOOKUP($H$115,Master_Lookup!$A$10:$Z$16,$C125,FALSE),"Not Accounted") -> 0 | I125: =VLOOKUP($I$115,Master_Lookup!$A$18:$Z$27,$C125,FALSE) -> 0 | J125: =VLOOKUP($J$115,Master_Lookup!$A$29:$Z$39,$C125,FALSE) -> 0.99 | K125: =VLOOKUP($K$115,Master_Lookup!$A$41:$Z$51,$C125,FALSE) -> 0 | L125: =VLOOKUP($L$115,Master_Lookup!$A$53:$Z$58,$C125,FALSE) -> 0 | M125: =VLOOKUP($M$115,Master_Lookup!$A$60:$Z$65,$C125,FALSE) -> 0 | N125: NA
A126: TRUE | C126: 26 | E126: Cost - Subtotal | H126: Not Available | I126: =VLOOKUP($I$115,Master_Lookup!$A$18:$Z$27,$C126,FALSE) ->  | J126: =VLOOKUP($J$115,Master_Lookup!$A$29:$Z$39,$C126,FALSE) ->  | K126: =VLOOKUP($K$115,Master_Lookup!$A$41:$Z$51,$C126,FALSE) -> Not Available | L126: =VLOOKUP($L$115,Master_Lookup!$A$53:$Z$58,$C126,FALSE) -> Not Available | M126: Not Available | N126: NA
U143: Menu 1A
U144: Secondary Treatment | V144: Advanced 1 | W144: Advanced 2 | X144: Advanced 3 | Y144: Advanced 4 | Z144: Optional Environmental Buffers | AA144: Process Recovery Rate | AB144: % | AC144: UVT (%)
U145: Secondary - BOD Only | V145: MF | W145: Ozone/BAF | X145: Ozone | Y145: Cl2 | Z145: Soil Aquifer Treatment (Percolation and Subsurface Migration) | AA145: BAF | AB145: 95 | AC145: 0.85
U146: Secondary - Nitrified Only | V146: UF | W146: UV | X146: UV | Y146: None | Z146: Direct Injection (Subsurface Migration Only) | AA146: Ozone/BAF | AB146: 95 | AC146: 0.85
U147: Secondary - Denitrified | V147: Ozone | W147: NF | X147: Cl2 | Z147: Surface Water Augmentation | AA147: MF | AB147: 95 | AC147: 0.7
U148: Tertiary - Nitrified Only | V148: Ozone/BAF | W148: RO | Y148: UV | Z148: Engineered Storage Buffer - Cl2 | AA148: UF | AB148: 95 | AC148: 0.7
U149: Tertiary - Denitrified | V149: UV | W149: Cl2 | X149: Cl2 | Y149: UV/H2O2 | Z149: Engineered Storage Buffer - Chloramines | AA149: NF | AB149: 80 | AC149: 0.9
U150: MBR - Nitrified Only | V150: Tertiary Media Filtration | X150: None | Y150: Ozone | Z150: No environmental buffer | AA150: RO | AB150: 80 | AC150: 0.98 | AD150: <- no data, value is assumed
U151: MBR - Denitrified | V151: Cl2 | W151: Ozone/BAF | Y151: Ozone/H2O2 | AA151: Ozone | AB151: 100 | AC151: 0.9 | AD151: <- no data, value is assumed
V152: MBR - Nitrified Only | W152: UV | X152: UV | Y152: Cl2 | AA152: Ozone/H2O2 | AB152: 100 | AC152: 0.9 | AD152: <- no data, value is assumed
W153: Ozone | X153: UV/H2O2 | AA153: Cl2 | AB153: 100 | AC153: 0.85 | AD153: <- no data, value is assumed
V154: MF | W154: Cl2 | X154: Ozone | Y154: Cl2 | AA154: UV | AB154: 100 | AC154: 0.85 | AD154: <- no data, value is assumed
V155: UF | X155: Ozone/H2O2 | Y155: UV | AA155: UV/H2O2 | AB155: 100 | AC155: 0.85
V156: Ozone | W156: MF | AA156: Tertiary Media Filtration | AB156: 100 | AC156: 0.65
V157: Ozone/BAF | W157: UF | X157: MF | AA157: None | AB157: 100
V158: UV | X158: UF | AA158: Secondary - BOD Only | AC158: 0.6
V159: Cl2 | W159: MF | X159: UV | AA159: Conventional Activated Sludge - Nutrient Removal | AC159: 0.7
V160: MBR - Nitrified Only | W160: UF | X160: Cl2 | AA160: MBR - Nitrified Only | AC160: 0.7
W161: UV
V162: MF | W162: Ozone | X162: NF
V163: UF | W163: Cl2 | X163: RO
V164: None | X164: UV
W165: None | X165: Cl2
X167: NF
X168: RO
X169: UV
X170: UV/H2O2
X171: Cl2
X173: None
V175: 10
V176: 50
V177: 150
V179: Ozone:TOC Ratio
V180: Ozone CT
V182: 0.55
V183: 0.6
V184: 0.65
V185: 0.7
V186: 0.75
V187: 0.8
V188: 0.85
V189: 0.9
V190: 0.95

Sheet Train (2) (hidden)
A1: Train Comparison
A3: 0 | E3: Facility Name: | F3: =IF(Input!C4="[[enter name here]]","",Input!C4) -> 
E6: Facility Size: | F6: =IF(Input!D6="[[enter size here]]","",Input!D6) ->  | G6: mgd
E8: SELECT YOUR TREATMENT TRAIN:
B10: =IF(Input!$T$3=TRUE,SECONDARY,E12) -> Secondary - BOD Only | E10: Secondary Treatment
A11: =IF(Input!$T$3=TRUE,TRUE,FALSE) -> TRUE | E11: Secondary - BOD Only
A12: =IF(Input!$T$3=FALSE,TRUE,FALSE) -> FALSE | E12: =Input!C26 -> Secondary - BOD Only
A13: =IF(Input!C23="Primary Effluent*",TRUE,FALSE) -> TRUE
A14: =AND(FINAL_Secondary="Secondary - BOD Only",Input!C23="Primary Effluent*") -> TRUE | E14: SRT | F14: 7 | G14: days
A15: =AND(Input!C23="Primary Effluent*", NOT(FINAL_Secondary="Secondary - BOD Only")) -> FALSE | E15: SRT | F15: 10 | G15: days
A17: TRUE | B17: =VLOOKUP(TRUE,A18:E21,5,FALSE) -> UV | E17: Advanced 1
A18: =OR(FINAL_Secondary="Secondary - Nitrified Only",FINAL_Secondary="Secondary - Denitrified") -> FALSE | C18: FALSE | E18: Ozone/BAF | F18: =IF(OR(FINAL_Advance1="Ozone",FINAL_Advance1="Ozone/BAF"),"Ozone Bromate Warning",IF(FINAL_Advance1="Tertiary Media Filtration","Denitrification","")) -> 
A19: =FINAL_Secondary="Secondary - BOD Only" -> TRUE | E19: UV | F19: =IF(OR(FINAL_Advance1="Ozone",FINAL_Advance1="Ozone/BAF"),"Ozone Bromate Warning",IF(FINAL_Advance1="Tertiary Media Filtration","Denitrification","")) -> 
A20: =OR(FINAL_Secondary="Tertiary - Nitrified Only",FINAL_Secondary="Tertiary - Denitrified") -> FALSE | E20: Ozone/BAF | F20: =IF(OR(FINAL_Advance1="Ozone",FINAL_Advance1="Ozone/BAF"),"Ozone Bromate Warning",IF(FINAL_Advance1="Tertiary Media Filtration","Denitrification","")) -> 
A21: =OR(FINAL_Secondary="MBR - Nitrified Only",FINAL_Secondary="MBR - Denitrified") -> FALSE | E21: UF | Q21: Chlorine Dose
A22: TRUE
A23: =IF(FINAL_Advance1="Cl2",TRUE,FALSE) -> FALSE | E23: Cl2 CT | F23: 30 | G23: mg-min/L | H23: Contact Time: | I23: 90 | J23: Initial Cl2 Demand = | K23: =IF(FINAL_Advance1="Cl2", IF(FINAL_Secondary="MBR - Nitrified Only",4, IF(FINAL_Secondary="Secondary - BOD Only",12, IF(FINAL_Secondary="Conventional Activated Sludge - Nutrient Removal",4, 5)))) -> FALSE | L23: Cl2 Decay Rate: | M23: 3 | Q23: =F23/I23+M23*I23/60+K23 -> 4.833333333
A24: =IF(AND(FINAL_Advance1="Cl2",Input!$T$3=FALSE),TRUE,FALSE) -> FALSE | E24: Water pH | F24: 7 | H24: Water Temperature: | I24: 10 | J24: Residual Conc = | K24: =F23/I23 -> 0.3333333333
A25: =IF(OR(FINAL_Advance1="Ozone",FINAL_Advance1="Ozone/BAF"),TRUE,FALSE) -> FALSE | E25: Ozone:TOC Ratio | F25: 1.2 | G25: =IF(E25="Ozone CT", "mg-min/L", "") ->  | H25: Contact Time: | I25: 1 | J25: Influent TOC = | K25: =IF(AND(Input!$C$23="Primary Effluent*",Input!$T$3=TRUE),$I$106*(1-$H$120),$I$106) -> 25 | L25: O3:TOC= | M25: =IF(E25="Ozone CT", F25/I25/K25+1,F25) -> 1.2 | N25: =IF(E25="Ozone Ct",F25,IF((M25-1)*K25*I25>=0,(M25-1)*K25*I25,0)) -> 5 | Q25: =IF(A25=TRUE,K25*M25) -> FALSE
A26: =IF(AND(OR(FINAL_Advance1="Ozone",FINAL_Advance1="Ozone/BAF"),Input!$T$3=FALSE),TRUE,FALSE) -> FALSE | E26: Water pH | F26: 7 | H26: Water Temperature: | I26: 15 | J26: Residual Conc = | K26: 2
A27: =IF(OR(FINAL_Advance1="UV/H2O2",FINAL_Advance1="UV"),TRUE,FALSE) -> TRUE | E27: UV Dose | F27: 200 | G27: mJ/cm2 | H27: Feed Water UVT: | I27: =IF(SECONDARY="MBR - Nitrified Only",$AC$160,VLOOKUP(FINAL_Advance1,$AA$145:$AC$160,3,FALSE)) -> 0.85
A28: =OR(FINAL_Advance1="Ozone",FINAL_Advance1="Ozone/BAF") -> FALSE | E28: Level of CNDMA(O3) | F28: 10 | G28: (CNDMA(O3) = NDMA Concentration Formed During Ozonation)
A29: FALSE | E29: H2O2 Dose | F29: 3 | G29: mg/L
A30: FALSE | C30: =VLOOKUP(FINAL_Advance1,$AA$145:$AB$157,2,FALSE) -> 100 | E30: Process Recovery Rate | F30: 95 | G30: %
A31: TRUE
A32: TRUE | B32: =VLOOKUP(TRUE,A33:E39,5,FALSE) -> None | C32: =OR(FINAL_Advance1="Ozone",FINAL_Advance2="Ozone") -> FALSE | E32: Advanced 2
A33: =OR(FINAL_Advance1="MF",FINAL_Advance1="UF",FINAL_Advance1="None") -> FALSE | E33: UV | F33: =IF(OR(FINAL_Advance2="Ozone",FINAL_Advance2="Ozone/BAF"),"Ozone Bromate Warning","") -> 
A34: =AND( NOT(FINAL_Secondary="MBR - Nitrified Only"), NOT(FINAL_Secondary="MBR - Denitrified"), NOT(FINAL_Secondary="Tertiary - Nitrified Only"), NOT(FINAL_Secondary="Tertiary - Denitrified"), FINAL_Advance1="Tertiary Media Filtration", FINAL_Secondary="Secondary - BOD Only") -> FALSE | E34: UV | F34: =IF(OR(FINAL_Advance2="Ozone",FINAL_Advance2="Ozone/BAF"),"Ozone Bromate Warning","") -> 
A35: =AND( NOT(FINAL_Secondary="MBR - Nitrified Only"), NOT(FINAL_Secondary="MBR - Nitrified Only Denitrification"), NOT(FINAL_Secondary="Tertiary - Nitrified Only"), NOT(FINAL_Secondary="Tertiary - Denitrified"), FINAL_Advance1="Tertiary Media Filtration", NOT(FINAL_Secondary="Secondary - BOD Only")) -> FALSE | E35: UV | F35: =IF(OR(FINAL_Advance2="Ozone",FINAL_Advance2="Ozone/BAF"),"Ozone Bromate Warning","") -> 
A36: =AND( NOT(FINAL_Secondary="MBR - Nitrified Only"), NOT(FINAL_Secondary="MBR - Denitrified"), FINAL_Advance1="Ozone") -> FALSE | E36: UF
A37: =AND( NOT(FINAL_Secondary="MBR - Nitrified Only"), NOT(FINAL_Secondary="MBR - Denitrified"), FINAL_Advance1="Ozone/BAF", FINAL_Secondary="Secondary - BOD Only") -> FALSE | E37: UF | F37: =IF(OR(FINAL_Advance2="Ozone",FINAL_Advance2="Ozone/BAF"),"Ozone Bromate Warning","") -> 
A38: =AND( NOT(FINAL_Secondary="MBR - Nitrified Only"), NOT(FINAL_Secondary="MBR - Denitrified"), FINAL_Advance1="Ozone/BAF", NOT(FINAL_Secondary="Secondary - BOD Only")) -> FALSE | E38: MF | F38: =IF(OR(FINAL_Advance2="Ozone",FINAL_Advance2="Ozone/BAF"),"Ozone Bromate Warning","") -> 
A39: =OR(FINAL_Advance1="Cl2",FINAL_Advance1="UV") -> TRUE | E39: None | F39: =IF(OR(FINAL_Advance2="Ozone",FINAL_Advance2="Ozone/BAF"),"Ozone Bromate Warning","") ->  | Q39: Chlorine Dose
A40: TRUE
A41: =IF(FINAL_Advance2="Cl2",TRUE,FALSE) -> FALSE | E41: Cl2 CT | F41: 30 | G41: mg-min/L | H41: Contact Time: | I41: 90 | J41: Initial Cl2 Demand = | K41: =IF(FINAL_Advance2="Cl2", IF(FINAL_Secondary="MBR - Nitrified Only",4, IF(FINAL_Advance1="Tertiary Media Filtration",5, IF(OR(FINAL_Advance1="MF",FINAL_Advance1="UF"), IF(FINAL_Secondary="Secondary - BOD Only",12, IF(FINAL_Secondary="Conventional Activated Sludge - Nutrient Removal",4,5)))))) -> FALSE | L41: Cl2 Decay Rate: | M41: 3 | Q41: =F41/I41+M41*I41/60+K41 -> 4.833333333
A42: =IF(AND(FINAL_Advance2="Cl2",Input!$T$3=FALSE),TRUE,FALSE) -> FALSE | E42: Water pH | F42: 7 | H42: Water Temperature: | I42: 10 | J42: Residual Conc = | K42: =F41/CT_2 -> 0.3333333333
A43: =OR(FINAL_Advance2="Ozone",FINAL_Advance2="Ozone/BAF") -> FALSE | E43: Ozone:TOC Ratio | F43: 1 | G43: =IF(E43="Ozone CT", "mg-min/L", "") ->  | H43: Contact Time: | I43: 1 | J43: Influent TOC = | K43: =IF(AND(Input!$C$23="Primary Effluent*",Input!$T$3=TRUE),$I$106*(1-$H$120)*(1-$I$120),$I$106*(1-$I$120)) -> 22.5 | L43: O3:TOC= | M43: =IF(E43="Ozone CT", F43/I43/K43+1,F43) -> 1 | N43: =IF(E43="Ozone Ct",F43,IF((M43-1)*K43*I43>=0,(M43-1)*K43*I43,0)) -> 0 | Q43: =IF(A43=TRUE,K43*M43) -> FALSE
A44: =IF(AND(FINAL_Advance2="Ozone",Input!$T$3=FALSE),TRUE,FALSE) -> FALSE | E44: Water pH | F44: 7 | H44: Water Temperature: | I44: 15 | J44: Residual Conc = | K44: 2
A45: =IF(OR(FINAL_Advance2="UV/H2O2",FINAL_Advance2="UV"),TRUE,FALSE) -> FALSE | E45: UV Dose | F45: 200 | G45: mJ/cm2 | H45: Feed Water UVT: | I45: =IF(SECONDARY="MBR - Nitrified Only",$AC$160,VLOOKUP(FINAL_Advance1,$AA$145:$AC$160,3,FALSE)) -> 0.85
A46: =OR(FINAL_Advance2="Ozone",FINAL_Advance2="Ozone/BAF") -> FALSE | E46: Level of CNDMA(O3) | F46: 10 | G46: (CNDMA(O3) = NDMA Concentration Formed During Ozonation)
A47: FALSE | E47: H2O2 Dose | F47: 3 | G47: mg/L
A48: FALSE | C48: =VLOOKUP(FINAL_Advance2,$AA$145:$AB$157,2,FALSE) -> 100 | E48: Process Recovery Rate | F48: 95 | G48: %
A49: TRUE
A50: TRUE | B50: =VLOOKUP(TRUE,A51:E62,5,FALSE) -> None | E50: Advanced 3
A51: =AND( FINAL_Advance2="Ozone/BAF", OR(FINAL_Advance1="MF",FINAL_Advance1="UF",FINAL_Advance1="None"), FINAL_Secondary="Secondary - BOD Only") -> FALSE | E51: Ozone | F51: =IF(OR(FINAL_Advance3="Ozone",FINAL_Advance3="Ozone/H2O2"),"Ozone Bromate Warning","") -> 
A52: =AND( FINAL_Advance2="Ozone/BAF", OR(FINAL_Advance1="MF",FINAL_Advance1="UF",FINAL_Advance1="None"), NOT(FINAL_Secondary="Secondary - BOD Only")) -> FALSE | E52: Ozone | F52: =IF(OR(FINAL_Advance3="Ozone",FINAL_Advance3="Ozone/H2O2"),"Ozone Bromate Warning","") -> 
A53: =OR(FINAL_Advance2="NF",FINAL_Advance2="RO") -> FALSE | E53: UV/H2O2 | F53: =IF(OR(FINAL_Advance3="Ozone",FINAL_Advance3="Ozone/H2O2"),"Ozone Bromate Warning","") -> 
A54: =AND( OR(FINAL_Advance1="MF",FINAL_Advance1="UF",FINAL_Advance1="None",FINAL_Advance1="Tertiary Media Filtration"), FINAL_Advance2="UV", NOT(FINAL_Secondary="Secondary - BOD Only")) -> FALSE | E54: Cl2
A55: =AND( OR(FINAL_Advance1="MF",FINAL_Advance1="UF",FINAL_Advance1="None",FINAL_Advance1="Tertiary Media Filtration"), FINAL_Advance2="UV", FINAL_Secondary="Secondary - BOD Only") -> FALSE | E55: Cl2
A56: =AND( FINAL_Advance1="Tertiary Media Filtration", FINAL_Advance2="Ozone/BAF", FINAL_Secondary="Secondary - BOD Only") -> FALSE | E56: MF
A57: =AND( FINAL_Advance1="Tertiary Media Filtration", FINAL_Advance2="Ozone/BAF", NOT(FINAL_Secondary="Secondary - BOD Only")) -> FALSE | E57: UF
A58: =AND( OR(FINAL_Advance2="MF",FINAL_Advance2="UF"), FINAL_Advance1="Ozone", FINAL_Secondary="Secondary - BOD Only") -> FALSE | E58: UV
A59: =AND( OR(FINAL_Advance2="MF",FINAL_Advance2="UF"), FINAL_Advance1="Ozone", NOT(FINAL_Secondary="Secondary - BOD Only")) -> FALSE | E59: RO
A60: =AND( OR(FINAL_Advance2="MF",FINAL_Advance2="UF"), FINAL_Advance1="Ozone/BAF", FINAL_Secondary="Secondary - BOD Only") -> FALSE | E60: UV/H2O2
A61: =AND( OR(FINAL_Advance2="MF",FINAL_Advance2="UF"), FINAL_Advance1="Ozone/BAF", NOT(FINAL_Secondary="Secondary - BOD Only")) -> FALSE | E61: UV/H2O2
A62: =OR( FINAL_Advance2="Cl2", FINAL_Advance2="Ozone", AND(FINAL_Advance2="UV",FINAL_Advance1="Ozone/BAF"), FINAL_Advance1="Cl2", FINAL_Advance1="UV") -> TRUE | E62: None | Q62: Chlorine Dose
A63: TRUE
A64: =IF(FINAL_Advance3="Cl2",TRUE,FALSE) -> FALSE | E64: Cl2 CT | F64: 40 | G64: mg-min/L | H64: Contact Time: | I64: 90 | J64: Initial Cl2 Demand = | K64: =IF(FINAL_Advance3="Cl2", IF(FINAL_Advance2="Ozone", 3, IF(FINAL_Advance2="Ozone/BAF", 2, IF(OR(FINAL_Advance2="NF",FINAL_Advance2="RO"),0, IF(OR(FINAL_Advance2="MF",OR(FINAL_Advance2="UF",FINAL_Advance2="UV")), IF(FINAL_Advance1="Ozone", 3, IF(FINAL_Advance1="Ozone/BAF", 2, IF(FINAL_Advance1="Tertiary Media Filtration",5 )))))))) -> FALSE | L64: Cl2 Decay Rate: | M64: 3 | Q64: =F64/I64+M64*I64/60+K64 -> 4.944444444
A65: =IF(AND(FINAL_Advance3="Cl2",Input!$T$3=FALSE),TRUE,FALSE) -> FALSE | E65: Water pH | F65: 7 | H65: Water Temperature: | I65: 10 | J65: Residual Conc = | K65: =F64/CT_3 -> 0.4444444444
A66: =OR(FINAL_Advance3="Ozone/H2O2",FINAL_Advance3="Ozone") -> FALSE | E66: Ozone:TOC Ratio | F66: 1 | G66: =IF(E66="Ozone CT", "mg-min/L", "") ->  | H66: Contact Time: | I66: 0.5 | J66: Influent TOC = | K66: =IF(AND(Input!$C$23="Primary Effluent*",Input!$T$3=TRUE),$I$106*(1-$H$120)*(1-$I$120)*(1-$J$120),$I$106*(1-$I$120)*(1-$J$120)) -> 22.5 | L66: O3:TOC= | M66: =IF(E66="Ozone CT", F66/I66/K66+1,F66) -> 1 | N66: =IF(E66="Ozone Ct",F66,IF((M66-1)*K66*I66>=0,(M66-1)*K66*I66,0)) -> 0 | Q66: =IF(A66=TRUE,K66*M66) -> FALSE
A67: =IF(AND(FINAL_Advance3="Ozone",Input!$T$3=FALSE),TRUE,FALSE) -> FALSE | E67: Water pH | F67: 7 | H67: Water Temperature: | I67: 15 | J67: Residual Conc = | K67: 2
A68: =IF(OR(FINAL_Advance3="UV",FINAL_Advance3="UV/H2O2"),TRUE,FALSE) -> FALSE | E68: UV Dose | F68: 1000 | G68: mJ/cm2 | H68: Feed Water UVT: | I68: =VLOOKUP(FINAL_Advance2,$AA$145:$AC$160,3,FALSE) -> 0
A69: =OR(FINAL_Advance3="Ozone",FINAL_Advance3="Ozone/H2O2") -> FALSE | E69: Level of CNDMA(O3) | F69: 10 | G69: (CNDMA(O3) = NDMA Concentration Formed During Ozonation)
A70: FALSE | E70: H2O2 Dose | F70: =IF(FINAL_Advance3="UV/H2O2",IF(OR(FINAL_Advance2="MF",FINAL_Advance2="UF"),15,IF(OR(FINAL_Advance2="NF",FINAL_Advance2="RO"),3,"")),IF(FINAL_Advance3="Ozone/H2O2",Q66*0.5,"")) ->  | G70: mg/L
A71: FALSE | C71: =VLOOKUP(FINAL_Advance3,$AA$145:$AB$157,2,FALSE) -> 100 | E71: Process Recovery Rate | F71: 100 | G71: %
A72: TRUE
A73: TRUE | B73: =VLOOKUP(TRUE,A74:E80,5,FALSE) -> None | E73: Advanced 4
A74: =AND( OR(FINAL_Advance3="NF",FINAL_Advance3="RO"), FINAL_Advance1="Ozone") -> FALSE | E74: UV | F74: =IF(OR(FINAL_Advance4="Ozone",FINAL_Advance4="Ozone/H2O2"),"Ozone Bromate Warning","") -> 
A75: =AND( OR(FINAL_Advance3="NF",FINAL_Advance3="RO"), FINAL_Advance1="Ozone/BAF") -> FALSE | E75: Ozone | F75: =IF(OR(FINAL_Advance4="Ozone",FINAL_Advance4="Ozone/H2O2"),"Ozone Bromate Warning","") -> 
A76: =OR(FINAL_Advance3="MF",FINAL_Advance3="UF") -> FALSE | E76: Cl2
A77: =AND( OR(FINAL_Advance3="UV",FINAL_Advance3="UV/H2O2",FINAL_Advance3="Ozone",FINAL_Advance3="Ozone/H2O2"), OR(FINAL_Advance2="NF",FINAL_Advance2="RO"), OR(FINAL_Advance1="MF",FINAL_Advance1="UF",FINAL_Advance1="None")) -> FALSE | E77: Cl2
A78: =OR( AND(NOT(FINAL_Secondary="Secondary - BOD Only"),FINAL_Advance3="UV",FINAL_Advance2="Ozone/BAF",OR(FINAL_Advance1="MF",FINAL_Advance1="UF",FINAL_Advance1="None",FINAL_Advance1="Tertiary Media Filtration")), AND(NOT(FINAL_Secondary="Secondary - BOD Only"),FINAL_Advance3="UV",OR(FINAL_Advance2="MF",FINAL_Advance2="UF"),FINAL_Advance1="Ozone"), AND(NOT(FINAL_Secondary="Secondary - BOD Only"),OR(FINAL_Advance3="UV",FINAL_Advance3="UV/H2O2"),OR(FINAL_Advance2="MF",FINAL_Advance2="UF"),FINAL_Advance1="Ozone/BAF")) -> FALSE | E78: Cl2
A79: =OR( AND(FINAL_Secondary="Secondary - BOD Only",FINAL_Advance3="UV",FINAL_Advance2="Ozone/BAF",OR(FINAL_Advance1="MF",FINAL_Advance1="UF",FINAL_Advance1="None",FINAL_Advance1="Tertiary Media Filtration")), AND(FINAL_Secondary="Secondary - BOD Only",FINAL_Advance3="UV",OR(FINAL_Advance2="MF",FINAL_Advance2="UF"),FINAL_Advance1="Ozone"), AND(FINAL_Secondary="Secondary - BOD Only",OR(FINAL_Advance3="UV",FINAL_Advance3="UV/H2O2"),OR(FINAL_Advance2="MF",FINAL_Advance2="UF"),FINAL_Advance1="Ozone/BAF")) -> FALSE | E79: None
A80: =OR( AND(FINAL_Advance3="Ozone",FINAL_Advance2="Ozone/BAF",OR(FINAL_Advance1="MF",FINAL_Advance1="UF",FINAL_Advance1="None")), FINAL_Advance3="Cl2", FINAL_Advance3="None") -> TRUE | E80: None | Q80: Chlorine Dose
A81: TRUE
A82: =B73="Cl2" -> FALSE | E82: Cl2 CT | F82: 10 | G82: mg-min/L | H82: Contact Time: | I82: 5 | J82: Initial Cl2 Demand = | K82: =IF(FINAL_Advance4="Cl2", IF(OR(FINAL_Advance2="NF", FINAL_Advance2="RO"),0, IF(OR(FINAL_Advance3="NF", FINAL_Advance3="RO"),0, IF(OR(FINAL_Advance1="Ozone", FINAL_Advance1="Ozone/BAF"),2, IF(OR(FINAL_Advance2="Ozone", FINAL_Advance2="Ozone/BAF"),2, IF(OR(FINAL_Advance3="Ozone", FINAL_Advance3="Ozone/BAF"),2, 5)))))) -> FALSE | L82: Cl2 Decay Rate: | M82: 3 | Q82: =F82/I82+M82*I82/60+K82 -> 2.25
A83: =IF(AND(FINAL_Advance4="Cl2",Input!$T$3=FALSE),TRUE,FALSE) -> FALSE | E83: Water pH | F83: 7 | H83: Water Temperature: | I83: 20 | J83: Residual Conc = | K83: =F82/CT_4 -> 2
A84: =IF(OR(B73="Ozone/H2O2", B73="Ozone"),TRUE,FALSE) -> FALSE | E84: Ozone:TOC Ratio | F84: 1 | G84: =IF(E84="Ozone CT", "mg-min/L", "") ->  | H84: Contact Time: | I84: 0.5 | J84: Influent TOC = | K84: =IF(AND(Input!$C$23="Primary Effluent*",Input!$T$3=TRUE),$I$106*(1-$H$120)*(1-$I$120)*(1-$J$120)*(1-$K$120),$I$106*(1-$I$120)*(1-$J$120)*(1-$K$120)) -> 22.5 | L84: O3:TOC= | M84: =IF(E84="Ozone CT", F84/I84/K84,F84) -> 1 | N84: =IF(E84="Ozone Ct",F84,IF((M84-1)*K84*I84>=0,(M84-1)*K84*I84,0)) -> 0 | Q84: =IF(A84=TRUE,K84*M84) -> FALSE
A85: =IF(AND(FINAL_Advance4="Ozone",Input!$T$3=FALSE),TRUE,FALSE) -> FALSE | E85: Water pH | F85: 7 | H85: Water Temperature: | I85: 15 | J85: Residual Conc = | K85: 2
A86: =OR(B73="UV",B73="UV/H2O2") -> FALSE | E86: UV Dose | F86: 800 | G86: mJ/cm2 | H86: Feed Water UVT: | I86: =VLOOKUP(FINAL_Advance3,$AA$145:$AC$160,3,FALSE) -> 0
A87: =OR(FINAL_Advance4="Ozone",FINAL_Advance4="Ozone/H2O2") -> FALSE | E87: Level of CNDMA(O3) | F87: 10 | G87: (CNDMA(O3) = NDMA Concentration Formed During Ozonation)
A88: FALSE | E88: H2O2 Dose | F88: 3 | G88: mg/L
A89: FALSE | C89: =VLOOKUP(B73,$AA$145:$AB$157,2,FALSE) -> 100 | E89: Process Recovery Rate | F89: 100 | G89: %
A90: TRUE
A91: TRUE | B91: =Advance5_select -> Engineered Storage Buffer - Chloramines | E91: Optional Environmental Buffers
A92: TRUE | E92: Engineered Storage Buffer - Chloramines
A93: TRUE
A94: =FINAL_Optional="Surface Water Augmentation" -> FALSE | E94: Travel Time | F94: 7 | G94: days | Q94: Chlorine Dose
A95: =OR(FINAL_Optional="Direct Injection (Subsurface Migration Only)", FINAL_Optional="Soil Aquifer Treatment (Percolation and Subsurface Migration)") -> FALSE | E95: Travel Time | F95: 6 | G95: months
A96: =FINAL_Optional="Engineered Storage Buffer - Cl2" -> FALSE | E96: Cl2 CT | F96: 30 | G96: mg-min/L | H96: Contact Time: | I96: 90 | J96: Initial Cl2 Demand = | K96: =IF(OR(OR(FINAL_Advance4="Cl2",FINAL_Advance3="Cl2"),OR(FINAL_Advance2="Cl2",FINAL_Advance1="CL2")),0, IF(OR(FINAL_Advance2="NF",FINAL_Advance2="RO"),0, IF(OR(FINAL_Advance3="NF",FINAL_Advance3="RO"),0, IF(OR(FINAL_Advance1="Ozone",FINAL_Advance1="Ozone/BAF"),2, IF(OR(FINAL_Advance2="Ozone",FINAL_Advance2="Ozone/BAF"),2, IF(OR(FINAL_Advance3="Ozone",FINAL_Advance3="Ozone/BAF"),2, IF(FINAL_Advance1="UV", IF(FINAL_Secondary="MBR - Nitrified Only",4, IF(FINAL_Secondary="Secondary - BOD Only",12, IF(FINAL_Secondary="Conventional Activated Sludge - Nutrient Removal",4,5))), 5))))))) -> 12 | L96: Cl2 Decay Rate: | M96: 3 | Q96: =F96/I96+M96*I96/60+K96 -> 16.83333333
A97: =FINAL_Optional="Engineered Storage Buffer - Chloramines" -> TRUE | E97: Chloramine CT | F97: 450 | G97: mg-min/L | H97: Contact Time: | I97: 90 | J97: Initial Cl2 Demand = | K97: =K96 -> 12
A98: =AND(Input!T3="True",OR(FINAL_Optional="Engineered Storage Buffer - Cl2",FINAL_Optional="Engineered Storage Buffer - Chloramines")) -> FALSE | E98: Water pH | F98: 7 | H98: Water Temperature: | I98: 20 | J98: Residual Conc = | K98: =IF(FINAL_Optional="Engineered Storage Buffer - Cl2",$F$96/$I$96,IF(FINAL_Optional="Engineered Storage Buffer - Chloramines",$F$97/$I$97,"NA")) -> 5
A99: TRUE
A100: TRUE | E100: Overall Performance of this Train:
A101: TRUE | H101: Treatment Goal | I101: Influent Water Quality | J101: Effluent Water Quality | K101: Total Achieved Removal | L101: Performance
A102: TRUE | E102: Bacteria | H102: =Input!$D$16 -> 9 | K102: =SUM(H116:N116) -> 9 | L102: =K102-H102 -> 0 | M102: =IF(L102>0,"meets goal",IF(L102=0,"at goal","fails to meet goal")) -> at goal
A103: TRUE | E103: Virus | H103: =Input!$E$16 -> 12 | K103: =SUM(H117:N117) -> 8.024513687 | L103: -3.975486313 | M103: =IF(L103>0,"meets goal",IF(L103=0,"at goal","fails to meet goal")) -> fails to meet goal
A104: TRUE | E104: Cryptosporidium | H104: =Input!$F$16 -> 10 | K104: =SUM(H118:N118) -> 6 | L104: -4 | M104: fails to meet goal
A105: TRUE | E105: Giardia | H105: =Input!$G$16 -> 10 | K105: =SUM(H119:N119) -> 6 | L105: -4 | M105: fails to meet goal
A106: TRUE | E106: TOC | H106: =Input!D35 -> 0.97 | I106: =IF(Input!$T$3=TRUE,Input!D23,Input!D26) -> 50 | J106: =I106*(1-K106) -> 22.5 | K106: =IF(AND(Input!$C$23="Primary Effluent*",Input!T$3=TRUE),1-(1-H120)*(1-I120)*(1-J120)*(1-K120)*(1-L120)*(1-M120),1-(1-I120)*(1-J120)*(1-K120)*(1-L120)*(1-M120)) -> 0.55 | L106: =K106-H106 -> -0.42 | M106: =IF(L106>0,"meets goal",IF(L106=0,"at goal","fails to meet goal")) -> fails to meet goal
A107: TRUE | E107: Nitrate as N | H107: =Input!E35 -> 0.86 | I107: =IF(Input!$T$3=TRUE,Input!E23,Input!E26) -> 50 | J107: =I107*(1-K107) -> 50 | K107: =IF(AND(Input!$C$23="Primary Effluent*",Input!T$3=TRUE),1-(1-H121)*(1-I121)*(1-J121)*(1-K121)*(1-L121)*(1-M121),1-(1-I121)*(1-J121)*(1-K121)*(1-L121)*(1-M121)) -> 0 | L107: =K107-H107 -> -0.86 | M107: =IF(L107>0,"meets goal",IF(L107=0,"at goal","fails to meet goal")) -> fails to meet goal
A108: TRUE | E108: TOrCs | H108: =Input!F35 -> 0.9 | I108: =IF(Input!$T$3=TRUE,Input!F23,Input!F26) -> 10 | J108: =I108*(1-K108) -> 2.4 | K108: =IF(AND(Input!$C$23="Primary Effluent*",Input!T$3=TRUE),1-(1-H122)*(1-I122)*(1-J122)*(1-K122)*(1-L122)*(1-M122),1-(1-I122)*(1-J122)*(1-K122)*(1-L122)*(1-M122)) -> 0.76 | L108: =K108-H108 -> -0.14 | M108: =IF(L108>0,"meets goal",IF(L108=0,"at goal","fails to meet goal")) -> fails to meet goal
A109: TRUE | E109: EEQ | H109: =Input!G35 -> 0.98 | I109: =IF(Input!$T$3=TRUE,Input!G23,Input!G26) -> 50 | J109: =I109*(1-K109) -> 4 | K109: =IF(AND(Input!$C$23="Primary Effluent*",Input!T$3=TRUE),1-(1-H123)*(1-I123)*(1-J123)*(1-K123)*(1-L123)*(1-M123),1-(1-I123)*(1-J123)*(1-K123)*(1-L123)*(1-M123)) -> 0.92 | L109: =K109-H109 -> -0.06 | M109: =IF(L109>0,"meets goal",IF(L109=0,"at goal","fails to meet goal")) -> fails to meet goal
A110: TRUE | E110: NDMA | H110: =Input!H35 -> 0.9 | I110: =IF(Input!$T$3=TRUE,Input!H23,Input!H26) -> 80 | J110: =IF(AND(Input!C23="Primary Effluent*",Input!T3=TRUE),IF(FINAL_Advance1="Ozone",(I110*(1-H124)+F28)*(1-IF(ISNUMBER(J124),J124,0))*(1-IF(ISNUMBER(K124),K124,0))*(1-IF(ISNUMBER(L124),L124,0))*(1-IF(ISNUMBER(M124),M124,0)),IF(FINAL_Advance2="Ozone",(I110*(1-H124)*(1-IF(ISNUMBER(I124),I124,0))+F46)*(1-IF(ISNUMBER(K124),K124,0))*(1-IF(ISNUMBER(L124),L124,0))*(1-IF(ISNUMBER(M124),M124,0)),I110*(1-H124)*(1-IF(ISNUMBER(I124),I124,0))*(1-IF(ISNUMBER(J124),J124,0))*(1-IF(ISNUMBER(K124),K124,0))*(1-L124)*(1-M124))),IF(FINAL_Advance2="Ozone",(I110*(1-H124)*(1-IF(ISNUMBER(I124),I124,0))+F46)*(1-IF(ISNUMBER(K124),K124,0))*(1-IF(ISNUMBER(L124),L124,0))*(1-IF(ISNUMBER(M124),M124,0)),I110*(1-IF(ISNUMBER(I124),I124,0))*(1-IF(ISNUMBER(J124),J124,0))*(1-IF(ISNUMBER(K124),K124,0))*(1-L124)*(1-M124))) -> 32 | K110: =(I110-J110)/I110 -> 0.6 | L110: =K110-H110 -> -0.3 | M110: =IF(L110>0,"meets goal",IF(L110=0,"at goal","fails to meet goal")) -> fails to meet goal
A111: TRUE | E111: PFOS+PFOA | H111: =Input!I35 -> 0 | I111: =IF(Input!$T$3=TRUE,Input!I23,Input!I26) -> 50 | J111: =I111*(1-K111) -> 50 | K111: =IF(AND(Input!$C$23="Primary Effluent*",Input!T$3=TRUE),1-(1-H125)*(1-I125)*(1-J125)*(1-K125)*(1-L125)*(1-M125),1-(1-I125)*(1-J125)*(1-K125)*(1-L125)*(1-M125)) -> 0 | L111: 0 | M111: at goal
A112: TRUE
A113: TRUE | E113: Breakdown of Train Performance by Unit Process:
A114: TRUE | E114: Categories | H114: Wastewater Treatment | I114: Advanced 1 | J114: Advanced 2 | K114: Advanced 3 | L114: Advanced 4 | M114: Buffer | N114: Water Treatment Plant Credits
A115: TRUE | E115: Selected Process | H115: =FINAL_Secondary -> Secondary - BOD Only | I115: =FINAL_Advance1 -> UV | J115: =FINAL_Advance2 -> None | K115: =FINAL_Advance3 -> None | L115: =B73 -> None | M115: =FINAL_Optional -> Engineered Storage Buffer - Chloramines | N115: User-Defined
A116: TRUE | C116: 4 | E116: Bacteria | H116: =IF(Input!$T$3=TRUE,VLOOKUP($H$115,'Master_Lookup (2)'!$A$10:$Z$16,$C116,FALSE),"Not Accounted") -> 3 | I116: =IF($I$115="Tertiary Media Filtration",IF($C$18=TRUE, VLOOKUP("Tertiary Media Filtration - Denitrification",'Master_Lookup (2)'!$A$18:$Z$27,$C116,FALSE),VLOOKUP($I$115,'Master_Lookup (2)'!$A$18:$Z$27,$C116,FALSE)),VLOOKUP($I$115,'Master_Lookup (2)'!$A$18:$Z$27,$C116,FALSE)) -> 6 | J116: =VLOOKUP($J$115,'Master_Lookup (2)'!$A$29:$Z$39,$C116,FALSE) -> 0 | K116: =VLOOKUP($K$115,'Master_Lookup (2)'!$A$41:$Z$51,$C116,FALSE) -> 0 | L116: =VLOOKUP($L$115,'Master_Lookup (2)'!$A$53:$Z$58,$C116,FALSE) -> 0 | M116: =VLOOKUP($M$115,'Master_Lookup (2)'!$A$60:$Z$65,$C116,FALSE) -> 0 | N116: =IF(Input!D43=-1,"NA",Input!D43) -> NA
A117: TRUE | C117: 5 | E117: Virus | H117: =IF(Input!$T$3=TRUE,VLOOKUP($H$115,'Master_Lookup (2)'!$A$10:$Z$16,$C117,FALSE),"Not Accounted") -> 2 | I117: =IF(Input!$T$3=TRUE,VLOOKUP($I$115,'Master_Lookup (2)'!$A$18:$Z$27,$C117,FALSE),IF($I$115="Tertiary Media Filtration",IF($C$18=TRUE,VLOOKUP("Tertiary Media Filtration - Denitrification",'Master_Lookup (2)'!$A$18:$Z$27,$C117,FALSE),VLOOKUP($I$115,'Master_Lookup (2)'!$A$18:$Z$27,$C117,FALSE)),IF(OR($I$115="Ozone",$I$115="Ozone/BAF",$I$115="Ozone/H2O2"),Log_Virus(3,LOG_VIR,Temp_1_O3,pH_1_O3,Conc_1_O3,CT_1_O3),VLOOKUP($I$115,'Master_Lookup (2)'!$A$18:$Z$27,$C117,FALSE)))) -> 4 | J117: =IF(Input!$T$3=TRUE,VLOOKUP($J$115,'Master_Lookup (2)'!$A$29:$Z$39,$C117,FALSE),IF(J115="Cl2",Log_Virus(1,LOG_VIR,Temp_2,pH_2,Conc_2,CT_2),IF(OR($J$115="Ozone",$J$115="Ozone/BAF",$J$115="Ozone/H2O2"),Log_Virus(3,LOG_VIR,Temp_2_O3,pH_2_O3,Conc_2_O3,CT_2_O3),VLOOKUP($J$115,'Master_Lookup (2)'!$A$29:$Z$39,$C117,FALSE)))) -> 0 | K117: =IF(Input!$T$3=TRUE,VLOOKUP($K$115,'Master_Lookup (2)'!$A$41:$Z$51,$C117,FALSE),IF(K115="Cl2",Log_Virus(1,LOG_VIR,Temp_3,pH_3,Conc_3,CT_3),IF(OR($K$115="Ozone",$K$115="Ozone/BAF",$K$115="Ozone/H2O2"),Log_Virus(3,LOG_VIR,Temp_3_O3,pH_3_O3,Conc_3_O3,CT_3_O3),VLOOKUP($K$115,'Master_Lookup (2)'!$A$41:$Z$51,$C117,FALSE)))) -> 0 | L117: =IF(Input!$T$3=TRUE,VLOOKUP($L$115,'Master_Lookup (2)'!$A$53:$Z$58,$C117,FALSE),IF(L115="Cl2",Log_Virus(1,LOG_VIR,Temp_4,pH_4,Conc_4,CT_4),IF(OR($L$115="Ozone",$L$115="Ozone/BAF",$L$115="Ozone/H2O2"),Log_Virus(3,LOG_VIR,Temp_4_O3,pH_4_O3,Conc_4_O3,CT_4_O3),VLOOKUP($L$115,'Master_Lookup (2)'!$A$53:$Z$58,$C117,FALSE)))) -> 0 | M117: =IF(AND(Input!$T$3=TRUE,OR(M115="Engineered Storage Buffer - Cl2",M115="Engineered Storage Buffer - Chloramines"))=TRUE,IF(M115="Engineered Storage Buffer - Cl2",Log_Virus(1,LOG_VIR,$I$98,$F$98,$K$98,$I$96),IF(M115="Engineered Storage Buffer - Chloramines",Log_Virus(4,LOG_VIR,$I$98,$F$98,$K$98,$I$97),VLOOKUP($M$115,'Master_Lookup (2)'!$A$60:$Z$65,$C117,FALSE))),VLOOKUP($M$115,'Master_Lookup (2)'!$A$60:$Z$65,$C117,FALSE)) -> 2.024513687 | N117: =IF(Input!E43=-1,"NA",Input!E43) -> NA
A118: TRUE | C118: 6 | E118: Cryptosporidium | H118: =IF(Input!$T$3=TRUE,VLOOKUP($H$115,'Master_Lookup (2)'!$A$10:$Z$16,$C118,FALSE),"Not Accounted") -> 0 | I118: =IF(Input!$T$3=TRUE,VLOOKUP($I$115,'Master_Lookup (2)'!$A$18:$Z$27,$C118,FALSE),IF($I$115="Tertiary Media Filtration",IF($C$18=TRUE,VLOOKUP("Tertiary Media Filtration - Denitrification",'Master_Lookup (2)'!$A$18:$Z$27,$C118,FALSE),VLOOKUP($I$115,'Master_Lookup (2)'!$A$18:$Z$27,$C118,FALSE)),IF(OR($I$115="Ozone",$I$115="Ozone/BAF",$I$115="Ozone/H2O2"),(0.0397*(1.09757)^(Temp_1_O3))*CT_1_O3,VLOOKUP($I$115,'Master_Lookup (2)'!$A$18:$Z$27,$C118,FALSE)))) -> 6 | J118: =IF(Input!$T$3=TRUE,VLOOKUP($J$115,'Master_Lookup (2)'!$A$29:$Z$39,$C118,FALSE),IF(OR($J$115="Ozone",$J$115="Ozone/BAF",$J$115="Ozone/H2O2"),(0.0397*(1.09757)^(Temp_2_O3))*CT_2_O3,VLOOKUP($J$115,'Master_Lookup (2)'!$A$29:$Z$39,$C118,FALSE))) -> 0 | K118: =IF(Input!$T$3=TRUE,VLOOKUP($K$115,'Master_Lookup (2)'!$A$41:$Z$51,$C118,FALSE),IF(OR($K$115="Ozone",$K$115="Ozone/BAF",$K$115="Ozone/H2O2"),(0.0397*(1.09757)^(Temp_3_O3))*CT_3_O3,VLOOKUP($K$115,'Master_Lookup (2)'!$A$41:$Z$51,$C118,FALSE))) -> 0 | L118: =IF(Input!$T$3=TRUE,VLOOKUP($L$115,'Master_Lookup (2)'!$A$53:$Z$58,$C118,FALSE),IF(OR($L$115="Ozone",$L$115="Ozone/BAF",$L$115="Ozone/H2O2"),(0.0397*(1.09757)^(Temp_4_O3))*CT_4_O3,VLOOKUP($L$115,'Master_Lookup (2)'!$A$53:$Z$58,$C118,FALSE))) -> 0 | M118: =VLOOKUP($M$115,'Master_Lookup (2)'!$A$60:$Z$65,$C118,FALSE) -> 0 | N118: =IF(Input!F43=-1,"NA",Input!F43) -> NA
A119: TRUE | C119: 7 | E119: Giardia | H119: =IF(Input!$T$3=TRUE,VLOOKUP($H$115,'Master_Lookup (2)'!$A$10:$Z$16,$C119,FALSE),"Not Accounted") -> 0 | I119: =IF(Input!$T$3=TRUE,VLOOKUP($I$115,'Master_Lookup (2)'!$A$18:$Z$27,$C119,FALSE),IF($I$115="Tertiary Media Filtration",IF($C$18=TRUE,VLOOKUP("Tertiary Media Filtration - Denitrification",'Master_Lookup (2)'!$A$18:$Z$27,$C119,FALSE),VLOOKUP($I$115,'Master_Lookup (2)'!$A$18:$Z$27,$C119,FALSE)),IF(OR($I$115="Ozone",$I$115="Ozone/BAF",$I$115="Ozone/H2O2"),Log_Giardia(3,LOG_GIAR,Temp_1_O3,pH_1_O3,Conc_1_O3,CT_1_O3),VLOOKUP($I$115,'Master_Lookup (2)'!$A$18:$Z$27,$C119,FALSE)))) -> 6 | J119: =IF(Input!$T$3=TRUE,VLOOKUP($J$115,'Master_Lookup (2)'!$A$29:$Z$39,$C119,FALSE),IF(J115="Cl2",Log_Giardia(1,LOG_GIAR,Temp_2,pH_2,Conc_2,CT_2),IF(OR($J$115="Ozone",$J$115="Ozone/BAF",$J$115="Ozone/H2O2"),Log_Giardia(3,LOG_GIAR,Temp_2_O3,pH_2_O3,Conc_2_O3,CT_2_O3),VLOOKUP($J$115,'Master_Lookup (2)'!$A$29:$Z$39,$C119,FALSE)))) -> 0 | K119: =IF(Input!$T$3=TRUE,VLOOKUP($K$115,'Master_Lookup (2)'!$A$41:$Z$51,$C119,FALSE),IF(K115="Cl2",Log_Giardia(1,LOG_GIAR,Temp_3,pH_3,Conc_3,CT_3),IF(OR($K$115="Ozone",$K$115="Ozone/BAF",$K$115="Ozone/H2O2"),Log_Giardia(3,LOG_GIAR,Temp_3_O3,pH_3_O3,Conc_3_O3,CT_3_O3),VLOOKUP($K$115,'Master_Lookup (2)'!$A$41:$Z$51,$C119,FALSE)))) -> 0 | L119: =IF(Input!$T$3=TRUE,VLOOKUP($L$115,'Master_Lookup (2)'!$A$53:$Z$58,$C119,FALSE),IF(L115="Cl2",Log_Giardia(1,LOG_GIAR,Temp_4,pH_4,Conc_4,CT_4),IF(OR($L$115="Ozone",$L$115="Ozone/BAF",$L$115="Ozone/H2O2"),Log_Giardia(3,LOG_GIAR,Temp_4_O3,pH_4_O3,Conc_4_O3,CT_4_O3),VLOOKUP($L$115,'Master_Lookup (2)'!$A$53:$Z$58,$C119,FALSE)))) -> 0 | M119: =IF(AND(Input!$T$3=FALSE,OR(M115="Engineered Storage Buffer - Cl2",M115="Engineered Storage Buffer - Chloramines"))=TRUE,IF(M115="Engineered Storage Buffer - Cl2",Log_Giardia(1,LOG_GIAR,$I$98,$F$98,$K$98,$I$96),IF(M115="Engineered Storage Buffer - Chloramines",Log_Giardia(4,LOG_GIAR,$I$98,$F$98,$K$98,$I$97),VLOOKUP($M$115,'Master_Lookup (2)'!$A$60:$Z$65,$C119,FALSE))),VLOOKUP($M$115,'Master_Lookup (2)'!$A$60:$Z$65,$C119,FALSE)) -> 0 | N119: =IF(Input!G43=-1,"NA",Input!G43) -> NA
A120: TRUE | C120: 12 | E120: TOC | H120: =IF(AND(Input!$C$23="Primary Effluent*",Input!$T$3=TRUE),VLOOKUP($H$115,'Master_Lookup (2)'!$A$10:$Z$16,$C120,FALSE),"Not Accounted") -> 0.5 | I120: =VLOOKUP($I$115,'Master_Lookup (2)'!$A$18:$Z$27,$C120,FALSE) -> 0.1 | J120: =IF(J$115<>"RO",VLOOKUP(J$115,'Master_Lookup (2)'!$A$29:$Z$39,$C120,FALSE),IF(AND(Input!C23="Primary Effluent*",Input!T3=TRUE),MAX((($I$106*(1-$H$120)*(1-$I$120)-Master!$M$42)/($I$106*(1-$H$120)*(1-$I$120))),Master!$J$42),MAX((($I$106*(1-$I$120)-Master!$M$42)/($I$106*(1-$I$120))),Master!$J$42))) -> 0 | K120: =IF(K$115<>"RO",VLOOKUP(K$115,'Master_Lookup (2)'!$A$41:$Z$51,$C120,FALSE),IF(AND(Input!C2="Primary Effluent*",Input!T3=TRUE),MAX((($I$106*(1-$H$120)*(1-$I$120)*(1-$J$120)-Master!$M$42)/($I$106*(1-$H$120)*(1-$I$120)*(1-$J$120))),Master!$J$42),MAX((($I$106*(1-$I$120)*(1-$J$120)-Master!$M$42)/($I$106*(1-$I$120)*(1-$J$120))),Master!$J$42))) -> 0 | L120: =VLOOKUP($L$115,'Master_Lookup (2)'!$A$53:$Z$58,$C120,FALSE) -> 0 | M120: =VLOOKUP($M$115,'Master_Lookup (2)'!$A$60:$Z$65,$C120,FALSE) -> 0 | N120: NA
A121: TRUE | C121: 11 | E121: Nitrate as N | H121: =IF(AND(Input!$C$23="Primary Effluent*",Input!$T$3=TRUE),VLOOKUP($H$115,'Master_Lookup (2)'!$A$10:$Z$16,$C121,FALSE),"Not Accounted") -> 0 | I121: =IF($C$18=TRUE,VLOOKUP("Tertiary Media Filtration - Denitrification",'Master_Lookup (2)'!$A$18:$Z$27,$C121,FALSE),VLOOKUP($I$115,'Master_Lookup (2)'!$A$18:$Z$27,$C121,FALSE)) -> 0 | J121: =VLOOKUP($J$115,'Master_Lookup (2)'!$A$29:$Z$39,$C121,FALSE) -> 0 | K121: =VLOOKUP($K$115,'Master_Lookup (2)'!$A$41:$Z$51,$C121,FALSE) -> 0 | L121: =VLOOKUP($L$115,'Master_Lookup (2)'!$A$53:$Z$58,$C121,FALSE) -> 0 | M121: =VLOOKUP($M$115,'Master_Lookup (2)'!$A$60:$Z$65,$C121,FALSE) -> 0 | N121: NA
A122: TRUE | C122: 9 | E122: TOrCs | H122: =IF(AND(Input!$C$23="Primary Effluent*",Input!$T$3=TRUE),VLOOKUP($H$115,'Master_Lookup (2)'!$A$10:$Z$16,$C122,FALSE),"Not Accounted") -> 0.7 | I122: =IF($C$18=TRUE,VLOOKUP("Tertiary Media Filtration - Denitrification",'Master_Lookup (2)'!$A$18:$Z$27,$C122,FALSE),VLOOKUP($I$115,'Master_Lookup (2)'!$A$18:$Z$27,$C122,FALSE)) -> 0.2 | J122: =VLOOKUP($J$115,'Master_Lookup (2)'!$A$29:$Z$39,$C122,FALSE) -> 0 | K122: =VLOOKUP($K$115,'Master_Lookup (2)'!$A$41:$Z$51,$C122,FALSE) -> 0 | L122: =VLOOKUP($L$115,'Master_Lookup (2)'!$A$53:$Z$58,$C122,FALSE) -> 0 | M122: =VLOOKUP($M$115,'Master_Lookup (2)'!$A$60:$Z$65,$C122,FALSE) -> 0 | N122: NA
A123: TRUE | C123: 8 | E123: EEQ | H123: =IF(AND(Input!$C$23="Primary Effluent*",Input!$T$3=TRUE),VLOOKUP($H$115,'Master_Lookup (2)'!$A$10:$Z$16,$C123,FALSE),"Not Accounted") -> 0.9 | I123: =IF($C$18=TRUE,VLOOKUP("Tertiary Media Filtration - Denitrification",'Master_Lookup (2)'!$A$18:$Z$27,$C123,FALSE),VLOOKUP($I$115,'Master_Lookup (2)'!$A$18:$Z$27,$C123,FALSE)) -> 0.2 | J123: =VLOOKUP($J$115,'Master_Lookup (2)'!$A$29:$Z$39,$C123,FALSE) -> 0 | K123: =VLOOKUP($K$115,'Master_Lookup (2)'!$A$41:$Z$51,$C123,FALSE) -> 0 | L123: =VLOOKUP($L$115,'Master_Lookup (2)'!$A$53:$Z$58,$C123,FALSE) -> 0 | M123: =VLOOKUP($M$115,'Master_Lookup (2)'!$A$60:$Z$65,$C123,FALSE) -> 0 | N123: NA
A124: TRUE | C124: 10 | E124: NDMA | H124: =IF(AND(Input!$C$23="Primary Effluent*",Input!$T$3=TRUE),VLOOKUP($H$115,'Master_Lookup (2)'!$A$10:$Z$16,$C124,FALSE),"Not Accounted") -> 0 | I124: =VLOOKUP($I$115,'Master_Lookup (2)'!$A$18:$Z$27,$C124,FALSE) -> 0.6 | J124: =VLOOKUP($J$115,'Master_Lookup (2)'!$A$29:$Z$39,$C124,FALSE) -> 0 | K124: =VLOOKUP($K$115,'Master_Lookup (2)'!$A$41:$Z$51,$C124,FALSE) -> 0 | L124: =VLOOKUP($L$115,'Master_Lookup (2)'!$A$53:$Z$58,$C124,FALSE) -> 0 | M124: =VLOOKUP($M$115,'Master_Lookup (2)'!$A$60:$Z$65,$C124,FALSE) -> 0 | N124: NA
A125: TRUE | C125: 13 | E125: PFOS+PFOA | H125: =IF(AND(Input!$C$23="Primary Effluent*",Input!$T$3=TRUE),VLOOKUP($H$115,'Master_Lookup (2)'!$A$10:$Z$16,$C125,FALSE),"Not Accounted") -> 0 | I125: =VLOOKUP($I$115,'Master_Lookup (2)'!$A$18:$Z$27,$C125,FALSE) -> 0 | J125: =VLOOKUP($J$115,'Master_Lookup (2)'!$A$29:$Z$39,$C125,FALSE) -> 0 | K125: =VLOOKUP($K$115,'Master_Lookup (2)'!$A$41:$Z$51,$C125,FALSE) -> 0 | L125: =VLOOKUP($L$115,'Master_Lookup (2)'!$A$53:$Z$58,$C125,FALSE) -> 0 | M125: =VLOOKUP($M$115,'Master_Lookup (2)'!$A$60:$Z$65,$C125,FALSE) -> 0 | N125: NA
A126: TRUE | C126: 26 | E126: Cost - Subtotal | H126: Not Available | I126: =VLOOKUP($I$115,'Master_Lookup (2)'!$A$18:$Z$27,$C126,FALSE) -> Not Available | J126: =VLOOKUP($J$115,'Master_Lookup (2)'!$A$29:$Z$39,$C126,FALSE) -> 0 | K126: =VLOOKUP($K$115,'Master_Lookup (2)'!$A$41:$Z$51,$C126,FALSE) -> 0 | L126: =VLOOKUP($L$115,'Master_Lookup (2)'!$A$53:$Z$58,$C126,FALSE) -> 0 | M126: Not Available | N126: NA
U143: Menu 1A
U144: Secondary Treatment | V144: Advanced 1 | W144: Advanced 2 | X144: Advanced 3 | Y144: Advanced 4 | Z144: Optional Environmental Buffers | AA144: Process Recovery Rate | AB144: % | AC144: UVT (%)
U145: Secondary - BOD Only | V145: MF | W145: Ozone/BAF | X145: Ozone | Y145: Cl2 | Z145: Soil Aquifer Treatment (Percolation and Subsurface Migration) | AA145: BAF | AB145: 95 | AC145: 0.85
U146: Secondary - Nitrified Only | V146: UF | W146: UV | X146: UV | Y146: None | Z146: Direct Injection (Subsurface Migration Only) | AA146: Ozone/BAF | AB146: 95 | AC146: 0.85
U147: Secondary - Denitrified | V147: Ozone | W147: NF | X147: Cl2 | Z147: Surface Water Augmentation | AA147: MF | AB147: 95 | AC147: 0.7
U148: Tertiary - Nitrified Only | V148: Ozone/BAF | W148: RO | Y148: UV | Z148: Engineered Storage Buffer - Cl2 | AA148: UF | AB148: 95 | AC148: 0.7
U149: Tertiary - Denitrified | V149: UV | W149: Cl2 | X149: Cl2 | Y149: UV/H2O2 | Z149: Engineered Storage Buffer - Chloramines | AA149: NF | AB149: 80 | AC149: 0.9
U150: MBR - Nitrified Only | V150: Tertiary Media Filtration | X150: None | Y150: Ozone | Z150: No environmental buffer | AA150: RO | AB150: 80 | AC150: 0.98 | AD150: <- no data, value is assumed
U151: MBR - Denitrified | V151: Cl2 | W151: Ozone/BAF | Y151: Ozone/H2O2 | AA151: Ozone | AB151: 100 | AC151: 0.9 | AD151: <- no data, value is assumed
V152: MBR - Nitrified Only | W152: UV | X152: UV | Y152: Cl2 | AA152: Ozone/H2O2 | AB152: 100 | AC152: 0.9 | AD152: <- no data, value is assumed
W153: Ozone | X153: UV/H2O2 | AA153: Cl2 | AB153: 100 | AC153: 0.85 | AD153: <- no data, value is assumed
V154: MF | W154: Cl2 | X154: Ozone | Y154: Cl2 | AA154: UV | AB154: 100 | AC154: 0.85 | AD154: <- no data, value is assumed
V155: UF | X155: Ozone/H2O2 | Y155: UV | AA155: UV/H2O2 | AB155: 100 | AC155: 0.85
V156: Ozone | W156: MF | AA156: Tertiary Media Filtration | AB156: 100 | AC156: 0.65
V157: Ozone/BAF | W157: UF | X157: MF | AA157: None | AB157: 100
V158: UV | X158: UF | AA158: Secondary - BOD Only | AC158: 0.6
V159: Cl2 | W159: MF | X159: UV | AA159: Conventional Activated Sludge - Nutrient Removal | AC159: 0.7
V160: MBR - Nitrified Only | W160: UF | X160: Cl2 | AA160: MBR - Nitrified Only | AC160: 0.7
W161: UV
V162: MF | W162: Ozone | X162: NF
V163: UF | W163: Cl2 | X163: RO
V164: None | X164: UV
W165: None | X165: Cl2
X167: NF
X168: RO
X169: UV
X170: UV/H2O2
X171: Cl2
X173: None
V175: 10
V176: 50
V177: 150
V179: Ozone:TOC Ratio
V180: Ozone CT
V182: 0.55
V183: 0.6
V184: 0.65
V185: 0.7
V186: 0.75
V187: 0.8
V188: 0.85
V189: 0.9
V190: 0.95

Sheet Train (3) (hidden)
A1: Train Comparison
A3: 0 | E3: Facility Name: | F3: =IF(Input!C4="[[enter name here]]","",Input!C4) -> 
E6: Facility Size: | F6: =IF(Input!D6="[[enter size here]]","",Input!D6) ->  | G6: mgd
E8: SELECT YOUR TREATMENT TRAIN:
B10: =IF(Input!$T$3=TRUE,SECONDARY,E12) -> Secondary - BOD Only | E10: Secondary Treatment
A11: =IF(Input!$T$3=TRUE,TRUE,FALSE) -> TRUE | E11: Secondary - BOD Only
A12: =IF(Input!$T$3=FALSE,TRUE,FALSE) -> FALSE | E12: =Input!C26 -> Secondary - BOD Only
A13: =IF(Input!C23="Primary Effluent*",TRUE,FALSE) -> TRUE
A14: =AND(FINAL_Secondary="Secondary - BOD Only",Input!C23="Primary Effluent*") -> TRUE | E14: SRT | F14: 7 | G14: days
A15: =AND(Input!C23="Primary Effluent*", NOT(FINAL_Secondary="Secondary - BOD Only")) -> FALSE | E15: SRT | F15: 10 | G15: days
A17: TRUE | B17: =VLOOKUP(TRUE,A18:E21,5,FALSE) -> MF | E17: Advanced 1
A18: =OR(FINAL_Secondary="Secondary - Nitrified Only",FINAL_Secondary="Secondary - Denitrified") -> FALSE | C18: TRUE | E18: Tertiary Media Filtration | F18: =IF(OR(FINAL_Advance1="Ozone",FINAL_Advance1="Ozone/BAF"),"Ozone Bromate Warning",IF(FINAL_Advance1="Tertiary Media Filtration","Denitrification","")) -> 
A19: =FINAL_Secondary="Secondary - BOD Only" -> TRUE | E19: MF | F19: =IF(OR(FINAL_Advance1="Ozone",FINAL_Advance1="Ozone/BAF"),"Ozone Bromate Warning",IF(FINAL_Advance1="Tertiary Media Filtration","Denitrification","")) -> 
A20: =OR(FINAL_Secondary="Tertiary - Nitrified Only",FINAL_Secondary="Tertiary - Denitrified") -> FALSE | E20: UV | F20: =IF(OR(FINAL_Advance1="Ozone",FINAL_Advance1="Ozone/BAF"),"Ozone Bromate Warning",IF(FINAL_Advance1="Tertiary Media Filtration","Denitrification","")) -> 
A21: =OR(FINAL_Secondary="MBR - Nitrified Only",FINAL_Secondary="MBR - Denitrified") -> FALSE | E21: None | Q21: Chlorine Dose
A22: TRUE
A23: =IF(FINAL_Advance1="Cl2",TRUE,FALSE) -> FALSE | E23: Cl2 CT | F23: 30 | G23: mg-min/L | H23: Contact Time: | I23: 90 | J23: Initial Cl2 Demand = | K23: =IF(FINAL_Advance1="Cl2", IF(FINAL_Secondary="MBR - Nitrified Only",4, IF(FINAL_Secondary="Secondary - BOD Only",12, IF(FINAL_Secondary="Conventional Activated Sludge - Nutrient Removal",4, 5)))) -> FALSE | L23: Cl2 Decay Rate: | M23: 3 | Q23: =F23/I23+M23*I23/60+K23 -> 4.833333333
A24: =IF(AND(FINAL_Advance1="Cl2",Input!$T$3=FALSE),TRUE,FALSE) -> FALSE | E24: Water pH | F24: 7 | H24: Water Temperature: | I24: 10 | J24: Residual Conc = | K24: =F23/I23 -> 0.3333333333
A25: =IF(OR(FINAL_Advance1="Ozone",FINAL_Advance1="Ozone/BAF"),TRUE,FALSE) -> FALSE | E25: Ozone:TOC Ratio | F25: 1.2 | G25: =IF(E25="Ozone CT", "mg-min/L", "") ->  | H25: Contact Time: | I25: 1 | J25: Influent TOC = | K25: =IF(AND(Input!$C$23="Primary Effluent*",Input!$T$3=TRUE),$I$106*(1-$H$120),$I$106) -> 25 | L25: O3:TOC= | M25: =IF(E25="Ozone CT", F25/I25/K25+1,F25) -> 1.2 | N25: =IF(E25="Ozone Ct",F25,IF((M25-1)*K25*I25>=0,(M25-1)*K25*I25,0)) -> 5 | Q25: =IF(A25=TRUE,K25*M25) -> FALSE
A26: =IF(AND(OR(FINAL_Advance1="Ozone",FINAL_Advance1="Ozone/BAF"),Input!$T$3=FALSE),TRUE,FALSE) -> FALSE | E26: Water pH | F26: 7 | H26: Water Temperature: | I26: 15 | J26: Residual Conc = | K26: 2
A27: =IF(OR(FINAL_Advance1="UV/H2O2",FINAL_Advance1="UV"),TRUE,FALSE) -> FALSE | E27: UV Dose | F27: 200 | G27: mJ/cm2 | H27: Feed Water UVT: | I27: =IF(SECONDARY="MBR - Nitrified Only",$AC$160,VLOOKUP(FINAL_Advance1,$AA$145:$AC$160,3,FALSE)) -> 0.7
A28: =OR(FINAL_Advance1="Ozone",FINAL_Advance1="Ozone/BAF") -> FALSE | E28: Level of CNDMA(O3) | F28: 150 | G28: (CNDMA(O3) = NDMA Concentration Formed During Ozonation)
A29: FALSE | E29: H2O2 Dose | F29: 3 | G29: mg/L
A30: FALSE | C30: =VLOOKUP(FINAL_Advance2,$AA$145:$AB$157,2,FALSE) -> 95 | E30: Process Recovery Rate | F30: 95 | G30: %
A31: TRUE
A32: TRUE | B32: =VLOOKUP(TRUE,A33:E39,5,FALSE) -> Ozone/BAF | C32: =VLOOKUP(FINAL_Advance2,$AA$145:$AB$157,2,FALSE) -> 95 | E32: Advanced 2
A33: =OR(FINAL_Advance1="MF",FINAL_Advance1="UF",FINAL_Advance1="None") -> TRUE | E33: Ozone/BAF | F33: =IF(OR(FINAL_Advance2="Ozone",FINAL_Advance2="Ozone/BAF"),"Ozone Bromate Warning","") -> Ozone Bromate Warning
A34: =AND( NOT(FINAL_Secondary="MBR - Nitrified Only"), NOT(FINAL_Secondary="MBR - Denitrified"), NOT(FINAL_Secondary="Tertiary - Nitrified Only"), NOT(FINAL_Secondary="Tertiary - Denitrified"), FINAL_Advance1="Tertiary Media Filtration", FINAL_Secondary="Secondary - BOD Only") -> FALSE | E34: UV | F34: =IF(OR(FINAL_Advance2="Ozone",FINAL_Advance2="Ozone/BAF"),"Ozone Bromate Warning","") -> Ozone Bromate Warning
A35: =AND( NOT(FINAL_Secondary="MBR - Nitrified Only"), NOT(FINAL_Secondary="MBR - Nitrified Only Denitrification"), NOT(FINAL_Secondary="Tertiary - Nitrified Only"), NOT(FINAL_Secondary="Tertiary - Denitrified"), FINAL_Advance1="Tertiary Media Filtration", NOT(FINAL_Secondary="Secondary - BOD Only")) -> FALSE | E35: Ozone/BAF | F35: =IF(OR(FINAL_Advance2="Ozone",FINAL_Advance2="Ozone/BAF"),"Ozone Bromate Warning","") -> Ozone Bromate Warning
A36: =AND( NOT(FINAL_Secondary="MBR - Nitrified Only"), NOT(FINAL_Secondary="MBR - Denitrified"), FINAL_Advance1="Ozone") -> FALSE | E36: MF
A37: =AND( NOT(FINAL_Secondary="MBR - Nitrified Only"), NOT(FINAL_Secondary="MBR - Denitrified"), FINAL_Advance1="Ozone/BAF", FINAL_Secondary="Secondary - BOD Only") -> FALSE | E37: Ozone | F37: =IF(OR(FINAL_Advance2="Ozone",FINAL_Advance2="Ozone/BAF"),"Ozone Bromate Warning","") -> Ozone Bromate Warning
A38: =AND( NOT(FINAL_Secondary="MBR - Nitrified Only"), NOT(FINAL_Secondary="MBR - Denitrified"), FINAL_Advance1="Ozone/BAF", NOT(FINAL_Secondary="Secondary - BOD Only")) -> FALSE | E38: MF | F38: =IF(OR(FINAL_Advance2="Ozone",FINAL_Advance2="Ozone/BAF"),"Ozone Bromate Warning","") -> Ozone Bromate Warning
A39: =OR(FINAL_Advance1="Cl2",FINAL_Advance1="UV") -> FALSE | E39: None | F39: =IF(OR(FINAL_Advance2="Ozone",FINAL_Advance2="Ozone/BAF"),"Ozone Bromate Warning","") -> Ozone Bromate Warning | Q39: Chlorine Dose
A40: TRUE
A41: =IF(FINAL_Advance2="Cl2",TRUE,FALSE) -> FALSE | E41: Cl2 CT | F41: 30 | G41: mg-min/L | H41: Contact Time: | I41: 90 | J41: Initial Cl2 Demand = | K41: =IF(FINAL_Advance2="Cl2", IF(FINAL_Secondary="MBR - Nitrified Only",4, IF(FINAL_Advance1="Tertiary Media Filtration",5, IF(OR(FINAL_Advance1="MF",FINAL_Advance1="UF"), IF(FINAL_Secondary="Secondary - BOD Only",12, IF(FINAL_Secondary="Conventional Activated Sludge - Nutrient Removal",4,5)))))) -> FALSE | L41: Cl2 Decay Rate: | M41: 3 | Q41: =F41/I41+M41*I41/60+K41 -> 4.833333333
A42: =IF(AND(FINAL_Advance2="Cl2",Input!$T$3=FALSE),TRUE,FALSE) -> FALSE | E42: Water pH | F42: 7 | H42: Water Temperature: | I42: 10 | J42: Residual Conc = | K42: =F41/CT_2 -> 0.3333333333
A43: =OR(FINAL_Advance2="Ozone",FINAL_Advance2="Ozone/BAF") -> TRUE | E43: Ozone:TOC Ratio | F43: 0.8 | G43: =IF(E43="Ozone CT", "mg-min/L", "") ->  | H43: Contact Time: | I43: 0.5 | J43: Influent TOC = | K43: =IF(AND(Input!$C$23="Primary Effluent*",Input!$T$3=TRUE),$I$106*(1-$H$120)*(1-$I$120),$I$106*(1-$I$120)) -> 25 | L43: O3:TOC= | M43: =IF(E43="Ozone CT", F43/I43/K43+1,F43) -> 0.8 | N43: =IF(E43="Ozone Ct",F43,IF((M43-1)*K43*I43>=0,(M43-1)*K43*I43,0)) -> 0 | Q43: =IF(A43=TRUE,K43*M43) -> 20
A44: =IF(AND(FINAL_Advance2="Ozone",Input!$T$3=FALSE),TRUE,FALSE) -> FALSE | E44: Water pH | F44: 7 | H44: Water Temperature: | I44: 15 | J44: Residual Conc = | K44: 2
A45: =IF(OR(FINAL_Advance2="UV/H2O2",FINAL_Advance2="UV"),TRUE,FALSE) -> FALSE | E45: UV Dose | F45: 200 | G45: mJ/cm2 | H45: Feed Water UVT: | I45: =IF(SECONDARY="MBR - Nitrified Only",$AC$160,VLOOKUP(FINAL_Advance1,$AA$145:$AC$160,3,FALSE)) -> 0.7
A46: =OR(FINAL_Advance2="Ozone",FINAL_Advance2="Ozone/BAF") -> TRUE | E46: Level of CNDMA(O3) | F46: 10 | G46: (CNDMA(O3) = NDMA Concentration Formed During Ozonation)
A47: FALSE | E47: H2O2 Dose | F47: 3 | G47: mg/L
A48: FALSE | C48: =VLOOKUP(FINAL_Advance2,$AA$145:$AB$157,2,FALSE) -> 95 | E48: Process Recovery Rate | F48: 95 | G48: %
A49: TRUE
A50: TRUE | B50: =VLOOKUP(TRUE,A51:E62,5,FALSE) -> Ozone | E50: Advanced 3
A51: =AND( FINAL_Advance2="Ozone/BAF", OR(FINAL_Advance1="MF",FINAL_Advance1="UF",FINAL_Advance1="None"), FINAL_Secondary="Secondary - BOD Only") -> TRUE | E51: Ozone | F51: =IF(OR(FINAL_Advance3="Ozone",FINAL_Advance3="Ozone/H2O2"),"Ozone Bromate Warning","") -> Ozone Bromate Warning
A52: =AND( FINAL_Advance2="Ozone/BAF", OR(FINAL_Advance1="MF",FINAL_Advance1="UF",FINAL_Advance1="None"), NOT(FINAL_Secondary="Secondary - BOD Only")) -> FALSE | E52: Ozone | F52: =IF(OR(FINAL_Advance3="Ozone",FINAL_Advance3="Ozone/H2O2"),"Ozone Bromate Warning","") -> Ozone Bromate Warning
A53: =OR(FINAL_Advance2="NF",FINAL_Advance2="RO") -> FALSE | E53: UV/H2O2 | F53: =IF(OR(FINAL_Advance3="Ozone",FINAL_Advance3="Ozone/H2O2"),"Ozone Bromate Warning","") -> Ozone Bromate Warning
A54: =AND( OR(FINAL_Advance1="MF",FINAL_Advance1="UF",FINAL_Advance1="None",FINAL_Advance1="Tertiary Media Filtration"), FINAL_Advance2="UV", NOT(FINAL_Secondary="Secondary - BOD Only")) -> FALSE | E54: Cl2
A55: =AND( OR(FINAL_Advance1="MF",FINAL_Advance1="UF",FINAL_Advance1="None",FINAL_Advance1="Tertiary Media Filtration"), FINAL_Advance2="UV", FINAL_Secondary="Secondary - BOD Only") -> FALSE | E55: Cl2
A56: =AND( FINAL_Advance1="Tertiary Media Filtration", FINAL_Advance2="Ozone/BAF", FINAL_Secondary="Secondary - BOD Only") -> FALSE | E56: MF
A57: =AND( FINAL_Advance1="Tertiary Media Filtration", FINAL_Advance2="Ozone/BAF", NOT(FINAL_Secondary="Secondary - BOD Only")) -> FALSE | E57: UF
A58: =AND( OR(FINAL_Advance2="MF",FINAL_Advance2="UF"), FINAL_Advance1="Ozone", FINAL_Secondary="Secondary - BOD Only") -> FALSE | E58: RO
A59: =AND( OR(FINAL_Advance2="MF",FINAL_Advance2="UF"), FINAL_Advance1="Ozone", NOT(FINAL_Secondary="Secondary - BOD Only")) -> FALSE | E59: RO
A60: =AND( OR(FINAL_Advance2="MF",FINAL_Advance2="UF"), FINAL_Advance1="Ozone/BAF", FINAL_Secondary="Secondary - BOD Only") -> FALSE | E60: UV/H2O2
A61: =AND( OR(FINAL_Advance2="MF",FINAL_Advance2="UF"), FINAL_Advance1="Ozone/BAF", NOT(FINAL_Secondary="Secondary - BOD Only")) -> FALSE | E61: UV/H2O2
A62: =OR( FINAL_Advance2="Cl2", FINAL_Advance2="Ozone", AND(FINAL_Advance2="UV",FINAL_Advance1="Ozone/BAF"), FINAL_Advance1="Cl2", FINAL_Advance1="UV") -> FALSE | E62: None | Q62: Chlorine Dose
A63: TRUE
A64: =IF(FINAL_Advance3="Cl2",TRUE,FALSE) -> FALSE | E64: Cl2 CT | F64: 40 | G64: mg-min/L | H64: Contact Time: | I64: 90 | J64: Initial Cl2 Demand = | K64: =IF(FINAL_Advance3="Cl2", IF(FINAL_Advance2="Ozone", 3, IF(FINAL_Advance2="Ozone/BAF", 2, IF(OR(FINAL_Advance2="NF",FINAL_Advance2="RO"),0, IF(OR(FINAL_Advance2="MF",OR(FINAL_Advance2="UF",FINAL_Advance2="UV")), IF(FINAL_Advance1="Ozone", 3, IF(FINAL_Advance1="Ozone/BAF", 2, IF(FINAL_Advance1="Tertiary Media Filtration",5 )))))))) -> FALSE | L64: Cl2 Decay Rate: | M64: 3 | Q64: =F64/I64+M64*I64/60+K64 -> 4.944444444
A65: =IF(AND(FINAL_Advance3="Cl2",Input!$T$3=FALSE),TRUE,FALSE) -> FALSE | E65: Water pH | F65: 7 | H65: Water Temperature: | I65: 10 | J65: Residual Conc = | K65: =F64/CT_3 -> 0.4444444444
A66: =OR(FINAL_Advance3="Ozone/H2O2",FINAL_Advance3="Ozone") -> TRUE | E66: Ozone:TOC Ratio | F66: 1 | G66: =IF(E66="Ozone CT", "mg-min/L", "") ->  | H66: Contact Time: | I66: 0.5 | J66: Influent TOC = | K66: =IF(AND(Input!$C$23="Primary Effluent*",Input!$T$3=TRUE),$I$106*(1-$H$120)*(1-$I$120)*(1-$J$120),$I$106*(1-$I$120)*(1-$J$120)) -> 15 | L66: O3:TOC= | M66: =IF(E66="Ozone CT", F66/I66/K66+1,F66) -> 1 | N66: =IF(E66="Ozone Ct",F66,IF((M66-1)*K66*I66>=0,(M66-1)*K66*I66,0)) -> 0 | Q66: =IF(A66=TRUE,K66*M66) -> 15
A67: =IF(AND(FINAL_Advance3="Ozone",Input!$T$3=FALSE),TRUE,FALSE) -> FALSE | E67: Water pH | F67: 7 | H67: Water Temperature: | I67: 15 | J67: Residual Conc = | K67: 2
A68: =IF(OR(FINAL_Advance3="UV",FINAL_Advance3="UV/H2O2"),TRUE,FALSE) -> FALSE | E68: UV Dose | F68: 300 | G68: mJ/cm2 | H68: Feed Water UVT: | I68: =VLOOKUP(FINAL_Advance2,$AA$145:$AC$160,3,FALSE) -> 0.85
A69: =OR(FINAL_Advance3="Ozone",FINAL_Advance3="Ozone/H2O2") -> TRUE | E69: Level of CNDMA(O3) | F69: 10 | G69: (CNDMA(O3) = NDMA Concentration Formed During Ozonation)
A70: FALSE | E70: H2O2 Dose | F70: =IF(FINAL_Advance3="UV/H2O2",IF(OR(FINAL_Advance2="MF",FINAL_Advance2="UF"),15,IF(OR(FINAL_Advance2="NF",FINAL_Advance2="RO"),3,"")),IF(FINAL_Advance3="Ozone/H2O2",Q66*0.5,"")) ->  | G70: mg/L
A71: FALSE | C71: =VLOOKUP(FINAL_Advance3,$AA$145:$AB$157,2,FALSE) -> 100 | E71: Process Recovery Rate | F71: 100 | G71: %
A72: TRUE
A73: TRUE | B73: =VLOOKUP(TRUE,A74:E80,5,FALSE) -> None | E73: Advanced 4
A74: =AND( OR(FINAL_Advance3="NF",FINAL_Advance3="RO"), FINAL_Advance1="Ozone") -> FALSE | E74: UV | F74: =IF(OR(FINAL_Advance4="Ozone",FINAL_Advance4="Ozone/H2O2"),"Ozone Bromate Warning","") -> 
A75: =AND( OR(FINAL_Advance3="NF",FINAL_Advance3="RO"), FINAL_Advance1="Ozone/BAF") -> FALSE | E75: Ozone | F75: =IF(OR(FINAL_Advance4="Ozone",FINAL_Advance4="Ozone/H2O2"),"Ozone Bromate Warning","") -> 
A76: =OR(FINAL_Advance3="MF",FINAL_Advance3="UF") -> FALSE | E76: UV
A77: =AND( OR(FINAL_Advance3="UV",FINAL_Advance3="UV/H2O2",FINAL_Advance3="Ozone",FINAL_Advance3="Ozone/H2O2"), OR(FINAL_Advance2="NF",FINAL_Advance2="RO"), OR(FINAL_Advance1="MF",FINAL_Advance1="UF",FINAL_Advance1="None")) -> FALSE | E77: Cl2
A78: =OR( AND(NOT(FINAL_Secondary="Secondary - BOD Only"),FINAL_Advance3="UV",FINAL_Advance2="Ozone/BAF",OR(FINAL_Advance1="MF",FINAL_Advance1="UF",FINAL_Advance1="None",FINAL_Advance1="Tertiary Media Filtration")), AND(NOT(FINAL_Secondary="Secondary - BOD Only"),FINAL_Advance3="UV",OR(FINAL_Advance2="MF",FINAL_Advance2="UF"),FINAL_Advance1="Ozone"), AND(NOT(FINAL_Secondary="Secondary - BOD Only"),OR(FINAL_Advance3="UV",FINAL_Advance3="UV/H2O2"),OR(FINAL_Advance2="MF",FINAL_Advance2="UF"),FINAL_Advance1="Ozone/BAF")) -> FALSE | E78: Cl2
A79: =OR( AND(FINAL_Secondary="Secondary - BOD Only",FINAL_Advance3="UV",FINAL_Advance2="Ozone/BAF",OR(FINAL_Advance1="MF",FINAL_Advance1="UF",FINAL_Advance1="None",FINAL_Advance1="Tertiary Media Filtration")), AND(FINAL_Secondary="Secondary - BOD Only",FINAL_Advance3="UV",OR(FINAL_Advance2="MF",FINAL_Advance2="UF"),FINAL_Advance1="Ozone"), AND(FINAL_Secondary="Secondary - BOD Only",OR(FINAL_Advance3="UV",FINAL_Advance3="UV/H2O2"),OR(FINAL_Advance2="MF",FINAL_Advance2="UF"),FINAL_Advance1="Ozone/BAF")) -> FALSE | E79: None
A80: =OR( AND(FINAL_Advance3="Ozone",FINAL_Advance2="Ozone/BAF",OR(FINAL_Advance1="MF",FINAL_Advance1="UF",FINAL_Advance1="None")), FINAL_Advance3="Cl2", FINAL_Advance3="None") -> TRUE | E80: None | Q80: Chlorine Dose
A81: TRUE
A82: =B73="Cl2" -> FALSE | E82: Cl2 CT | F82: 450 | G82: mg-min/L | H82: Contact Time: | I82: 90 | J82: Initial Cl2 Demand = | K82: =IF(FINAL_Advance4="Cl2", IF(OR(FINAL_Advance2="NF", FINAL_Advance2="RO"),0, IF(OR(FINAL_Advance3="NF", FINAL_Advance3="RO"),0, IF(OR(FINAL_Advance1="Ozone", FINAL_Advance1="Ozone/BAF"),2, IF(OR(FINAL_Advance2="Ozone", FINAL_Advance2="Ozone/BAF"),2, IF(OR(FINAL_Advance3="Ozone", FINAL_Advance3="Ozone/BAF"),2, 5)))))) -> FALSE | L82: Cl2 Decay Rate: | M82: 3 | Q82: =F82/I82+M82*I82/60+K82 -> 9.5
A83: =IF(AND(FINAL_Advance4="Cl2",Input!$T$3=FALSE),TRUE,FALSE) -> FALSE | E83: Water pH | F83: 7 | H83: Water Temperature: | I83: 20 | J83: Residual Conc = | K83: =F82/CT_4 -> 5
A84: =IF(OR(B73="Ozone/H2O2", B73="Ozone"),TRUE,FALSE) -> FALSE | E84: Ozone:TOC Ratio | F84: 1 | G84: =IF(E84="Ozone CT", "mg-min/L", "") ->  | H84: Contact Time: | I84: 0.5 | J84: Influent TOC = | K84: =IF(AND(Input!$C$23="Primary Effluent*",Input!$T$3=TRUE),$I$106*(1-$H$120)*(1-$I$120)*(1-$J$120)*(1-$K$120),$I$106*(1-$I$120)*(1-$J$120)*(1-$K$120)) -> 15 | L84: O3:TOC= | M84: =IF(E84="Ozone CT", F84/I84/K84,F84) -> 1 | N84: =IF(E84="Ozone Ct",F84,IF((M84-1)*K84*I84>=0,(M84-1)*K84*I84,0)) -> 0 | Q84: =IF(A84=TRUE,K84*M84) -> FALSE
A85: =IF(AND(FINAL_Advance4="Ozone",Input!$T$3=FALSE),TRUE,FALSE) -> FALSE | E85: Water pH | F85: 7 | H85: Water Temperature: | I85: 15 | J85: Residual Conc = | K85: 2
A86: =OR(B73="UV",B73="UV/H2O2") -> FALSE | E86: UV Dose | F86: 1000 | G86: mJ/cm2 | H86: Feed Water UVT: | I86: =VLOOKUP(FINAL_Advance3,$AA$145:$AC$160,3,FALSE) -> 0.9
A87: =OR(FINAL_Advance4="Ozone",FINAL_Advance4="Ozone/H2O2") -> FALSE | E87: Level of CNDMA(O3) | F87: 10 | G87: (CNDMA(O3) = NDMA Concentration Formed During Ozonation)
A88: FALSE | E88: H2O2 Dose | F88: 3 | G88: mg/L
A89: FALSE | C89: =VLOOKUP(B73,$AA$145:$AB$157,2,FALSE) -> 100 | E89: Process Recovery Rate | F89: 100 | G89: %
A90: TRUE
A91: TRUE | B91: =Advance5_select -> Engineered Storage Buffer - Cl2 | E91: Optional Environmental Buffers
A92: TRUE | E92: Engineered Storage Buffer - Cl2
A93: TRUE
A94: =FINAL_Optional="Surface Water Augmentation" -> FALSE | E94: Travel Time | F94: 7 | G94: days | Q94: Chlorine Dose
A95: =OR(FINAL_Optional="Direct Injection (Subsurface Migration Only)", FINAL_Optional="Soil Aquifer Treatment (Percolation and Subsurface Migration)") -> FALSE | E95: Travel Time | F95: 6 | G95: months
A96: =FINAL_Optional="Engineered Storage Buffer - Cl2" -> TRUE | E96: Cl2 CT | F96: 60 | G96: mg-min/L | H96: Contact Time: | I96: 10 | J96: Initial Cl2 Demand = | K96: =IF(OR(OR(FINAL_Advance4="Cl2",FINAL_Advance3="Cl2"),OR(FINAL_Advance2="Cl2",FINAL_Advance1="CL2")),0, IF(OR(FINAL_Advance2="NF",FINAL_Advance2="RO"),0, IF(OR(FINAL_Advance3="NF",FINAL_Advance3="RO"),0, IF(OR(FINAL_Advance1="Ozone",FINAL_Advance1="Ozone/BAF"),2, IF(OR(FINAL_Advance2="Ozone",FINAL_Advance2="Ozone/BAF"),2, IF(OR(FINAL_Advance3="Ozone",FINAL_Advance3="Ozone/BAF"),2, IF(FINAL_Advance1="UV", IF(FINAL_Secondary="MBR - Nitrified Only",4, IF(FINAL_Secondary="Secondary - BOD Only",12, IF(FINAL_Secondary="Conventional Activated Sludge - Nutrient Removal",4,5))), 5))))))) -> 2 | L96: Cl2 Decay Rate: | M96: 3 | Q96: =F96/I96+M96*I96/60+K96 -> 8.5
A97: =FINAL_Optional="Engineered Storage Buffer - Chloramines" -> FALSE | E97: Chloramine CT | F97: 450 | G97: mg-min/L | H97: Contact Time: | I97: 90 | J97: Initial Cl2 Demand = | K97: =K96 -> 2
A98: =AND(Input!T3="True",OR(FINAL_Optional="Engineered Storage Buffer - Cl2",FINAL_Optional="Engineered Storage Buffer - Chloramines")) -> FALSE | E98: Water pH | F98: 7 | H98: Water Temperature: | I98: 20 | J98: Residual Conc = | K98: =IF(FINAL_Optional="Engineered Storage Buffer - Cl2",$F$96/$I$96,IF(FINAL_Optional="Engineered Storage Buffer - Chloramines",$F$97/$I$97,"NA")) -> 6
A99: TRUE
A100: TRUE | E100: Overall Performance of this Train:
A101: TRUE | H101: Treatment Goal | I101: Influent Water Quality | J101: Effluent Water Quality | K101: Total Achieved Removal | L101: Performance
A102: TRUE | E102: Bacteria | H102: =Input!$D$16 -> 9 | K102: =SUM(H116:N116) -> 10 | L102: =K102-H102 -> 1 | M102: =IF(L102>0,"meets goal",IF(L102=0,"at goal","fails to meet goal")) -> meets goal
A103: TRUE | E103: Virus | H103: =Input!$E$16 -> 12 | K103: =SUM(H117:N117) -> 8 | L103: -4 | M103: =IF(L103>0,"meets goal",IF(L103=0,"at goal","fails to meet goal")) -> fails to meet goal
A104: TRUE | E104: Cryptosporidium | H104: =Input!$F$16 -> 10 | K104: =SUM(H118:N118) -> 3 | L104: -7 | M104: fails to meet goal
A105: TRUE | E105: Giardia | H105: =Input!$G$16 -> 10 | K105: =SUM(H119:N119) -> 4 | L105: -6 | M105: fails to meet goal
A106: TRUE | E106: TOC | H106: =Input!D35 -> 0.97 | I106: =IF(Input!$T$3=TRUE,Input!D23,Input!D26) -> 50 | J106: =I106*(1-K106) -> 15 | K106: =IF(AND(Input!$C$23="Primary Effluent*",Input!T$3=TRUE),1-(1-H120)*(1-I120)*(1-J120)*(1-K120)*(1-L120)*(1-M120),1-(1-I120)*(1-J120)*(1-K120)*(1-L120)*(1-M120)) -> 0.7 | L106: =K106-H106 -> -0.27 | M106: =IF(L106>0,"meets goal",IF(L106=0,"at goal","fails to meet goal")) -> fails to meet goal
A107: TRUE | E107: Nitrate as N | H107: =Input!E35 -> 0.86 | I107: =IF(Input!$T$3=TRUE,Input!E23,Input!E26) -> 50 | J107: =I107*(1-K107) -> 10 | K107: =IF(AND(Input!$C$23="Primary Effluent*",Input!T$3=TRUE),1-(1-H121)*(1-I121)*(1-J121)*(1-K121)*(1-L121)*(1-M121),1-(1-I121)*(1-J121)*(1-K121)*(1-L121)*(1-M121)) -> 0.8 | L107: =K107-H107 -> -0.06 | M107: =IF(L107>0,"meets goal",IF(L107=0,"at goal","fails to meet goal")) -> fails to meet goal
A108: TRUE | E108: TOrCs | H108: =Input!F35 -> 0.9 | I108: =IF(Input!$T$3=TRUE,Input!F23,Input!F26) -> 10 | J108: =I108*(1-K108) -> 0.108 | K108: =IF(AND(Input!$C$23="Primary Effluent*",Input!T$3=TRUE),1-(1-H122)*(1-I122)*(1-J122)*(1-K122)*(1-L122)*(1-M122),1-(1-I122)*(1-J122)*(1-K122)*(1-L122)*(1-M122)) -> 0.9892 | L108: =K108-H108 -> 0.0892 | M108: =IF(L108>0,"meets goal",IF(L108=0,"at goal","fails to meet goal")) -> meets goal
A109: TRUE | E109: EEQ | H109: =Input!G35 -> 0.98 | I109: =IF(Input!$T$3=TRUE,Input!G23,Input!G26) -> 50 | J109: =I109*(1-K109) -> 0.0002 | K109: =IF(AND(Input!$C$23="Primary Effluent*",Input!T$3=TRUE),1-(1-H123)*(1-I123)*(1-J123)*(1-K123)*(1-L123)*(1-M123),1-(1-I123)*(1-J123)*(1-K123)*(1-L123)*(1-M123)) -> 0.999996 | L109: =K109-H109 -> 0.019996 | M109: =IF(L109>0,"meets goal",IF(L109=0,"at goal","fails to meet goal")) -> meets goal
A110: TRUE | E110: NDMA | H110: =Input!H35 -> 0.9 | I110: =IF(Input!$T$3=TRUE,Input!H23,Input!H26) -> 80 | J110: =IF(AND(Input!C23="Primary Effluent*",Input!T3=TRUE),IF(FINAL_Advance1="Ozone",(I110*(1-H124)+F28)*(1-IF(ISNUMBER(J124),J124,0))*(1-IF(ISNUMBER(K124),K124,0))*(1-IF(ISNUMBER(L124),L124,0))*(1-IF(ISNUMBER(M124),M124,0)),IF(FINAL_Advance2="Ozone",(I110*(1-H124)*(1-IF(ISNUMBER(I124),I124,0))+F46)*(1-IF(ISNUMBER(K124),K124,0))*(1-IF(ISNUMBER(L124),L124,0))*(1-IF(ISNUMBER(M124),M124,0)),I110*(1-H124)*(1-IF(ISNUMBER(I124),I124,0))*(1-IF(ISNUMBER(J124),J124,0))*(1-IF(ISNUMBER(K124),K124,0))*(1-L124)*(1-M124))),IF(FINAL_Advance2="Ozone",(I110*(1-H124)*(1-IF(ISNUMBER(I124),I124,0))+F46)*(1-IF(ISNUMBER(K124),K124,0))*(1-IF(ISNUMBER(L124),L124,0))*(1-IF(ISNUMBER(M124),M124,0)),I110*(1-IF(ISNUMBER(I124),I124,0))*(1-IF(ISNUMBER(J124),J124,0))*(1-IF(ISNUMBER(K124),K124,0))*(1-L124)*(1-M124))) -> 40 | K110: =(I110-J110)/I110 -> 0.5 | L110: =K110-H110 -> -0.4 | M110: =IF(L110>0,"meets goal",IF(L110=0,"at goal","fails to meet goal")) -> fails to meet goal
A111: TRUE | E111: PFOS+PFOA | H111: =Input!I35 -> 0 | I111: =IF(Input!$T$3=TRUE,Input!I23,Input!I26) -> 50 | J111: =I111*(1-K111) -> 50 | K111: =IF(AND(Input!$C$23="Primary Effluent*",Input!T$3=TRUE),1-(1-H125)*(1-I125)*(1-J125)*(1-K125)*(1-L125)*(1-M125),1-(1-I125)*(1-J125)*(1-K125)*(1-L125)*(1-M125)) -> 0 | L111: 0 | M111: at goal
A112: TRUE
A113: TRUE | E113: Breakdown of Train Performance by Unit Process:
A114: TRUE | E114: Categories | H114: Wastewater Treatment | I114: Advanced 1 | J114: Advanced 2 | K114: Advanced 3 | L114: Advanced 4 | M114: Buffer | N114: Water Treatment Plant Credits
A115: TRUE | E115: Selected Process | H115: =FINAL_Secondary -> Secondary - BOD Only | I115: =FINAL_Advance1 -> MF | J115: =FINAL_Advance2 -> Ozone/BAF | K115: =FINAL_Advance3 -> Ozone | L115: =B73 -> None | M115: =FINAL_Optional -> Engineered Storage Buffer - Cl2 | N115: User-Defined
A116: TRUE | C116: 4 | E116: Bacteria | H116: =IF(Input!$T$3=TRUE,VLOOKUP($H$115,'Master_Lookup (3)'!$A$10:$Z$16,$C116,FALSE),"Not Accounted") -> 3 | I116: =IF($I$115="Tertiary Media Filtration",IF($C$18=TRUE, VLOOKUP("Tertiary Media Filtration - Denitrification",'Master_Lookup (3)'!$A$18:$Z$27,$C116,FALSE),VLOOKUP($I$115,'Master_Lookup (3)'!$A$18:$Z$27,$C116,FALSE)),VLOOKUP($I$115,'Master_Lookup (3)'!$A$18:$Z$27,$C116,FALSE)) -> 3 | J116: =VLOOKUP($J$115,'Master_Lookup (3)'!$A$29:$Z$39,$C116,FALSE) -> 0 | K116: =VLOOKUP($K$115,'Master_Lookup (3)'!$A$41:$Z$51,$C116,FALSE) -> 0 | L116: =VLOOKUP($L$115,'Master_Lookup (3)'!$A$53:$Z$58,$C116,FALSE) -> 0 | M116: =VLOOKUP($M$115,'Master_Lookup (3)'!$A$60:$Z$65,$C116,FALSE) -> 4 | N116: =IF(Input!D43=-1,"NA",Input!D43) -> NA
A117: TRUE | C117: 5 | E117: Virus | H117: =IF(Input!$T$3=TRUE,VLOOKUP($H$115,'Master_Lookup (3)'!$A$10:$Z$16,$C117,FALSE),"Not Accounted") -> 2 | I117: =IF(Input!$T$3=TRUE,VLOOKUP($I$115,'Master_Lookup (3)'!$A$18:$Z$27,$C117,FALSE),IF($I$115="Tertiary Media Filtration",IF($C$18=TRUE,VLOOKUP("Tertiary Media Filtration - Denitrification",'Master_Lookup (3)'!$A$18:$Z$27,$C117,FALSE),VLOOKUP($I$115,'Master_Lookup (3)'!$A$18:$Z$27,$C117,FALSE)),IF(OR($I$115="Ozone",$I$115="Ozone/BAF",$I$115="Ozone/H2O2"),Log_Virus(3,LOG_VIR,Temp_1_O3,pH_1_O3,Conc_1_O3,CT_1_O3),VLOOKUP($I$115,'Master_Lookup (3)'!$A$18:$Z$27,$C117,FALSE)))) -> 0 | J117: =IF(Input!$T$3=TRUE,VLOOKUP($J$115,'Master_Lookup (3)'!$A$29:$Z$39,$C117,FALSE),IF(J115="Cl2",Log_Virus(1,LOG_VIR,Temp_2,pH_2,Conc_2,CT_2),IF(OR($J$115="Ozone",$J$115="Ozone/BAF",$J$115="Ozone/H2O2"),Log_Virus(3,LOG_VIR,Temp_2_O3,pH_2_O3,Conc_2_O3,CT_2_O3),VLOOKUP($J$115,'Master_Lookup (3)'!$A$29:$Z$39,$C117,FALSE)))) -> 0 | K117: =IF(Input!$T$3=TRUE,VLOOKUP($K$115,'Master_Lookup (3)'!$A$41:$Z$51,$C117,FALSE),IF(K115="Cl2",Log_Virus(1,LOG_VIR,Temp_3,pH_3,Conc_3,CT_3),IF(OR($K$115="Ozone",$K$115="Ozone/BAF",$K$115="Ozone/H2O2"),Log_Virus(3,LOG_VIR,Temp_3_O3,pH_3_O3,Conc_3_O3,CT_3_O3),VLOOKUP($K$115,'Master_Lookup (3)'!$A$41:$Z$51,$C117,FALSE)))) -> 0 | L117: =IF(Input!$T$3=TRUE,VLOOKUP($L$115,'Master_Lookup (3)'!$A$53:$Z$58,$C117,FALSE),IF(L115="Cl2",Log_Virus(1,LOG_VIR,Temp_4,pH_4,Conc_4,CT_4),IF(OR($L$115="Ozone",$L$115="Ozone/BAF",$L$115="Ozone/H2O2"),Log_Virus(3,LOG_VIR,Temp_4_O3,pH_4_O3,Conc_4_O3,CT_4_O3),VLOOKUP($L$115,'Master_Lookup (3)'!$A$53:$Z$58,$C117,FALSE)))) -> 0 | M117: =IF(AND(Input!$T$3=TRUE,OR(M115="Engineered Storage Buffer - Cl2",M115="Engineered Storage Buffer - Chloramines"))=TRUE,IF(M115="Engineered Storage Buffer - Cl2",Log_Virus(1,LOG_VIR,$I$98,$F$98,$K$98,$I$96),IF(M115="Engineered Storage Buffer - Chloramines",Log_Virus(4,LOG_VIR,$I$98,$F$98,$K$98,$I$97),VLOOKUP($M$115,'Master_Lookup (3)'!$A$60:$Z$65,$C117,FALSE))),VLOOKUP($M$115,'Master_Lookup (3)'!$A$60:$Z$65,$C117,FALSE)) -> 6 | N117: =IF(Input!E43=-1,"NA",Input!E43) -> NA
A118: TRUE | C118: 6 | E118: Cryptosporidium | H118: =IF(Input!$T$3=TRUE,VLOOKUP($H$115,'Master_Lookup (3)'!$A$10:$Z$16,$C118,FALSE),"Not Accounted") -> 0 | I118: =IF(Input!$T$3=TRUE,VLOOKUP($I$115,'Master_Lookup (3)'!$A$18:$Z$27,$C118,FALSE),IF($I$115="Tertiary Media Filtration",IF($C$18=TRUE,VLOOKUP("Tertiary Media Filtration - Denitrification",'Master_Lookup (3)'!$A$18:$Z$27,$C118,FALSE),VLOOKUP($I$115,'Master_Lookup (3)'!$A$18:$Z$27,$C118,FALSE)),IF(OR($I$115="Ozone",$I$115="Ozone/BAF",$I$115="Ozone/H2O2"),(0.0397*(1.09757)^(Temp_1_O3))*CT_1_O3,VLOOKUP($I$115,'Master_Lookup (3)'!$A$18:$Z$27,$C118,FALSE)))) -> 3 | J118: =IF(Input!$T$3=TRUE,VLOOKUP($J$115,'Master_Lookup (3)'!$A$29:$Z$39,$C118,FALSE),IF(OR($J$115="Ozone",$J$115="Ozone/BAF",$J$115="Ozone/H2O2"),(0.0397*(1.09757)^(Temp_2_O3))*CT_2_O3,VLOOKUP($J$115,'Master_Lookup (3)'!$A$29:$Z$39,$C118,FALSE))) -> 0 | K118: =IF(Input!$T$3=TRUE,VLOOKUP($K$115,'Master_Lookup (3)'!$A$41:$Z$51,$C118,FALSE),IF(OR($K$115="Ozone",$K$115="Ozone/BAF",$K$115="Ozone/H2O2"),(0.0397*(1.09757)^(Temp_3_O3))*CT_3_O3,VLOOKUP($K$115,'Master_Lookup (3)'!$A$41:$Z$51,$C118,FALSE))) -> 0 | L118: =IF(Input!$T$3=TRUE,VLOOKUP($L$115,'Master_Lookup (3)'!$A$53:$Z$58,$C118,FALSE),IF(OR($L$115="Ozone",$L$115="Ozone/BAF",$L$115="Ozone/H2O2"),(0.0397*(1.09757)^(Temp_4_O3))*CT_4_O3,VLOOKUP($L$115,'Master_Lookup (3)'!$A$53:$Z$58,$C118,FALSE))) -> 0 | M118: =VLOOKUP($M$115,'Master_Lookup (3)'!$A$60:$Z$65,$C118,FALSE) -> 0 | N118: =IF(Input!F43=-1,"NA",Input!F43) -> NA
A119: TRUE | C119: 7 | E119: Giardia | H119: =IF(Input!$T$3=TRUE,VLOOKUP($H$115,'Master_Lookup (3)'!$A$10:$Z$16,$C119,FALSE),"Not Accounted") -> 0 | I119: =IF(Input!$T$3=TRUE,VLOOKUP($I$115,'Master_Lookup (3)'!$A$18:$Z$27,$C119,FALSE),IF($I$115="Tertiary Media Filtration",IF($C$18=TRUE,VLOOKUP("Tertiary Media Filtration - Denitrification",'Master_Lookup (3)'!$A$18:$Z$27,$C119,FALSE),VLOOKUP($I$115,'Master_Lookup (3)'!$A$18:$Z$27,$C119,FALSE)),IF(OR($I$115="Ozone",$I$115="Ozone/BAF",$I$115="Ozone/H2O2"),Log_Giardia(3,LOG_GIAR,Temp_1_O3,pH_1_O3,Conc_1_O3,CT_1_O3),VLOOKUP($I$115,'Master_Lookup (3)'!$A$18:$Z$27,$C119,FALSE)))) -> 3 | J119: =IF(Input!$T$3=TRUE,VLOOKUP($J$115,'Master_Lookup (3)'!$A$29:$Z$39,$C119,FALSE),IF(J115="Cl2",Log_Giardia(1,LOG_GIAR,Temp_2,pH_2,Conc_2,CT_2),IF(OR($J$115="Ozone",$J$115="Ozone/BAF",$J$115="Ozone/H2O2"),Log_Giardia(3,LOG_GIAR,Temp_2_O3,pH_2_O3,Conc_2_O3,CT_2_O3),VLOOKUP($J$115,'Master_Lookup (3)'!$A$29:$Z$39,$C119,FALSE)))) -> 0 | K119: =IF(Input!$T$3=TRUE,VLOOKUP($K$115,'Master_Lookup (3)'!$A$41:$Z$51,$C119,FALSE),IF(K115="Cl2",Log_Giardia(1,LOG_GIAR,Temp_3,pH_3,Conc_3,CT_3),IF(OR($K$115="Ozone",$K$115="Ozone/BAF",$K$115="Ozone/H2O2"),Log_Giardia(3,LOG_GIAR,Temp_3_O3,pH_3_O3,Conc_3_O3,CT_3_O3),VLOOKUP($K$115,'Master_Lookup (3)'!$A$41:$Z$51,$C119,FALSE)))) -> 0 | L119: =IF(Input!$T$3=TRUE,VLOOKUP($L$115,'Master_Lookup (3)'!$A$53:$Z$58,$C119,FALSE),IF(L115="Cl2",Log_Giardia(1,LOG_GIAR,Temp_4,pH_4,Conc_4,CT_4),IF(OR($L$115="Ozone",$L$115="Ozone/BAF",$L$115="Ozone/H2O2"),Log_Giardia(3,LOG_GIAR,Temp_4_O3,pH_4_O3,Conc_4_O3,CT_4_O3),VLOOKUP($L$115,'Master_Lookup (3)'!$A$53:$Z$58,$C119,FALSE)))) -> 0 | M119: =IF(AND(Input!$T$3=FALSE,OR(M115="Engineered Storage Buffer - Cl2",M115="Engineered Storage Buffer - Chloramines"))=TRUE,IF(M115="Engineered Storage Buffer - Cl2",Log_Giardia(1,LOG_GIAR,$I$98,$F$98,$K$98,$I$96),IF(M115="Engineered Storage Buffer - Chloramines",Log_Giardia(4,LOG_GIAR,$I$98,$F$98,$K$98,$I$97),VLOOKUP($M$115,'Master_Lookup (3)'!$A$60:$Z$65,$C119,FALSE))),VLOOKUP($M$115,'Master_Lookup (3)'!$A$60:$Z$65,$C119,FALSE)) -> 1 | N119: =IF(Input!G43=-1,"NA",Input!G43) -> NA
A120: TRUE | C120: 12 | E120: TOC | H120: =IF(AND(Input!$C$23="Primary Effluent*",Input!$T$3=TRUE),VLOOKUP($H$115,'Master_Lookup (3)'!$A$10:$Z$16,$C120,FALSE),"Not Accounted") -> 0.5 | I120: =VLOOKUP($I$115,'Master_Lookup (3)'!$A$18:$Z$27,$C120,FALSE) -> 0 | J120: =IF(J$115<>"RO",VLOOKUP(J$115,'Master_Lookup (3)'!$A$29:$Z$39,$C120,FALSE),IF(AND(Input!C23="Primary Effluent*",Input!T3=TRUE),MAX((($I$106*(1-$H$120)*(1-$I$120)-Master!$M$42)/($I$106*(1-$H$120)*(1-$I$120))),Master!$J$42),MAX((($I$106*(1-$I$120)-Master!$M$42)/($I$106*(1-$I$120))),Master!$J$42))) -> 0.4 | K120: =IF(K$115<>"RO",VLOOKUP(K$115,'Master_Lookup (3)'!$A$41:$Z$51,$C120,FALSE),IF(AND(Input!C2="Primary Effluent*",Input!T3=TRUE),MAX((($I$106*(1-$H$120)*(1-$I$120)*(1-$J$120)-Master!$M$42)/($I$106*(1-$H$120)*(1-$I$120)*(1-$J$120))),Master!$J$42),MAX((($I$106*(1-$I$120)*(1-$J$120)-Master!$M$42)/($I$106*(1-$I$120)*(1-$J$120))),Master!$J$42))) -> 0 | L120: =VLOOKUP($L$115,'Master_Lookup (3)'!$A$53:$Z$58,$C120,FALSE) -> 0 | M120: =VLOOKUP($M$115,'Master_Lookup (3)'!$A$60:$Z$65,$C120,FALSE) -> 0 | N120: NA
A121: TRUE | C121: 11 | E121: Nitrate as N | H121: =IF(AND(Input!$C$23="Primary Effluent*",Input!$T$3=TRUE),VLOOKUP($H$115,'Master_Lookup (3)'!$A$10:$Z$16,$C121,FALSE),"Not Accounted") -> 0 | I121: =IF($C$18=TRUE,VLOOKUP("Tertiary Media Filtration - Denitrification",'Master_Lookup (3)'!$A$18:$Z$27,$C121,FALSE),VLOOKUP($I$115,'Master_Lookup (3)'!$A$18:$Z$27,$C121,FALSE)) -> 0.8 | J121: =VLOOKUP($J$115,'Master_Lookup (3)'!$A$29:$Z$39,$C121,FALSE) -> 0 | K121: =VLOOKUP($K$115,'Master_Lookup (3)'!$A$41:$Z$51,$C121,FALSE) -> 0 | L121: =VLOOKUP($L$115,'Master_Lookup (3)'!$A$53:$Z$58,$C121,FALSE) -> 0 | M121: =VLOOKUP($M$115,'Master_Lookup (3)'!$A$60:$Z$65,$C121,FALSE) -> 0 | N121: NA
A122: TRUE | C122: 9 | E122: TOrCs | H122: =IF(AND(Input!$C$23="Primary Effluent*",Input!$T$3=TRUE),VLOOKUP($H$115,'Master_Lookup (3)'!$A$10:$Z$16,$C122,FALSE),"Not Accounted") -> 0.7 | I122: =IF($C$18=TRUE,VLOOKUP("Tertiary Media Filtration - Denitrification",'Master_Lookup (3)'!$A$18:$Z$27,$C122,FALSE),VLOOKUP($I$115,'Master_Lookup (2)'!$A$18:$Z$27,$C122,FALSE)) -> 0.2 | J122: =VLOOKUP($J$115,'Master_Lookup (3)'!$A$29:$Z$39,$C122,FALSE) -> 0.85 | K122: =VLOOKUP($K$115,'Master_Lookup (3)'!$A$41:$Z$51,$C122,FALSE) -> 0.7 | L122: =VLOOKUP($L$115,'Master_Lookup (3)'!$A$53:$Z$58,$C122,FALSE) -> 0 | M122: =VLOOKUP($M$115,'Master_Lookup (3)'!$A$60:$Z$65,$C122,FALSE) -> 0 | N122: NA
A123: TRUE | C123: 8 | E123: EEQ | H123: =IF(AND(Input!$C$23="Primary Effluent*",Input!$T$3=TRUE),VLOOKUP($H$115,'Master_Lookup (3)'!$A$10:$Z$16,$C123,FALSE),"Not Accounted") -> 0.9 | I123: =IF($C$18=TRUE,VLOOKUP("Tertiary Media Filtration - Denitrification",'Master_Lookup (3)'!$A$18:$Z$27,$C123,FALSE),VLOOKUP($I$115,'Master_Lookup (3)'!$A$18:$Z$27,$C123,FALSE)) -> 0.2 | J123: =VLOOKUP($J$115,'Master_Lookup (3)'!$A$29:$Z$39,$C123,FALSE) -> 0.995 | K123: =VLOOKUP($K$115,'Master_Lookup (3)'!$A$41:$Z$51,$C123,FALSE) -> 0.99 | L123: =VLOOKUP($L$115,'Master_Lookup (3)'!$A$53:$Z$58,$C123,FALSE) -> 0 | M123: =VLOOKUP($M$115,'Master_Lookup (3)'!$A$60:$Z$65,$C123,FALSE) -> 0 | N123: NA
A124: TRUE | C124: 10 | E124: NDMA | H124: =IF(AND(Input!$C$23="Primary Effluent*",Input!$T$3=TRUE),VLOOKUP($H$115,'Master_Lookup (3)'!$A$10:$Z$16,$C124,FALSE),"Not Accounted") -> 0 | I124: =VLOOKUP($I$115,'Master_Lookup (3)'!$A$18:$Z$27,$C124,FALSE) -> 0 | J124: =VLOOKUP($J$115,'Master_Lookup (3)'!$A$29:$Z$39,$C124,FALSE) -> 0.5 | K124: =VLOOKUP($K$115,'Master_Lookup (3)'!$A$41:$Z$51,$C124,FALSE) -> Warning | L124: =VLOOKUP($L$115,'Master_Lookup (3)'!$A$53:$Z$58,$C124,FALSE) -> 0 | M124: =VLOOKUP($M$115,'Master_Lookup (3)'!$A$60:$Z$65,$C124,FALSE) -> 0 | N124: NA
A125: TRUE | C125: 13 | E125: PFOS+PFOA | H125: =IF(AND(Input!$C$23="Primary Effluent*",Input!$T$3=TRUE),VLOOKUP($H$115,'Master_Lookup (3)'!$A$10:$Z$16,$C125,FALSE),"Not Accounted") -> 0 | I125: =VLOOKUP($I$115,'Master_Lookup (3)'!$A$18:$Z$27,$C125,FALSE) -> 0 | J125: =VLOOKUP($J$115,'Master_Lookup (3)'!$A$29:$Z$39,$C125,FALSE) -> 0 | K125: =VLOOKUP($K$115,'Master_Lookup (3)'!$A$41:$Z$51,$C125,FALSE) -> 0 | L125: =VLOOKUP($L$115,'Master_Lookup (3)'!$A$53:$Z$58,$C125,FALSE) -> 0 | M125: =VLOOKUP($M$115,'Master_Lookup (3)'!$A$60:$Z$65,$C125,FALSE) -> 0 | N125: NA
A126: TRUE | C126: 26 | E126: Cost - Subtotal | H126: Not Available | I126: =VLOOKUP($I$115,'Master_Lookup (3)'!$A$18:$Z$27,$C126,FALSE) ->  | J126: =VLOOKUP($J$115,'Master_Lookup (3)'!$A$29:$Z$39,$C126,FALSE) ->  | K126: =VLOOKUP($K$115,'Master_Lookup (3)'!$A$41:$Z$51,$C126,FALSE) -> Not Available | L126: =VLOOKUP($L$115,'Master_Lookup (3)'!$A$53:$Z$58,$C126,FALSE) -> 0 | M126: Not Available | N126: NA
U143: Menu 1A
U144: Secondary Treatment | V144: Advanced 1 | W144: Advanced 2 | X144: Advanced 3 | Y144: Advanced 4 | Z144: Optional Environmental Buffers | AA144: Process Recovery Rate | AB144: % | AC144: UVT (%)
U145: Secondary - BOD Only | V145: MF | W145: Ozone/BAF | X145: Ozone | Y145: Cl2 | Z145: Soil Aquifer Treatment (Percolation and Subsurface Migration) | AA145: BAF | AB145: 95 | AC145: 0.85
U146: Secondary - Nitrified Only | V146: UF | W146: UV | X146: UV | Y146: None | Z146: Direct Injection (Subsurface Migration Only) | AA146: Ozone/BAF | AB146: 95 | AC146: 0.85
U147: Secondary - Denitrified | V147: Ozone | W147: NF | X147: Cl2 | Z147: Surface Water Augmentation | AA147: MF | AB147: 95 | AC147: 0.7
U148: Tertiary - Nitrified Only | V148: Ozone/BAF | W148: RO | Y148: UV | Z148: Engineered Storage Buffer - Cl2 | AA148: UF | AB148: 95 | AC148: 0.7
U149: Tertiary - Denitrified | V149: UV | W149: Cl2 | X149: Cl2 | Y149: UV/H2O2 | Z149: Engineered Storage Buffer - Chloramines | AA149: NF | AB149: 80 | AC149: 0.9
U150: MBR - Nitrified Only | V150: Tertiary Media Filtration | X150: None | Y150: Ozone | Z150: No environmental buffer | AA150: RO | AB150: 80 | AC150: 0.98 | AD150: <- no data, value is assumed
U151: MBR - Denitrified | V151: Cl2 | W151: Ozone/BAF | Y151: Ozone/H2O2 | AA151: Ozone | AB151: 100 | AC151: 0.9 | AD151: <- no data, value is assumed
V152: MBR - Nitrified Only | W152: UV | X152: UV | Y152: Cl2 | AA152: Ozone/H2O2 | AB152: 100 | AC152: 0.9 | AD152: <- no data, value is assumed
W153: Ozone | X153: UV/H2O2 | AA153: Cl2 | AB153: 100 | AC153: 0.85 | AD153: <- no data, value is assumed
V154: MF | W154: Cl2 | X154: Ozone | Y154: Cl2 | AA154: UV | AB154: 100 | AC154: 0.85 | AD154: <- no data, value is assumed
V155: UF | X155: Ozone/H2O2 | Y155: UV | AA155: UV/H2O2 | AB155: 100 | AC155: 0.85
V156: Ozone | W156: MF | AA156: Tertiary Media Filtration | AB156: 100 | AC156: 0.65
V157: Ozone/BAF | W157: UF | X157: MF | AA157: None | AB157: 100
V158: UV | X158: UF | AA158: Secondary - BOD Only | AC158: 0.6
V159: Cl2 | W159: MF | X159: UV | AA159: Conventional Activated Sludge - Nutrient Removal | AC159: 0.7
V160: MBR - Nitrified Only | W160: UF | X160: Cl2 | AA160: MBR - Nitrified Only | AC160: 0.7
W161: UV
V162: MF | W162: Ozone | X162: NF
V163: UF | W163: Cl2 | X163: RO
V164: None | X164: UV
W165: None | X165: Cl2
X167: NF
X168: RO
X169: UV
X170: UV/H2O2
X171: Cl2
X173: None
V175: 10
V176: 50
V177: 150
V179: Ozone:TOC Ratio
V180: Ozone CT
V182: 0.55
V183: 0.6
V184: 0.65
V185: 0.7
V186: 0.75
V187: 0.8
V188: 0.85
V189: 0.9
V190: 0.95

Sheet Master_Lookup (hidden)
A4: PERCENT REMOVAL | E4: Values/Functions for Unit Process Effectiveness for Microbial Inactivation and Microconstituent Removals | P4: Start of Costs
A6: Treatment | B6: Operationally | D6: Microbial Inactivation - Potential Credits(1) LOG REMOVAL | H6: Microconstituent Removals(1) PERCENT REMOVAL | P6: Unit Cost | Q6: Selected Process | R6: Flow | S6: Ozone Dose | T6: Cl2 Dose | U6: H2O2 Dose | V6: UV Dose | W6: Feed UVT | X6: Subtotal Cost | Y6: Factor | Z6: Total Cost | AE6: Ozone lookup index | AG6: Cl2 lookup index | AI6: H2O2 lookup index | AK6: UV lookup index
A7: Process | B7: Impotant Parameters | D7: Bacteria | E7: Virus | F7: Cryptosporidium | G7: Giardia | H7: EEQ | I7: TOrCs | J7: NDMA | K7: Nitrate as N | L7: TOC | M7: PFOS+PFOA | N7: Notes | P7: $/mgd | R7: mgd | S7: mg/L | T7: mg/L | U7: mg/L | V7: mJ/cm2 | X7: $ | Z7: $ | AE7: Flow | AF7: Dose | AG7: Flow | AH7: Dose | AI7: Flow | AJ7: Dose | AK7: RED | AL7: Flow | AM7: UVT
A9: Secondary | R9: =$R$17 -> 
A10: Secondary - BOD Only | B10: SRT | C10: =Train!F14 -> 5 | D10: =LOOKUP(C10,Master!A100:A102,Master!D100:D102) -> 2 | E10: =Master!C16 -> 2 | F10: =Master!D16 -> 0 | G10: =Master!E16 -> 0 | H10: =LOOKUP($C$10,Master!$A$107:$A$109,Master!F107:F109) -> 0.5 | I10: =LOOKUP($C$10,Master!$A$107:$A$109,Master!D107:D109) -> 0.5 | J10: =Master!H16 -> 0 | K10: =Master!I16 -> 0 | L10: =Master!J16 -> 0.5 | M10: =Master!K16 -> 0 | P10: =CostMaster!C5 -> 0 | Q10: =IF(A10=Train!FINAL_Secondary,1,0) -> 0 | X10: =P10*R10 ->  | Y10: 1 | Z10: =IF(Y10*X10>0,Y10*X10, "Not Available") -> 
A11: Secondary - Nitrified Only | B11: SRT | C11: =Train!$F$15 -> 7 | D11: =LOOKUP(C11,Master!A101:A103,Master!D101:D103) -> 3 | E11: =Master!C17 -> 2 | F11: =Master!D17 -> 0 | G11: =Master!E17 -> 0 | H11: =LOOKUP($C$11,Master!$A$107:$A$109,Master!F107:F109) -> 0.9 | I11: =LOOKUP($C$11,Master!$A$107:$A$109,Master!D107:D109) -> 0.7 | J11: =Master!H17 -> 0 | K11: =Master!I17 -> 0 | L11: =Master!J17 -> 0.5 | M11: =Master!K17 -> 0 | P11: =CostMaster!$C$6 -> 0 | Q11: =IF(A11=Train!FINAL_Secondary,1,0) -> 1 | X11: =P11*R11 ->  | Y11: =$Y$10 -> 1
A12: Secondary - Denitrified | B12: SRT | C12: =Train!$F$15 -> 7 | D12: =LOOKUP(C12,Master!A101:A103,Master!D101:D103) -> 3 | E12: =Master!C18 -> 2 | F12: =Master!D18 -> 0 | G12: =Master!E18 -> 0 | H12: =LOOKUP($C$12,Master!$A$107:$A$109,Master!F107:F109) -> 0.9 | I12: =LOOKUP($C$12,Master!$A$107:$A$109,Master!D107:D109) -> 0.7 | J12: =Master!H18 -> 0 | K12: =Master!I18 -> 0.8 | L12: =Master!J18 -> 0.7 | M12: =Master!K18 -> 0 | P12: =CostMaster!$C$6 -> 0 | Q12: =IF(A12=Train!FINAL_Secondary,1,0) -> 0 | Y12: 1
A13: Tertiary - Nitrified Only | B13: SRT | C13: =Train!$F$15 -> 7 | D13: =Master!B20 -> 3 | E13: =Master!C20 -> 2 | F13: =Master!D20 -> 0 | G13: =Master!E20 -> 0 | H13: =Master!F20 -> 0.9 | I13: =Master!G20 -> 0.7 | J13: =Master!H20 -> 0 | K13: =Master!I20 -> 0 | L13: =Master!J20 -> 0.6 | M13: =Master!K20 -> 0 | P13: =CostMaster!$C$6 -> 0 | Q13: =IF(A13=Train!FINAL_Secondary,1,0) -> 0 | Y13: 1
A14: Tertiary - Denitrified | B14: SRT | C14: =Train!$F$15 -> 7 | D14: =Master!B22 -> 3 | E14: =Master!C22 -> 2 | F14: =Master!D22 -> 0 | G14: =Master!E22 -> 0 | H14: =Master!F22 -> 0.9 | I14: =Master!G22 -> 0.7 | J14: =Master!H22 -> 0 | K14: =Master!I22 -> 0.8 | L14: =Master!J22 -> 0.9 | M14: =Master!K22 -> 0 | P14: =CostMaster!$C$6 -> 0 | Q14: =IF(A14=Train!FINAL_Secondary,1,0) -> 0 | Y14: 1
A15: MBR - Nitrified Only | B15: SRT | C15: =Train!$F$15 -> 7 | D15: =Master!B24 -> 5 | E15: =Master!C24 -> 2 | F15: =Master!D24 -> 4 | G15: =Master!E24 -> 4 | H15: =LOOKUP($C$15,Master!$A$107:$A$109,Master!F107:F109) -> 0.9 | I15: =LOOKUP($C$15,Master!$A$107:$A$109,Master!D107:D109) -> 0.7 | J15: =Master!H24 -> 0 | K15: =Master!I24 -> 0 | L15: =Master!J24 -> 0.6 | M15: =Master!K24 -> 0 | P15: =CostMaster!$C$7 -> 0 | Q15: =IF(A15=Train!FINAL_Secondary,1,0) -> 0 | R15: =$R$17 ->  | Y15: 1
A16: MBR - Denitrified | B16: SRT | C16: =Train!$F$15 -> 7 | D16: =Master!B26 -> 5 | E16: =Master!C26 -> 2 | F16: =Master!D26 -> 4 | G16: =Master!E26 -> 4 | H16: =LOOKUP($C$16,Master!$A$107:$A$109,Master!F107:F109) -> 0.9 | I16: =LOOKUP($C$16,Master!$A$107:$A$109,Master!D107:D109) -> 0.7 | J16: =Master!H26 -> 0 | K16: =Master!I26 -> 0.8 | L16: =Master!J26 -> 0.9 | M16: =Master!K26 -> 0 | P16: =CostMaster!$C$7 -> 0 | Q16: =IF(A16=Train!FINAL_Secondary,1,0) -> 0 | R16: =$R$17 ->  | Y16: 1
A17: Advanced 1 | R17: =R28/(Train!Paste_Recovery1/100) -> 
A18: MF | B18: must pass integrity test | D18: =Master!B36 -> 3 | E18: =Master!C36 -> 0 | F18: =Master!D36 -> 3 | G18: =Master!E36 -> 3 | H18: =Master!F36 -> 0.3 | I18: =Master!G36 -> 0.1 | J18: =Master!H$36 -> 0 | K18: =Master!I36 -> 0 | L18: =Master!J$36 -> 0 | M18: =Master!K$36 -> 0 | P18: =CostMaster!C9 -> 2500000 | Q18: =IF(A18=Train!FINAL_Advance1,1,0) -> 1 | R18: =IF(Q18=1,$R$28,0) ->  | X18: =P18*R18 ->  | Y18: 1 | Z18: =IF(Y18*X18>0,Y18*X18, "Not Available") -> 
A19: None | D19: 0 | E19: 0 | F19: 0 | G19: 0 | H19: 0 | I19: 0 | J19: 0 | K19: 0 | L19: 0 | M19: 0 | P19: 0 | Q19: =IF(A19=Train!FINAL_Advance1,1,0) -> 0 | R19: 0 | X19: =P19*R19 -> 0 | Y19: 1 | Z19: 0
A20: Ozone | B20: =Train!M25 -> 1.2 | C20: =Train!N25 -> 5 | D20: =VLOOKUP($C20,Master!$M$126:$Q$131,2,TRUE) -> 3 | E20: =VLOOKUP($C20,Master!$M$126:$Q$131,3,TRUE) -> 3 | F20: =VLOOKUP($C20,Master!$M$126:$Q$131,4,TRUE) -> 0 | G20: =VLOOKUP($C20,Master!$M$126:$Q$131,5,TRUE) -> 1 | H20: =VLOOKUP($B$20,Master!$A$126:$L$130,6,TRUE) -> 0.99 | I20: =VLOOKUP($B$20,Master!$A$126:$L$130,4,TRUE) -> 0.7 | J20: Warning | K20: =Master!I52 -> 0 | L20: =Master!J$52 -> 0 | M20: =Master!K$52 -> 0 | Q20: =IF(A20=Train!FINAL_Advance1,1,0) -> 0 | R20: 0 | S20: =Train!Q25 -> FALSE | X20: =IF(ISNUMBER(INDEX(CostMaster!$L$16:$Q$20,$AE20,$AF20)),INDEX(CostMaster!$L$16:$Q$20,$AE20,$AF20),0) -> 1000000 | Y20: 1 | Z20: 1000000 | AE20: =IF(INT($R20)=0,1,IF(ISNUMBER(MATCH($R20,CostMaster!$K$16:$K$20,0)),MATCH($R20,CostMaster!$K$16:$K$20,0),IF(MATCH($R20,CostMaster!$K$16:$K$20,1)+1>COUNT(CostMaster!$K$16:$K$20),COUNT(CostMaster!$K$16:$K$20),MATCH($R20,CostMaster!$K$16:$K$20,1)+1))) -> 1 | AF20: =IF(INT($S20)=0,1,IF(ISNUMBER(MATCH($S20,CostMaster!$L$15:$Q$15,0)),MATCH($S20,CostMaster!$L$15:$Q$15,0),IF(MATCH($S20,CostMaster!$L$15:$Q$15,1)+1>COUNT(CostMaster!$L$15:$Q$15),COUNT(CostMaster!$L$15:$Q$15),MATCH($S20,CostMaster!$L$15:$Q$15,1)+1))) -> 1
A21: Tertiary Media Filtration | D21: =Master!B29 -> 0 | E21: =Master!C29 -> 0 | F21: =Master!D29 -> 0 | G21: =Master!E29 -> 0 | H21: =Master!F29 -> 0 | I21: =Master!G29 -> 0 | J21: =Master!H$29 -> 0 | K21: =Master!I29 -> 0 | L21: =Master!J$29 -> 0.2 | M21: =Master!K$29 -> 0 | P21: see cost master | Q21: =IF(A21=Train!FINAL_Advance1,1,0) -> 0 | R21: 0 | X21: =CostMaster!C$21*R21^CostMaster!E$21 -> 0 | Y21: 1 | Z21: Not Available
A22: Tertiary Media Filtration - Denitrification | D22: =Master!B31 -> 0 | E22: =Master!C31 -> 0 | F22: =Master!D31 -> 0 | G22: =Master!E31 -> 0 | H22: =Master!F31 -> 0.2 | I22: =Master!G31 -> 0.2 | J22: =Master!H$31 -> 0 | K22: =Master!I31 -> 0.8 | L22: =Master!J$31 -> 0.2 | M22: =Master!K$29 -> 0 | P22: see cost master | Q22: =IF(A22=Train!FINAL_Advance1,1,0) -> 0 | R22: 0 | X22: =CostMaster!C$21*R22^CostMaster!E$21 -> 0 | Y22: 1 | Z22: Not Available
A23: UF | B23: must pass integrity test | D23: =Master!B38 -> 4 | E23: =Master!C38 -> 0 | F23: =Master!D38 -> 4 | G23: =Master!E38 -> 4 | H23: =Master!F38 -> 0.3 | I23: =Master!G38 -> 0.3 | J23: =Master!H$38 -> 0 | K23: =Master!I38 -> 0 | L23: =Master!J$38 -> 0 | M23: =Master!K$38 -> 0 | P23: =CostMaster!C10 -> 2500000 | Q23: =IF(A23=Train!FINAL_Advance1,1,0) -> 0 | R23: 0 | X23: =P23*R23 -> 0 | Y23: 1 | Z23: Not Available
A24: BAF | D24: =(100-10^(2-Master!$B$63))/100 -> 0 | E24: =(100-10^(2-Master!$C$63))/100 -> 0 | F24: =(100-10^(2-Master!$D$63))/100 -> 0 | G24: =(100-10^(2-Master!$E$63))/100 -> 0 | H24: =Master!$F$63 -> 0.5 | I24: =Master!$G$63 -> 0.5 | J24: =Master!$H$63 -> 0.5 | K24: =Master!$I$63 -> 0 | L24: =Master!$J$63 -> 0.4 | M24: 0 | P24: see cost master | Q24: =IF(A24=Train!FINAL_Advance1,1,0) -> 0 | R24: 0 | X24: =CostMaster!C$21*R24^CostMaster!E$21 -> 0 | Y24: 1 | Z24: Not Available
A25: Cl2 | B25: CT (mg/min-L) | C25: =Train!F23 -> 30 | D25: =LOOKUP($C25,Master!$A$115:$A$122,Master!B$115:B$122) -> 4 | E25: =LOOKUP($C25,Master!$A$115:$A$122,Master!C$115:C$122) -> 4 | F25: =LOOKUP($C25,Master!$A$115:$A$122,Master!D$115:D$122) -> 0 | G25: =LOOKUP($C25,Master!$A$115:$A$122,Master!E$115:E$122) -> 0 | H25: =LOOKUP($C$25,Master!$A$111:$A$118,Master!$G$111:$G$118) -> 0 | I25: =LOOKUP($C$25,Master!$A$111:$A$118,Master!$F$111:$F$118) -> 0 | J25: =Master!H48 -> 0 | K25: =Master!I48 -> 0 | L25: =Master!J48 -> 0 | M25: =Master!K48 -> 0 | P25: =M25*O25 -> 0 | Q25: =IF(A25=Train!FINAL_Advance1,1,0) -> 0 | R25: =IF(Q25=1,$R$40,0) -> 0 | T25: =Train!Q41 -> 4.833333333 | X25: =IF(ISNUMBER(INDEX(CostMaster!$L$4:$P$8,$AG25,$AH25)), INDEX(CostMaster!$L$4:$P$8,$AG25,$AH25),0) -> 54000 | Y25: 1 | Z25: =IF(Y25*X25>0,Y25*X25, "Not Available") -> 54000 | AG25: =IF(INT($R25)=0,1,IF(ISNUMBER(MATCH($R25,CostMaster!$K$4:$K$8,0)),MATCH($R25,CostMaster!$K$4:$K$8,0),IF(MATCH($R25,CostMaster!$K$4:$K$8,1)+1>COUNT(CostMaster!$K$4:$K$8),COUNT(CostMaster!$K$4:$K$8),MATCH($R25,CostMaster!$K$4:$K$8,1)+1))) -> 1 | AH25: =IF(INT($T25)=0,1,IF(ISNUMBER(MATCH($T25,CostMaster!$L$3:$P$3,0)),MATCH($T25,CostMaster!$L$3:$P$3,0),IF(MATCH($T25,CostMaster!$L$3:$P$3,1)+1>COUNT(CostMaster!$L$3:$P$3),COUNT(CostMaster!$L$3:$P$3),MATCH($T25,CostMaster!$L$3:$P$3,1)+1))) -> 2
A26: UV | B26: UV Dose (mJ/cm2) | C26: =Train!F27 -> 200 | D26: =LOOKUP($C26,Master!$A$145:$A$155,Master!C$145:C$155) -> 6 | E26: =LOOKUP($C26,Master!$A$145:$A$155,Master!D$145:D$155) -> 4 | F26: =LOOKUP($C26,Master!$A$145:$A$155,Master!F$145:F$155) -> 6 | G26: =LOOKUP($C26,Master!$A$145:$A$155,Master!E$145:E$155) -> 6 | H26: =LOOKUP(C26,Master!A$162:A$169,Master!C$162:C$169) -> 0.2 | I26: =LOOKUP(C26,Master!A$162:A$169,Master!F$162:F$169) -> 0.2 | J26: =LOOKUP($C26,Master!$A$145:$A$155,Master!G$145:G$155) -> 0.6 | K26: =LOOKUP($C26,Master!$A$145:$A$155,Master!H$145:H$155) -> 0 | L26: =VLOOKUP(C26,Master!$A$162:$M$169,10,TRUE) -> 0.1 | M26: 0 | Q26: =IF(A26=Train!FINAL_Advance1,1,0) -> 0 | R26: =IF(Q26=1,$R$40,0) -> 0 | V26: =C26 -> 200 | W26: =Train!I33 -> 0 | X26: =IF(ISNUMBER(INDEX(CostMaster!$M$40:$T$84,$AK26+$AL26-1,$AM26)),INDEX(CostMaster!$M$40:$T$84,$AK26+$AL26-1,$AM26),0) -> 2415000 | Y26: 1 | Z26: =IF(Y26*X26>0,Y26*X26, "Not Available") -> 2415000 | AK26: =IF(INT($V26)=0,1,IF(ISNUMBER(MATCH($V26,CostMaster!$K$40:$K$84,0)),MATCH($V26,CostMaster!$K$40:$K$84,0),IF(MATCH($V26,CostMaster!$K$40:$K$84,1)+1>COUNT(CostMaster!$K$40:$K$84),COUNT(CostMaster!$K$40:$K$84),MATCH($V26,CostMaster!$K$40:$K$84,1)+1))) -> 21 | AL26: =IF(INT($R26)=0,1,IF(ISNUMBER(MATCH($R26,CostMaster!$L$40:$L$44,0)),MATCH($R26,CostMaster!$L$40:$L$44,0),IF(MATCH($R26,CostMaster!$L$40:$L$44,1)+1>COUNT(CostMaster!$L$40:$L$44),COUNT(CostMaster!$L$40:$L$44),MATCH($R26,CostMaster!$L$40:$L$44,1)+1))) -> 1 | AM26: =IF($W26=0,1,IF(ISNUMBER(MATCH($W26,CostMaster!$M$39:$T$39,0)),MATCH($W26,CostMaster!$M$39:$T$39,0),IF(MATCH($W26,CostMaster!$M$39:$T$39,1)+1>COUNT(CostMaster!$M$39:$T$39),COUNT(CostMaster!$M$39:$T$39),MATCH($W26,CostMaster!$M$39:$T$39,1)+1))) -> 1
A27: Ozone/BAF | D27: =D$20+D$24 -> 3 | E27: =E$20+E$24 -> 3 | F27: 0 | G27: 1 | H27: =(1-(1-H$33)*(1-H$38)) -> 0.995 | I27: =(1-(1-I$20)*(1-I$24)) -> 0.85 | J27: =J$24 -> 0.5 | K27: =(1-(1-K$20)*(1-K$24)) -> 0 | L27: =(1-(1-L$20)*(1-L$24)) -> 0.4 | M27: =(1-(1-M$20)*(1-M$24)) -> 0 | Q27: =IF(A27=Train!FINAL_Advance1,1,0) -> 0 | R27: =IF(Q27=1,$R$28,0) -> 0 | X27: =IF(ISNUMBER(INDEX(CostMaster!$L$16:$Q$20,$AE27,$AF27)),INDEX(CostMaster!$L$16:$Q$20,$AE27,$AF27),0)+CostMaster!C$21*R27^CostMaster!E$21 -> 1000000 | Y27: 1 | Z27: 1000000 | AE27: =IF(INT($R27)=0,1,IF(ISNUMBER(MATCH($R27,CostMaster!$K$16:$K$20,0)),MATCH($R27,CostMaster!$K$16:$K$20,0),IF(MATCH($R27,CostMaster!$K$16:$K$20,1)+1>COUNT(CostMaster!$K$16:$K$20),COUNT(CostMaster!$K$16:$K$20),MATCH($R27,CostMaster!$K$16:$K$20,1)+1))) -> 1 | AF27: =IF(INT($S27)=0,1,IF(ISNUMBER(MATCH($S27,CostMaster!$L$15:$Q$15,0)),MATCH($S27,CostMaster!$L$15:$Q$15,0),IF(MATCH($S27,CostMaster!$L$15:$Q$15,1)+1>COUNT(CostMaster!$L$15:$Q$15),COUNT(CostMaster!$L$15:$Q$15),MATCH($S27,CostMaster!$L$15:$Q$15,1)+1))) -> 1
A28: Advanced 2 | R28: =R40/(Train!Paste_Recovery2/100) -> 
A29: Cl2 | B29: CT (mg/min-L) | C29: =Train!F41 -> 30 | D29: =LOOKUP($C29,Master!$A$115:$A$122,Master!B$115:B$122) -> 4 | E29: =LOOKUP($C29,Master!$A$115:$A$122,Master!C$115:C$122) -> 4 | F29: =LOOKUP($C29,Master!$A$115:$A$122,Master!D$115:D$122) -> 0 | G29: =LOOKUP($C29,Master!$A$115:$A$122,Master!E$115:E$122) -> 0 | H29: =LOOKUP($C$25,Master!$A$111:$A$118,Master!$G$111:$G$118) -> 0 | I29: =LOOKUP($C$25,Master!$A$111:$A$118,Master!$F$111:$F$118) -> 0 | J29: =Master!H52 -> Formation | K29: =Master!I52 -> 0 | L29: =Master!J52 -> 0 | M29: =Master!K52 -> 0 | P29: =M29*O29 -> 0 | Q29: =IF(A29=Train!FINAL_Advance2,1,0) -> 0 | R29: =IF(Q29=1,$R$40,0) -> 0 | T29: =Train!Q41 -> 4.833333333 | X29: =IF(ISNUMBER(INDEX(CostMaster!$L$4:$P$8,$AG29,$AH29)), INDEX(CostMaster!$L$4:$P$8,$AG29,$AH29),0) -> 54000 | Y29: 1 | Z29: 54000 | AG29: =IF(INT($R29)=0,1,IF(ISNUMBER(MATCH($R29,CostMaster!$K$4:$K$8,0)),MATCH($R29,CostMaster!$K$4:$K$8,0),IF(MATCH($R29,CostMaster!$K$4:$K$8,1)+1>COUNT(CostMaster!$K$4:$K$8),COUNT(CostMaster!$K$4:$K$8),MATCH($R29,CostMaster!$K$4:$K$8,1)+1))) -> 1 | AH29: =IF(INT($T29)=0,1,IF(ISNUMBER(MATCH($T29,CostMaster!$L$3:$P$3,0)),MATCH($T29,CostMaster!$L$3:$P$3,0),IF(MATCH($T29,CostMaster!$L$3:$P$3,1)+1>COUNT(CostMaster!$L$3:$P$3),COUNT(CostMaster!$L$3:$P$3),MATCH($T29,CostMaster!$L$3:$P$3,1)+1))) -> 2
A30: MF | B30: must pass integrity test | D30: =Master!B$36 -> 3 | E30: =Master!C$36 -> 0 | F30: =Master!D$36 -> 3 | G30: =Master!E$36 -> 3 | H30: =Master!F$36 -> 0.3 | I30: =Master!G$36 -> 0.1 | J30: =Master!H$36 -> 0 | K30: =Master!$I$36 -> 0 | L30: =Master!J$36 -> 0 | M30: 0 | P30: =CostMaster!C9 -> 2500000 | Q30: =IF(A30=Train!FINAL_Advance2,1,0) -> 0 | R30: =IF(Q30=1,$R$40,0) -> 0 | X30: =P30*R30 -> 0 | Y30: 1 | Z30: Not Available
A31: NF | D31: =IF(Input!$T$3=TRUE,Master!B40,Master!B41) -> 0 | E31: =IF(Input!$T$3=TRUE,Master!C40,Master!C41) -> 0 | F31: =IF(Input!$T$3=TRUE,Master!D40,Master!D41) -> 0 | G31: =IF(Input!$T$3=TRUE,Master!E40,Master!E41) -> 0 | H31: =Master!F40 -> 0.75 | I31: =Master!G$40 -> 0.75 | J31: =Master!H40 -> 0.05 | K31: =Master!$I$40 -> 0.25 | L31: =Master!J$40 -> 0.93 | M31: =Master!K$40 -> 0.9 | P31: =CostMaster!C11 -> 3750000 | Q31: =IF(A31=Train!FINAL_Advance2,1,0) -> 0 | R31: 0 | X31: =P31*R31 -> 0 | Y31: 1 | Z31: Not Available
A32: None | D32: 0 | E32: 0 | F32: 0 | G32: 0 | H32: 0 | I32: 0 | J32: 0 | K32: 0 | L32: 0 | M32: 0 | P32: 0 | Q32: =IF(A32=Train!FINAL_Advance2,1,0) -> 0 | R32: 0 | X32: =P32*R32 -> 0 | Y32: 1 | Z32: 0
A33: Ozone | B33: =Train!M43 -> 1 | C33: =Train!N43 -> 0 | D33: =VLOOKUP($C33,Master!$M$126:$Q$131,2,TRUE) -> 0 | E33: =VLOOKUP($C33,Master!$M$126:$Q$131,3,TRUE) -> 0 | F33: =VLOOKUP($C33,Master!$M$126:$Q$131,4,TRUE) -> 0 | G33: =VLOOKUP($C33,Master!$M$126:$Q$131,5,TRUE) -> 0 | H33: =VLOOKUP($B$20,Master!$A$126:$L$130,6,TRUE) -> 0.99 | I33: =VLOOKUP($B$20,Master!$A$126:$L$130,4,TRUE) -> 0.7 | J33: Warning | K33: =Master!$I$52 -> 0 | L33: =Master!J$52 -> 0 | M33: =Master!K$52 -> 0 | Q33: =IF(A33=Train!FINAL_Advance2,1,0) -> 0 | R33: 0 | S33: =Train!Q43 -> FALSE | X33: =IF(ISNUMBER(INDEX(CostMaster!$L$16:$Q$20,$AE33,$AF33)),INDEX(CostMaster!$L$16:$Q$20,$AE33,$AF33),0) -> 1000000 | Y33: 1 | Z33: 1000000 | AE33: =IF(INT($R33)=0,1,IF(ISNUMBER(MATCH($R33,CostMaster!$K$16:$K$20,0)),MATCH($R33,CostMaster!$K$16:$K$20,0),IF(MATCH($R33,CostMaster!$K$16:$K$20,1)+1>COUNT(CostMaster!$K$16:$K$20),COUNT(CostMaster!$K$16:$K$20),MATCH($R33,CostMaster!$K$16:$K$20,1)+1))) -> 1 | AF33: =IF(INT($S33)=0,1,IF(ISNUMBER(MATCH($S33,CostMaster!$L$15:$Q$15,0)),MATCH($S33,CostMaster!$L$15:$Q$15,0),IF(MATCH($S33,CostMaster!$L$15:$Q$15,1)+1>COUNT(CostMaster!$L$15:$Q$15),COUNT(CostMaster!$L$15:$Q$15),MATCH($S33,CostMaster!$L$15:$Q$15,1)+1))) -> 1
A34: RO | D34: =IF(Input!$T$3=TRUE,Master!B42,Master!B41) -> 2 | E34: =IF(Input!$T$3=TRUE,Master!C42,Master!C41) -> 2 | F34: =IF(Input!$T$3=TRUE,Master!D42,Master!D41) -> 2 | G34: =IF(Input!$T$3=TRUE,Master!E42,Master!E41) -> 2 | H34: =Master!F42 -> 0.95 | I34: =Master!G42 -> 0.95 | J34: =Master!H42 -> 0.5 | K34: =Master!$I$42 -> 0.9 | L34: =Master!$J$42 -> 0.95 | M34: =Master!K$42 -> 0.99 | P34: =CostMaster!C12 -> 3750000 | Q34: =IF(A34=Train!FINAL_Advance2,1,0) -> 1 | X34: =P34*R34 ->  | Y34: 1
A35: UF | B35: must pass integrity test | D35: =Master!B$38 -> 4 | E35: =Master!C$38 -> 0 | F35: =Master!D$38 -> 4 | G35: =Master!E$38 -> 4 | H35: =Master!F$38 -> 0.3 | I35: =Master!G$38 -> 0.3 | J35: =Master!H$38 -> 0 | K35: =Master!I$38 -> 0 | L35: =Master!J$38 -> 0 | M35: 0 | P35: =CostMaster!C10 -> 2500000 | Q35: =IF(A35=Train!FINAL_Advance2,1,0) -> 0 | R35: 0 | X35: =P35*R35 -> 0 | Y35: 1 | Z35: Not Available
A36: UV | B36: UV Dose (mJ/cm2) | C36: =Train!F45 -> 200 | D36: =LOOKUP($C36,Master!$A$145:$A$155,Master!C$145:C$155) -> 6 | E36: =LOOKUP($C36,Master!$A$145:$A$155,Master!D$145:D$155) -> 4 | F36: =LOOKUP($C36,Master!$A$145:$A$155,Master!F$145:F$155) -> 6 | G36: =LOOKUP($C36,Master!$A$145:$A$155,Master!E$145:E$155) -> 6 | H36: =LOOKUP(C36,Master!A$162:A$169,Master!C$162:C$169) -> 0.2 | I36: =LOOKUP(C36,Master!A$162:A$169,Master!F$162:F$169) -> 0.2 | J36: =LOOKUP($C36,Master!$A$145:$A$155,Master!G$145:G$155) -> 0.6 | K36: =LOOKUP($C36,Master!$A$145:$A$155,Master!H$145:H$155) -> 0 | L36: =VLOOKUP(C36,Master!$A$162:$M$169,10,TRUE) -> 0.1 | M36: 0 | Q36: =IF(A36=Train!FINAL_Advance2,1,0) -> 0 | R36: 0 | V36: =Train!F45 -> 200 | W36: =Train!I45 -> 0.7 | X36: =IF(ISNUMBER(INDEX(CostMaster!$M$40:$T$84,$AK36+$AL36-1,$AM36)),INDEX(CostMaster!$M$40:$T$84,$AK36+$AL36-1,$AM36),0) -> 1510000 | Y36: 1 | Z36: 1510000 | AK36: =IF(INT($V36)=0,1,IF(ISNUMBER(MATCH($V36,CostMaster!$K$40:$K$84,0)),MATCH($V36,CostMaster!$K$40:$K$84,0),IF(MATCH($V36,CostMaster!$K$40:$K$84,1)+1>COUNT(CostMaster!$K$40:$K$84),COUNT(CostMaster!$K$40:$K$84),MATCH($V36,CostMaster!$K$40:$K$84,1)+1))) -> 21 | AL36: =IF(INT($R36)=0,1,IF(ISNUMBER(MATCH($R36,CostMaster!$L$40:$L$44,0)),MATCH($R36,CostMaster!$L$40:$L$44,0),IF(MATCH($R36,CostMaster!$L$40:$L$44,1)+1>COUNT(CostMaster!$L$40:$L$44),COUNT(CostMaster!$L$40:$L$44),MATCH($R36,CostMaster!$L$40:$L$44,1)+1))) -> 1 | AM36: =IF($W36=0,1,IF(ISNUMBER(MATCH($W36,CostMaster!$M$39:$T$39,0)),MATCH($W36,CostMaster!$M$39:$T$39,0),IF(MATCH($W36,CostMaster!$M$39:$T$39,1)+1>COUNT(CostMaster!$M$39:$T$39),COUNT(CostMaster!$M$39:$T$39),MATCH($W36,CostMaster!$M$39:$T$39,1)+1))) -> 4
A37: UV/H2O2 | B37: UV Dose (mJ/cm2) | C37: =Train!F45 -> 200 | D37: =LOOKUP($C37,Master!$A$145:$A$155,Master!C$145:C$155) -> 6 | E37: =LOOKUP($C37,Master!$A$145:$A$155,Master!D$145:D$155) -> 4 | F37: =LOOKUP($C37,Master!$A$145:$A$155,Master!F$145:F$155) -> 6 | G37: =LOOKUP($C37,Master!$A$145:$A$155,Master!E$145:E$155) -> 6 | H37: =LOOKUP(C37,Master!A$162:A$169,Master!D$162:D$169) -> 0.6 | I37: =LOOKUP(C37,Master!A$162:A$169,Master!G$162:G$169) -> 0.5 | J37: =LOOKUP($C37,Master!$A$145:$A$155,Master!G$145:G$155) -> 0.6 | K37: =LOOKUP($C37,Master!$A$145:$A$155,Master!H$145:H$155) -> 0 | L37: =VLOOKUP(C37,Master!$A$162:$M$169,13,TRUE) -> 0.1 | M37: 0 | Q37: =IF(A37=Train!FINAL_Advance2,1,0) -> 0 | R37: 0 | U37: =Train!F47 -> 3 | V37: =Train!F45 -> 200 | W37: =Train!I45 -> 0.7 | X37: =IF(ISNUMBER(INDEX(CostMaster!$M$40:$T$84,$AK37+$AL37-1,$AM37)+INDEX(CostMaster!$L$28:$O$32,$AI37,$AJ37)),INDEX(CostMaster!$M$40:$T$84,$AK37+$AL37-1,$AM37)+INDEX(CostMaster!$L$28:$O$32,$AI37,$AJ37),0) -> 2244000 | Y37: 1 | Z37: 2244000 | AI37: =IF(INT($R37)=0,1,IF(ISNUMBER(MATCH($R37,CostMaster!$K$28:$K$32,0)),MATCH($R37,CostMaster!$K$28:$K$32,0),IF(MATCH($R37,CostMaster!$K$28:$K$32,1)+1>COUNT(CostMaster!$K$28:$K$32),COUNT(CostMaster!$K$28:$K$32),MATCH($R37,CostMaster!$K$28:$K$32,1)+1))) -> 1 | AJ37: =IF(INT($U37)<3,1,IF(ISNUMBER(MATCH($U37,CostMaster!$L$27:$O$27,0)),MATCH($U37,CostMaster!$L$27:$O$27,0),IF(MATCH($U37,CostMaster!$L$27:$O$27,1)+1>COUNT(CostMaster!$L$27:$O$27),COUNT(CostMaster!$L$27:$O$27),MATCH($U37,CostMaster!$L$27:$O$27,1)+1))) -> 1 | AK37: =IF(INT($V37)=0,1,IF(ISNUMBER(MATCH($V37,CostMaster!$K$40:$K$84,0)),MATCH($V37,CostMaster!$K$40:$K$84,0),IF(MATCH($V37,CostMaster!$K$40:$K$84,1)+1>COUNT(CostMaster!$K$40:$K$84),COUNT(CostMaster!$K$40:$K$84),MATCH($V37,CostMaster!$K$40:$K$84,1)+1))) -> 21 | AL37: =IF(INT($R37)=0,1,IF(ISNUMBER(MATCH($R37,CostMaster!$L$40:$L$44,0)),MATCH($R37,CostMaster!$L$40:$L$44,0),IF(MATCH($R37,CostMaster!$L$40:$L$44,1)+1>COUNT(CostMaster!$L$40:$L$44),COUNT(CostMaster!$L$40:$L$44),MATCH($R37,CostMaster!$L$40:$L$44,1)+1))) -> 1 | AM37: =IF($W37=0,1,IF(ISNUMBER(MATCH($W37,CostMaster!$M$39:$T$39,0)),MATCH($W37,CostMaster!$M$39:$T$39,0),IF(MATCH($W37,CostMaster!$M$39:$T$39,1)+1>COUNT(CostMaster!$M$39:$T$39),COUNT(CostMaster!$M$39:$T$39),MATCH($W37,CostMaster!$M$39:$T$39,1)+1))) -> 4
A38: BAF | D38: =(100-10^(2-Master!$B$63))/100 -> 0 | E38: =(100-10^(2-Master!$C$63))/100 -> 0 | F38: =(100-10^(2-Master!$D$63))/100 -> 0 | G38: =(100-10^(2-Master!$E$63))/100 -> 0 | H38: =Master!$F$63 -> 0.5 | I38: =Master!$G$63 -> 0.5 | J38: =Master!$H$63 -> 0.5 | K38: =Master!$I$63 -> 0 | L38: =Master!$J$63 -> 0.4 | M38: 0 | P38: see cost master | Q38: =IF(A38=Train!FINAL_Advance2,1,0) -> 0 | R38: 0 | X38: =CostMaster!C$21*R38^CostMaster!E$21 -> 0 | Y38: 1 | Z38: Not Available
A39: Ozone/BAF | D39: =D$33+D$38 -> 0 | E39: =E$33+E$38 -> 0 | F39: =F$33+F$38 -> 0 | G39: =G$33+G$38 -> 0 | H39: =(1-(1-H$33)*(1-H$38)) -> 0.995 | I39: =(1-(1-I$33)*(1-I$38)) -> 0.85 | J39: =J$38 -> 0.5 | K39: =(1-(1-K$33)*(1-K$38)) -> 0 | L39: =(1-(1-L$33)*(1-L$38)) -> 0.4 | M39: =(1-(1-M$33)*(1-M$38)) -> 0 | Q39: =IF(A39=Train!FINAL_Advance2,1,0) -> 0 | R39: 0 | X39: =IF(ISNUMBER(INDEX(CostMaster!$L$16:$Q$20,$AE39,$AF39)),INDEX(CostMaster!$L$16:$Q$20,$AE39,$AF39),0)+CostMaster!C$21*R39^CostMaster!E$21 -> 1000000 | Y39: 1 | Z39: =IF(Y39*X39>0,Y39*X39, "Not Available") -> 1000000 | AE39: =IF(INT($R39)=0,1,IF(ISNUMBER(MATCH($R39,CostMaster!$K$16:$K$20,0)),MATCH($R39,CostMaster!$K$16:$K$20,0),IF(MATCH($R39,CostMaster!$K$16:$K$20,1)+1>COUNT(CostMaster!$K$16:$K$20),COUNT(CostMaster!$K$16:$K$20),MATCH($R39,CostMaster!$K$16:$K$20,1)+1))) -> 1 | AF39: =IF(INT($S39)=0,1,IF(ISNUMBER(MATCH($S39,CostMaster!$L$15:$Q$15,0)),MATCH($S39,CostMaster!$L$15:$Q$15,0),IF(MATCH($S39,CostMaster!$L$15:$Q$15,1)+1>COUNT(CostMaster!$L$15:$Q$15),COUNT(CostMaster!$L$15:$Q$15),MATCH($S39,CostMaster!$L$15:$Q$15,1)+1))) -> 1
A40: Advanced 3 | R40: =$R$52/(Train!Paste_Recovery3/100) -> 
A41: BAF | D41: =(100-10^(2-Master!$B$63))/100 -> 0 | E41: =(100-10^(2-Master!$C$63))/100 -> 0 | F41: =(100-10^(2-Master!$D$63))/100 -> 0 | G41: =(100-10^(2-Master!$E$63))/100 -> 0 | H41: =Master!$F$63 -> 0.5 | I41: =Master!$G$63 -> 0.5 | J41: =Master!$H$63 -> 0.5 | K41: =Master!$I$63 -> 0 | L41: =Master!$J$63 -> 0.4 | M41: 0 | Q41: =IF(A41=Train!FINAL_Advance3,1,0) -> 0 | R41: =IF(Q41=1,$R$52,0) -> 0 | X41: =CostMaster!C$21*R41^CostMaster!E$21 -> 0 | Y41: 1 | Z41: Not Available
A42: Cl2 | B42: CT (mg/min-L) | C42: =Train!F64 -> 40 | D42: =LOOKUP($C42,Master!$A$115:$A$122,Master!B$115:B$122) -> 4 | E42: =LOOKUP($C42,Master!$A$115:$A$122,Master!C$115:C$122) -> 4 | F42: =LOOKUP($C42,Master!$A$115:$A$122,Master!D$115:D$122) -> 0 | G42: =LOOKUP($C42,Master!$A$115:$A$122,Master!E$115:E$122) -> 0 | H42: =LOOKUP($C$25,Master!$A$111:$A$118,Master!$G$111:$G$118) -> 0 | I42: =LOOKUP($C$25,Master!$A$111:$A$118,Master!$F$111:$F$118) -> 0 | J42: =Master!H65 -> 0 | K42: =Master!I65 -> 0 | L42: =Master!J65 -> 0 | M42: =Master!K65 -> 0 | P42: =M42*O42 -> 0 | Q42: =IF(A42=Train!FINAL_Advance3,1,0) -> 0 | R42: =IF(Q42=1,$R$52,0) -> 0 | T42: =Train!Q64 -> 4.944444444 | X42: =IF(ISNUMBER(INDEX(CostMaster!$L$4:$P$8,$AG42,$AH42)),INDEX(CostMaster!$L$4:$P$8,$AG42,$AH42),0) -> 54000 | Y42: 1 | Z42: 54000 | AG42: =IF(INT($R42)=0,1,IF(ISNUMBER(MATCH($R42,CostMaster!$K$4:$K$8,0)),MATCH($R42,CostMaster!$K$4:$K$8,0),IF(MATCH($R42,CostMaster!$K$4:$K$8,1)+1>COUNT(CostMaster!$K$4:$K$8),COUNT(CostMaster!$K$4:$K$8),MATCH($R42,CostMaster!$K$4:$K$8,1)+1))) -> 1 | AH42: =IF(INT($T42)=0,1,IF(ISNUMBER(MATCH($T42,CostMaster!$L$3:$P$3,0)),MATCH($T42,CostMaster!$L$3:$P$3,0),IF(MATCH($T42,CostMaster!$L$3:$P$3,1)+1>COUNT(CostMaster!$L$3:$P$3),COUNT(CostMaster!$L$3:$P$3),MATCH($T42,CostMaster!$L$3:$P$3,1)+1))) -> 2
A43: NF | D43: =IF(Input!$T$3=TRUE,Master!B40,Master!B41) -> 0 | E43: =IF(Input!$T$3=TRUE,Master!C40,Master!C41) -> 0 | F43: =IF(Input!$T$3=TRUE,Master!D40,Master!D41) -> 0 | G43: =IF(Input!$T$3=TRUE,Master!E40,Master!E41) -> 0 | H43: =Master!F40 -> 0.75 | I43: =Master!G40 -> 0.75 | J43: =Master!H40 -> 0.05 | K43: =Master!$I$40 -> 0.25 | L43: =Master!J$40 -> 0.93 | M43: =Master!K$40 -> 0.9 | P43: =CostMaster!C11 -> 3750000 | Q43: =IF(A43=Train!FINAL_Advance3,1,0) -> 0 | R43: =IF(Q43=1,$R$52,0) -> 0 | X43: =P43*R43 -> 0 | Y43: 1 | Z43: Not Available
A44: None | D44: 0 | E44: 0 | F44: 0 | G44: 0 | H44: 0 | I44: 0 | J44: 0 | K44: 0 | L44: 0 | M44: 0 | P44: 0 | Q44: =IF(A44=Train!FINAL_Advance3,1,0) -> 0 | R44: =IF(Q44=1,$R$52,0) -> 0 | X44: =P44*R44 -> 0 | Y44: 1 | Z44: 0
A45: Ozone | B45: =Train!M57 -> 0 | C45: =Train!N57 -> 0 | D45: =VLOOKUP($C45,Master!$M$126:$Q$131,2,TRUE) -> 0 | E45: =VLOOKUP($C45,Master!$M$126:$Q$131,3,TRUE) -> 0 | F45: =VLOOKUP($C45,Master!$M$126:$Q$131,4,TRUE) -> 0 | G45: =VLOOKUP($C45,Master!$M$126:$Q$131,5,TRUE) -> 0 | H45: =VLOOKUP($B$20,Master!$A$126:$L$130,6,TRUE) -> 0.99 | I45: =VLOOKUP($B$20,Master!$A$126:$L$130,4,TRUE) -> 0.7 | J45: Warning | K45: =Master!$I$52 -> 0 | L45: =Master!J$52 -> 0 | M45: =Master!K$52 -> 0 | Q45: =IF(A45=Train!FINAL_Advance3,1,0) -> 0 | R45: =IF(Q45=1,$R$40,0) -> 0 | S45: =Train!Q66 -> FALSE | X45: =IF(ISNUMBER(INDEX(CostMaster!$L$16:$Q$20,$AE45,$AF45)),INDEX(CostMaster!$L$16:$Q$20,$AE45,$AF45),0) -> 1000000 | Y45: 1 | Z45: =IF(Y45*X45>0,Y45*X45, "Not Available") -> 1000000 | AE45: =IF(INT($R45)=0,1,IF(ISNUMBER(MATCH($R45,CostMaster!$K$16:$K$20,0)),MATCH($R45,CostMaster!$K$16:$K$20,0),IF(MATCH($R45,CostMaster!$K$16:$K$20,1)+1>COUNT(CostMaster!$K$16:$K$20),COUNT(CostMaster!$K$16:$K$20),MATCH($R45,CostMaster!$K$16:$K$20,1)+1))) -> 1 | AF45: =IF(INT($S45)=0,1,IF(ISNUMBER(MATCH($S45,CostMaster!$L$15:$Q$15,0)),MATCH($S45,CostMaster!$L$15:$Q$15,0),IF(MATCH($S45,CostMaster!$L$15:$Q$15,1)+1>COUNT(CostMaster!$L$15:$Q$15),COUNT(CostMaster!$L$15:$Q$15),MATCH($S45,CostMaster!$L$15:$Q$15,1)+1))) -> 1
A46: Ozone/H2O2 | B46: =Train!M66 -> 1 | C46: =Train!N66 -> 0 | D46: =VLOOKUP($C46,Master!$M$126:$Q$131,2,TRUE) -> 0 | E46: =VLOOKUP($C46,Master!$M$126:$Q$131,3,TRUE) -> 0 | F46: =VLOOKUP($C46,Master!$M$126:$Q$131,4,TRUE) -> 0 | G46: =VLOOKUP($C46,Master!$M$126:$Q$131,5,TRUE) -> 0 | H46: =VLOOKUP($B$20,Master!$A$126:$L$130,6,TRUE) -> 0.99 | I46: =VLOOKUP($B$20,Master!$A$126:$L$130,4,TRUE) -> 0.7 | J46: Warning | K46: =Master!$I$52 -> 0 | L46: =Master!J$52 -> 0 | M46: =Master!K$52 -> 0 | Q46: =IF(A46=Train!FINAL_Advance3,1,0) -> 0 | R46: =IF(Q46=1,$R$52,0) -> 0 | S46: =Train!Q66 -> FALSE | U46: =Train!$F$70 -> 3 | X46: =IF(ISNUMBER(INDEX(CostMaster!$L$16:$Q$20,$AE46,$AF46)+INDEX(CostMaster!$L$28:$O$32,$AI46,$AJ46)),INDEX(CostMaster!$L$16:$Q$20,$AE46,$AF46)+INDEX(CostMaster!$L$28:$O$32,$AI46,$AJ46),0) -> 1734000 | Y46: 1 | Z46: 1734000 | AE46: =IF(INT($R46)=0,1,IF(ISNUMBER(MATCH($R46,CostMaster!$K$16:$K$20,0)),MATCH($R46,CostMaster!$K$16:$K$20,0),IF(MATCH($R46,CostMaster!$K$16:$K$20,1)+1>COUNT(CostMaster!$K$16:$K$20),COUNT(CostMaster!$K$16:$K$20),MATCH($R46,CostMaster!$K$16:$K$20,1)+1))) -> 1 | AF46: =IF(INT($S46)=0,1,IF(ISNUMBER(MATCH($S46,CostMaster!$L$15:$Q$15,0)),MATCH($S46,CostMaster!$L$15:$Q$15,0),IF(MATCH($S46,CostMaster!$L$15:$Q$15,1)+1>COUNT(CostMaster!$L$15:$Q$15),COUNT(CostMaster!$L$15:$Q$15),MATCH($S46,CostMaster!$L$15:$Q$15,1)+1))) -> 1 | AI46: =IF(INT($R46)=0,1,IF(ISNUMBER(MATCH($R46,CostMaster!$K$28:$K$32,0)),MATCH($R46,CostMaster!$K$28:$K$32,0),IF(MATCH($R46,CostMaster!$K$28:$K$32,1)+1>COUNT(CostMaster!$K$28:$K$32),COUNT(CostMaster!$K$28:$K$32),MATCH($R46,CostMaster!$K$28:$K$32,1)+1))) -> 1 | AJ46: =IF(INT($U46)<3,1,IF(ISNUMBER(MATCH($U46,CostMaster!$L$27:$O$27,0)),MATCH($U46,CostMaster!$L$27:$O$27,0),IF(MATCH($U46,CostMaster!$L$27:$O$27,1)+1>COUNT(CostMaster!$L$27:$O$27),COUNT(CostMaster!$L$27:$O$27),MATCH($U46,CostMaster!$L$27:$O$27,1)+1))) -> 1
A47: RO | D47: =IF(Input!$T$3=TRUE,Master!B42,Master!B41) -> 2 | E47: =IF(Input!$T$3=TRUE,Master!C42,Master!C41) -> 2 | F47: =IF(Input!$T$3=TRUE,Master!D42,Master!D41) -> 2 | G47: =IF(Input!$T$3=TRUE,Master!E42,Master!E41) -> 2 | H47: =Master!F42 -> 0.95 | I47: =Master!G42 -> 0.95 | J47: =Master!H$42 -> 0.5 | K47: =Master!$I$42 -> 0.9 | L47: =Master!$J$42 -> 0.95 | M47: =Master!K$42 -> 0.99 | P47: =CostMaster!C12 -> 3750000 | Q47: =IF(A47=Train!FINAL_Advance3,1,0) -> 0 | R47: 0 | X47: =P47*R47 -> 0 | Y47: 1 | Z47: Not Available
A48: UV | B48: UV Dose (mJ/cm2) | C48: =Train!F68 -> 900 | D48: =LOOKUP($C48,Master!$A$145:$A$155,Master!C$145:C$155) -> 6 | E48: =LOOKUP($C48,Master!$A$145:$A$155,Master!D$145:D$155) -> 6 | F48: =LOOKUP($C48,Master!$A$145:$A$155,Master!F$145:F$155) -> 6 | G48: =LOOKUP($C48,Master!$A$145:$A$155,Master!E$145:E$155) -> 6 | H48: =LOOKUP(C48,Master!A162:A169,Master!C162:C169) -> 0.25 | I48: =LOOKUP(C48,Master!A162:A169,Master!F162:F169) -> 0.25 | J48: =LOOKUP($C48,Master!$A$145:$A$155,Master!G$145:G$155) -> 0.9 | K48: =LOOKUP($C48,Master!$A$145:$A$155,Master!H$145:H$155) -> 0 | L48: =VLOOKUP(C48,Master!$A$162:$M$169,10,TRUE) -> 0.1 | M48: 0 | Q48: =IF(A48=Train!FINAL_Advance3,1,0) -> 0 | R48: 0 | V48: =Train!$F$68 -> 900 | W48: =Train!$I$68 -> 0.98 | X48: =IF(ISNUMBER(INDEX(CostMaster!$M$40:$T$84,$AK48+$AL48-1,$AM48)),INDEX(CostMaster!$M$40:$T$84,$AK48+$AL48-1,$AM48),0) -> 2220000 | Y48: 1 | Z48: 2220000 | AK48: =IF(INT($V48)=0,1,IF(ISNUMBER(MATCH($V48,CostMaster!$K$40:$K$84,0)),MATCH($V48,CostMaster!$K$40:$K$84,0),IF(MATCH($V48,CostMaster!$K$40:$K$84,1)+1>COUNT(CostMaster!$K$40:$K$84),COUNT(CostMaster!$K$40:$K$84),MATCH($V48,CostMaster!$K$40:$K$84,1)+1))) -> 41 | AL48: =IF(INT($R48)=0,1,IF(ISNUMBER(MATCH($R48,CostMaster!$L$40:$L$44,0)),MATCH($R48,CostMaster!$L$40:$L$44,0),IF(MATCH($R48,CostMaster!$L$40:$L$44,1)+1>COUNT(CostMaster!$L$40:$L$44),COUNT(CostMaster!$L$40:$L$44),MATCH($R48,CostMaster!$L$40:$L$44,1)+1))) -> 1 | AM48: =IF($W48=0,1,IF(ISNUMBER(MATCH($W48,CostMaster!$M$39:$T$39,0)),MATCH($W48,CostMaster!$M$39:$T$39,0),IF(MATCH($W48,CostMaster!$M$39:$T$39,1)+1>COUNT(CostMaster!$M$39:$T$39),COUNT(CostMaster!$M$39:$T$39),MATCH($W48,CostMaster!$M$39:$T$39,1)+1))) -> 8
A49: UV/H2O2 | B49: UV Dose (mJ/cm2) | C49: =Train!F68 -> 900 | D49: =LOOKUP($C49,Master!$A$145:$A$155,Master!C$145:C$155) -> 6 | E49: =LOOKUP($C49,Master!$A$145:$A$155,Master!D$145:D$155) -> 6 | F49: =LOOKUP($C49,Master!$A$145:$A$155,Master!F$145:F$155) -> 6 | G49: =LOOKUP($C49,Master!$A$145:$A$155,Master!E$145:E$155) -> 6 | H49: =LOOKUP(C49,Master!A$162:A$169,Master!D$162:D$169) -> 0.8 | I49: =LOOKUP(C49,Master!A$162:A$169,Master!G$162:G$169) -> 0.6 | J49: =LOOKUP($C49,Master!$A$145:$A$155,Master!G$145:G$155) -> 0.9 | K49: =LOOKUP($C49,Master!$A$145:$A$155,Master!H$145:H$155) -> 0 | L49: =VLOOKUP(C49,Master!$A$162:$M$169,13,TRUE) -> 0.1 | M49: 0 | Q49: =IF(A49=Train!FINAL_Advance3,1,0) -> 1 | U49: =Train!$F$70 -> 3 | V49: =Train!$F$68 -> 900 | W49: =Train!$I$68 -> 0.98 | X49: =IF(ISNUMBER(INDEX(CostMaster!$M$40:$T$84,$AK49+$AL49-1,$AM49)+INDEX(CostMaster!$L$28:$O$32,$AI49,$AJ49)),INDEX(CostMaster!$M$40:$T$84,$AK49+$AL49-1,$AM49)+INDEX(CostMaster!$L$28:$O$32,$AI49,$AJ49),0) -> 0 | Y49: 1 | Z49: =IF(Y49*X49>0,Y49*X49, "Not Available") -> Not Available | AI49: =IF(INT($R49)=0,1,IF(ISNUMBER(MATCH($R49,CostMaster!$K$28:$K$32,0)),MATCH($R49,CostMaster!$K$28:$K$32,0),IF(MATCH($R49,CostMaster!$K$28:$K$32,1)+1>COUNT(CostMaster!$K$28:$K$32),COUNT(CostMaster!$K$28:$K$32),MATCH($R49,CostMaster!$K$28:$K$32,1)+1))) ->  | AJ49: =IF(INT($U49)<3,1,IF(ISNUMBER(MATCH($U49,CostMaster!$L$27:$O$27,0)),MATCH($U49,CostMaster!$L$27:$O$27,0),IF(MATCH($U49,CostMaster!$L$27:$O$27,1)+1>COUNT(CostMaster!$L$27:$O$27),COUNT(CostMaster!$L$27:$O$27),MATCH($U49,CostMaster!$L$27:$O$27,1)+1))) -> 1 | AK49: =IF(INT($V49)=0,1,IF(ISNUMBER(MATCH($V49,CostMaster!$K$40:$K$84,0)),MATCH($V49,CostMaster!$K$40:$K$84,0),IF(MATCH($V49,CostMaster!$K$40:$K$84,1)+1>COUNT(CostMaster!$K$40:$K$84),COUNT(CostMaster!$K$40:$K$84),MATCH($V49,CostMaster!$K$40:$K$84,1)+1))) -> 41 | AL49: =IF(INT($R49)=0,1,IF(ISNUMBER(MATCH($R49,CostMaster!$L$40:$L$44,0)),MATCH($R49,CostMaster!$L$40:$L$44,0),IF(MATCH($R49,CostMaster!$L$40:$L$44,1)+1>COUNT(CostMaster!$L$40:$L$44),COUNT(CostMaster!$L$40:$L$44),MATCH($R49,CostMaster!$L$40:$L$44,1)+1))) ->  | AM49: =IF($W49=0,1,IF(ISNUMBER(MATCH($W49,CostMaster!$M$39:$T$39,0)),MATCH($W49,CostMaster!$M$39:$T$39,0),IF(MATCH($W49,CostMaster!$M$39:$T$39,1)+1>COUNT(CostMaster!$M$39:$T$39),COUNT(CostMaster!$M$39:$T$39),MATCH($W49,CostMaster!$M$39:$T$39,1)+1))) -> 8
A50: MF | D50: =Master!B$36 -> 3 | E50: =Master!C$36 -> 0 | F50: =Master!D$36 -> 3 | G50: =Master!E$36 -> 3 | H50: =Master!F$36 -> 0.3 | I50: =Master!G$36 -> 0.1 | J50: =Master!H$36 -> 0 | K50: =Master!$I$36 -> 0 | L50: =Master!J$36 -> 0 | M50: 0 | P50: =CostMaster!C9 -> 2500000 | Q50: =IF(A50=Train!FINAL_Advance3,1,0) -> 0 | R50: 0 | X50: =P50*R50 -> 0 | Y50: 1 | Z50: Not Available
A51: UF | D51: =Master!B$38 -> 4 | E51: =Master!C$38 -> 0 | F51: =Master!D$38 -> 4 | G51: =Master!E$38 -> 4 | H51: =Master!F$38 -> 0.3 | I51: =Master!G$38 -> 0.3 | J51: =Master!H$38 -> 0 | K51: =Master!I$38 -> 0 | L51: =Master!J$38 -> 0 | M51: 0 | P51: =CostMaster!C9 -> 2500000 | Q51: =IF(A51=Train!FINAL_Advance3,1,0) -> 0 | R51: 0 | X51: =P51*R51 -> 0 | Y51: 1 | Z51: Not Available
A52: Advanced 4 | R52: =$R$59/(Train!Paste_Recovery4/100) -> 
A53: Cl2 | B53: CT (mg/min-L) | C53: =Train!F82 -> 10 | D53: =LOOKUP($C53,Master!$A$115:$A$122,Master!B$115:B$122) -> 4 | E53: =LOOKUP($C53,Master!$A$115:$A$122,Master!C$115:C$122) -> 4 | F53: =LOOKUP($C53,Master!$A$115:$A$122,Master!D$115:D$122) -> 0 | G53: =LOOKUP($C53,Master!$A$115:$A$122,Master!E$115:E$122) -> 0 | H53: =LOOKUP($C$25,Master!$A$111:$A$118,Master!$G$111:$G$118) -> 0 | I53: =LOOKUP($C$25,Master!$A$111:$A$118,Master!$F$111:$F$118) -> 0 | J53: =Master!H76 -> 0 | K53: =Master!I76 -> 0 | L53: =Master!J76 -> 0 | M53: =Master!K76 -> 0 | Q53: =IF(A53=Train!FINAL_Advance4,1,0) -> 1 | R53: =IF(Q53=1,$R$59,0) ->  | T53: =Train!Q82 -> 2.25 | X53: =IF(ISNUMBER(INDEX(CostMaster!$L$4:$P$8,$AG53,$AH53)),INDEX(CostMaster!$L$4:$P$8,$AG53,$AH53),0) -> 0 | Y53: 1 | Z53: Not Available | AG53: =IF(INT($R53)=0,1,IF(ISNUMBER(MATCH($R53,CostMaster!$K$4:$K$8,0)),MATCH($R53,CostMaster!$K$4:$K$8,0),IF(MATCH($R53,CostMaster!$K$4:$K$8,1)+1>COUNT(CostMaster!$K$4:$K$8),COUNT(CostMaster!$K$4:$K$8),MATCH($R53,CostMaster!$K$4:$K$8,1)+1))) ->  | AH53: =IF(INT($T53)=0,1,IF(ISNUMBER(MATCH($T53,CostMaster!$L$3:$P$3,0)),MATCH($T53,CostMaster!$L$3:$P$3,0),IF(MATCH($T53,CostMaster!$L$3:$P$3,1)+1>COUNT(CostMaster!$L$3:$P$3),COUNT(CostMaster!$L$3:$P$3),MATCH($T53,CostMaster!$L$3:$P$3,1)+1))) -> 2
A54: None | D54: 0 | E54: 0 | F54: 0 | G54: 0 | H54: 0 | I54: 0 | J54: 0 | K54: 0 | L54: 0 | M54: 0 | P54: 0 | Q54: =IF(A54=Train!FINAL_Advance4,1,0) -> 0 | R54: 0 | X54: =P54*R54 -> 0 | Y54: 1 | Z54: 0
A55: Ozone/H2O2 | B55: =Train!M84 -> 1 | C55: =Train!N84 -> 0 | D55: =VLOOKUP($C55,Master!$M$126:$Q$131,2,TRUE) -> 0 | E55: =VLOOKUP($C55,Master!$M$126:$Q$131,3,TRUE) -> 0 | F55: =VLOOKUP($C55,Master!$M$126:$Q$131,4,TRUE) -> 0 | G55: =VLOOKUP($C55,Master!$M$126:$Q$131,5,TRUE) -> 0 | H55: =VLOOKUP($B$20,Master!$A$126:$L$130,6,TRUE) -> 0.99 | I55: =VLOOKUP($B$20,Master!$A$126:$L$130,4,TRUE) -> 0.7 | J55: Warning | K55: =Master!$I$52 -> 0 | L55: =Master!J$52 -> 0 | M55: =Master!K$52 -> 0 | Q55: =IF(A55=Train!FINAL_Advance4,1,0) -> 0 | R55: 0 | S55: =Train!Q84 -> FALSE | U55: =Train!$F$88 -> 3 | X55: =IF(ISNUMBER(INDEX(CostMaster!$L$16:$Q$20,$AE55,$AF55)+INDEX(CostMaster!$L$28:$O$32,$AI55,$AJ55)),INDEX(CostMaster!$L$16:$Q$20,$AE55,$AF55)+INDEX(CostMaster!$L$28:$O$32,$AI55,$AJ55),0) -> 1734000 | Y55: 1 | Z55: 1734000 | AE55: =IF(INT($R55)=0,1,IF(ISNUMBER(MATCH($R55,CostMaster!$K$16:$K$20,0)),MATCH($R55,CostMaster!$K$16:$K$20,0),IF(MATCH($R55,CostMaster!$K$16:$K$20,1)+1>COUNT(CostMaster!$K$16:$K$20),COUNT(CostMaster!$K$16:$K$20),MATCH($R55,CostMaster!$K$16:$K$20,1)+1))) -> 1 | AF55: =IF(INT($S55)=0,1,IF(ISNUMBER(MATCH($S55,CostMaster!$L$15:$Q$15,0)),MATCH($S55,CostMaster!$L$15:$Q$15,0),IF(MATCH($S55,CostMaster!$L$15:$Q$15,1)+1>COUNT(CostMaster!$L$15:$Q$15),COUNT(CostMaster!$L$15:$Q$15),MATCH($S55,CostMaster!$L$15:$Q$15,1)+1))) -> 1 | AI55: =IF(INT($R55)=0,1,IF(ISNUMBER(MATCH($R55,CostMaster!$K$28:$K$32,0)),MATCH($R55,CostMaster!$K$28:$K$32,0),IF(MATCH($R55,CostMaster!$K$28:$K$32,1)+1>COUNT(CostMaster!$K$28:$K$32),COUNT(CostMaster!$K$28:$K$32),MATCH($R55,CostMaster!$K$28:$K$32,1)+1))) -> 1 | AJ55: =IF(INT($U55)<3,1,IF(ISNUMBER(MATCH($U55,CostMaster!$L$27:$O$27,0)),MATCH($U55,CostMaster!$L$27:$O$27,0),IF(MATCH($U55,CostMaster!$L$27:$O$27,1)+1>COUNT(CostMaster!$L$27:$O$27),COUNT(CostMaster!$L$27:$O$27),MATCH($U55,CostMaster!$L$27:$O$27,1)+1))) -> 1
A56: UV | B56: UV Dose (mJ/cm2) | C56: =Train!F86 -> 800 | D56: =LOOKUP($C56,Master!$A$145:$A$155,Master!C$145:C$155) -> 6 | E56: =LOOKUP($C56,Master!$A$145:$A$155,Master!D$145:D$155) -> 6 | F56: =LOOKUP($C56,Master!$A$145:$A$155,Master!F$145:F$155) -> 6 | G56: =LOOKUP($C56,Master!$A$145:$A$155,Master!E$145:E$155) -> 6 | H56: =LOOKUP(C56,Master!A162:A169,Master!C162:C169) -> 0.25 | I56: =LOOKUP(C56,Master!A162:A169,Master!F162:F169) -> 0.25 | J56: =LOOKUP($C56,Master!$A$145:$A$155,Master!G$145:G$155) -> 0.9 | K56: =LOOKUP($C56,Master!$A$145:$A$155,Master!H$145:H$155) -> 0 | L56: =VLOOKUP(C56,Master!$A$162:$M$169,10,TRUE) -> 0.1 | M56: 0 | Q56: =IF(A56=Train!FINAL_Advance4,1,0) -> 0 | R56: 0 | V56: =Train!$F$86 -> 800 | W56: =Train!$I$86 -> 0.85 | X56: =IF(ISNUMBER(INDEX(CostMaster!$M$40:$T$84,$AK56+$AL56-1,$AM56)),INDEX(CostMaster!$M$40:$T$84,$AK56+$AL56-1,$AM56),0) -> 1850000 | Y56: 1 | Z56: 1850000 | AK56: =IF(INT($V56)=0,1,IF(ISNUMBER(MATCH($V56,CostMaster!$K$40:$K$84,0)),MATCH($V56,CostMaster!$K$40:$K$84,0),IF(MATCH($V56,CostMaster!$K$40:$K$84,1)+1>COUNT(CostMaster!$K$40:$K$84),COUNT(CostMaster!$K$40:$K$84),MATCH($V56,CostMaster!$K$40:$K$84,1)+1))) -> 36 | AL56: =IF(INT($R56)=0,1,IF(ISNUMBER(MATCH($R56,CostMaster!$L$40:$L$44,0)),MATCH($R56,CostMaster!$L$40:$L$44,0),IF(MATCH($R56,CostMaster!$L$40:$L$44,1)+1>COUNT(CostMaster!$L$40:$L$44),COUNT(CostMaster!$L$40:$L$44),MATCH($R56,CostMaster!$L$40:$L$44,1)+1))) -> 1 | AM56: =IF($W56=0,1,IF(ISNUMBER(MATCH($W56,CostMaster!$M$39:$T$39,0)),MATCH($W56,CostMaster!$M$39:$T$39,0),IF(MATCH($W56,CostMaster!$M$39:$T$39,1)+1>COUNT(CostMaster!$M$39:$T$39),COUNT(CostMaster!$M$39:$T$39),MATCH($W56,CostMaster!$M$39:$T$39,1)+1))) -> 6
A57: UV/H2O2 | B57: UV Dose (mJ/cm2) | C57: =Train!F86 -> 800 | D57: =LOOKUP($C57,Master!$A$145:$A$155,Master!C$145:C$155) -> 6 | E57: =LOOKUP($C57,Master!$A$145:$A$155,Master!D$145:D$155) -> 6 | F57: =LOOKUP($C57,Master!$A$145:$A$155,Master!F$145:F$155) -> 6 | G57: =LOOKUP($C57,Master!$A$145:$A$155,Master!E$145:E$155) -> 6 | H57: =LOOKUP(C57,Master!A$162:A$169,Master!D$162:D$169) -> 0.8 | I57: =LOOKUP(C57,Master!A$162:A$169,Master!G$162:G$169) -> 0.6 | J57: =LOOKUP($C57,Master!$A$145:$A$155,Master!G$145:G$155) -> 0.9 | K57: =LOOKUP($C57,Master!$A$145:$A$155,Master!H$145:H$155) -> 0 | L57: =VLOOKUP(C57,Master!$A$162:$M$169,13,TRUE) -> 0.1 | M57: 0 | Q57: =IF(A57=Train!FINAL_Advance4,1,0) -> 0 | R57: 0 | U57: =Train!$F$88 -> 3 | V57: =Train!$F$86 -> 800 | W57: =Train!$I$86 -> 0.85 | X57: =IF(ISNUMBER(INDEX(CostMaster!$M$40:$T$84,$AK57+$AL57-1,$AM57)+INDEX(CostMaster!$L$28:$O$32,$AI57,$AJ57)),INDEX(CostMaster!$M$40:$T$84,$AK57+$AL57-1,$AM57)+INDEX(CostMaster!$L$28:$O$32,$AI57,$AJ57),0) -> 2584000 | Y57: 1 | Z57: 2584000 | AI57: =IF(INT($R57)=0,1,IF(ISNUMBER(MATCH($R57,CostMaster!$K$28:$K$32,0)),MATCH($R57,CostMaster!$K$28:$K$32,0),IF(MATCH($R57,CostMaster!$K$28:$K$32,1)+1>COUNT(CostMaster!$K$28:$K$32),COUNT(CostMaster!$K$28:$K$32),MATCH($R57,CostMaster!$K$28:$K$32,1)+1))) -> 1 | AJ57: =IF(INT($U57)<3,1,IF(ISNUMBER(MATCH($U57,CostMaster!$L$27:$O$27,0)),MATCH($U57,CostMaster!$L$27:$O$27,0),IF(MATCH($U57,CostMaster!$L$27:$O$27,1)+1>COUNT(CostMaster!$L$27:$O$27),COUNT(CostMaster!$L$27:$O$27),MATCH($U57,CostMaster!$L$27:$O$27,1)+1))) -> 1 | AK57: =IF(INT($V57)=0,1,IF(ISNUMBER(MATCH($V57,CostMaster!$K$40:$K$84,0)),MATCH($V57,CostMaster!$K$40:$K$84,0),IF(MATCH($V57,CostMaster!$K$40:$K$84,1)+1>COUNT(CostMaster!$K$40:$K$84),COUNT(CostMaster!$K$40:$K$84),MATCH($V57,CostMaster!$K$40:$K$84,1)+1))) -> 36 | AL57: =IF(INT($R57)=0,1,IF(ISNUMBER(MATCH($R57,CostMaster!$L$40:$L$44,0)),MATCH($R57,CostMaster!$L$40:$L$44,0),IF(MATCH($R57,CostMaster!$L$40:$L$44,1)+1>COUNT(CostMaster!$L$40:$L$44),COUNT(CostMaster!$L$40:$L$44),MATCH($R57,CostMaster!$L$40:$L$44,1)+1))) -> 1 | AM57: =IF($W57=0,1,IF(ISNUMBER(MATCH($W57,CostMaster!$M$39:$T$39,0)),MATCH($W57,CostMaster!$M$39:$T$39,0),IF(MATCH($W57,CostMaster!$M$39:$T$39,1)+1>COUNT(CostMaster!$M$39:$T$39),COUNT(CostMaster!$M$39:$T$39),MATCH($W57,CostMaster!$M$39:$T$39,1)+1))) -> 6
A58: Ozone | B58: =Train!M84 -> 1 | C58: =Train!N84 -> 0 | D58: =VLOOKUP($C58,Master!$M$126:$Q$131,2,TRUE) -> 0 | E58: =VLOOKUP($C58,Master!$M$126:$Q$131,3,TRUE) -> 0 | F58: =VLOOKUP($C58,Master!$M$126:$Q$131,4,TRUE) -> 0 | G58: =VLOOKUP($C58,Master!$M$126:$Q$131,5,TRUE) -> 0 | H58: =VLOOKUP($B$20,Master!$A$126:$L$130,6,TRUE) -> 0.99 | I58: =VLOOKUP($B$20,Master!$A$126:$L$130,4,TRUE) -> 0.7 | J58: Warning | K58: =Master!$I$52 -> 0 | L58: =Master!J$52 -> 0 | M58: =Master!K$52 -> 0 | Q58: =IF(A58=Train!FINAL_Advance4,1,0) -> 0 | R58: 0 | S58: =Train!Q84 -> FALSE | X58: =IF(ISNUMBER(INDEX(CostMaster!$L$16:$Q$20,$AE58,$AF58)),INDEX(CostMaster!$L$16:$Q$20,$AE58,$AF58),0) -> 1000000 | Y58: 1 | Z58: 1000000 | AE58: =IF(INT($R58)=0,1,IF(ISNUMBER(MATCH($R58,CostMaster!$K$16:$K$20,0)),MATCH($R58,CostMaster!$K$16:$K$20,0),IF(MATCH($R58,CostMaster!$K$16:$K$20,1)+1>COUNT(CostMaster!$K$16:$K$20),COUNT(CostMaster!$K$16:$K$20),MATCH($R58,CostMaster!$K$16:$K$20,1)+1))) -> 1 | AF58: =IF(INT($S58)=0,1,IF(ISNUMBER(MATCH($S58,CostMaster!$L$15:$Q$15,0)),MATCH($S58,CostMaster!$L$15:$Q$15,0),IF(MATCH($S58,CostMaster!$L$15:$Q$15,1)+1>COUNT(CostMaster!$L$15:$Q$15),COUNT(CostMaster!$L$15:$Q$15),MATCH($S58,CostMaster!$L$15:$Q$15,1)+1))) -> 1
A59: Env Buffer | P59: =M59*O59 -> 0 | R59: =$R$66 -> 
A60: Direct Injection (Subsurface Migration Only) | B60: Trave Time (Months) | C60: =Train!F95 -> 6 | D60: =IF(Master!B70*C60>6,6,Master!B70*C60) -> 6 | E60: =IF(Master!C70*C60>6,6,Master!C70*C60) -> 6 | F60: =IF(Master!D70*$C$60>6,6,Master!D70*$C$60) -> 6 | G60: =IF(Master!E70*$C$60>6,6,Master!E70*$C$60) -> 6 | H60: =Master!F70 -> 0 | I60: =Master!G70 -> 0 | J60: =Master!H$70 -> 0 | K60: 0 | L60: =Master!J$70 -> 0 | M60: 0 | Q60: =IF(A60=Train!FINAL_Optional,1,0) -> 0 | R60: =IF(Q60=1,$R$66,0) -> 0 | X60: =P60*R60 -> 0 | Y60: 1 | Z60: Not Available
A61: Engineered Storage Buffer - Cl2 | B61: CT (mg/min-L) | C61: =Train!F96 -> 20 | D61: =LOOKUP($C61,Master!$A$115:$A$122,Master!B$115:B$122) -> 4 | E61: =LOOKUP($C61,Master!$A$115:$A$122,Master!C$115:C$122) -> 4 | F61: =LOOKUP($C61,Master!$A$115:$A$122,Master!D$115:D$122) -> 0 | G61: =LOOKUP($C61,Master!$A$115:$A$122,Master!E$115:E$122) -> 0 | H61: =LOOKUP($C$25,Master!$A$111:$A$118,Master!$G$111:$G$118) -> 0 | I61: =LOOKUP($C$25,Master!$A$111:$A$118,Master!$F$111:$F$118) -> 0 | J61: =Master!H84 -> 0 | K61: =Master!I84 -> 0 | L61: =Master!J84 -> 0 | M61: =Master!K84 -> 0 | Q61: =IF(A61=Train!FINAL_Optional,1,0) -> 0 | R61: =IF(Q61=1,$R$66,0) -> 0 | T61: =Train!Q96 -> 4.722222222 | X61: =IF(ISNUMBER(INDEX(CostMaster!$L$4:$P$8,$AG61,$AH61)),INDEX(CostMaster!$L$4:$P$8,$AG61,$AH61),0) -> 54000 | Y61: 1 | Z61: 54000 | AG61: =IF(INT($R61)=0,1,IF(ISNUMBER(MATCH($R61,CostMaster!$K$4:$K$8,0)),MATCH($R61,CostMaster!$K$4:$K$8,0),IF(MATCH($R61,CostMaster!$K$4:$K$8,1)+1>COUNT(CostMaster!$K$4:$K$8),COUNT(CostMaster!$K$4:$K$8),MATCH($R61,CostMaster!$K$4:$K$8,1)+1))) -> 1 | AH61: =IF(INT($T61)=0,1,IF(ISNUMBER(MATCH($T61,CostMaster!$L$3:$P$3,0)),MATCH($T61,CostMaster!$L$3:$P$3,0),IF(MATCH($T61,CostMaster!$L$3:$P$3,1)+1>COUNT(CostMaster!$L$3:$P$3),COUNT(CostMaster!$L$3:$P$3),MATCH($T61,CostMaster!$L$3:$P$3,1)+1))) -> 2
A62: Engineered Storage Buffer - Chloramines | B62: CT (mg/min-L) | C62: =Train!F97 -> 450 | D62: =LOOKUP($C62,Master!$A$173:$A$180,Master!B$173:B$180) -> 0 | E62: =LOOKUP($C62,Master!$A$173:$A$180,Master!C$173:C$180) -> 0 | F62: =LOOKUP($C62,Master!$A$173:$A$180,Master!D$173:D$180) -> 0 | G62: =LOOKUP($C62,Master!$A$173:$A$180,Master!E$173:E$180) -> 0 | H62: 0 | I62: 0 | J62: 0 | K62: 0 | L62: 0 | M62: 0 | Q62: =IF(A62=Train!FINAL_Optional,1,0) -> 1 | X62: =P62*R62 ->  | Y62: 1
A63: No environmental buffer | D63: 0 | E63: 0 | F63: 0 | G63: 0 | H63: 0 | I63: 0 | J63: 0 | K63: 0 | L63: 0 | M63: 0 | Q63: =IF(A63=Train!FINAL_Optional,1,0) -> 0 | R63: 0 | X63: =P63*R63 -> 0 | Y63: 1 | Z63: 0
A64: Soil Aquifer Treatment (Percolation and Subsurface Migration) | B64: Trave Time (Months) | C64: =Train!F95 -> 6 | D64: =IF(4+C64>4,4,3+C64) -> 4 | E64: =IF(4+E60>4,4,3+E60) -> 4 | F64: =IF(4+F60>4,4,3+F60) -> 4 | G64: =IF(4+G60>4,4,3+G60) -> 4 | H64: =Master!F68+0 -> 0.5 | I64: =Master!G68+0 -> 0.5 | J64: =Master!H$68 -> 0.5 | K64: 0.5 | L64: =Master!J$68 -> 0.5 | M64: 0 | Q64: =IF(A64=Train!FINAL_Optional,1,0) -> 0 | R64: 0 | X64: =P64*R64 -> 0 | Y64: 1 | Z64: Not Available
A65: Surface Water Augmentation | B65: Travel Time (Days) | C65: =Train!F94 -> 7 | D65: =Master!B72 -> 0 | E65: =IF(Master!C72*C65>6,6,Master!C72*C65) -> 0 | F65: =Master!D72 -> 0 | G65: =Master!E72 -> 0 | H65: =1-(0.5)^(C65/Master!F72) -> 0.3844277933 | I65: =1-(0.5)^(C65/Master!G72) -> 0.2928932188 | J65: =1-(0.5)^($C$65/Master!H72) -> 0.8015748685 | K65: 0 | L65: =Master!J72 -> 0 | M65: 0 | Q65: =IF(A65=Train!FINAL_Optional,1,0) -> 0 | R65: 0 | X65: =P65*R65 -> 0 | Y65: 1 | Z65: Not Available
Q66: Effluent Available | R66: =IF(PasteRange2="[[enter size here]]", "", PasteRange2) ->  | S66: mgd
P74: =M74*O74 -> 0

Sheet Master_Lookup (2) (hidden)
A4: PERCENT REMOVAL | E4: Values/Functions for Unit Process Effectiveness for Microbial Inactivation and Microconstituent Removals | P4: Start of Costs
A6: Treatment | B6: Operationally | D6: Microbial Inactivation - Potential Credits(1) LOG REMOVAL | H6: Microconstituent Removals(1) PERCENT REMOVAL | P6: Unit Cost | Q6: Selected Process | R6: Flow | S6: Ozone Dose | T6: Cl2 Dose | U6: H2O2 Dose | V6: UV Dose | W6: Feed UVT | X6: Subtotal Cost | Y6: Factor | Z6: Total Cost | AE6: Ozone lookup index | AG6: Cl2 lookup index | AI6: H2O2 lookup index | AK6: UV lookup index
A7: Process | B7: Impotant Parameters | D7: Bacteria | E7: Virus | F7: Cryptosporidium | G7: Giardia | H7: EEQ | I7: TOrCs | J7: NDMA | K7: Nitrate as N | L7: TOC | M7: PFOS+PFOA | N7: Notes | P7: $/mgd | R7: mgd | S7: mg/L | T7: mg/L | U7: mg/L | V7: mJ/cm2 | X7: $ | Z7: $ | AE7: Flow | AF7: Dose | AG7: Flow | AH7: Dose | AI7: Flow | AJ7: Dose | AK7: RED | AL7: Flow | AM7: UVT
A9: Secondary | R9: =$R$17 -> 
A10: Secondary - BOD Only | B10: SRT | C10: ='Train (2)'!F14 -> 7 | D10: =LOOKUP(C10,Master!A100:A102,Master!D100:D102) -> 3 | E10: =Master!C16 -> 2 | F10: =Master!D16 -> 0 | G10: =Master!E16 -> 0 | H10: =LOOKUP($C$10,Master!$A$107:$A$109,Master!F107:F109) -> 0.9 | I10: =LOOKUP($C$10,Master!$A$107:$A$109,Master!D107:D109) -> 0.7 | J10: =Master!H16 -> 0 | K10: =Master!I16 -> 0 | L10: =Master!J16 -> 0.5 | M10: =Master!K16 -> 0 | P10: =CostMaster!C5 -> 0 | Q10: =IF(A10='Train (2)'!FINAL_Secondary,1,0) -> 1 | X10: =P10*R10 ->  | Y10: 1 | Z10: =IF(Y10*X10>0,Y10*X10, "Not Available") -> 
A11: Secondary - Nitrified Only | B11: SRT | C11: ='Train (2)'!$F$15 -> 10 | D11: =LOOKUP(C11,Master!A101:A103,Master!D101:D103) -> 3 | E11: =Master!C17 -> 2 | F11: =Master!D17 -> 0 | G11: =Master!E17 -> 0 | H11: =LOOKUP($C$11,Master!$A$107:$A$109,Master!F107:F109) -> 0.9 | I11: =LOOKUP($C$11,Master!$A$107:$A$109,Master!D107:D109) -> 0.7 | J11: =Master!H17 -> 0 | K11: =Master!I17 -> 0 | L11: =Master!J17 -> 0.5 | M11: =Master!K17 -> 0 | P11: =CostMaster!$C$6 -> 0 | Q11: =IF(A11='Train (2)'!FINAL_Secondary,1,0) -> 0 | Y11: =$Y$10 -> 1 | Z11: =IF(Y11*X11>0,Y11*X11, "Not Available") -> 
A12: Secondary - Denitrified | B12: SRT | C12: ='Train (2)'!$F$15 -> 10 | D12: =LOOKUP(C12,Master!A101:A103,Master!D101:D103) -> 3 | E12: =Master!C18 -> 2 | F12: =Master!D18 -> 0 | G12: =Master!E18 -> 0 | H12: =LOOKUP($C$12,Master!$A$107:$A$109,Master!F107:F109) -> 0.9 | I12: =LOOKUP($C$12,Master!$A$107:$A$109,Master!D107:D109) -> 0.7 | J12: =Master!H18 -> 0 | K12: =Master!I18 -> 0.8 | L12: =Master!J18 -> 0.7 | M12: =Master!K18 -> 0 | P12: =CostMaster!$C$6 -> 0 | Q12: =IF(A12='Train (2)'!FINAL_Secondary,1,0) -> 0 | Y12: 1
A13: Tertiary - Nitrified Only | B13: SRT | C13: ='Train (2)'!$F$15 -> 10 | D13: =Master!B20 -> 3 | E13: =Master!C20 -> 2 | F13: =Master!D20 -> 0 | G13: =Master!E20 -> 0 | H13: =Master!F20 -> 0.9 | I13: =Master!G20 -> 0.7 | J13: =Master!H20 -> 0 | K13: =Master!I20 -> 0 | L13: =Master!J20 -> 0.6 | M13: =Master!K20 -> 0 | P13: =CostMaster!$C$6 -> 0 | Q13: =IF(A13='Train (2)'!FINAL_Secondary,1,0) -> 0 | Y13: 1
A14: Tertiary - Denitrified | B14: SRT | C14: ='Train (2)'!$F$15 -> 10 | D14: =Master!B22 -> 3 | E14: =Master!C22 -> 2 | F14: =Master!D22 -> 0 | G14: =Master!E22 -> 0 | H14: =Master!F22 -> 0.9 | I14: =Master!G22 -> 0.7 | J14: =Master!H22 -> 0 | K14: =Master!I22 -> 0.8 | L14: =Master!J22 -> 0.9 | M14: =Master!K22 -> 0 | P14: =CostMaster!$C$6 -> 0 | Q14: =IF(A14='Train (2)'!FINAL_Secondary,1,0) -> 0 | Y14: 1
A15: MBR - Nitrified Only | B15: SRT | C15: ='Train (2)'!$F$15 -> 10 | D15: =Master!B24 -> 5 | E15: =Master!C24 -> 2 | F15: =Master!D24 -> 4 | G15: =Master!E24 -> 4 | H15: =LOOKUP($C$15,Master!$A$107:$A$109,Master!F107:F109) -> 0.9 | I15: =LOOKUP($C$15,Master!$A$107:$A$109,Master!D107:D109) -> 0.7 | J15: =Master!H24 -> 0 | K15: =Master!I24 -> 0 | L15: =Master!J24 -> 0.6 | M15: =Master!K24 -> 0 | P15: =CostMaster!$C$7 -> 0 | Q15: =IF(A15='Train (2)'!FINAL_Secondary,1,0) -> 0 | R15: =$R$17 ->  | Y15: 1
A16: MBR - Denitrified | B16: SRT | C16: ='Train (2)'!$F$15 -> 10 | D16: =Master!B26 -> 5 | E16: =Master!C26 -> 2 | F16: =Master!D26 -> 4 | G16: =Master!E26 -> 4 | H16: =LOOKUP($C$16,Master!$A$107:$A$109,Master!F107:F109) -> 0.9 | I16: =LOOKUP($C$16,Master!$A$107:$A$109,Master!D107:D109) -> 0.7 | J16: =Master!H26 -> 0 | K16: =Master!I26 -> 0.8 | L16: =Master!J26 -> 0.9 | M16: =Master!K26 -> 0 | P16: =CostMaster!$C$7 -> 0 | Q16: =IF(A16='Train (2)'!FINAL_Secondary,1,0) -> 0 | R16: =$R$17 ->  | Y16: 1
A17: Advanced 1 | R17: =R28/('Train (2)'!Paste_Recovery1/100) -> 
A18: MF | B18: must pass integrity test | D18: =Master!B36 -> 3 | E18: =Master!C36 -> 0 | F18: =Master!D36 -> 3 | G18: =Master!E36 -> 3 | H18: =Master!F36 -> 0.3 | I18: =Master!G36 -> 0.1 | J18: =Master!H$36 -> 0 | K18: =Master!I36 -> 0 | L18: =Master!J$36 -> 0 | M18: =Master!K$36 -> 0 | P18: =CostMaster!C9 -> 2500000 | Q18: =IF(A18='Train (2)'!FINAL_Advance1,1,0) -> 0 | R18: =IF(Q18=1,$R$28,0) -> 0 | X18: =P18*R18 -> 0 | Y18: 1 | Z18: =IF(Y18*X18>0,Y18*X18, "Not Available") -> Not Available
A19: None | D19: 0 | E19: 0 | F19: 0 | G19: 0 | H19: 0 | I19: 0 | J19: 0 | K19: 0 | L19: 0 | M19: 0 | P19: 0 | Q19: =IF(A19='Train (2)'!FINAL_Advance1,1,0) -> 0 | R19: 0 | X19: =P19*R19 -> 0 | Y19: 1 | Z19: 0
A20: Ozone | B20: ='Train (2)'!M25 -> 1.2 | C20: ='Train (2)'!N25 -> 5 | D20: =VLOOKUP($C20,Master!$M$126:$Q$131,2,TRUE) -> 3 | E20: =VLOOKUP($C20,Master!$M$126:$Q$131,3,TRUE) -> 3 | F20: =VLOOKUP($C20,Master!$M$126:$Q$131,4,TRUE) -> 0 | G20: =VLOOKUP($C20,Master!$M$126:$Q$131,5,TRUE) -> 1 | H20: =VLOOKUP($B$20,Master!$A$126:$L$130,6,TRUE) -> 0.99 | I20: =VLOOKUP($B$20,Master!$A$126:$L$130,4,TRUE) -> 0.7 | J20: Warning | K20: =Master!I52 -> 0 | L20: =Master!J$52 -> 0 | M20: =Master!K$52 -> 0 | Q20: =IF(A20='Train (2)'!FINAL_Advance1,1,0) -> 0 | R20: 0 | S20: ='Train (2)'!Q25 -> FALSE | X20: =IF(ISNUMBER(INDEX(CostMaster!$L$16:$Q$20,$AE20,$AF20)),INDEX(CostMaster!$L$16:$Q$20,$AE20,$AF20),0) -> 1000000 | Y20: 1 | Z20: 1000000 | AE20: =IF(INT($R20)=0,1,IF(ISNUMBER(MATCH($R20,CostMaster!$K$16:$K$20,0)),MATCH($R20,CostMaster!$K$16:$K$20,0),IF(MATCH($R20,CostMaster!$K$16:$K$20,1)+1>COUNT(CostMaster!$K$16:$K$20),COUNT(CostMaster!$K$16:$K$20),MATCH($R20,CostMaster!$K$16:$K$20,1)+1))) -> 1 | AF20: =IF(INT($S20)=0,1,IF(ISNUMBER(MATCH($S20,CostMaster!$L$15:$Q$15,0)),MATCH($S20,CostMaster!$L$15:$Q$15,0),IF(MATCH($S20,CostMaster!$L$15:$Q$15,1)+1>COUNT(CostMaster!$L$15:$Q$15),COUNT(CostMaster!$L$15:$Q$15),MATCH($S20,CostMaster!$L$15:$Q$15,1)+1))) -> 1
A21: Tertiary Media Filtration | D21: =Master!B29 -> 0 | E21: =Master!C29 -> 0 | F21: =Master!D29 -> 0 | G21: =Master!E29 -> 0 | H21: =Master!F29 -> 0 | I21: =Master!G29 -> 0 | J21: =Master!H$29 -> 0 | K21: =Master!I29 -> 0 | L21: =Master!J$29 -> 0.2 | M21: =Master!K$29 -> 0 | P21: see cost master | Q21: =IF(A21='Train (2)'!FINAL_Advance1,1,0) -> 0 | R21: 0 | X21: =CostMaster!C$21*R21^CostMaster!E$21 -> 0 | Y21: 1 | Z21: Not Available
A22: Tertiary Media Filtration - Denitrification | D22: =Master!B31 -> 0 | E22: =Master!C31 -> 0 | F22: =Master!D31 -> 0 | G22: =Master!E31 -> 0 | H22: =Master!F31 -> 0.2 | I22: =Master!G31 -> 0.2 | J22: =Master!H$31 -> 0 | K22: =Master!I31 -> 0.8 | L22: =Master!J$31 -> 0.2 | M22: =Master!K$29 -> 0 | P22: see cost master | Q22: =IF(A22='Train (2)'!FINAL_Advance1,1,0) -> 0 | R22: 0 | X22: =CostMaster!C$21*R22^CostMaster!E$21 -> 0 | Y22: 1 | Z22: Not Available
A23: UF | B23: must pass integrity test | D23: =Master!B38 -> 4 | E23: =Master!C38 -> 0 | F23: =Master!D38 -> 4 | G23: =Master!E38 -> 4 | H23: =Master!F38 -> 0.3 | I23: =Master!G38 -> 0.3 | J23: =Master!H$38 -> 0 | K23: =Master!I38 -> 0 | L23: =Master!J$38 -> 0 | M23: =Master!K$38 -> 0 | P23: =CostMaster!C10 -> 2500000 | Q23: =IF(A23='Train (2)'!FINAL_Advance1,1,0) -> 0 | R23: 0 | X23: =P23*R23 -> 0 | Y23: 1 | Z23: Not Available
A24: BAF | D24: =(100-10^(2-Master!$B$63))/100 -> 0 | E24: =(100-10^(2-Master!$C$63))/100 -> 0 | F24: =(100-10^(2-Master!$D$63))/100 -> 0 | G24: =(100-10^(2-Master!$E$63))/100 -> 0 | H24: =Master!$F$63 -> 0.5 | I24: =Master!$G$63 -> 0.5 | J24: =Master!$H$63 -> 0.5 | K24: =Master!$I$63 -> 0 | L24: =Master!$J$63 -> 0.4 | M24: 0 | P24: see cost master | Q24: =IF(A24='Train (2)'!FINAL_Advance1,1,0) -> 0 | R24: 0 | X24: =CostMaster!C$21*R24^CostMaster!E$21 -> 0 | Y24: 1 | Z24: Not Available
A25: Cl2 | B25: CT (mg/min-L) | C25: ='Train (2)'!F23 -> 30 | D25: =LOOKUP($C25,Master!$A$115:$A$122,Master!B$115:B$122) -> 4 | E25: =LOOKUP($C25,Master!$A$115:$A$122,Master!C$115:C$122) -> 4 | F25: =LOOKUP($C25,Master!$A$115:$A$122,Master!D$115:D$122) -> 0 | G25: =LOOKUP($C25,Master!$A$115:$A$122,Master!E$115:E$122) -> 0 | H25: =LOOKUP($C$25,Master!$A$111:$A$118,Master!$G$111:$G$118) -> 0 | I25: =LOOKUP($C$25,Master!$A$111:$A$118,Master!$F$111:$F$118) -> 0 | J25: =Master!H48 -> 0 | K25: =Master!I48 -> 0 | L25: =Master!J48 -> 0 | M25: =Master!K48 -> 0 | P25: =M25*O25 -> 0 | Q25: =IF(A25='Train (2)'!FINAL_Advance1,1,0) -> 0 | R25: =IF(Q25=1,$R$40,0) -> 0 | T25: ='Train (2)'!Q41 -> 4.833333333 | X25: =IF(ISNUMBER(INDEX(CostMaster!$L$4:$P$8,$AG25,$AH25)), INDEX(CostMaster!$L$4:$P$8,$AG25,$AH25),0) -> 54000 | Y25: 1 | Z25: 54000 | AG25: =IF(INT($R25)=0,1,IF(ISNUMBER(MATCH($R25,CostMaster!$K$4:$K$8,0)),MATCH($R25,CostMaster!$K$4:$K$8,0),IF(MATCH($R25,CostMaster!$K$4:$K$8,1)+1>COUNT(CostMaster!$K$4:$K$8),COUNT(CostMaster!$K$4:$K$8),MATCH($R25,CostMaster!$K$4:$K$8,1)+1))) -> 1 | AH25: =IF(INT($T25)=0,1,IF(ISNUMBER(MATCH($T25,CostMaster!$L$3:$P$3,0)),MATCH($T25,CostMaster!$L$3:$P$3,0),IF(MATCH($T25,CostMaster!$L$3:$P$3,1)+1>COUNT(CostMaster!$L$3:$P$3),COUNT(CostMaster!$L$3:$P$3),MATCH($T25,CostMaster!$L$3:$P$3,1)+1))) -> 2
A26: UV | B26: UV Dose (mJ/cm2) | C26: ='Train (2)'!F27 -> 200 | D26: =LOOKUP($C26,Master!$A$145:$A$155,Master!C$145:C$155) -> 6 | E26: =LOOKUP($C26,Master!$A$145:$A$155,Master!D$145:D$155) -> 4 | F26: =LOOKUP($C26,Master!$A$145:$A$155,Master!F$145:F$155) -> 6 | G26: =LOOKUP($C26,Master!$A$145:$A$155,Master!E$145:E$155) -> 6 | H26: =LOOKUP(C26,Master!A$162:A$169,Master!C$162:C$169) -> 0.2 | I26: =LOOKUP(C26,Master!A$162:A$169,Master!F$162:F$169) -> 0.2 | J26: =LOOKUP($C26,Master!$A$145:$A$155,Master!G$145:G$155) -> 0.6 | K26: =LOOKUP($C26,Master!$A$145:$A$155,Master!H$145:H$155) -> 0 | L26: =VLOOKUP(C26,Master!$A$162:$M$169,10,TRUE) -> 0.1 | M26: 0 | Q26: =IF(A26='Train (2)'!FINAL_Advance1,1,0) -> 1 | R26: =IF(Q26=1,$R$40,0) ->  | V26: =C26 -> 200 | W26: ='Train (2)'!I33 -> 0 | X26: =IF(ISNUMBER(INDEX(CostMaster!$M$40:$T$84,$AK26+$AL26-1,$AM26)),INDEX(CostMaster!$M$40:$T$84,$AK26+$AL26-1,$AM26),0) -> 0 | Y26: 1 | Z26: Not Available | AK26: =IF(INT($V26)=0,1,IF(ISNUMBER(MATCH($V26,CostMaster!$K$40:$K$84,0)),MATCH($V26,CostMaster!$K$40:$K$84,0),IF(MATCH($V26,CostMaster!$K$40:$K$84,1)+1>COUNT(CostMaster!$K$40:$K$84),COUNT(CostMaster!$K$40:$K$84),MATCH($V26,CostMaster!$K$40:$K$84,1)+1))) -> 21 | AL26: =IF(INT($R26)=0,1,IF(ISNUMBER(MATCH($R26,CostMaster!$L$40:$L$44,0)),MATCH($R26,CostMaster!$L$40:$L$44,0),IF(MATCH($R26,CostMaster!$L$40:$L$44,1)+1>COUNT(CostMaster!$L$40:$L$44),COUNT(CostMaster!$L$40:$L$44),MATCH($R26,CostMaster!$L$40:$L$44,1)+1))) ->  | AM26: =IF($W26=0,1,IF(ISNUMBER(MATCH($W26,CostMaster!$M$39:$T$39,0)),MATCH($W26,CostMaster!$M$39:$T$39,0),IF(MATCH($W26,CostMaster!$M$39:$T$39,1)+1>COUNT(CostMaster!$M$39:$T$39),COUNT(CostMaster!$M$39:$T$39),MATCH($W26,CostMaster!$M$39:$T$39,1)+1))) -> 1
A27: Ozone/BAF | D27: =D$20+D$24 -> 3 | E27: =E$20+E$24 -> 3 | F27: 0 | G27: 1 | H27: =(1-(1-H$33)*(1-H$38)) -> 0.995 | I27: =(1-(1-I$20)*(1-I$24)) -> 0.85 | J27: =J$24 -> 0.5 | K27: =(1-(1-K$20)*(1-K$24)) -> 0 | L27: =(1-(1-L$20)*(1-L$24)) -> 0.4 | M27: =(1-(1-M$20)*(1-M$24)) -> 0 | Q27: =IF(A27='Train (2)'!FINAL_Advance1,1,0) -> 0 | R27: =IF(Q27=1,$R$28,0) -> 0 | X27: =IF(ISNUMBER(INDEX(CostMaster!$L$16:$Q$20,$AE27,$AF27)),INDEX(CostMaster!$L$16:$Q$20,$AE27,$AF27),0)+CostMaster!C$21*R27^CostMaster!E$21 -> 1000000 | Y27: 1 | Z27: 1000000 | AE27: =IF(INT($R27)=0,1,IF(ISNUMBER(MATCH($R27,CostMaster!$K$16:$K$20,0)),MATCH($R27,CostMaster!$K$16:$K$20,0),IF(MATCH($R27,CostMaster!$K$16:$K$20,1)+1>COUNT(CostMaster!$K$16:$K$20),COUNT(CostMaster!$K$16:$K$20),MATCH($R27,CostMaster!$K$16:$K$20,1)+1))) -> 1 | AF27: =IF(INT($S27)=0,1,IF(ISNUMBER(MATCH($S27,CostMaster!$L$15:$Q$15,0)),MATCH($S27,CostMaster!$L$15:$Q$15,0),IF(MATCH($S27,CostMaster!$L$15:$Q$15,1)+1>COUNT(CostMaster!$L$15:$Q$15),COUNT(CostMaster!$L$15:$Q$15),MATCH($S27,CostMaster!$L$15:$Q$15,1)+1))) -> 1
A28: Advanced 2 | R28: =R40/('Train (2)'!Paste_Recovery2/100) -> 
A29: Cl2 | B29: CT (mg/min-L) | C29: ='Train (2)'!F41 -> 30 | D29: =LOOKUP($C29,Master!$A$115:$A$122,Master!B$115:B$122) -> 4 | E29: =LOOKUP($C29,Master!$A$115:$A$122,Master!C$115:C$122) -> 4 | F29: =LOOKUP($C29,Master!$A$115:$A$122,Master!D$115:D$122) -> 0 | G29: =LOOKUP($C29,Master!$A$115:$A$122,Master!E$115:E$122) -> 0 | H29: =LOOKUP($C$25,Master!$A$111:$A$118,Master!$G$111:$G$118) -> 0 | I29: =LOOKUP($C$25,Master!$A$111:$A$118,Master!$F$111:$F$118) -> 0 | J29: =Master!H52 -> Formation | K29: =Master!I52 -> 0 | L29: =Master!J52 -> 0 | M29: =Master!K52 -> 0 | P29: =M29*O29 -> 0 | Q29: =IF(A29='Train (2)'!FINAL_Advance2,1,0) -> 0 | R29: =IF(Q29=1,$R$40,0) -> 0 | T29: ='Train (2)'!Q41 -> 4.833333333 | X29: =IF(ISNUMBER(INDEX(CostMaster!$L$4:$P$8,$AG29,$AH29)), INDEX(CostMaster!$L$4:$P$8,$AG29,$AH29),0) -> 54000 | Y29: 1 | Z29: 54000 | AG29: =IF(INT($R29)=0,1,IF(ISNUMBER(MATCH($R29,CostMaster!$K$4:$K$8,0)),MATCH($R29,CostMaster!$K$4:$K$8,0),IF(MATCH($R29,CostMaster!$K$4:$K$8,1)+1>COUNT(CostMaster!$K$4:$K$8),COUNT(CostMaster!$K$4:$K$8),MATCH($R29,CostMaster!$K$4:$K$8,1)+1))) -> 1 | AH29: =IF(INT($T29)=0,1,IF(ISNUMBER(MATCH($T29,CostMaster!$L$3:$P$3,0)),MATCH($T29,CostMaster!$L$3:$P$3,0),IF(MATCH($T29,CostMaster!$L$3:$P$3,1)+1>COUNT(CostMaster!$L$3:$P$3),COUNT(CostMaster!$L$3:$P$3),MATCH($T29,CostMaster!$L$3:$P$3,1)+1))) -> 2
A30: MF | B30: must pass integrity test | D30: =Master!B$36 -> 3 | E30: =Master!C$36 -> 0 | F30: =Master!D$36 -> 3 | G30: =Master!E$36 -> 3 | H30: =Master!F$36 -> 0.3 | I30: =Master!G$36 -> 0.1 | J30: =Master!H$36 -> 0 | K30: =Master!$I$36 -> 0 | L30: =Master!J$36 -> 0 | M30: 0 | P30: =CostMaster!C9 -> 2500000 | Q30: =IF(A30='Train (2)'!FINAL_Advance2,1,0) -> 0 | R30: =IF(Q30=1,$R$40,0) -> 0 | X30: =P30*R30 -> 0 | Y30: 1 | Z30: Not Available
A31: NF | D31: =IF(Input!$T$3=TRUE,Master!B40,Master!B41) -> 0 | E31: =IF(Input!$T$3=TRUE,Master!C40,Master!C41) -> 0 | F31: =IF(Input!$T$3=TRUE,Master!D40,Master!D41) -> 0 | G31: =IF(Input!$T$3=TRUE,Master!E40,Master!E41) -> 0 | H31: =Master!F40 -> 0.75 | I31: =Master!G$40 -> 0.75 | J31: =Master!H40 -> 0.05 | K31: =Master!$I$40 -> 0.25 | L31: =Master!J$40 -> 0.93 | M31: =Master!K$40 -> 0.9 | P31: =CostMaster!C11 -> 3750000 | Q31: =IF(A31='Train (2)'!FINAL_Advance2,1,0) -> 0 | R31: 0 | X31: =P31*R31 -> 0 | Y31: 1 | Z31: Not Available
A32: None | D32: 0 | E32: 0 | F32: 0 | G32: 0 | H32: 0 | I32: 0 | J32: 0 | K32: 0 | L32: 0 | M32: 0 | P32: 0 | Q32: =IF(A32='Train (2)'!FINAL_Advance2,1,0) -> 1 | X32: =P32*R32 ->  | Y32: 1 | Z32: 0
A33: Ozone | B33: ='Train (2)'!M43 -> 1 | C33: ='Train (2)'!N43 -> 0 | D33: =VLOOKUP($C33,Master!$M$126:$Q$131,2,TRUE) -> 0 | E33: =VLOOKUP($C33,Master!$M$126:$Q$131,3,TRUE) -> 0 | F33: =VLOOKUP($C33,Master!$M$126:$Q$131,4,TRUE) -> 0 | G33: =VLOOKUP($C33,Master!$M$126:$Q$131,5,TRUE) -> 0 | H33: =VLOOKUP($B$20,Master!$A$126:$L$130,6,TRUE) -> 0.99 | I33: =VLOOKUP($B$20,Master!$A$126:$L$130,4,TRUE) -> 0.7 | J33: Warning | K33: =Master!I65 -> 0 | L33: =Master!J$52 -> 0 | M33: =Master!K$52 -> 0 | Q33: =IF(A33='Train (2)'!FINAL_Advance2,1,0) -> 0 | R33: 0 | S33: ='Train (2)'!Q43 -> FALSE | X33: =IF(ISNUMBER(INDEX(CostMaster!$L$16:$Q$20,$AE33,$AF33)),INDEX(CostMaster!$L$16:$Q$20,$AE33,$AF33),0) -> 1000000 | Y33: 1 | Z33: 1000000 | AE33: =IF(INT($R33)=0,1,IF(ISNUMBER(MATCH($R33,CostMaster!$K$16:$K$20,0)),MATCH($R33,CostMaster!$K$16:$K$20,0),IF(MATCH($R33,CostMaster!$K$16:$K$20,1)+1>COUNT(CostMaster!$K$16:$K$20),COUNT(CostMaster!$K$16:$K$20),MATCH($R33,CostMaster!$K$16:$K$20,1)+1))) -> 1 | AF33: =IF(INT($S33)=0,1,IF(ISNUMBER(MATCH($S33,CostMaster!$L$15:$Q$15,0)),MATCH($S33,CostMaster!$L$15:$Q$15,0),IF(MATCH($S33,CostMaster!$L$15:$Q$15,1)+1>COUNT(CostMaster!$L$15:$Q$15),COUNT(CostMaster!$L$15:$Q$15),MATCH($S33,CostMaster!$L$15:$Q$15,1)+1))) -> 1
A34: RO | D34: =IF(Input!$T$3=TRUE,Master!B42,Master!B41) -> 2 | E34: =IF(Input!$T$3=TRUE,Master!C42,Master!C41) -> 2 | F34: =IF(Input!$T$3=TRUE,Master!D42,Master!D41) -> 2 | G34: =IF(Input!$T$3=TRUE,Master!E42,Master!E41) -> 2 | H34: =Master!F42 -> 0.95 | I34: =Master!G42 -> 0.95 | J34: =Master!H42 -> 0.5 | K34: =Master!$I$42 -> 0.9 | L34: =Master!$J$42 -> 0.95 | M34: =Master!K$42 -> 0.99 | P34: =CostMaster!C12 -> 3750000 | Q34: =IF(A34='Train (2)'!FINAL_Advance2,1,0) -> 0 | R34: 0 | X34: =P34*R34 -> 0 | Y34: 1 | Z34: Not Available
A35: UF | B35: must pass integrity test | D35: =Master!B$38 -> 4 | E35: =Master!C$38 -> 0 | F35: =Master!D$38 -> 4 | G35: =Master!E$38 -> 4 | H35: =Master!F$38 -> 0.3 | I35: =Master!G$38 -> 0.3 | J35: =Master!H$38 -> 0 | K35: =Master!I$38 -> 0 | L35: =Master!J$38 -> 0 | M35: 0 | P35: =CostMaster!C10 -> 2500000 | Q35: =IF(A35='Train (2)'!FINAL_Advance2,1,0) -> 0 | R35: 0 | X35: =P35*R35 -> 0 | Y35: 1 | Z35: Not Available
A36: UV | B36: UV Dose (mJ/cm2) | C36: ='Train (2)'!F45 -> 200 | D36: =LOOKUP($C36,Master!$A$145:$A$155,Master!C$145:C$155) -> 6 | E36: =LOOKUP($C36,Master!$A$145:$A$155,Master!D$145:D$155) -> 4 | F36: =LOOKUP($C36,Master!$A$145:$A$155,Master!F$145:F$155) -> 6 | G36: =LOOKUP($C36,Master!$A$145:$A$155,Master!E$145:E$155) -> 6 | H36: =LOOKUP(C36,Master!A$162:A$169,Master!C$162:C$169) -> 0.2 | I36: =LOOKUP(C36,Master!A$162:A$169,Master!F$162:F$169) -> 0.2 | J36: =LOOKUP($C36,Master!$A$145:$A$155,Master!G$145:G$155) -> 0.6 | K36: =LOOKUP($C36,Master!$A$145:$A$155,Master!H$145:H$155) -> 0 | L36: =VLOOKUP(C36,Master!$A$162:$M$169,10,TRUE) -> 0.1 | M36: 0 | Q36: =IF(A36='Train (2)'!FINAL_Advance2,1,0) -> 0 | R36: 0 | V36: ='Train (2)'!F45 -> 200 | W36: ='Train (2)'!I45 -> 0.85 | X36: =IF(ISNUMBER(INDEX(CostMaster!$M$40:$T$84,$AK36+$AL36-1,$AM36)),INDEX(CostMaster!$M$40:$T$84,$AK36+$AL36-1,$AM36),0) -> 830000 | Y36: 1 | Z36: 830000 | AK36: =IF(INT($V36)=0,1,IF(ISNUMBER(MATCH($V36,CostMaster!$K$40:$K$84,0)),MATCH($V36,CostMaster!$K$40:$K$84,0),IF(MATCH($V36,CostMaster!$K$40:$K$84,1)+1>COUNT(CostMaster!$K$40:$K$84),COUNT(CostMaster!$K$40:$K$84),MATCH($V36,CostMaster!$K$40:$K$84,1)+1))) -> 21 | AL36: =IF(INT($R36)=0,1,IF(ISNUMBER(MATCH($R36,CostMaster!$L$40:$L$44,0)),MATCH($R36,CostMaster!$L$40:$L$44,0),IF(MATCH($R36,CostMaster!$L$40:$L$44,1)+1>COUNT(CostMaster!$L$40:$L$44),COUNT(CostMaster!$L$40:$L$44),MATCH($R36,CostMaster!$L$40:$L$44,1)+1))) -> 1 | AM36: =IF($W36=0,1,IF(ISNUMBER(MATCH($W36,CostMaster!$M$39:$T$39,0)),MATCH($W36,CostMaster!$M$39:$T$39,0),IF(MATCH($W36,CostMaster!$M$39:$T$39,1)+1>COUNT(CostMaster!$M$39:$T$39),COUNT(CostMaster!$M$39:$T$39),MATCH($W36,CostMaster!$M$39:$T$39,1)+1))) -> 6
A37: UV/H2O2 | B37: UV Dose (mJ/cm2) | C37: ='Train (2)'!F45 -> 200 | D37: =LOOKUP($C37,Master!$A$145:$A$155,Master!C$145:C$155) -> 6 | E37: =LOOKUP($C37,Master!$A$145:$A$155,Master!D$145:D$155) -> 4 | F37: =LOOKUP($C37,Master!$A$145:$A$155,Master!F$145:F$155) -> 6 | G37: =LOOKUP($C37,Master!$A$145:$A$155,Master!E$145:E$155) -> 6 | H37: =LOOKUP(C37,Master!A$162:A$169,Master!D$162:D$169) -> 0.6 | I37: =LOOKUP(C37,Master!A$162:A$169,Master!G$162:G$169) -> 0.5 | J37: =LOOKUP($C37,Master!$A$145:$A$155,Master!G$145:G$155) -> 0.6 | K37: =LOOKUP($C37,Master!$A$145:$A$155,Master!H$145:H$155) -> 0 | L37: =VLOOKUP(C37,Master!$A$162:$M$169,13,TRUE) -> 0.1 | M37: 0 | Q37: =IF(A37='Train (2)'!FINAL_Advance2,1,0) -> 0 | R37: 0 | U37: =Train!F47 -> 3 | V37: ='Train (2)'!F45 -> 200 | W37: ='Train (2)'!I45 -> 0.85 | X37: =IF(ISNUMBER(INDEX(CostMaster!$M$40:$T$84,$AK37+$AL37-1,$AM37)+INDEX(CostMaster!$L$28:$O$32,$AI37,$AJ37)),INDEX(CostMaster!$M$40:$T$84,$AK37+$AL37-1,$AM37)+INDEX(CostMaster!$L$28:$O$32,$AI37,$AJ37),0) -> 1564000 | Y37: 1 | Z37: 1564000 | AI37: =IF(INT($R37)=0,1,IF(ISNUMBER(MATCH($R37,CostMaster!$K$28:$K$32,0)),MATCH($R37,CostMaster!$K$28:$K$32,0),IF(MATCH($R37,CostMaster!$K$28:$K$32,1)+1>COUNT(CostMaster!$K$28:$K$32),COUNT(CostMaster!$K$28:$K$32),MATCH($R37,CostMaster!$K$28:$K$32,1)+1))) -> 1 | AJ37: =IF(INT($U37)<3,1,IF(ISNUMBER(MATCH($U37,CostMaster!$L$27:$O$27,0)),MATCH($U37,CostMaster!$L$27:$O$27,0),IF(MATCH($U37,CostMaster!$L$27:$O$27,1)+1>COUNT(CostMaster!$L$27:$O$27),COUNT(CostMaster!$L$27:$O$27),MATCH($U37,CostMaster!$L$27:$O$27,1)+1))) -> 1 | AK37: =IF(INT($V37)=0,1,IF(ISNUMBER(MATCH($V37,CostMaster!$K$40:$K$84,0)),MATCH($V37,CostMaster!$K$40:$K$84,0),IF(MATCH($V37,CostMaster!$K$40:$K$84,1)+1>COUNT(CostMaster!$K$40:$K$84),COUNT(CostMaster!$K$40:$K$84),MATCH($V37,CostMaster!$K$40:$K$84,1)+1))) -> 21 | AL37: =IF(INT($R37)=0,1,IF(ISNUMBER(MATCH($R37,CostMaster!$L$40:$L$44,0)),MATCH($R37,CostMaster!$L$40:$L$44,0),IF(MATCH($R37,CostMaster!$L$40:$L$44,1)+1>COUNT(CostMaster!$L$40:$L$44),COUNT(CostMaster!$L$40:$L$44),MATCH($R37,CostMaster!$L$40:$L$44,1)+1))) -> 1 | AM37: =IF($W37=0,1,IF(ISNUMBER(MATCH($W37,CostMaster!$M$39:$T$39,0)),MATCH($W37,CostMaster!$M$39:$T$39,0),IF(MATCH($W37,CostMaster!$M$39:$T$39,1)+1>COUNT(CostMaster!$M$39:$T$39),COUNT(CostMaster!$M$39:$T$39),MATCH($W37,CostMaster!$M$39:$T$39,1)+1))) -> 6
A38: BAF | D38: =(100-10^(2-Master!$B$63))/100 -> 0 | E38: =(100-10^(2-Master!$C$63))/100 -> 0 | F38: =(100-10^(2-Master!$D$63))/100 -> 0 | G38: =(100-10^(2-Master!$E$63))/100 -> 0 | H38: =Master!$F$63 -> 0.5 | I38: =Master!$G$63 -> 0.5 | J38: =Master!$H$63 -> 0.5 | K38: =Master!$I$63 -> 0 | L38: =Master!$J$63 -> 0.4 | M38: 0 | P38: see cost master | Q38: =IF(A38='Train (2)'!FINAL_Advance2,1,0) -> 0 | R38: 0 | X38: =CostMaster!C$21*R38^CostMaster!E$21 -> 0 | Y38: 1 | Z38: Not Available
A39: Ozone/BAF | D39: =D$33+D$38 -> 0 | E39: =E$33+E$38 -> 0 | F39: =F$33+F$38 -> 0 | G39: =G$33+G$38 -> 0 | H39: =(1-(1-H$33)*(1-H$38)) -> 0.995 | I39: =(1-(1-I$33)*(1-I$38)) -> 0.85 | J39: =J$38 -> 0.5 | K39: =(1-(1-K$33)*(1-K$38)) -> 0 | L39: =(1-(1-L$33)*(1-L$38)) -> 0.4 | M39: =(1-(1-M$33)*(1-M$38)) -> 0 | Q39: =IF(A39='Train (2)'!FINAL_Advance2,1,0) -> 0 | R39: 0 | X39: =IF(ISNUMBER(INDEX(CostMaster!$L$16:$Q$20,$AE39,$AF39)),INDEX(CostMaster!$L$16:$Q$20,$AE39,$AF39),0)+CostMaster!C$21*R39^CostMaster!E$21 -> 1000000 | Y39: 1 | Z39: 1000000 | AE39: =IF(INT($R39)=0,1,IF(ISNUMBER(MATCH($R39,CostMaster!$K$16:$K$20,0)),MATCH($R39,CostMaster!$K$16:$K$20,0),IF(MATCH($R39,CostMaster!$K$16:$K$20,1)+1>COUNT(CostMaster!$K$16:$K$20),COUNT(CostMaster!$K$16:$K$20),MATCH($R39,CostMaster!$K$16:$K$20,1)+1))) -> 1 | AF39: =IF(INT($S39)=0,1,IF(ISNUMBER(MATCH($S39,CostMaster!$L$15:$Q$15,0)),MATCH($S39,CostMaster!$L$15:$Q$15,0),IF(MATCH($S39,CostMaster!$L$15:$Q$15,1)+1>COUNT(CostMaster!$L$15:$Q$15),COUNT(CostMaster!$L$15:$Q$15),MATCH($S39,CostMaster!$L$15:$Q$15,1)+1))) -> 1
A40: Advanced 3 | R40: =$R$52/('Train (2)'!Paste_Recovery3/100) -> 
A41: BAF | D41: =(100-10^(2-Master!$B$63))/100 -> 0 | E41: =(100-10^(2-Master!$C$63))/100 -> 0 | F41: =(100-10^(2-Master!$D$63))/100 -> 0 | G41: =(100-10^(2-Master!$E$63))/100 -> 0 | H41: =Master!$F$63 -> 0.5 | I41: =Master!$G$63 -> 0.5 | J41: =Master!$H$63 -> 0.5 | K41: =Master!$I$63 -> 0 | L41: =Master!$J$63 -> 0.4 | M41: 0 | Q41: =IF(A41='Train (2)'!FINAL_Advance3,1,0) -> 0 | R41: =IF(Q41=1,$R$52,0) -> 0 | X41: =CostMaster!C$21*R41^CostMaster!E$21 -> 0 | Y41: 1 | Z41: Not Available
A42: Cl2 | B42: CT (mg/min-L) | C42: ='Train (2)'!F64 -> 40 | D42: =LOOKUP($C42,Master!$A$115:$A$122,Master!B$115:B$122) -> 4 | E42: =LOOKUP($C42,Master!$A$115:$A$122,Master!C$115:C$122) -> 4 | F42: =LOOKUP($C42,Master!$A$115:$A$122,Master!D$115:D$122) -> 0 | G42: =LOOKUP($C42,Master!$A$115:$A$122,Master!E$115:E$122) -> 0 | H42: =LOOKUP($C$25,Master!$A$111:$A$118,Master!$G$111:$G$118) -> 0 | I42: =LOOKUP($C$25,Master!$A$111:$A$118,Master!$F$111:$F$118) -> 0 | J42: =Master!H65 -> 0 | K42: =Master!I65 -> 0 | L42: =Master!J65 -> 0 | M42: =Master!K65 -> 0 | P42: =M42*O42 -> 0 | Q42: =IF(A42='Train (2)'!FINAL_Advance3,1,0) -> 0 | R42: =IF(Q42=1,$R$52,0) -> 0 | T42: ='Train (2)'!Q64 -> 4.944444444 | X42: =IF(ISNUMBER(INDEX(CostMaster!$L$4:$P$8,$AG42,$AH42)),INDEX(CostMaster!$L$4:$P$8,$AG42,$AH42),0) -> 54000 | Y42: 1 | Z42: 54000 | AG42: =IF(INT($R42)=0,1,IF(ISNUMBER(MATCH($R42,CostMaster!$K$4:$K$8,0)),MATCH($R42,CostMaster!$K$4:$K$8,0),IF(MATCH($R42,CostMaster!$K$4:$K$8,1)+1>COUNT(CostMaster!$K$4:$K$8),COUNT(CostMaster!$K$4:$K$8),MATCH($R42,CostMaster!$K$4:$K$8,1)+1))) -> 1 | AH42: =IF(INT($T42)=0,1,IF(ISNUMBER(MATCH($T42,CostMaster!$L$3:$P$3,0)),MATCH($T42,CostMaster!$L$3:$P$3,0),IF(MATCH($T42,CostMaster!$L$3:$P$3,1)+1>COUNT(CostMaster!$L$3:$P$3),COUNT(CostMaster!$L$3:$P$3),MATCH($T42,CostMaster!$L$3:$P$3,1)+1))) -> 2
A43: NF | D43: =IF(Input!$T$3=TRUE,Master!B40,Master!B41) -> 0 | E43: =IF(Input!$T$3=TRUE,Master!C40,Master!C41) -> 0 | F43: =IF(Input!$T$3=TRUE,Master!D40,Master!D41) -> 0 | G43: =IF(Input!$T$3=TRUE,Master!E40,Master!E41) -> 0 | H43: =Master!F40 -> 0.75 | I43: =Master!G40 -> 0.75 | J43: =Master!H40 -> 0.05 | K43: =Master!$I$40 -> 0.25 | L43: =Master!J$40 -> 0.93 | M43: =Master!K$40 -> 0.9 | P43: =CostMaster!C11 -> 3750000 | Q43: =IF(A43='Train (2)'!FINAL_Advance3,1,0) -> 0 | R43: =IF(Q43=1,$R$52,0) -> 0 | X43: =P43*R43 -> 0 | Y43: 1 | Z43: Not Available
A44: None | D44: 0 | E44: 0 | F44: 0 | G44: 0 | H44: 0 | I44: 0 | J44: 0 | K44: 0 | L44: 0 | M44: 0 | P44: 0 | Q44: =IF(A44='Train (2)'!FINAL_Advance3,1,0) -> 1 | R44: =IF(Q44=1,$R$52,0) ->  | X44: =P44*R44 ->  | Y44: 1 | Z44: 0
A45: Ozone | B45: ='Train (2)'!M57 -> 0 | C45: ='Train (2)'!N57 -> 0 | D45: =VLOOKUP($C45,Master!$M$126:$Q$131,2,TRUE) -> 0 | E45: =VLOOKUP($C45,Master!$M$126:$Q$131,3,TRUE) -> 0 | F45: =VLOOKUP($C45,Master!$M$126:$Q$131,4,TRUE) -> 0 | G45: =VLOOKUP($C45,Master!$M$126:$Q$131,5,TRUE) -> 0 | H45: =VLOOKUP($B$20,Master!$A$126:$L$130,6,TRUE) -> 0.99 | I45: =VLOOKUP($B$20,Master!$A$126:$L$130,4,TRUE) -> 0.7 | J45: Warning | K45: =Master!I77 -> 0 | L45: =Master!J$52 -> 0 | M45: =Master!K$52 -> 0 | Q45: =IF(A45='Train (2)'!FINAL_Advance3,1,0) -> 0 | R45: =IF(Q45=1,$R$40,0) -> 0 | S45: ='Train (2)'!Q66 -> FALSE | X45: =IF(ISNUMBER(INDEX(CostMaster!$L$16:$Q$20,$AE45,$AF45)),INDEX(CostMaster!$L$16:$Q$20,$AE45,$AF45),0) -> 1000000 | Y45: 1 | Z45: 1000000 | AE45: =IF(INT($R45)=0,1,IF(ISNUMBER(MATCH($R45,CostMaster!$K$16:$K$20,0)),MATCH($R45,CostMaster!$K$16:$K$20,0),IF(MATCH($R45,CostMaster!$K$16:$K$20,1)+1>COUNT(CostMaster!$K$16:$K$20),COUNT(CostMaster!$K$16:$K$20),MATCH($R45,CostMaster!$K$16:$K$20,1)+1))) -> 1 | AF45: =IF(INT($S45)=0,1,IF(ISNUMBER(MATCH($S45,CostMaster!$L$15:$Q$15,0)),MATCH($S45,CostMaster!$L$15:$Q$15,0),IF(MATCH($S45,CostMaster!$L$15:$Q$15,1)+1>COUNT(CostMaster!$L$15:$Q$15),COUNT(CostMaster!$L$15:$Q$15),MATCH($S45,CostMaster!$L$15:$Q$15,1)+1))) -> 1
A46: Ozone/H2O2 | B46: ='Train (2)'!M66 -> 1 | C46: ='Train (2)'!N66 -> 0 | D46: =VLOOKUP($C46,Master!$M$126:$Q$131,2,TRUE) -> 0 | E46: =VLOOKUP($C46,Master!$M$126:$Q$131,3,TRUE) -> 0 | F46: =VLOOKUP($C46,Master!$M$126:$Q$131,4,TRUE) -> 0 | G46: =VLOOKUP($C46,Master!$M$126:$Q$131,5,TRUE) -> 0 | H46: =VLOOKUP($B$20,Master!$A$126:$L$130,6,TRUE) -> 0.99 | I46: =VLOOKUP($B$20,Master!$A$126:$L$130,4,TRUE) -> 0.7 | J46: Warning | K46: =Master!I78 -> 0 | L46: =Master!J$52 -> 0 | M46: =Master!K$52 -> 0 | Q46: =IF(A46='Train (2)'!FINAL_Advance3,1,0) -> 0 | R46: =IF(Q46=1,$R$52,0) -> 0 | S46: ='Train (2)'!Q66 -> FALSE | U46: =Train!$F$70 -> 3 | X46: =IF(ISNUMBER(INDEX(CostMaster!$L$16:$Q$20,$AE46,$AF46)+INDEX(CostMaster!$L$28:$O$32,$AI46,$AJ46)),INDEX(CostMaster!$L$16:$Q$20,$AE46,$AF46)+INDEX(CostMaster!$L$28:$O$32,$AI46,$AJ46),0) -> 1734000 | Y46: 1 | Z46: 1734000 | AE46: =IF(INT($R46)=0,1,IF(ISNUMBER(MATCH($R46,CostMaster!$K$16:$K$20,0)),MATCH($R46,CostMaster!$K$16:$K$20,0),IF(MATCH($R46,CostMaster!$K$16:$K$20,1)+1>COUNT(CostMaster!$K$16:$K$20),COUNT(CostMaster!$K$16:$K$20),MATCH($R46,CostMaster!$K$16:$K$20,1)+1))) -> 1 | AF46: =IF(INT($S46)=0,1,IF(ISNUMBER(MATCH($S46,CostMaster!$L$15:$Q$15,0)),MATCH($S46,CostMaster!$L$15:$Q$15,0),IF(MATCH($S46,CostMaster!$L$15:$Q$15,1)+1>COUNT(CostMaster!$L$15:$Q$15),COUNT(CostMaster!$L$15:$Q$15),MATCH($S46,CostMaster!$L$15:$Q$15,1)+1))) -> 1 | AI46: =IF(INT($R46)=0,1,IF(ISNUMBER(MATCH($R46,CostMaster!$K$28:$K$32,0)),MATCH($R46,CostMaster!$K$28:$K$32,0),IF(MATCH($R46,CostMaster!$K$28:$K$32,1)+1>COUNT(CostMaster!$K$28:$K$32),COUNT(CostMaster!$K$28:$K$32),MATCH($R46,CostMaster!$K$28:$K$32,1)+1))) -> 1 | AJ46: =IF(INT($U46)<3,1,IF(ISNUMBER(MATCH($U46,CostMaster!$L$27:$O$27,0)),MATCH($U46,CostMaster!$L$27:$O$27,0),IF(MATCH($U46,CostMaster!$L$27:$O$27,1)+1>COUNT(CostMaster!$L$27:$O$27),COUNT(CostMaster!$L$27:$O$27),MATCH($U46,CostMaster!$L$27:$O$27,1)+1))) -> 1
A47: RO | D47: =IF(Input!$T$3=TRUE,Master!B42,Master!B41) -> 2 | E47: =IF(Input!$T$3=TRUE,Master!C42,Master!C41) -> 2 | F47: =IF(Input!$T$3=TRUE,Master!D42,Master!D41) -> 2 | G47: =IF(Input!$T$3=TRUE,Master!E42,Master!E41) -> 2 | H47: =Master!F42 -> 0.95 | I47: =Master!G42 -> 0.95 | J47: =Master!H$42 -> 0.5 | K47: =Master!$I$42 -> 0.9 | L47: =Master!$J$42 -> 0.95 | M47: =Master!K$42 -> 0.99 | P47: =CostMaster!C12 -> 3750000 | Q47: =IF(A47='Train (2)'!FINAL_Advance3,1,0) -> 0 | R47: 0 | X47: =P47*R47 -> 0 | Y47: 1 | Z47: Not Available
A48: UV | B48: UV Dose (mJ/cm2) | C48: ='Train (2)'!F68 -> 1000 | D48: =LOOKUP($C48,Master!$A$145:$A$155,Master!C$145:C$155) -> 6 | E48: =LOOKUP($C48,Master!$A$145:$A$155,Master!D$145:D$155) -> 6 | F48: =LOOKUP($C48,Master!$A$145:$A$155,Master!F$145:F$155) -> 6 | G48: =LOOKUP($C48,Master!$A$145:$A$155,Master!E$145:E$155) -> 6 | H48: =LOOKUP(C48,Master!A162:A169,Master!C162:C169) -> 0.25 | I48: =LOOKUP(C48,Master!A162:A169,Master!F162:F169) -> 0.25 | J48: =LOOKUP($C48,Master!$A$145:$A$155,Master!G$145:G$155) -> 0.95 | K48: =LOOKUP($C48,Master!$A$145:$A$155,Master!H$145:H$155) -> 0 | L48: =VLOOKUP(C48,Master!$A$162:$M$169,10,TRUE) -> 0.1 | M48: 0 | Q48: =IF(A48='Train (2)'!FINAL_Advance3,1,0) -> 0 | R48: 0 | V48: ='Train (2)'!$F$68 -> 1000 | W48: ='Train (2)'!$I$68 -> 0 | X48: =IF(ISNUMBER(INDEX(CostMaster!$M$40:$T$84,$AK48+$AL48-1,$AM48)),INDEX(CostMaster!$M$40:$T$84,$AK48+$AL48-1,$AM48),0) -> 7245000 | Y48: 1 | Z48: 7245000 | AK48: =IF(INT($V48)=0,1,IF(ISNUMBER(MATCH($V48,CostMaster!$K$40:$K$84,0)),MATCH($V48,CostMaster!$K$40:$K$84,0),IF(MATCH($V48,CostMaster!$K$40:$K$84,1)+1>COUNT(CostMaster!$K$40:$K$84),COUNT(CostMaster!$K$40:$K$84),MATCH($V48,CostMaster!$K$40:$K$84,1)+1))) -> 41 | AL48: =IF(INT($R48)=0,1,IF(ISNUMBER(MATCH($R48,CostMaster!$L$40:$L$44,0)),MATCH($R48,CostMaster!$L$40:$L$44,0),IF(MATCH($R48,CostMaster!$L$40:$L$44,1)+1>COUNT(CostMaster!$L$40:$L$44),COUNT(CostMaster!$L$40:$L$44),MATCH($R48,CostMaster!$L$40:$L$44,1)+1))) -> 1 | AM48: =IF($W48=0,1,IF(ISNUMBER(MATCH($W48,CostMaster!$M$39:$T$39,0)),MATCH($W48,CostMaster!$M$39:$T$39,0),IF(MATCH($W48,CostMaster!$M$39:$T$39,1)+1>COUNT(CostMaster!$M$39:$T$39),COUNT(CostMaster!$M$39:$T$39),MATCH($W48,CostMaster!$M$39:$T$39,1)+1))) -> 1
A49: UV/H2O2 | B49: UV Dose (mJ/cm2) | C49: ='Train (2)'!F68 -> 1000 | D49: =LOOKUP($C49,Master!$A$145:$A$155,Master!C$145:C$155) -> 6 | E49: =LOOKUP($C49,Master!$A$145:$A$155,Master!D$145:D$155) -> 6 | F49: =LOOKUP($C49,Master!$A$145:$A$155,Master!F$145:F$155) -> 6 | G49: =LOOKUP($C49,Master!$A$145:$A$155,Master!E$145:E$155) -> 6 | H49: =LOOKUP(C49,Master!A$162:A$169,Master!D$162:D$169) -> 0.8 | I49: =LOOKUP(C49,Master!A$162:A$169,Master!G$162:G$169) -> 0.6 | J49: =LOOKUP($C49,Master!$A$145:$A$155,Master!G$145:G$155) -> 0.95 | K49: =LOOKUP($C49,Master!$A$145:$A$155,Master!H$145:H$155) -> 0 | L49: =VLOOKUP(C49,Master!$A$162:$M$169,13,TRUE) -> 0.1 | M49: 0 | Q49: =IF(A49='Train (2)'!FINAL_Advance3,1,0) -> 0 | R49: 0 | U49: =Train!$F$70 -> 3 | V49: ='Train (2)'!$F$68 -> 1000 | W49: ='Train (2)'!$I$68 -> 0 | X49: =IF(ISNUMBER(INDEX(CostMaster!$M$40:$T$84,$AK49+$AL49-1,$AM49)+INDEX(CostMaster!$L$28:$O$32,$AI49,$AJ49)),INDEX(CostMaster!$M$40:$T$84,$AK49+$AL49-1,$AM49)+INDEX(CostMaster!$L$28:$O$32,$AI49,$AJ49),0) -> 7979000 | Y49: 1 | Z49: =IF(Y49*X49>0,Y49*X49, "Not Available") -> 7979000 | AI49: =IF(INT($R49)=0,1,IF(ISNUMBER(MATCH($R49,CostMaster!$K$28:$K$32,0)),MATCH($R49,CostMaster!$K$28:$K$32,0),IF(MATCH($R49,CostMaster!$K$28:$K$32,1)+1>COUNT(CostMaster!$K$28:$K$32),COUNT(CostMaster!$K$28:$K$32),MATCH($R49,CostMaster!$K$28:$K$32,1)+1))) -> 1 | AJ49: =IF(INT($U49)<3,1,IF(ISNUMBER(MATCH($U49,CostMaster!$L$27:$O$27,0)),MATCH($U49,CostMaster!$L$27:$O$27,0),IF(MATCH($U49,CostMaster!$L$27:$O$27,1)+1>COUNT(CostMaster!$L$27:$O$27),COUNT(CostMaster!$L$27:$O$27),MATCH($U49,CostMaster!$L$27:$O$27,1)+1))) -> 1 | AK49: =IF(INT($V49)=0,1,IF(ISNUMBER(MATCH($V49,CostMaster!$K$40:$K$84,0)),MATCH($V49,CostMaster!$K$40:$K$84,0),IF(MATCH($V49,CostMaster!$K$40:$K$84,1)+1>COUNT(CostMaster!$K$40:$K$84),COUNT(CostMaster!$K$40:$K$84),MATCH($V49,CostMaster!$K$40:$K$84,1)+1))) -> 41 | AL49: =IF(INT($R49)=0,1,IF(ISNUMBER(MATCH($R49,CostMaster!$L$40:$L$44,0)),MATCH($R49,CostMaster!$L$40:$L$44,0),IF(MATCH($R49,CostMaster!$L$40:$L$44,1)+1>COUNT(CostMaster!$L$40:$L$44),COUNT(CostMaster!$L$40:$L$44),MATCH($R49,CostMaster!$L$40:$L$44,1)+1))) -> 1 | AM49: =IF($W49=0,1,IF(ISNUMBER(MATCH($W49,CostMaster!$M$39:$T$39,0)),MATCH($W49,CostMaster!$M$39:$T$39,0),IF(MATCH($W49,CostMaster!$M$39:$T$39,1)+1>COUNT(CostMaster!$M$39:$T$39),COUNT(CostMaster!$M$39:$T$39),MATCH($W49,CostMaster!$M$39:$T$39,1)+1))) -> 1
A50: MF | D50: =Master!B$36 -> 3 | E50: =Master!C$36 -> 0 | F50: =Master!D$36 -> 3 | G50: =Master!E$36 -> 3 | H50: =Master!F$36 -> 0.3 | I50: =Master!G$36 -> 0.1 | J50: =Master!H$36 -> 0 | K50: =Master!$I$36 -> 0 | L50: =Master!J$36 -> 0 | M50: 0 | P50: =CostMaster!C9 -> 2500000 | Q50: =IF(A50='Train (2)'!FINAL_Advance3,1,0) -> 0 | R50: 0 | X50: =P50*R50 -> 0 | Y50: 1 | Z50: Not Available
A51: UF | D51: =Master!B$38 -> 4 | E51: =Master!C$38 -> 0 | F51: =Master!D$38 -> 4 | G51: =Master!E$38 -> 4 | H51: =Master!F$38 -> 0.3 | I51: =Master!G$38 -> 0.3 | J51: =Master!H$38 -> 0 | K51: =Master!I$38 -> 0 | L51: =Master!J$38 -> 0 | M51: 0 | P51: =CostMaster!C9 -> 2500000 | Q51: =IF(A51='Train (2)'!FINAL_Advance3,1,0) -> 0 | R51: 0 | X51: =P51*R51 -> 0 | Y51: 1 | Z51: Not Available
A52: Advanced 4 | R52: =$R$59/('Train (2)'!Paste_Recovery4/100) -> 
A53: Cl2 | B53: CT (mg/min-L) | C53: ='Train (2)'!F82 -> 10 | D53: =LOOKUP($C53,Master!$A$115:$A$122,Master!B$115:B$122) -> 4 | E53: =LOOKUP($C53,Master!$A$115:$A$122,Master!C$115:C$122) -> 4 | F53: =LOOKUP($C53,Master!$A$115:$A$122,Master!D$115:D$122) -> 0 | G53: =LOOKUP($C53,Master!$A$115:$A$122,Master!E$115:E$122) -> 0 | H53: =LOOKUP($C$25,Master!$A$111:$A$118,Master!$G$111:$G$118) -> 0 | I53: =LOOKUP($C$25,Master!$A$111:$A$118,Master!$F$111:$F$118) -> 0 | J53: =Master!H76 -> 0 | K53: =Master!I76 -> 0 | L53: =Master!J76 -> 0 | M53: =Master!K76 -> 0 | Q53: =IF(A53='Train (2)'!FINAL_Advance4,1,0) -> 0 | R53: =IF(Q53=1,$R$59,0) -> 0 | T53: ='Train (2)'!Q82 -> 2.25 | X53: =IF(ISNUMBER(INDEX(CostMaster!$L$4:$P$8,$AG53,$AH53)),INDEX(CostMaster!$L$4:$P$8,$AG53,$AH53),0) -> 54000 | Y53: 1 | Z53: 54000 | AG53: =IF(INT($R53)=0,1,IF(ISNUMBER(MATCH($R53,CostMaster!$K$4:$K$8,0)),MATCH($R53,CostMaster!$K$4:$K$8,0),IF(MATCH($R53,CostMaster!$K$4:$K$8,1)+1>COUNT(CostMaster!$K$4:$K$8),COUNT(CostMaster!$K$4:$K$8),MATCH($R53,CostMaster!$K$4:$K$8,1)+1))) -> 1 | AH53: =IF(INT($T53)=0,1,IF(ISNUMBER(MATCH($T53,CostMaster!$L$3:$P$3,0)),MATCH($T53,CostMaster!$L$3:$P$3,0),IF(MATCH($T53,CostMaster!$L$3:$P$3,1)+1>COUNT(CostMaster!$L$3:$P$3),COUNT(CostMaster!$L$3:$P$3),MATCH($T53,CostMaster!$L$3:$P$3,1)+1))) -> 2
A54: None | D54: 0 | E54: 0 | F54: 0 | G54: 0 | H54: 0 | I54: 0 | J54: 0 | K54: 0 | L54: 0 | M54: 0 | P54: 0 | Q54: =IF(A54='Train (2)'!FINAL_Advance4,1,0) -> 1 | X54: =P54*R54 ->  | Y54: 1 | Z54: 0
A55: Ozone/H2O2 | B55: ='Train (2)'!M84 -> 1 | C55: ='Train (2)'!N84 -> 0 | D55: =VLOOKUP($C55,Master!$M$126:$Q$131,2,TRUE) -> 0 | E55: =VLOOKUP($C55,Master!$M$126:$Q$131,3,TRUE) -> 0 | F55: =VLOOKUP($C55,Master!$M$126:$Q$131,4,TRUE) -> 0 | G55: =VLOOKUP($C55,Master!$M$126:$Q$131,5,TRUE) -> 0 | H55: =VLOOKUP($B$20,Master!$A$126:$L$130,6,TRUE) -> 0.99 | I55: =VLOOKUP($B$20,Master!$A$126:$L$130,4,TRUE) -> 0.7 | J55: Warning | K55: =Master!I87 -> 0 | L55: =Master!J$52 -> 0 | M55: =Master!K$52 -> 0 | Q55: =IF(A55='Train (2)'!FINAL_Advance4,1,0) -> 0 | R55: 0 | S55: ='Train (2)'!Q84 -> FALSE | U55: ='Train (2)'!$F$88 -> 3 | X55: =IF(ISNUMBER(INDEX(CostMaster!$L$16:$Q$20,$AE55,$AF55)+INDEX(CostMaster!$L$28:$O$32,$AI55,$AJ55)),INDEX(CostMaster!$L$16:$Q$20,$AE55,$AF55)+INDEX(CostMaster!$L$28:$O$32,$AI55,$AJ55),0) -> 1734000 | Y55: 1 | Z55: 1734000 | AE55: =IF(INT($R55)=0,1,IF(ISNUMBER(MATCH($R55,CostMaster!$K$16:$K$20,0)),MATCH($R55,CostMaster!$K$16:$K$20,0),IF(MATCH($R55,CostMaster!$K$16:$K$20,1)+1>COUNT(CostMaster!$K$16:$K$20),COUNT(CostMaster!$K$16:$K$20),MATCH($R55,CostMaster!$K$16:$K$20,1)+1))) -> 1 | AF55: =IF(INT($S55)=0,1,IF(ISNUMBER(MATCH($S55,CostMaster!$L$15:$Q$15,0)),MATCH($S55,CostMaster!$L$15:$Q$15,0),IF(MATCH($S55,CostMaster!$L$15:$Q$15,1)+1>COUNT(CostMaster!$L$15:$Q$15),COUNT(CostMaster!$L$15:$Q$15),MATCH($S55,CostMaster!$L$15:$Q$15,1)+1))) -> 1 | AI55: =IF(INT($R55)=0,1,IF(ISNUMBER(MATCH($R55,CostMaster!$K$28:$K$32,0)),MATCH($R55,CostMaster!$K$28:$K$32,0),IF(MATCH($R55,CostMaster!$K$28:$K$32,1)+1>COUNT(CostMaster!$K$28:$K$32),COUNT(CostMaster!$K$28:$K$32),MATCH($R55,CostMaster!$K$28:$K$32,1)+1))) -> 1 | AJ55: =IF(INT($U55)<3,1,IF(ISNUMBER(MATCH($U55,CostMaster!$L$27:$O$27,0)),MATCH($U55,CostMaster!$L$27:$O$27,0),IF(MATCH($U55,CostMaster!$L$27:$O$27,1)+1>COUNT(CostMaster!$L$27:$O$27),COUNT(CostMaster!$L$27:$O$27),MATCH($U55,CostMaster!$L$27:$O$27,1)+1))) -> 1
A56: UV | B56: UV Dose (mJ/cm2) | C56: ='Train (2)'!F86 -> 800 | D56: =LOOKUP($C56,Master!$A$145:$A$155,Master!C$145:C$155) -> 6 | E56: =LOOKUP($C56,Master!$A$145:$A$155,Master!D$145:D$155) -> 6 | F56: =LOOKUP($C56,Master!$A$145:$A$155,Master!F$145:F$155) -> 6 | G56: =LOOKUP($C56,Master!$A$145:$A$155,Master!E$145:E$155) -> 6 | H56: =LOOKUP(C56,Master!A162:A169,Master!C162:C169) -> 0.25 | I56: =LOOKUP(C56,Master!A162:A169,Master!F162:F169) -> 0.25 | J56: =LOOKUP($C56,Master!$A$145:$A$155,Master!G$145:G$155) -> 0.9 | K56: =LOOKUP($C56,Master!$A$145:$A$155,Master!H$145:H$155) -> 0 | L56: =VLOOKUP(C56,Master!$A$162:$M$169,10,TRUE) -> 0.1 | M56: 0 | Q56: =IF(A56='Train (2)'!FINAL_Advance4,1,0) -> 0 | R56: 0 | V56: ='Train (2)'!$F$86 -> 800 | W56: ='Train (2)'!$I$86 -> 0 | X56: =IF(ISNUMBER(INDEX(CostMaster!$M$40:$T$84,$AK56+$AL56-1,$AM56)),INDEX(CostMaster!$M$40:$T$84,$AK56+$AL56-1,$AM56),0) -> 5434000 | Y56: 1 | Z56: 5434000 | AK56: =IF(INT($V56)=0,1,IF(ISNUMBER(MATCH($V56,CostMaster!$K$40:$K$84,0)),MATCH($V56,CostMaster!$K$40:$K$84,0),IF(MATCH($V56,CostMaster!$K$40:$K$84,1)+1>COUNT(CostMaster!$K$40:$K$84),COUNT(CostMaster!$K$40:$K$84),MATCH($V56,CostMaster!$K$40:$K$84,1)+1))) -> 36 | AL56: =IF(INT($R56)=0,1,IF(ISNUMBER(MATCH($R56,CostMaster!$L$40:$L$44,0)),MATCH($R56,CostMaster!$L$40:$L$44,0),IF(MATCH($R56,CostMaster!$L$40:$L$44,1)+1>COUNT(CostMaster!$L$40:$L$44),COUNT(CostMaster!$L$40:$L$44),MATCH($R56,CostMaster!$L$40:$L$44,1)+1))) -> 1 | AM56: =IF($W56=0,1,IF(ISNUMBER(MATCH($W56,CostMaster!$M$39:$T$39,0)),MATCH($W56,CostMaster!$M$39:$T$39,0),IF(MATCH($W56,CostMaster!$M$39:$T$39,1)+1>COUNT(CostMaster!$M$39:$T$39),COUNT(CostMaster!$M$39:$T$39),MATCH($W56,CostMaster!$M$39:$T$39,1)+1))) -> 1
A57: UV/H2O2 | B57: UV Dose (mJ/cm2) | C57: ='Train (2)'!F86 -> 800 | D57: =LOOKUP($C57,Master!$A$145:$A$155,Master!C$145:C$155) -> 6 | E57: =LOOKUP($C57,Master!$A$145:$A$155,Master!D$145:D$155) -> 6 | F57: =LOOKUP($C57,Master!$A$145:$A$155,Master!F$145:F$155) -> 6 | G57: =LOOKUP($C57,Master!$A$145:$A$155,Master!E$145:E$155) -> 6 | H57: =LOOKUP(C57,Master!A$162:A$169,Master!D$162:D$169) -> 0.8 | I57: =LOOKUP(C57,Master!A$162:A$169,Master!G$162:G$169) -> 0.6 | J57: =LOOKUP($C57,Master!$A$145:$A$155,Master!G$145:G$155) -> 0.9 | K57: =LOOKUP($C57,Master!$A$145:$A$155,Master!H$145:H$155) -> 0 | L57: =VLOOKUP(C57,Master!$A$162:$M$169,13,TRUE) -> 0.1 | M57: 0 | Q57: =IF(A57='Train (2)'!FINAL_Advance4,1,0) -> 0 | R57: 0 | U57: =Train!$F$88 -> 3 | V57: ='Train (2)'!$F$86 -> 800 | W57: ='Train (2)'!$I$86 -> 0 | X57: =IF(ISNUMBER(INDEX(CostMaster!$M$40:$T$84,$AK57+$AL57-1,$AM57)+INDEX(CostMaster!$L$28:$O$32,$AI57,$AJ57)),INDEX(CostMaster!$M$40:$T$84,$AK57+$AL57-1,$AM57)+INDEX(CostMaster!$L$28:$O$32,$AI57,$AJ57),0) -> 6168000 | Y57: 1 | Z57: 6168000 | AI57: =IF(INT($R57)=0,1,IF(ISNUMBER(MATCH($R57,CostMaster!$K$28:$K$32,0)),MATCH($R57,CostMaster!$K$28:$K$32,0),IF(MATCH($R57,CostMaster!$K$28:$K$32,1)+1>COUNT(CostMaster!$K$28:$K$32),COUNT(CostMaster!$K$28:$K$32),MATCH($R57,CostMaster!$K$28:$K$32,1)+1))) -> 1 | AJ57: =IF(INT($U57)<3,1,IF(ISNUMBER(MATCH($U57,CostMaster!$L$27:$O$27,0)),MATCH($U57,CostMaster!$L$27:$O$27,0),IF(MATCH($U57,CostMaster!$L$27:$O$27,1)+1>COUNT(CostMaster!$L$27:$O$27),COUNT(CostMaster!$L$27:$O$27),MATCH($U57,CostMaster!$L$27:$O$27,1)+1))) -> 1 | AK57: =IF(INT($V57)=0,1,IF(ISNUMBER(MATCH($V57,CostMaster!$K$40:$K$84,0)),MATCH($V57,CostMaster!$K$40:$K$84,0),IF(MATCH($V57,CostMaster!$K$40:$K$84,1)+1>COUNT(CostMaster!$K$40:$K$84),COUNT(CostMaster!$K$40:$K$84),MATCH($V57,CostMaster!$K$40:$K$84,1)+1))) -> 36 | AL57: =IF(INT($R57)=0,1,IF(ISNUMBER(MATCH($R57,CostMaster!$L$40:$L$44,0)),MATCH($R57,CostMaster!$L$40:$L$44,0),IF(MATCH($R57,CostMaster!$L$40:$L$44,1)+1>COUNT(CostMaster!$L$40:$L$44),COUNT(CostMaster!$L$40:$L$44),MATCH($R57,CostMaster!$L$40:$L$44,1)+1))) -> 1 | AM57: =IF($W57=0,1,IF(ISNUMBER(MATCH($W57,CostMaster!$M$39:$T$39,0)),MATCH($W57,CostMaster!$M$39:$T$39,0),IF(MATCH($W57,CostMaster!$M$39:$T$39,1)+1>COUNT(CostMaster!$M$39:$T$39),COUNT(CostMaster!$M$39:$T$39),MATCH($W57,CostMaster!$M$39:$T$39,1)+1))) -> 1
A58: Ozone | B58: ='Train (2)'!M84 -> 1 | C58: ='Train (2)'!N84 -> 0 | D58: =VLOOKUP($C58,Master!$M$126:$Q$131,2,TRUE) -> 0 | E58: =VLOOKUP($C58,Master!$M$126:$Q$131,3,TRUE) -> 0 | F58: =VLOOKUP($C58,Master!$M$126:$Q$131,4,TRUE) -> 0 | G58: =VLOOKUP($C58,Master!$M$126:$Q$131,5,TRUE) -> 0 | H58: =VLOOKUP($B$20,Master!$A$126:$L$130,6,TRUE) -> 0.99 | I58: =VLOOKUP($B$20,Master!$A$126:$L$130,4,TRUE) -> 0.7 | J58: Warning | K58: =Master!I90 -> 0 | L58: =Master!J$52 -> 0 | M58: =Master!K$52 -> 0 | Q58: =IF(A58='Train (2)'!FINAL_Advance4,1,0) -> 0 | R58: 0 | S58: ='Train (2)'!Q84 -> FALSE | X58: =IF(ISNUMBER(INDEX(CostMaster!$L$16:$Q$20,$AE58,$AF58)),INDEX(CostMaster!$L$16:$Q$20,$AE58,$AF58),0) -> 1000000 | Y58: 1 | Z58: 1000000 | AE58: =IF(INT($R58)=0,1,IF(ISNUMBER(MATCH($R58,CostMaster!$K$16:$K$20,0)),MATCH($R58,CostMaster!$K$16:$K$20,0),IF(MATCH($R58,CostMaster!$K$16:$K$20,1)+1>COUNT(CostMaster!$K$16:$K$20),COUNT(CostMaster!$K$16:$K$20),MATCH($R58,CostMaster!$K$16:$K$20,1)+1))) -> 1 | AF58: =IF(INT($S58)=0,1,IF(ISNUMBER(MATCH($S58,CostMaster!$L$15:$Q$15,0)),MATCH($S58,CostMaster!$L$15:$Q$15,0),IF(MATCH($S58,CostMaster!$L$15:$Q$15,1)+1>COUNT(CostMaster!$L$15:$Q$15),COUNT(CostMaster!$L$15:$Q$15),MATCH($S58,CostMaster!$L$15:$Q$15,1)+1))) -> 1
A59: Env Buffer | P59: =M59*O59 -> 0 | R59: =$R$66 -> 
A60: Direct Injection (Subsurface Migration Only) | B60: Trave Time (Months) | C60: ='Train (2)'!F95 -> 6 | D60: =IF(Master!B70*C60>6,6,Master!B70*C60) -> 6 | E60: =IF(Master!C70*C60>6,6,Master!C70*C60) -> 6 | F60: =IF(Master!D70*$C$60>6,6,Master!D70*$C$60) -> 6 | G60: =IF(Master!E70*$C$60>6,6,Master!E70*$C$60) -> 6 | H60: =Master!F70 -> 0 | I60: =Master!G70 -> 0 | J60: =Master!H$70 -> 0 | K60: 0 | L60: =Master!J$70 -> 0 | M60: 0 | Q60: =IF(A60='Train (2)'!FINAL_Optional,1,0) -> 0 | R60: =IF(Q60=1,$R$66,0) -> 0 | X60: =P60*R60 -> 0 | Y60: 1 | Z60: Not Available
A61: Engineered Storage Buffer - Cl2 | B61: CT (mg/min-L) | C61: ='Train (2)'!F96 -> 30 | D61: =LOOKUP($C61,Master!$A$115:$A$122,Master!B$115:B$122) -> 4 | E61: =LOOKUP($C61,Master!$A$115:$A$122,Master!C$115:C$122) -> 4 | F61: =LOOKUP($C61,Master!$A$115:$A$122,Master!D$115:D$122) -> 0 | G61: =LOOKUP($C61,Master!$A$115:$A$122,Master!E$115:E$122) -> 0 | H61: =LOOKUP($C$25,Master!$A$111:$A$118,Master!$G$111:$G$118) -> 0 | I61: =LOOKUP($C$25,Master!$A$111:$A$118,Master!$F$111:$F$118) -> 0 | J61: =Master!H84 -> 0 | K61: =Master!I84 -> 0 | L61: =Master!J84 -> 0 | M61: =Master!K84 -> 0 | Q61: =IF(A61='Train (2)'!FINAL_Optional,1,0) -> 0 | R61: =IF(Q61=1,$R$66,0) -> 0 | T61: ='Train (2)'!Q96 -> 16.83333333 | X61: =IF(ISNUMBER(INDEX(CostMaster!$L$4:$P$8,$AG61,$AH61)),INDEX(CostMaster!$L$4:$P$8,$AG61,$AH61),0) -> 268000 | Y61: 1 | Z61: 268000 | AG61: =IF(INT($R61)=0,1,IF(ISNUMBER(MATCH($R61,CostMaster!$K$4:$K$8,0)),MATCH($R61,CostMaster!$K$4:$K$8,0),IF(MATCH($R61,CostMaster!$K$4:$K$8,1)+1>COUNT(CostMaster!$K$4:$K$8),COUNT(CostMaster!$K$4:$K$8),MATCH($R61,CostMaster!$K$4:$K$8,1)+1))) -> 1 | AH61: =IF(INT($T61)=0,1,IF(ISNUMBER(MATCH($T61,CostMaster!$L$3:$P$3,0)),MATCH($T61,CostMaster!$L$3:$P$3,0),IF(MATCH($T61,CostMaster!$L$3:$P$3,1)+1>COUNT(CostMaster!$L$3:$P$3),COUNT(CostMaster!$L$3:$P$3),MATCH($T61,CostMaster!$L$3:$P$3,1)+1))) -> 5
A62: Engineered Storage Buffer - Chloramines | B62: CT (mg/min-L) | C62: ='Train (2)'!F97 -> 450 | D62: =LOOKUP($C62,Master!$A$173:$A$180,Master!B$173:B$180) -> 0 | E62: =LOOKUP($C62,Master!$A$173:$A$180,Master!C$173:C$180) -> 0 | F62: =LOOKUP($C62,Master!$A$173:$A$180,Master!D$173:D$180) -> 0 | G62: =LOOKUP($C62,Master!$A$173:$A$180,Master!E$173:E$180) -> 0 | H62: 0 | I62: 0 | J62: 0 | K62: 0 | L62: 0 | M62: 0 | Q62: =IF(A62='Train (2)'!FINAL_Optional,1,0) -> 1 | X62: =P62*R62 ->  | Y62: 1
A63: No environmental buffer | D63: 0 | E63: 0 | F63: 0 | G63: 0 | H63: 0 | I63: 0 | J63: 0 | K63: 0 | L63: 0 | M63: 0 | Q63: =IF(A63='Train (2)'!FINAL_Optional,1,0) -> 0 | R63: 0 | X63: =P63*R63 -> 0 | Y63: 1 | Z63: 0
A64: Soil Aquifer Treatment (Percolation and Subsurface Migration) | B64: Trave Time (Months) | C64: ='Train (2)'!F95 -> 6 | D64: =IF(4+C64>4,4,3+C64) -> 4 | E64: =IF(4+E60>4,4,3+E60) -> 4 | F64: =IF(4+F60>4,4,3+F60) -> 4 | G64: =IF(4+G60>4,4,3+G60) -> 4 | H64: =Master!F68+0 -> 0.5 | I64: =Master!G68+0 -> 0.5 | J64: =Master!H$68 -> 0.5 | K64: 0.5 | L64: =Master!J$68 -> 0.5 | M64: 0 | Q64: =IF(A64='Train (2)'!FINAL_Optional,1,0) -> 0 | R64: 0 | X64: =P64*R64 -> 0 | Y64: 1 | Z64: Not Available
A65: Surface Water Augmentation | B65: Travel Time (Days) | C65: ='Train (2)'!F94 -> 7 | D65: =Master!B72 -> 0 | E65: =IF(Master!C72*C65>6,6,Master!C72*C65) -> 0 | F65: =Master!D72 -> 0 | G65: =Master!E72 -> 0 | H65: =1-(0.5)^(C65/Master!F72) -> 0.3844277933 | I65: =1-(0.5)^(C65/Master!G72) -> 0.2928932188 | J65: =1-(0.5)^($C$65/Master!H72) -> 0.8015748685 | K65: 0 | L65: =Master!J72 -> 0 | M65: 0 | Q65: =IF(A65='Train (2)'!FINAL_Optional,1,0) -> 0 | R65: 0 | X65: =P65*R65 -> 0 | Y65: 1 | Z65: Not Available
Q66: Effluent Available | R66: =IF(PasteRange2="[[enter size here]]", "", PasteRange2) ->  | S66: mgd
P74: =M74*O74 -> 0

Sheet Master_Lookup (3) (hidden)
A4: PERCENT REMOVAL | E4: Values/Functions for Unit Process Effectiveness for Microbial Inactivation and Microconstituent Removals | P4: Start of Costs
A6: Treatment | B6: Operationally | D6: Microbial Inactivation - Potential Credits(1) LOG REMOVAL | H6: Microconstituent Removals(1) PERCENT REMOVAL | P6: Unit Cost | Q6: Selected Process | R6: Flow | S6: Ozone Dose | T6: Cl2 Dose | U6: H2O2 Dose | V6: UV Dose | W6: Feed UVT | X6: Subtotal Cost | Y6: Factor | Z6: Total Cost | AE6: Ozone lookup index | AG6: Cl2 lookup index | AI6: H2O2 lookup index | AK6: UV lookup index
A7: Process | B7: Impotant Parameters | D7: Bacteria | E7: Virus | F7: Cryptosporidium | G7: Giardia | H7: EEQ | I7: TOrCs | J7: NDMA | K7: Nitrate as N | L7: TOC | M7: PFOS+PFOA | N7: Notes | P7: $/mgd | R7: mgd | S7: mg/L | T7: mg/L | U7: mg/L | V7: mJ/cm2 | X7: $ | Z7: $ | AE7: Flow | AF7: Dose | AG7: Flow | AH7: Dose | AI7: Flow | AJ7: Dose | AK7: RED | AL7: Flow | AM7: UVT
A9: Secondary | R9: =$R$17 -> 
A10: Secondary - BOD Only | B10: SRT | C10: ='Train (3)'!F14 -> 7 | D10: =LOOKUP(C10,Master!A100:A102,Master!D100:D102) -> 3 | E10: =Master!C16 -> 2 | F10: =Master!D16 -> 0 | G10: =Master!E16 -> 0 | H10: =LOOKUP($C$10,Master!$A$107:$A$109,Master!F107:F109) -> 0.9 | I10: =LOOKUP($C$10,Master!$A$107:$A$109,Master!D107:D109) -> 0.7 | J10: =Master!H16 -> 0 | K10: =Master!I16 -> 0 | L10: =Master!J16 -> 0.5 | M10: =Master!K16 -> 0 | P10: =CostMaster!C5 -> 0 | Q10: =IF(A10='Train (3)'!FINAL_Secondary,1,0) -> 1 | X10: =P10*R10 ->  | Y10: 1 | Z10: =IF(Y10*X10>0,Y10*X10, "Not Available") -> 
A11: Secondary - Nitrified Only | B11: SRT | C11: ='Train (3)'!$F$15 -> 10 | D11: =LOOKUP(C11,Master!A101:A103,Master!D101:D103) -> 3 | E11: =Master!C17 -> 2 | F11: =Master!D17 -> 0 | G11: =Master!E17 -> 0 | H11: =LOOKUP($C$11,Master!$A$107:$A$109,Master!F107:F109) -> 0.9 | I11: =LOOKUP($C$11,Master!$A$107:$A$109,Master!D107:D109) -> 0.7 | J11: =Master!H17 -> 0 | K11: =Master!I17 -> 0 | L11: =Master!J17 -> 0.5 | M11: =Master!K17 -> 0 | P11: =CostMaster!$C$6 -> 0 | Q11: =IF(A11='Train (3)'!FINAL_Secondary,1,0) -> 0 | Y11: =$Y$10 -> 1 | Z11: =IF(Y11*X11>0,Y11*X11, "Not Available") -> 
A12: Secondary - Denitrified | B12: SRT | C12: ='Train (3)'!$F$15 -> 10 | D12: =LOOKUP(C12,Master!A101:A103,Master!D101:D103) -> 3 | E12: =Master!C18 -> 2 | F12: =Master!D18 -> 0 | G12: =Master!E18 -> 0 | H12: =LOOKUP($C$12,Master!$A$107:$A$109,Master!F107:F109) -> 0.9 | I12: =LOOKUP($C$12,Master!$A$107:$A$109,Master!D107:D109) -> 0.7 | J12: =Master!H18 -> 0 | K12: =Master!I18 -> 0.8 | L12: =Master!J18 -> 0.7 | M12: =Master!K18 -> 0 | P12: =CostMaster!$C$6 -> 0 | Q12: =IF(A12='Train (3)'!FINAL_Secondary,1,0) -> 0 | Y12: 1
A13: Tertiary - Nitrified Only | B13: SRT | C13: ='Train (3)'!$F$15 -> 10 | D13: =Master!B20 -> 3 | E13: =Master!C20 -> 2 | F13: =Master!D20 -> 0 | G13: =Master!E20 -> 0 | H13: =Master!F20 -> 0.9 | I13: =Master!G20 -> 0.7 | J13: =Master!H20 -> 0 | K13: =Master!I20 -> 0 | L13: =Master!J20 -> 0.6 | M13: =Master!K20 -> 0 | P13: =CostMaster!$C$6 -> 0 | Q13: =IF(A13='Train (3)'!FINAL_Secondary,1,0) -> 0 | Y13: 1
A14: Tertiary - Denitrified | B14: SRT | C14: ='Train (3)'!$F$15 -> 10 | D14: =Master!B22 -> 3 | E14: =Master!C22 -> 2 | F14: =Master!D22 -> 0 | G14: =Master!E22 -> 0 | H14: =Master!F22 -> 0.9 | I14: =Master!G22 -> 0.7 | J14: =Master!H22 -> 0 | K14: =Master!I22 -> 0.8 | L14: =Master!J22 -> 0.9 | M14: =Master!K22 -> 0 | P14: =CostMaster!$C$6 -> 0 | Q14: =IF(A14='Train (3)'!FINAL_Secondary,1,0) -> 0 | Y14: 1
A15: MBR - Nitrified Only | B15: SRT | C15: ='Train (3)'!$F$15 -> 10 | D15: =Master!B24 -> 5 | E15: =Master!C24 -> 2 | F15: =Master!D24 -> 4 | G15: =Master!E24 -> 4 | H15: =LOOKUP($C$15,Master!$A$107:$A$109,Master!F107:F109) -> 0.9 | I15: =LOOKUP($C$15,Master!$A$107:$A$109,Master!D107:D109) -> 0.7 | J15: =Master!H24 -> 0 | K15: =Master!I24 -> 0 | L15: =Master!J24 -> 0.6 | M15: =Master!K24 -> 0 | P15: =CostMaster!$C$7 -> 0 | Q15: =IF(A15='Train (3)'!FINAL_Secondary,1,0) -> 0 | R15: =$R$17 ->  | Y15: 1
A16: MBR - Denitrified | B16: SRT | C16: ='Train (3)'!$F$15 -> 10 | D16: =Master!B26 -> 5 | E16: =Master!C26 -> 2 | F16: =Master!D26 -> 4 | G16: =Master!E26 -> 4 | H16: =LOOKUP($C$16,Master!$A$107:$A$109,Master!F107:F109) -> 0.9 | I16: =LOOKUP($C$16,Master!$A$107:$A$109,Master!D107:D109) -> 0.7 | J16: =Master!H26 -> 0 | K16: =Master!I26 -> 0.8 | L16: =Master!J26 -> 0.9 | M16: =Master!K26 -> 0 | P16: =CostMaster!$C$7 -> 0 | Q16: =IF(A16='Train (3)'!FINAL_Secondary,1,0) -> 0 | R16: =$R$17 ->  | Y16: 1
A17: Advanced 1 | R17: =R28/('Train (3)'!Paste_Recovery1/100) -> 
A18: MF | B18: must pass integrity test | D18: =Master!B36 -> 3 | E18: =Master!C36 -> 0 | F18: =Master!D36 -> 3 | G18: =Master!E36 -> 3 | H18: =Master!F36 -> 0.3 | I18: =Master!G36 -> 0.1 | J18: =Master!H$36 -> 0 | K18: =Master!I36 -> 0 | L18: =Master!J$36 -> 0 | M18: =Master!K$36 -> 0 | P18: =CostMaster!C9 -> 2500000 | Q18: =IF(A18='Train (3)'!FINAL_Advance1,1,0) -> 1 | R18: =IF(Q18=1,$R$28,0) ->  | X18: =P18*R18 ->  | Y18: 1 | Z18: =IF(Y18*X18>0,Y18*X18, "Not Available") -> 
A19: None | D19: 0 | E19: 0 | F19: 0 | G19: 0 | H19: 0 | I19: 0 | J19: 0 | K19: 0 | L19: 0 | M19: 0 | P19: 0 | Q19: =IF(A19='Train (3)'!FINAL_Advance1,1,0) -> 0 | R19: 0 | X19: =P19*R19 -> 0 | Y19: 1 | Z19: 0
A20: Ozone | B20: ='Train (3)'!M25 -> 1.2 | C20: ='Train (3)'!N25 -> 5 | D20: =VLOOKUP($C20,Master!$M$126:$Q$131,2,TRUE) -> 3 | E20: =VLOOKUP($C20,Master!$M$126:$Q$131,3,TRUE) -> 3 | F20: =VLOOKUP($C20,Master!$M$126:$Q$131,4,TRUE) -> 0 | G20: =VLOOKUP($C20,Master!$M$126:$Q$131,5,TRUE) -> 1 | H20: =VLOOKUP($B$20,Master!$A$126:$L$130,6,TRUE) -> 0.99 | I20: =VLOOKUP($B$20,Master!$A$126:$L$130,4,TRUE) -> 0.7 | J20: Warning | K20: =Master!I52 -> 0 | L20: =Master!J$52 -> 0 | M20: =Master!K$52 -> 0 | Q20: =IF(A20='Train (3)'!FINAL_Advance1,1,0) -> 0 | R20: 0 | S20: ='Train (3)'!Q25 -> FALSE | X20: =IF(ISNUMBER(INDEX(CostMaster!$L$16:$Q$20,$AE20,$AF20)),INDEX(CostMaster!$L$16:$Q$20,$AE20,$AF20),0) -> 1000000 | Y20: 1 | Z20: 1000000 | AE20: =IF(INT($R20)=0,1,IF(ISNUMBER(MATCH($R20,CostMaster!$K$16:$K$20,0)),MATCH($R20,CostMaster!$K$16:$K$20,0),IF(MATCH($R20,CostMaster!$K$16:$K$20,1)+1>COUNT(CostMaster!$K$16:$K$20),COUNT(CostMaster!$K$16:$K$20),MATCH($R20,CostMaster!$K$16:$K$20,1)+1))) -> 1 | AF20: =IF(INT($S20)=0,1,IF(ISNUMBER(MATCH($S20,CostMaster!$L$15:$Q$15,0)),MATCH($S20,CostMaster!$L$15:$Q$15,0),IF(MATCH($S20,CostMaster!$L$15:$Q$15,1)+1>COUNT(CostMaster!$L$15:$Q$15),COUNT(CostMaster!$L$15:$Q$15),MATCH($S20,CostMaster!$L$15:$Q$15,1)+1))) -> 1
A21: Tertiary Media Filtration | D21: =Master!B29 -> 0 | E21: =Master!C29 -> 0 | F21: =Master!D29 -> 0 | G21: =Master!E29 -> 0 | H21: =Master!F29 -> 0 | I21: =Master!G29 -> 0 | J21: =Master!H$29 -> 0 | K21: =Master!I29 -> 0 | L21: =Master!J$29 -> 0.2 | M21: =Master!K$29 -> 0 | P21: see cost master | Q21: =IF(A21='Train (3)'!FINAL_Advance1,1,0) -> 0 | R21: 0 | X21: =CostMaster!C$21*R21^CostMaster!E$21 -> 0 | Y21: 1 | Z21: Not Available
A22: Tertiary Media Filtration - Denitrification | D22: =Master!B31 -> 0 | E22: =Master!C31 -> 0 | F22: =Master!D31 -> 0 | G22: =Master!E31 -> 0 | H22: =Master!F31 -> 0.2 | I22: =Master!G31 -> 0.2 | J22: =Master!H$31 -> 0 | K22: =Master!I31 -> 0.8 | L22: =Master!J$31 -> 0.2 | M22: =Master!K$29 -> 0 | P22: see cost master | Q22: =IF(A22='Train (3)'!FINAL_Advance1,1,0) -> 0 | R22: 0 | X22: =CostMaster!C$21*R22^CostMaster!E$21 -> 0 | Y22: 1 | Z22: Not Available
A23: UF | B23: must pass integrity test | D23: =Master!B38 -> 4 | E23: =Master!C38 -> 0 | F23: =Master!D38 -> 4 | G23: =Master!E38 -> 4 | H23: =Master!F38 -> 0.3 | I23: =Master!G38 -> 0.3 | J23: =Master!H$38 -> 0 | K23: =Master!I38 -> 0 | L23: =Master!J$38 -> 0 | M23: =Master!K$38 -> 0 | P23: =CostMaster!C10 -> 2500000 | Q23: =IF(A23='Train (3)'!FINAL_Advance1,1,0) -> 0 | R23: 0 | X23: =P23*R23 -> 0 | Y23: 1 | Z23: Not Available
A24: BAF | D24: =(100-10^(2-Master!$B$63))/100 -> 0 | E24: =(100-10^(2-Master!$C$63))/100 -> 0 | F24: =(100-10^(2-Master!$D$63))/100 -> 0 | G24: =(100-10^(2-Master!$E$63))/100 -> 0 | H24: =Master!$F$63 -> 0.5 | I24: =Master!$G$63 -> 0.5 | J24: =Master!$H$63 -> 0.5 | K24: =Master!$I$63 -> 0 | L24: =Master!$J$63 -> 0.4 | M24: 0 | P24: see cost master | Q24: =IF(A24='Train (3)'!FINAL_Advance1,1,0) -> 0 | R24: 0 | X24: =CostMaster!C$21*R24^CostMaster!E$21 -> 0 | Y24: 1 | Z24: Not Available
A25: Cl2 | B25: CT (mg/min-L) | C25: ='Train (3)'!F23 -> 30 | D25: =LOOKUP($C25,Master!$A$115:$A$122,Master!B$115:B$122) -> 4 | E25: =LOOKUP($C25,Master!$A$115:$A$122,Master!C$115:C$122) -> 4 | F25: =LOOKUP($C25,Master!$A$115:$A$122,Master!D$115:D$122) -> 0 | G25: =LOOKUP($C25,Master!$A$115:$A$122,Master!E$115:E$122) -> 0 | H25: =LOOKUP($C$25,Master!$A$111:$A$118,Master!$G$111:$G$118) -> 0 | I25: =LOOKUP($C$25,Master!$A$111:$A$118,Master!$F$111:$F$118) -> 0 | J25: =Master!H48 -> 0 | K25: =Master!I48 -> 0 | L25: =Master!J48 -> 0 | M25: =Master!K48 -> 0 | P25: =M25*O25 -> 0 | Q25: =IF(A25='Train (3)'!FINAL_Advance1,1,0) -> 0 | R25: =IF(Q25=1,$R$40,0) -> 0 | T25: ='Train (3)'!Q41 -> 4.833333333 | X25: =IF(ISNUMBER(INDEX(CostMaster!$L$4:$P$8,$AG25,$AH25)), INDEX(CostMaster!$L$4:$P$8,$AG25,$AH25),0) -> 54000 | Y25: 1 | Z25: 54000 | AG25: =IF(INT($R25)=0,1,IF(ISNUMBER(MATCH($R25,CostMaster!$K$4:$K$8,0)),MATCH($R25,CostMaster!$K$4:$K$8,0),IF(MATCH($R25,CostMaster!$K$4:$K$8,1)+1>COUNT(CostMaster!$K$4:$K$8),COUNT(CostMaster!$K$4:$K$8),MATCH($R25,CostMaster!$K$4:$K$8,1)+1))) -> 1 | AH25: =IF(INT($T25)=0,1,IF(ISNUMBER(MATCH($T25,CostMaster!$L$3:$P$3,0)),MATCH($T25,CostMaster!$L$3:$P$3,0),IF(MATCH($T25,CostMaster!$L$3:$P$3,1)+1>COUNT(CostMaster!$L$3:$P$3),COUNT(CostMaster!$L$3:$P$3),MATCH($T25,CostMaster!$L$3:$P$3,1)+1))) -> 2
A26: UV | B26: UV Dose (mJ/cm2) | C26: ='Train (3)'!F27 -> 200 | D26: =LOOKUP($C26,Master!$A$145:$A$155,Master!C$145:C$155) -> 6 | E26: =LOOKUP($C26,Master!$A$145:$A$155,Master!D$145:D$155) -> 4 | F26: =LOOKUP($C26,Master!$A$145:$A$155,Master!F$145:F$155) -> 6 | G26: =LOOKUP($C26,Master!$A$145:$A$155,Master!E$145:E$155) -> 6 | H26: =LOOKUP(C26,Master!A$162:A$169,Master!C$162:C$169) -> 0.2 | I26: =LOOKUP(C26,Master!A$162:A$169,Master!F$162:F$169) -> 0.2 | J26: =LOOKUP($C26,Master!$A$145:$A$155,Master!G$145:G$155) -> 0.6 | K26: =LOOKUP($C26,Master!$A$145:$A$155,Master!H$145:H$155) -> 0 | L26: =VLOOKUP(C26,Master!$A$162:$M$169,10,TRUE) -> 0.1 | M26: 0 | Q26: =IF(A26='Train (3)'!FINAL_Advance1,1,0) -> 0 | R26: =IF(Q26=1,$R$40,0) -> 0 | V26: =C26 -> 200 | W26: ='Train (3)'!I33 -> 0 | X26: =IF(ISNUMBER(INDEX(CostMaster!$M$40:$T$84,$AK26+$AL26-1,$AM26)),INDEX(CostMaster!$M$40:$T$84,$AK26+$AL26-1,$AM26),0) -> 2415000 | Y26: 1 | Z26: 2415000 | AK26: =IF(INT($V26)=0,1,IF(ISNUMBER(MATCH($V26,CostMaster!$K$40:$K$84,0)),MATCH($V26,CostMaster!$K$40:$K$84,0),IF(MATCH($V26,CostMaster!$K$40:$K$84,1)+1>COUNT(CostMaster!$K$40:$K$84),COUNT(CostMaster!$K$40:$K$84),MATCH($V26,CostMaster!$K$40:$K$84,1)+1))) -> 21 | AL26: =IF(INT($R26)=0,1,IF(ISNUMBER(MATCH($R26,CostMaster!$L$40:$L$44,0)),MATCH($R26,CostMaster!$L$40:$L$44,0),IF(MATCH($R26,CostMaster!$L$40:$L$44,1)+1>COUNT(CostMaster!$L$40:$L$44),COUNT(CostMaster!$L$40:$L$44),MATCH($R26,CostMaster!$L$40:$L$44,1)+1))) -> 1 | AM26: =IF($W26=0,1,IF(ISNUMBER(MATCH($W26,CostMaster!$M$39:$T$39,0)),MATCH($W26,CostMaster!$M$39:$T$39,0),IF(MATCH($W26,CostMaster!$M$39:$T$39,1)+1>COUNT(CostMaster!$M$39:$T$39),COUNT(CostMaster!$M$39:$T$39),MATCH($W26,CostMaster!$M$39:$T$39,1)+1))) -> 1
A27: Ozone/BAF | D27: =D$20+D$24 -> 3 | E27: =E$20+E$24 -> 3 | F27: 0 | G27: 1 | H27: =(1-(1-H$33)*(1-H$38)) -> 0.995 | I27: =(1-(1-I$20)*(1-I$24)) -> 0.85 | J27: =J$24 -> 0.5 | K27: =(1-(1-K$20)*(1-K$24)) -> 0 | L27: =(1-(1-L$20)*(1-L$24)) -> 0.4 | M27: =(1-(1-M$20)*(1-M$24)) -> 0 | Q27: =IF(A27='Train (3)'!FINAL_Advance1,1,0) -> 0 | R27: =IF(Q27=1,$R$28,0) -> 0 | X27: =IF(ISNUMBER(INDEX(CostMaster!$L$16:$Q$20,$AE27,$AF27)),INDEX(CostMaster!$L$16:$Q$20,$AE27,$AF27),0)+CostMaster!C$21*R27^CostMaster!E$21 -> 1000000 | Y27: 1 | Z27: 1000000 | AE27: =IF(INT($R27)=0,1,IF(ISNUMBER(MATCH($R27,CostMaster!$K$16:$K$20,0)),MATCH($R27,CostMaster!$K$16:$K$20,0),IF(MATCH($R27,CostMaster!$K$16:$K$20,1)+1>COUNT(CostMaster!$K$16:$K$20),COUNT(CostMaster!$K$16:$K$20),MATCH($R27,CostMaster!$K$16:$K$20,1)+1))) -> 1 | AF27: =IF(INT($S27)=0,1,IF(ISNUMBER(MATCH($S27,CostMaster!$L$15:$Q$15,0)),MATCH($S27,CostMaster!$L$15:$Q$15,0),IF(MATCH($S27,CostMaster!$L$15:$Q$15,1)+1>COUNT(CostMaster!$L$15:$Q$15),COUNT(CostMaster!$L$15:$Q$15),MATCH($S27,CostMaster!$L$15:$Q$15,1)+1))) -> 1
A28: Advanced 2 | R28: =R40/('Train (3)'!Paste_Recovery2/100) -> 
A29: Cl2 | B29: CT (mg/min-L) | C29: ='Train (3)'!F41 -> 30 | D29: =LOOKUP($C29,Master!$A$115:$A$122,Master!B$115:B$122) -> 4 | E29: =LOOKUP($C29,Master!$A$115:$A$122,Master!C$115:C$122) -> 4 | F29: =LOOKUP($C29,Master!$A$115:$A$122,Master!D$115:D$122) -> 0 | G29: =LOOKUP($C29,Master!$A$115:$A$122,Master!E$115:E$122) -> 0 | H29: =LOOKUP($C$25,Master!$A$111:$A$118,Master!$G$111:$G$118) -> 0 | I29: =LOOKUP($C$25,Master!$A$111:$A$118,Master!$F$111:$F$118) -> 0 | J29: =Master!H52 -> Formation | K29: =Master!I52 -> 0 | L29: =Master!J52 -> 0 | M29: =Master!K52 -> 0 | P29: =M29*O29 -> 0 | Q29: =IF(A29='Train (3)'!FINAL_Advance2,1,0) -> 0 | R29: =IF(Q29=1,$R$40,0) -> 0 | T29: ='Train (3)'!Q41 -> 4.833333333 | X29: =IF(ISNUMBER(INDEX(CostMaster!$L$4:$P$8,$AG29,$AH29)), INDEX(CostMaster!$L$4:$P$8,$AG29,$AH29),0) -> 54000 | Y29: 1 | Z29: 54000 | AG29: =IF(INT($R29)=0,1,IF(ISNUMBER(MATCH($R29,CostMaster!$K$4:$K$8,0)),MATCH($R29,CostMaster!$K$4:$K$8,0),IF(MATCH($R29,CostMaster!$K$4:$K$8,1)+1>COUNT(CostMaster!$K$4:$K$8),COUNT(CostMaster!$K$4:$K$8),MATCH($R29,CostMaster!$K$4:$K$8,1)+1))) -> 1 | AH29: =IF(INT($T29)=0,1,IF(ISNUMBER(MATCH($T29,CostMaster!$L$3:$P$3,0)),MATCH($T29,CostMaster!$L$3:$P$3,0),IF(MATCH($T29,CostMaster!$L$3:$P$3,1)+1>COUNT(CostMaster!$L$3:$P$3),COUNT(CostMaster!$L$3:$P$3),MATCH($T29,CostMaster!$L$3:$P$3,1)+1))) -> 2
A30: MF | B30: must pass integrity test | D30: =Master!B$36 -> 3 | E30: =Master!C$36 -> 0 | F30: =Master!D$36 -> 3 | G30: =Master!E$36 -> 3 | H30: =Master!F$36 -> 0.3 | I30: =Master!G$36 -> 0.1 | J30: =Master!H$36 -> 0 | K30: =Master!$I$36 -> 0 | L30: =Master!J$36 -> 0 | M30: 0 | P30: =CostMaster!C9 -> 2500000 | Q30: =IF(A30='Train (3)'!FINAL_Advance2,1,0) -> 0 | R30: =IF(Q30=1,$R$40,0) -> 0 | X30: =P30*R30 -> 0 | Y30: 1 | Z30: Not Available
A31: NF | D31: =IF(Input!$T$3=TRUE,Master!B40,Master!B41) -> 0 | E31: =IF(Input!$T$3=TRUE,Master!C40,Master!C41) -> 0 | F31: =IF(Input!$T$3=TRUE,Master!D40,Master!D41) -> 0 | G31: =IF(Input!$T$3=TRUE,Master!E40,Master!E41) -> 0 | H31: =Master!F40 -> 0.75 | I31: =Master!G$40 -> 0.75 | J31: =Master!H40 -> 0.05 | K31: =Master!$I$40 -> 0.25 | L31: =Master!J$40 -> 0.93 | M31: =Master!K$40 -> 0.9 | P31: =CostMaster!C11 -> 3750000 | Q31: =IF(A31='Train (3)'!FINAL_Advance2,1,0) -> 0 | R31: 0 | X31: =P31*R31 -> 0 | Y31: 1 | Z31: Not Available
A32: None | D32: 0 | E32: 0 | F32: 0 | G32: 0 | H32: 0 | I32: 0 | J32: 0 | K32: 0 | L32: 0 | M32: 0 | P32: 0 | Q32: =IF(A32='Train (3)'!FINAL_Advance2,1,0) -> 0 | R32: 0 | X32: =P32*R32 -> 0 | Y32: 1 | Z32: 0
A33: Ozone | B33: ='Train (3)'!M43 -> 0.8 | C33: ='Train (3)'!N43 -> 0 | D33: =VLOOKUP($C33,Master!$M$126:$Q$131,2,TRUE) -> 0 | E33: =VLOOKUP($C33,Master!$M$126:$Q$131,3,TRUE) -> 0 | F33: =VLOOKUP($C33,Master!$M$126:$Q$131,4,TRUE) -> 0 | G33: =VLOOKUP($C33,Master!$M$126:$Q$131,5,TRUE) -> 0 | H33: =VLOOKUP($B$20,Master!$A$126:$L$130,6,TRUE) -> 0.99 | I33: =VLOOKUP($B$20,Master!$A$126:$L$130,4,TRUE) -> 0.7 | J33: Warning | K33: =Master!I65 -> 0 | L33: =Master!J$52 -> 0 | M33: =Master!K$52 -> 0 | Q33: =IF(A33='Train (3)'!FINAL_Advance2,1,0) -> 0 | R33: 0 | S33: ='Train (3)'!Q43 -> 20 | X33: =IF(ISNUMBER(INDEX(CostMaster!$L$16:$Q$20,$AE33,$AF33)),INDEX(CostMaster!$L$16:$Q$20,$AE33,$AF33),0) -> 5300000 | Y33: 1 | Z33: 5300000 | AE33: =IF(INT($R33)=0,1,IF(ISNUMBER(MATCH($R33,CostMaster!$K$16:$K$20,0)),MATCH($R33,CostMaster!$K$16:$K$20,0),IF(MATCH($R33,CostMaster!$K$16:$K$20,1)+1>COUNT(CostMaster!$K$16:$K$20),COUNT(CostMaster!$K$16:$K$20),MATCH($R33,CostMaster!$K$16:$K$20,1)+1))) -> 1 | AF33: =IF(INT($S33)=0,1,IF(ISNUMBER(MATCH($S33,CostMaster!$L$15:$Q$15,0)),MATCH($S33,CostMaster!$L$15:$Q$15,0),IF(MATCH($S33,CostMaster!$L$15:$Q$15,1)+1>COUNT(CostMaster!$L$15:$Q$15),COUNT(CostMaster!$L$15:$Q$15),MATCH($S33,CostMaster!$L$15:$Q$15,1)+1))) -> 5
A34: RO | D34: =IF(Input!$T$3=TRUE,Master!B42,Master!B41) -> 2 | E34: =IF(Input!$T$3=TRUE,Master!C42,Master!C41) -> 2 | F34: =IF(Input!$T$3=TRUE,Master!D42,Master!D41) -> 2 | G34: =IF(Input!$T$3=TRUE,Master!E42,Master!E41) -> 2 | H34: =Master!F42 -> 0.95 | I34: =Master!G42 -> 0.95 | J34: =Master!H42 -> 0.5 | K34: =Master!$I$42 -> 0.9 | L34: =Master!$J$42 -> 0.95 | M34: =Master!K$42 -> 0.99 | P34: =CostMaster!C12 -> 3750000 | Q34: =IF(A34='Train (3)'!FINAL_Advance2,1,0) -> 0 | R34: 0 | X34: =P34*R34 -> 0 | Y34: 1 | Z34: Not Available
A35: UF | B35: must pass integrity test | D35: =Master!B$38 -> 4 | E35: =Master!C$38 -> 0 | F35: =Master!D$38 -> 4 | G35: =Master!E$38 -> 4 | H35: =Master!F$38 -> 0.3 | I35: =Master!G$38 -> 0.3 | J35: =Master!H$38 -> 0 | K35: =Master!I$38 -> 0 | L35: =Master!J$38 -> 0 | M35: 0 | P35: =CostMaster!C10 -> 2500000 | Q35: =IF(A35='Train (3)'!FINAL_Advance2,1,0) -> 0 | R35: 0 | X35: =P35*R35 -> 0 | Y35: 1 | Z35: Not Available
A36: UV | B36: UV Dose (mJ/cm2) | C36: ='Train (3)'!F45 -> 200 | D36: =LOOKUP($C36,Master!$A$145:$A$155,Master!C$145:C$155) -> 6 | E36: =LOOKUP($C36,Master!$A$145:$A$155,Master!D$145:D$155) -> 4 | F36: =LOOKUP($C36,Master!$A$145:$A$155,Master!F$145:F$155) -> 6 | G36: =LOOKUP($C36,Master!$A$145:$A$155,Master!E$145:E$155) -> 6 | H36: =LOOKUP(C36,Master!A$162:A$169,Master!C$162:C$169) -> 0.2 | I36: =LOOKUP(C36,Master!A$162:A$169,Master!F$162:F$169) -> 0.2 | J36: =LOOKUP($C36,Master!$A$145:$A$155,Master!G$145:G$155) -> 0.6 | K36: =LOOKUP($C36,Master!$A$145:$A$155,Master!H$145:H$155) -> 0 | L36: =VLOOKUP(C36,Master!$A$162:$M$169,10,TRUE) -> 0.1 | M36: 0 | Q36: =IF(A36='Train (3)'!FINAL_Advance2,1,0) -> 0 | R36: 0 | V36: ='Train (3)'!F45 -> 200 | W36: ='Train (3)'!I45 -> 0.7 | X36: =IF(ISNUMBER(INDEX(CostMaster!$M$40:$T$84,$AK36+$AL36-1,$AM36)),INDEX(CostMaster!$M$40:$T$84,$AK36+$AL36-1,$AM36),0) -> 1510000 | Y36: 1 | Z36: 1510000 | AK36: =IF(INT($V36)=0,1,IF(ISNUMBER(MATCH($V36,CostMaster!$K$40:$K$84,0)),MATCH($V36,CostMaster!$K$40:$K$84,0),IF(MATCH($V36,CostMaster!$K$40:$K$84,1)+1>COUNT(CostMaster!$K$40:$K$84),COUNT(CostMaster!$K$40:$K$84),MATCH($V36,CostMaster!$K$40:$K$84,1)+1))) -> 21 | AL36: =IF(INT($R36)=0,1,IF(ISNUMBER(MATCH($R36,CostMaster!$L$40:$L$44,0)),MATCH($R36,CostMaster!$L$40:$L$44,0),IF(MATCH($R36,CostMaster!$L$40:$L$44,1)+1>COUNT(CostMaster!$L$40:$L$44),COUNT(CostMaster!$L$40:$L$44),MATCH($R36,CostMaster!$L$40:$L$44,1)+1))) -> 1 | AM36: =IF($W36=0,1,IF(ISNUMBER(MATCH($W36,CostMaster!$M$39:$T$39,0)),MATCH($W36,CostMaster!$M$39:$T$39,0),IF(MATCH($W36,CostMaster!$M$39:$T$39,1)+1>COUNT(CostMaster!$M$39:$T$39),COUNT(CostMaster!$M$39:$T$39),MATCH($W36,CostMaster!$M$39:$T$39,1)+1))) -> 4
A37: UV/H2O2 | B37: UV Dose (mJ/cm2) | C37: ='Train (3)'!F45 -> 200 | D37: =LOOKUP($C37,Master!$A$145:$A$155,Master!C$145:C$155) -> 6 | E37: =LOOKUP($C37,Master!$A$145:$A$155,Master!D$145:D$155) -> 4 | F37: =LOOKUP($C37,Master!$A$145:$A$155,Master!F$145:F$155) -> 6 | G37: =LOOKUP($C37,Master!$A$145:$A$155,Master!E$145:E$155) -> 6 | H37: =LOOKUP(C37,Master!A$162:A$169,Master!D$162:D$169) -> 0.6 | I37: =LOOKUP(C37,Master!A$162:A$169,Master!G$162:G$169) -> 0.5 | J37: =LOOKUP($C37,Master!$A$145:$A$155,Master!G$145:G$155) -> 0.6 | K37: =LOOKUP($C37,Master!$A$145:$A$155,Master!H$145:H$155) -> 0 | L37: =VLOOKUP(C37,Master!$A$162:$M$169,13,TRUE) -> 0.1 | M37: 0 | Q37: =IF(A37='Train (3)'!FINAL_Advance2,1,0) -> 0 | R37: 0 | U37: =Train!F47 -> 3 | V37: ='Train (3)'!F45 -> 200 | W37: ='Train (3)'!I45 -> 0.7 | X37: =IF(ISNUMBER(INDEX(CostMaster!$M$40:$T$84,$AK37+$AL37-1,$AM37)+INDEX(CostMaster!$L$28:$O$32,$AI37,$AJ37)),INDEX(CostMaster!$M$40:$T$84,$AK37+$AL37-1,$AM37)+INDEX(CostMaster!$L$28:$O$32,$AI37,$AJ37),0) -> 2244000 | Y37: 1 | Z37: 2244000 | AI37: =IF(INT($R37)=0,1,IF(ISNUMBER(MATCH($R37,CostMaster!$K$28:$K$32,0)),MATCH($R37,CostMaster!$K$28:$K$32,0),IF(MATCH($R37,CostMaster!$K$28:$K$32,1)+1>COUNT(CostMaster!$K$28:$K$32),COUNT(CostMaster!$K$28:$K$32),MATCH($R37,CostMaster!$K$28:$K$32,1)+1))) -> 1 | AJ37: =IF(INT($U37)<3,1,IF(ISNUMBER(MATCH($U37,CostMaster!$L$27:$O$27,0)),MATCH($U37,CostMaster!$L$27:$O$27,0),IF(MATCH($U37,CostMaster!$L$27:$O$27,1)+1>COUNT(CostMaster!$L$27:$O$27),COUNT(CostMaster!$L$27:$O$27),MATCH($U37,CostMaster!$L$27:$O$27,1)+1))) -> 1 | AK37: =IF(INT($V37)=0,1,IF(ISNUMBER(MATCH($V37,CostMaster!$K$40:$K$84,0)),MATCH($V37,CostMaster!$K$40:$K$84,0),IF(MATCH($V37,CostMaster!$K$40:$K$84,1)+1>COUNT(CostMaster!$K$40:$K$84),COUNT(CostMaster!$K$40:$K$84),MATCH($V37,CostMaster!$K$40:$K$84,1)+1))) -> 21 | AL37: =IF(INT($R37)=0,1,IF(ISNUMBER(MATCH($R37,CostMaster!$L$40:$L$44,0)),MATCH($R37,CostMaster!$L$40:$L$44,0),IF(MATCH($R37,CostMaster!$L$40:$L$44,1)+1>COUNT(CostMaster!$L$40:$L$44),COUNT(CostMaster!$L$40:$L$44),MATCH($R37,CostMaster!$L$40:$L$44,1)+1))) -> 1 | AM37: =IF($W37=0,1,IF(ISNUMBER(MATCH($W37,CostMaster!$M$39:$T$39,0)),MATCH($W37,CostMaster!$M$39:$T$39,0),IF(MATCH($W37,CostMaster!$M$39:$T$39,1)+1>COUNT(CostMaster!$M$39:$T$39),COUNT(CostMaster!$M$39:$T$39),MATCH($W37,CostMaster!$M$39:$T$39,1)+1))) -> 4
A38: BAF | D38: =(100-10^(2-Master!$B$63))/100 -> 0 | E38: =(100-10^(2-Master!$C$63))/100 -> 0 | F38: =(100-10^(2-Master!$D$63))/100 -> 0 | G38: =(100-10^(2-Master!$E$63))/100 -> 0 | H38: =Master!$F$63 -> 0.5 | I38: =Master!$G$63 -> 0.5 | J38: =Master!$H$63 -> 0.5 | K38: =Master!$I$63 -> 0 | L38: =Master!$J$63 -> 0.4 | M38: 0 | P38: see cost master | Q38: =IF(A38='Train (3)'!FINAL_Advance2,1,0) -> 0 | R38: 0 | X38: =CostMaster!C$21*R38^CostMaster!E$21 -> 0 | Y38: 1 | Z38: Not Available
A39: Ozone/BAF | D39: =D$33+D$38 -> 0 | E39: =E$33+E$38 -> 0 | F39: =F$33+F$38 -> 0 | G39: =G$33+G$38 -> 0 | H39: =(1-(1-H$33)*(1-H$38)) -> 0.995 | I39: =(1-(1-I$33)*(1-I$38)) -> 0.85 | J39: =J$38 -> 0.5 | K39: =(1-(1-K$33)*(1-K$38)) -> 0 | L39: =(1-(1-L$33)*(1-L$38)) -> 0.4 | M39: =(1-(1-M$33)*(1-M$38)) -> 0 | Q39: =IF(A39='Train (3)'!FINAL_Advance2,1,0) -> 1 | X39: =IF(ISNUMBER(INDEX(CostMaster!$L$16:$Q$20,$AE39,$AF39)),INDEX(CostMaster!$L$16:$Q$20,$AE39,$AF39),0)+CostMaster!C$21*R39^CostMaster!E$21 ->  | Y39: 1 | AE39: =IF(INT($R39)=0,1,IF(ISNUMBER(MATCH($R39,CostMaster!$K$16:$K$20,0)),MATCH($R39,CostMaster!$K$16:$K$20,0),IF(MATCH($R39,CostMaster!$K$16:$K$20,1)+1>COUNT(CostMaster!$K$16:$K$20),COUNT(CostMaster!$K$16:$K$20),MATCH($R39,CostMaster!$K$16:$K$20,1)+1))) ->  | AF39: =IF(INT($S39)=0,1,IF(ISNUMBER(MATCH($S39,CostMaster!$L$15:$Q$15,0)),MATCH($S39,CostMaster!$L$15:$Q$15,0),IF(MATCH($S39,CostMaster!$L$15:$Q$15,1)+1>COUNT(CostMaster!$L$15:$Q$15),COUNT(CostMaster!$L$15:$Q$15),MATCH($S39,CostMaster!$L$15:$Q$15,1)+1))) -> 1
A40: Advanced 3 | R40: =$R$52/('Train (3)'!Paste_Recovery3/100) -> 
A41: BAF | D41: =(100-10^(2-Master!$B$63))/100 -> 0 | E41: =(100-10^(2-Master!$C$63))/100 -> 0 | F41: =(100-10^(2-Master!$D$63))/100 -> 0 | G41: =(100-10^(2-Master!$E$63))/100 -> 0 | H41: =Master!$F$63 -> 0.5 | I41: =Master!$G$63 -> 0.5 | J41: =Master!$H$63 -> 0.5 | K41: =Master!$I$63 -> 0 | L41: =Master!$J$63 -> 0.4 | M41: 0 | Q41: =IF(A41='Train (3)'!FINAL_Advance3,1,0) -> 0 | R41: =IF(Q41=1,$R$52,0) -> 0 | X41: =CostMaster!C$21*R41^CostMaster!E$21 -> 0 | Y41: 1 | Z41: Not Available
A42: Cl2 | B42: CT (mg/min-L) | C42: ='Train (3)'!F64 -> 40 | D42: =LOOKUP($C42,Master!$A$115:$A$122,Master!B$115:B$122) -> 4 | E42: =LOOKUP($C42,Master!$A$115:$A$122,Master!C$115:C$122) -> 4 | F42: =LOOKUP($C42,Master!$A$115:$A$122,Master!D$115:D$122) -> 0 | G42: =LOOKUP($C42,Master!$A$115:$A$122,Master!E$115:E$122) -> 0 | H42: =LOOKUP($C$25,Master!$A$111:$A$118,Master!$G$111:$G$118) -> 0 | I42: =LOOKUP($C$25,Master!$A$111:$A$118,Master!$F$111:$F$118) -> 0 | J42: =Master!H65 -> 0 | K42: =Master!I65 -> 0 | L42: =Master!J65 -> 0 | M42: =Master!K65 -> 0 | P42: =M42*O42 -> 0 | Q42: =IF(A42='Train (3)'!FINAL_Advance3,1,0) -> 0 | R42: =IF(Q42=1,$R$52,0) -> 0 | T42: ='Train (3)'!Q64 -> 4.944444444 | X42: =IF(ISNUMBER(INDEX(CostMaster!$L$4:$P$8,$AG42,$AH42)),INDEX(CostMaster!$L$4:$P$8,$AG42,$AH42),0) -> 54000 | Y42: 1 | Z42: 54000 | AG42: =IF(INT($R42)=0,1,IF(ISNUMBER(MATCH($R42,CostMaster!$K$4:$K$8,0)),MATCH($R42,CostMaster!$K$4:$K$8,0),IF(MATCH($R42,CostMaster!$K$4:$K$8,1)+1>COUNT(CostMaster!$K$4:$K$8),COUNT(CostMaster!$K$4:$K$8),MATCH($R42,CostMaster!$K$4:$K$8,1)+1))) -> 1 | AH42: =IF(INT($T42)=0,1,IF(ISNUMBER(MATCH($T42,CostMaster!$L$3:$P$3,0)),MATCH($T42,CostMaster!$L$3:$P$3,0),IF(MATCH($T42,CostMaster!$L$3:$P$3,1)+1>COUNT(CostMaster!$L$3:$P$3),COUNT(CostMaster!$L$3:$P$3),MATCH($T42,CostMaster!$L$3:$P$3,1)+1))) -> 2
A43: NF | D43: =IF(Input!$T$3=TRUE,Master!B40,Master!B41) -> 0 | E43: =IF(Input!$T$3=TRUE,Master!C40,Master!C41) -> 0 | F43: =IF(Input!$T$3=TRUE,Master!D40,Master!D41) -> 0 | G43: =IF(Input!$T$3=TRUE,Master!E40,Master!E41) -> 0 | H43: =Master!F40 -> 0.75 | I43: =Master!G40 -> 0.75 | J43: =Master!H40 -> 0.05 | K43: =Master!$I$40 -> 0.25 | L43: =Master!J$40 -> 0.93 | M43: =Master!K$40 -> 0.9 | P43: =CostMaster!C11 -> 3750000 | Q43: =IF(A43='Train (3)'!FINAL_Advance3,1,0) -> 0 | R43: =IF(Q43=1,$R$52,0) -> 0 | X43: =P43*R43 -> 0 | Y43: 1 | Z43: Not Available
A44: None | D44: 0 | E44: 0 | F44: 0 | G44: 0 | H44: 0 | I44: 0 | J44: 0 | K44: 0 | L44: 0 | M44: 0 | P44: 0 | Q44: =IF(A44='Train (3)'!FINAL_Advance3,1,0) -> 0 | R44: =IF(Q44=1,$R$52,0) -> 0 | X44: =P44*R44 -> 0 | Y44: 1 | Z44: 0
A45: Ozone | B45: ='Train (3)'!M57 -> 0 | C45: ='Train (3)'!N57 -> 0 | D45: =VLOOKUP($C45,Master!$M$126:$Q$131,2,TRUE) -> 0 | E45: =VLOOKUP($C45,Master!$M$126:$Q$131,3,TRUE) -> 0 | F45: =VLOOKUP($C45,Master!$M$126:$Q$131,4,TRUE) -> 0 | G45: =VLOOKUP($C45,Master!$M$126:$Q$131,5,TRUE) -> 0 | H45: =VLOOKUP($B$20,Master!$A$126:$L$130,6,TRUE) -> 0.99 | I45: =VLOOKUP($B$20,Master!$A$126:$L$130,4,TRUE) -> 0.7 | J45: Warning | K45: =Master!I77 -> 0 | L45: =Master!J$52 -> 0 | M45: =Master!K$52 -> 0 | Q45: =IF(A45='Train (3)'!FINAL_Advance3,1,0) -> 1 | R45: =IF(Q45=1,$R$40,0) ->  | S45: ='Train (3)'!Q66 -> 15 | X45: =IF(ISNUMBER(INDEX(CostMaster!$L$16:$Q$20,$AE45,$AF45)),INDEX(CostMaster!$L$16:$Q$20,$AE45,$AF45),0) -> 0 | Y45: 1 | Z45: Not Available | AE45: =IF(INT($R45)=0,1,IF(ISNUMBER(MATCH($R45,CostMaster!$K$16:$K$20,0)),MATCH($R45,CostMaster!$K$16:$K$20,0),IF(MATCH($R45,CostMaster!$K$16:$K$20,1)+1>COUNT(CostMaster!$K$16:$K$20),COUNT(CostMaster!$K$16:$K$20),MATCH($R45,CostMaster!$K$16:$K$20,1)+1))) ->  | AF45: =IF(INT($S45)=0,1,IF(ISNUMBER(MATCH($S45,CostMaster!$L$15:$Q$15,0)),MATCH($S45,CostMaster!$L$15:$Q$15,0),IF(MATCH($S45,CostMaster!$L$15:$Q$15,1)+1>COUNT(CostMaster!$L$15:$Q$15),COUNT(CostMaster!$L$15:$Q$15),MATCH($S45,CostMaster!$L$15:$Q$15,1)+1))) -> 4
A46: Ozone/H2O2 | B46: ='Train (3)'!M66 -> 1 | C46: ='Train (3)'!N66 -> 0 | D46: =VLOOKUP($C46,Master!$M$126:$Q$131,2,TRUE) -> 0 | E46: =VLOOKUP($C46,Master!$M$126:$Q$131,3,TRUE) -> 0 | F46: =VLOOKUP($C46,Master!$M$126:$Q$131,4,TRUE) -> 0 | G46: =VLOOKUP($C46,Master!$M$126:$Q$131,5,TRUE) -> 0 | H46: =VLOOKUP($B$20,Master!$A$126:$L$130,6,TRUE) -> 0.99 | I46: =VLOOKUP($B$20,Master!$A$126:$L$130,4,TRUE) -> 0.7 | J46: Warning | K46: =Master!I78 -> 0 | L46: =Master!J$52 -> 0 | M46: =Master!K$52 -> 0 | Q46: =IF(A46='Train (3)'!FINAL_Advance3,1,0) -> 0 | R46: =IF(Q46=1,$R$52,0) -> 0 | S46: ='Train (3)'!Q66 -> 15 | U46: =Train!$F$70 -> 3 | X46: =IF(ISNUMBER(INDEX(CostMaster!$L$16:$Q$20,$AE46,$AF46)+INDEX(CostMaster!$L$28:$O$32,$AI46,$AJ46)),INDEX(CostMaster!$L$16:$Q$20,$AE46,$AF46)+INDEX(CostMaster!$L$28:$O$32,$AI46,$AJ46),0) -> 4734000 | Y46: 1 | Z46: 4734000 | AE46: =IF(INT($R46)=0,1,IF(ISNUMBER(MATCH($R46,CostMaster!$K$16:$K$20,0)),MATCH($R46,CostMaster!$K$16:$K$20,0),IF(MATCH($R46,CostMaster!$K$16:$K$20,1)+1>COUNT(CostMaster!$K$16:$K$20),COUNT(CostMaster!$K$16:$K$20),MATCH($R46,CostMaster!$K$16:$K$20,1)+1))) -> 1 | AF46: =IF(INT($S46)=0,1,IF(ISNUMBER(MATCH($S46,CostMaster!$L$15:$Q$15,0)),MATCH($S46,CostMaster!$L$15:$Q$15,0),IF(MATCH($S46,CostMaster!$L$15:$Q$15,1)+1>COUNT(CostMaster!$L$15:$Q$15),COUNT(CostMaster!$L$15:$Q$15),MATCH($S46,CostMaster!$L$15:$Q$15,1)+1))) -> 4 | AI46: =IF(INT($R46)=0,1,IF(ISNUMBER(MATCH($R46,CostMaster!$K$28:$K$32,0)),MATCH($R46,CostMaster!$K$28:$K$32,0),IF(MATCH($R46,CostMaster!$K$28:$K$32,1)+1>COUNT(CostMaster!$K$28:$K$32),COUNT(CostMaster!$K$28:$K$32),MATCH($R46,CostMaster!$K$28:$K$32,1)+1))) -> 1 | AJ46: =IF(INT($U46)<3,1,IF(ISNUMBER(MATCH($U46,CostMaster!$L$27:$O$27,0)),MATCH($U46,CostMaster!$L$27:$O$27,0),IF(MATCH($U46,CostMaster!$L$27:$O$27,1)+1>COUNT(CostMaster!$L$27:$O$27),COUNT(CostMaster!$L$27:$O$27),MATCH($U46,CostMaster!$L$27:$O$27,1)+1))) -> 1
A47: RO | D47: =IF(Input!$T$3=TRUE,Master!B42,Master!B41) -> 2 | E47: =IF(Input!$T$3=TRUE,Master!C42,Master!C41) -> 2 | F47: =IF(Input!$T$3=TRUE,Master!D42,Master!D41) -> 2 | G47: =IF(Input!$T$3=TRUE,Master!E42,Master!E41) -> 2 | H47: =Master!F42 -> 0.95 | I47: =Master!G42 -> 0.95 | J47: =Master!H$42 -> 0.5 | K47: =Master!$I$42 -> 0.9 | L47: =Master!$J$42 -> 0.95 | M47: =Master!K$42 -> 0.99 | P47: =CostMaster!C12 -> 3750000 | Q47: =IF(A47='Train (3)'!FINAL_Advance3,1,0) -> 0 | R47: 0 | X47: =P47*R47 -> 0 | Y47: 1 | Z47: Not Available
A48: UV | B48: UV Dose (mJ/cm2) | C48: ='Train (3)'!F68 -> 300 | D48: =LOOKUP($C48,Master!$A$145:$A$155,Master!C$145:C$155) -> 6 | E48: =LOOKUP($C48,Master!$A$145:$A$155,Master!D$145:D$155) -> 6 | F48: =LOOKUP($C48,Master!$A$145:$A$155,Master!F$145:F$155) -> 6 | G48: =LOOKUP($C48,Master!$A$145:$A$155,Master!E$145:E$155) -> 6 | H48: =LOOKUP(C48,Master!A$162:A$169,Master!C$162:C$169) -> 0.2 | I48: =LOOKUP(C48,Master!A$162:A$169,Master!F$162:F$169) -> 0.2 | J48: =LOOKUP($C48,Master!$A$145:$A$155,Master!G$145:G$155) -> 0.65 | K48: =LOOKUP($C48,Master!$A$145:$A$155,Master!H$145:H$155) -> 0 | L48: =VLOOKUP(C48,Master!$A$162:$M$169,10,TRUE) -> 0.1 | M48: 0 | Q48: =IF(A48='Train (3)'!FINAL_Advance3,1,0) -> 0 | R48: 0 | V48: ='Train (3)'!$F$68 -> 300 | W48: ='Train (3)'!$I$68 -> 0.85 | X48: =IF(ISNUMBER(INDEX(CostMaster!$M$40:$T$84,$AK48+$AL48-1,$AM48)),INDEX(CostMaster!$M$40:$T$84,$AK48+$AL48-1,$AM48),0) -> 1038000 | Y48: 1 | Z48: 1038000 | AK48: =IF(INT($V48)=0,1,IF(ISNUMBER(MATCH($V48,CostMaster!$K$40:$K$84,0)),MATCH($V48,CostMaster!$K$40:$K$84,0),IF(MATCH($V48,CostMaster!$K$40:$K$84,1)+1>COUNT(CostMaster!$K$40:$K$84),COUNT(CostMaster!$K$40:$K$84),MATCH($V48,CostMaster!$K$40:$K$84,1)+1))) -> 26 | AL48: =IF(INT($R48)=0,1,IF(ISNUMBER(MATCH($R48,CostMaster!$L$40:$L$44,0)),MATCH($R48,CostMaster!$L$40:$L$44,0),IF(MATCH($R48,CostMaster!$L$40:$L$44,1)+1>COUNT(CostMaster!$L$40:$L$44),COUNT(CostMaster!$L$40:$L$44),MATCH($R48,CostMaster!$L$40:$L$44,1)+1))) -> 1 | AM48: =IF($W48=0,1,IF(ISNUMBER(MATCH($W48,CostMaster!$M$39:$T$39,0)),MATCH($W48,CostMaster!$M$39:$T$39,0),IF(MATCH($W48,CostMaster!$M$39:$T$39,1)+1>COUNT(CostMaster!$M$39:$T$39),COUNT(CostMaster!$M$39:$T$39),MATCH($W48,CostMaster!$M$39:$T$39,1)+1))) -> 6
A49: UV/H2O2 | B49: UV Dose (mJ/cm2) | C49: ='Train (3)'!F68 -> 300 | D49: =LOOKUP($C49,Master!$A$145:$A$155,Master!C$145:C$155) -> 6 | E49: =LOOKUP($C49,Master!$A$145:$A$155,Master!D$145:D$155) -> 6 | F49: =LOOKUP($C49,Master!$A$145:$A$155,Master!F$145:F$155) -> 6 | G49: =LOOKUP($C49,Master!$A$145:$A$155,Master!E$145:E$155) -> 6 | H49: =LOOKUP(C49,Master!A$162:A$169,Master!D$162:D$169) -> 0.6 | I49: =LOOKUP(C49,Master!A$162:A$169,Master!G$162:G$169) -> 0.5 | J49: =LOOKUP($C49,Master!$A$145:$A$155,Master!G$145:G$155) -> 0.65 | K49: =LOOKUP($C49,Master!$A$145:$A$155,Master!H$145:H$155) -> 0 | L49: =VLOOKUP(C49,Master!$A$162:$M$169,13,TRUE) -> 0.1 | M49: 0 | Q49: =IF(A49='Train (3)'!FINAL_Advance3,1,0) -> 0 | R49: 0 | U49: =Train!$F$70 -> 3 | V49: ='Train (3)'!$F$68 -> 300 | W49: ='Train (3)'!$I$68 -> 0.85 | X49: =IF(ISNUMBER(INDEX(CostMaster!$M$40:$T$84,$AK49+$AL49-1,$AM49)+INDEX(CostMaster!$L$28:$O$32,$AI49,$AJ49)),INDEX(CostMaster!$M$40:$T$84,$AK49+$AL49-1,$AM49)+INDEX(CostMaster!$L$28:$O$32,$AI49,$AJ49),0) -> 1772000 | Y49: 1 | Z49: =IF(Y49*X49>0,Y49*X49, "Not Available") -> 1772000 | AI49: =IF(INT($R49)=0,1,IF(ISNUMBER(MATCH($R49,CostMaster!$K$28:$K$32,0)),MATCH($R49,CostMaster!$K$28:$K$32,0),IF(MATCH($R49,CostMaster!$K$28:$K$32,1)+1>COUNT(CostMaster!$K$28:$K$32),COUNT(CostMaster!$K$28:$K$32),MATCH($R49,CostMaster!$K$28:$K$32,1)+1))) -> 1 | AJ49: =IF(INT($U49)<3,1,IF(ISNUMBER(MATCH($U49,CostMaster!$L$27:$O$27,0)),MATCH($U49,CostMaster!$L$27:$O$27,0),IF(MATCH($U49,CostMaster!$L$27:$O$27,1)+1>COUNT(CostMaster!$L$27:$O$27),COUNT(CostMaster!$L$27:$O$27),MATCH($U49,CostMaster!$L$27:$O$27,1)+1))) -> 1 | AK49: =IF(INT($V49)=0,1,IF(ISNUMBER(MATCH($V49,CostMaster!$K$40:$K$84,0)),MATCH($V49,CostMaster!$K$40:$K$84,0),IF(MATCH($V49,CostMaster!$K$40:$K$84,1)+1>COUNT(CostMaster!$K$40:$K$84),COUNT(CostMaster!$K$40:$K$84),MATCH($V49,CostMaster!$K$40:$K$84,1)+1))) -> 26 | AL49: =IF(INT($R49)=0,1,IF(ISNUMBER(MATCH($R49,CostMaster!$L$40:$L$44,0)),MATCH($R49,CostMaster!$L$40:$L$44,0),IF(MATCH($R49,CostMaster!$L$40:$L$44,1)+1>COUNT(CostMaster!$L$40:$L$44),COUNT(CostMaster!$L$40:$L$44),MATCH($R49,CostMaster!$L$40:$L$44,1)+1))) -> 1 | AM49: =IF($W49=0,1,IF(ISNUMBER(MATCH($W49,CostMaster!$M$39:$T$39,0)),MATCH($W49,CostMaster!$M$39:$T$39,0),IF(MATCH($W49,CostMaster!$M$39:$T$39,1)+1>COUNT(CostMaster!$M$39:$T$39),COUNT(CostMaster!$M$39:$T$39),MATCH($W49,CostMaster!$M$39:$T$39,1)+1))) -> 6
A50: MF | D50: =Master!B$36 -> 3 | E50: =Master!C$36 -> 0 | F50: =Master!D$36 -> 3 | G50: =Master!E$36 -> 3 | H50: =Master!F$36 -> 0.3 | I50: =Master!G$36 -> 0.1 | J50: =Master!H$36 -> 0 | K50: =Master!$I$36 -> 0 | L50: =Master!J$36 -> 0 | M50: 0 | P50: =CostMaster!C9 -> 2500000 | Q50: =IF(A50='Train (3)'!FINAL_Advance3,1,0) -> 0 | R50: 0 | X50: =P50*R50 -> 0 | Y50: 1 | Z50: Not Available
A51: UF | D51: =Master!B$38 -> 4 | E51: =Master!C$38 -> 0 | F51: =Master!D$38 -> 4 | G51: =Master!E$38 -> 4 | H51: =Master!F$38 -> 0.3 | I51: =Master!G$38 -> 0.3 | J51: =Master!H$38 -> 0 | K51: =Master!I$38 -> 0 | L51: =Master!J$38 -> 0 | M51: 0 | P51: =CostMaster!C9 -> 2500000 | Q51: =IF(A51='Train (3)'!FINAL_Advance3,1,0) -> 0 | R51: 0 | X51: =P51*R51 -> 0 | Y51: 1 | Z51: Not Available
A52: Advanced 4 | R52: =$R$59/('Train (3)'!Paste_Recovery4/100) -> 
A53: Cl2 | B53: CT (mg/min-L) | C53: ='Train (3)'!F82 -> 450 | D53: =LOOKUP($C53,Master!$A$115:$A$122,Master!B$115:B$122) -> 4 | E53: =LOOKUP($C53,Master!$A$115:$A$122,Master!C$115:C$122) -> 4 | F53: =LOOKUP($C53,Master!$A$115:$A$122,Master!D$115:D$122) -> 0 | G53: =LOOKUP($C53,Master!$A$115:$A$122,Master!E$115:E$122) -> 2 | H53: =LOOKUP($C$25,Master!$A$111:$A$118,Master!$G$111:$G$118) -> 0 | I53: =LOOKUP($C$25,Master!$A$111:$A$118,Master!$F$111:$F$118) -> 0 | J53: =Master!H76 -> 0 | K53: =Master!I76 -> 0 | L53: =Master!J76 -> 0 | M53: =Master!K76 -> 0 | Q53: =IF(A53='Train (3)'!FINAL_Advance4,1,0) -> 0 | R53: =IF(Q53=1,$R$59,0) -> 0 | T53: ='Train (3)'!Q82 -> 9.5 | X53: =IF(ISNUMBER(INDEX(CostMaster!$L$4:$P$8,$AG53,$AH53)),INDEX(CostMaster!$L$4:$P$8,$AG53,$AH53),0) -> 107000 | Y53: 1 | Z53: 107000 | AG53: =IF(INT($R53)=0,1,IF(ISNUMBER(MATCH($R53,CostMaster!$K$4:$K$8,0)),MATCH($R53,CostMaster!$K$4:$K$8,0),IF(MATCH($R53,CostMaster!$K$4:$K$8,1)+1>COUNT(CostMaster!$K$4:$K$8),COUNT(CostMaster!$K$4:$K$8),MATCH($R53,CostMaster!$K$4:$K$8,1)+1))) -> 1 | AH53: =IF(INT($T53)=0,1,IF(ISNUMBER(MATCH($T53,CostMaster!$L$3:$P$3,0)),MATCH($T53,CostMaster!$L$3:$P$3,0),IF(MATCH($T53,CostMaster!$L$3:$P$3,1)+1>COUNT(CostMaster!$L$3:$P$3),COUNT(CostMaster!$L$3:$P$3),MATCH($T53,CostMaster!$L$3:$P$3,1)+1))) -> 3
A54: None | D54: 0 | E54: 0 | F54: 0 | G54: 0 | H54: 0 | I54: 0 | J54: 0 | K54: 0 | L54: 0 | M54: 0 | P54: 0 | Q54: =IF(A54='Train (3)'!FINAL_Advance4,1,0) -> 1 | X54: =P54*R54 ->  | Y54: 1 | Z54: 0
A55: Ozone/H2O2 | B55: ='Train (3)'!M84 -> 1 | C55: ='Train (3)'!N84 -> 0 | D55: =VLOOKUP($C55,Master!$M$126:$Q$131,2,TRUE) -> 0 | E55: =VLOOKUP($C55,Master!$M$126:$Q$131,3,TRUE) -> 0 | F55: =VLOOKUP($C55,Master!$M$126:$Q$131,4,TRUE) -> 0 | G55: =VLOOKUP($C55,Master!$M$126:$Q$131,5,TRUE) -> 0 | H55: =VLOOKUP($B$20,Master!$A$126:$L$130,6,TRUE) -> 0.99 | I55: =VLOOKUP($B$20,Master!$A$126:$L$130,4,TRUE) -> 0.7 | J55: Warning | K55: =Master!I87 -> 0 | L55: =Master!J$52 -> 0 | M55: =Master!K$52 -> 0 | Q55: =IF(A55='Train (3)'!FINAL_Advance4,1,0) -> 0 | R55: 0 | S55: ='Train (3)'!Q84 -> FALSE | U55: ='Train (3)'!$F$88 -> 3 | X55: =IF(ISNUMBER(INDEX(CostMaster!$L$16:$Q$20,$AE55,$AF55)+INDEX(CostMaster!$L$28:$O$32,$AI55,$AJ55)),INDEX(CostMaster!$L$16:$Q$20,$AE55,$AF55)+INDEX(CostMaster!$L$28:$O$32,$AI55,$AJ55),0) -> 1734000 | Y55: 1 | Z55: 1734000 | AE55: =IF(INT($R55)=0,1,IF(ISNUMBER(MATCH($R55,CostMaster!$K$16:$K$20,0)),MATCH($R55,CostMaster!$K$16:$K$20,0),IF(MATCH($R55,CostMaster!$K$16:$K$20,1)+1>COUNT(CostMaster!$K$16:$K$20),COUNT(CostMaster!$K$16:$K$20),MATCH($R55,CostMaster!$K$16:$K$20,1)+1))) -> 1 | AF55: =IF(INT($S55)=0,1,IF(ISNUMBER(MATCH($S55,CostMaster!$L$15:$Q$15,0)),MATCH($S55,CostMaster!$L$15:$Q$15,0),IF(MATCH($S55,CostMaster!$L$15:$Q$15,1)+1>COUNT(CostMaster!$L$15:$Q$15),COUNT(CostMaster!$L$15:$Q$15),MATCH($S55,CostMaster!$L$15:$Q$15,1)+1))) -> 1 | AI55: =IF(INT($R55)=0,1,IF(ISNUMBER(MATCH($R55,CostMaster!$K$28:$K$32,0)),MATCH($R55,CostMaster!$K$28:$K$32,0),IF(MATCH($R55,CostMaster!$K$28:$K$32,1)+1>COUNT(CostMaster!$K$28:$K$32),COUNT(CostMaster!$K$28:$K$32),MATCH($R55,CostMaster!$K$28:$K$32,1)+1))) -> 1 | AJ55: =IF(INT($U55)<3,1,IF(ISNUMBER(MATCH($U55,CostMaster!$L$27:$O$27,0)),MATCH($U55,CostMaster!$L$27:$O$27,0),IF(MATCH($U55,CostMaster!$L$27:$O$27,1)+1>COUNT(CostMaster!$L$27:$O$27),COUNT(CostMaster!$L$27:$O$27),MATCH($U55,CostMaster!$L$27:$O$27,1)+1))) -> 1
A56: UV | B56: UV Dose (mJ/cm2) | C56: ='Train (3)'!F86 -> 1000 | D56: =LOOKUP($C56,Master!$A$145:$A$155,Master!C$145:C$155) -> 6 | E56: =LOOKUP($C56,Master!$A$145:$A$155,Master!D$145:D$155) -> 6 | F56: =LOOKUP($C56,Master!$A$145:$A$155,Master!F$145:F$155) -> 6 | G56: =LOOKUP($C56,Master!$A$145:$A$155,Master!E$145:E$155) -> 6 | H56: =LOOKUP(C56,Master!A$162:A$169,Master!C$162:C$169) -> 0.25 | I56: =LOOKUP(C56,Master!A$162:A$169,Master!F$162:F$169) -> 0.25 | J56: =LOOKUP($C56,Master!$A$145:$A$155,Master!G$145:G$155) -> 0.95 | K56: =LOOKUP($C56,Master!$A$145:$A$155,Master!H$145:H$155) -> 0 | L56: =VLOOKUP(C56,Master!$A$162:$M$169,10,TRUE) -> 0.1 | M56: 0 | Q56: =IF(A56='Train (3)'!FINAL_Advance4,1,0) -> 0 | R56: 0 | V56: ='Train (3)'!$F$86 -> 1000 | W56: ='Train (3)'!$I$86 -> 0.9 | X56: =IF(ISNUMBER(INDEX(CostMaster!$M$40:$T$84,$AK56+$AL56-1,$AM56)),INDEX(CostMaster!$M$40:$T$84,$AK56+$AL56-1,$AM56),0) -> 2220000 | Y56: 1 | Z56: 2220000 | AK56: =IF(INT($V56)=0,1,IF(ISNUMBER(MATCH($V56,CostMaster!$K$40:$K$84,0)),MATCH($V56,CostMaster!$K$40:$K$84,0),IF(MATCH($V56,CostMaster!$K$40:$K$84,1)+1>COUNT(CostMaster!$K$40:$K$84),COUNT(CostMaster!$K$40:$K$84),MATCH($V56,CostMaster!$K$40:$K$84,1)+1))) -> 41 | AL56: =IF(INT($R56)=0,1,IF(ISNUMBER(MATCH($R56,CostMaster!$L$40:$L$44,0)),MATCH($R56,CostMaster!$L$40:$L$44,0),IF(MATCH($R56,CostMaster!$L$40:$L$44,1)+1>COUNT(CostMaster!$L$40:$L$44),COUNT(CostMaster!$L$40:$L$44),MATCH($R56,CostMaster!$L$40:$L$44,1)+1))) -> 1 | AM56: =IF($W56=0,1,IF(ISNUMBER(MATCH($W56,CostMaster!$M$39:$T$39,0)),MATCH($W56,CostMaster!$M$39:$T$39,0),IF(MATCH($W56,CostMaster!$M$39:$T$39,1)+1>COUNT(CostMaster!$M$39:$T$39),COUNT(CostMaster!$M$39:$T$39),MATCH($W56,CostMaster!$M$39:$T$39,1)+1))) -> 7
A57: UV/H2O2 | B57: UV Dose (mJ/cm2) | C57: ='Train (3)'!F86 -> 1000 | D57: =LOOKUP($C57,Master!$A$145:$A$155,Master!C$145:C$155) -> 6 | E57: =LOOKUP($C57,Master!$A$145:$A$155,Master!D$145:D$155) -> 6 | F57: =LOOKUP($C57,Master!$A$145:$A$155,Master!F$145:F$155) -> 6 | G57: =LOOKUP($C57,Master!$A$145:$A$155,Master!E$145:E$155) -> 6 | H57: =LOOKUP(C57,Master!A$162:A$169,Master!D$162:D$169) -> 0.8 | I57: =LOOKUP(C57,Master!A$162:A$169,Master!G$162:G$169) -> 0.6 | J57: =LOOKUP($C57,Master!$A$145:$A$155,Master!G$145:G$155) -> 0.95 | K57: =LOOKUP($C57,Master!$A$145:$A$155,Master!H$145:H$155) -> 0 | L57: =VLOOKUP(C57,Master!$A$162:$M$169,13,TRUE) -> 0.1 | M57: 0 | Q57: =IF(A57='Train (3)'!FINAL_Advance4,1,0) -> 0 | R57: 0 | U57: =Train!$F$88 -> 3 | V57: ='Train (3)'!$F$86 -> 1000 | W57: ='Train (3)'!$I$86 -> 0.9 | X57: =IF(ISNUMBER(INDEX(CostMaster!$M$40:$T$84,$AK57+$AL57-1,$AM57)+INDEX(CostMaster!$L$28:$O$32,$AI57,$AJ57)),INDEX(CostMaster!$M$40:$T$84,$AK57+$AL57-1,$AM57)+INDEX(CostMaster!$L$28:$O$32,$AI57,$AJ57),0) -> 2954000 | Y57: 1 | Z57: 2954000 | AI57: =IF(INT($R57)=0,1,IF(ISNUMBER(MATCH($R57,CostMaster!$K$28:$K$32,0)),MATCH($R57,CostMaster!$K$28:$K$32,0),IF(MATCH($R57,CostMaster!$K$28:$K$32,1)+1>COUNT(CostMaster!$K$28:$K$32),COUNT(CostMaster!$K$28:$K$32),MATCH($R57,CostMaster!$K$28:$K$32,1)+1))) -> 1 | AJ57: =IF(INT($U57)<3,1,IF(ISNUMBER(MATCH($U57,CostMaster!$L$27:$O$27,0)),MATCH($U57,CostMaster!$L$27:$O$27,0),IF(MATCH($U57,CostMaster!$L$27:$O$27,1)+1>COUNT(CostMaster!$L$27:$O$27),COUNT(CostMaster!$L$27:$O$27),MATCH($U57,CostMaster!$L$27:$O$27,1)+1))) -> 1 | AK57: =IF(INT($V57)=0,1,IF(ISNUMBER(MATCH($V57,CostMaster!$K$40:$K$84,0)),MATCH($V57,CostMaster!$K$40:$K$84,0),IF(MATCH($V57,CostMaster!$K$40:$K$84,1)+1>COUNT(CostMaster!$K$40:$K$84),COUNT(CostMaster!$K$40:$K$84),MATCH($V57,CostMaster!$K$40:$K$84,1)+1))) -> 41 | AL57: =IF(INT($R57)=0,1,IF(ISNUMBER(MATCH($R57,CostMaster!$L$40:$L$44,0)),MATCH($R57,CostMaster!$L$40:$L$44,0),IF(MATCH($R57,CostMaster!$L$40:$L$44,1)+1>COUNT(CostMaster!$L$40:$L$44),COUNT(CostMaster!$L$40:$L$44),MATCH($R57,CostMaster!$L$40:$L$44,1)+1))) -> 1 | AM57: =IF($W57=0,1,IF(ISNUMBER(MATCH($W57,CostMaster!$M$39:$T$39,0)),MATCH($W57,CostMaster!$M$39:$T$39,0),IF(MATCH($W57,CostMaster!$M$39:$T$39,1)+1>COUNT(CostMaster!$M$39:$T$39),COUNT(CostMaster!$M$39:$T$39),MATCH($W57,CostMaster!$M$39:$T$39,1)+1))) -> 7
A58: Ozone | B58: ='Train (3)'!M84 -> 1 | C58: ='Train (3)'!N84 -> 0 | D58: =VLOOKUP($C58,Master!$M$126:$Q$131,2,TRUE) -> 0 | E58: =VLOOKUP($C58,Master!$M$126:$Q$131,3,TRUE) -> 0 | F58: =VLOOKUP($C58,Master!$M$126:$Q$131,4,TRUE) -> 0 | G58: =VLOOKUP($C58,Master!$M$126:$Q$131,5,TRUE) -> 0 | H58: =VLOOKUP($B$20,Master!$A$126:$L$130,6,TRUE) -> 0.99 | I58: =VLOOKUP($B$20,Master!$A$126:$L$130,4,TRUE) -> 0.7 | J58: Warning | K58: =Master!I90 -> 0 | L58: =Master!J$52 -> 0 | M58: =Master!K$52 -> 0 | Q58: =IF(A58='Train (3)'!FINAL_Advance4,1,0) -> 0 | R58: 0 | S58: ='Train (3)'!Q84 -> FALSE | X58: =IF(ISNUMBER(INDEX(CostMaster!$L$16:$Q$20,$AE58,$AF58)),INDEX(CostMaster!$L$16:$Q$20,$AE58,$AF58),0) -> 1000000 | Y58: 1 | Z58: 1000000 | AE58: =IF(INT($R58)=0,1,IF(ISNUMBER(MATCH($R58,CostMaster!$K$16:$K$20,0)),MATCH($R58,CostMaster!$K$16:$K$20,0),IF(MATCH($R58,CostMaster!$K$16:$K$20,1)+1>COUNT(CostMaster!$K$16:$K$20),COUNT(CostMaster!$K$16:$K$20),MATCH($R58,CostMaster!$K$16:$K$20,1)+1))) -> 1 | AF58: =IF(INT($S58)=0,1,IF(ISNUMBER(MATCH($S58,CostMaster!$L$15:$Q$15,0)),MATCH($S58,CostMaster!$L$15:$Q$15,0),IF(MATCH($S58,CostMaster!$L$15:$Q$15,1)+1>COUNT(CostMaster!$L$15:$Q$15),COUNT(CostMaster!$L$15:$Q$15),MATCH($S58,CostMaster!$L$15:$Q$15,1)+1))) -> 1
A59: Env Buffer | P59: =M59*O59 -> 0 | R59: =$R$66 -> 
A60: Direct Injection (Subsurface Migration Only) | B60: Trave Time (Months) | C60: ='Train (3)'!F95 -> 6 | D60: =IF(Master!B70*C60>6,6,Master!B70*C60) -> 6 | E60: =IF(Master!C70*C60>6,6,Master!C70*C60) -> 6 | F60: =IF(Master!D70*$C$60>6,6,Master!D70*$C$60) -> 6 | G60: =IF(Master!E70*$C$60>6,6,Master!E70*$C$60) -> 6 | H60: =Master!F70 -> 0 | I60: =Master!G70 -> 0 | J60: =Master!H$70 -> 0 | K60: 0 | L60: =Master!J$70 -> 0 | M60: 0 | Q60: =IF(A60='Train (3)'!FINAL_Optional,1,0) -> 0 | R60: =IF(Q60=1,$R$66,0) -> 0 | X60: =P60*R60 -> 0 | Y60: 1 | Z60: Not Available
A61: Engineered Storage Buffer - Cl2 | B61: CT (mg/min-L) | C61: ='Train (3)'!F96 -> 60 | D61: =LOOKUP($C61,Master!$A$115:$A$122,Master!B$115:B$122) -> 4 | E61: =LOOKUP($C61,Master!$A$115:$A$122,Master!C$115:C$122) -> 4 | F61: =LOOKUP($C61,Master!$A$115:$A$122,Master!D$115:D$122) -> 0 | G61: =LOOKUP($C61,Master!$A$115:$A$122,Master!E$115:E$122) -> 1 | H61: =LOOKUP($C$25,Master!$A$111:$A$118,Master!$G$111:$G$118) -> 0 | I61: =LOOKUP($C$25,Master!$A$111:$A$118,Master!$F$111:$F$118) -> 0 | J61: =Master!H84 -> 0 | K61: =Master!I84 -> 0 | L61: =Master!J84 -> 0 | M61: =Master!K84 -> 0 | Q61: =IF(A61='Train (3)'!FINAL_Optional,1,0) -> 1 | R61: =IF(Q61=1,$R$66,0) ->  | T61: ='Train (3)'!Q96 -> 8.5 | X61: =IF(ISNUMBER(INDEX(CostMaster!$L$4:$P$8,$AG61,$AH61)),INDEX(CostMaster!$L$4:$P$8,$AG61,$AH61),0) -> 0 | Y61: 1 | Z61: Not Available | AG61: =IF(INT($R61)=0,1,IF(ISNUMBER(MATCH($R61,CostMaster!$K$4:$K$8,0)),MATCH($R61,CostMaster!$K$4:$K$8,0),IF(MATCH($R61,CostMaster!$K$4:$K$8,1)+1>COUNT(CostMaster!$K$4:$K$8),COUNT(CostMaster!$K$4:$K$8),MATCH($R61,CostMaster!$K$4:$K$8,1)+1))) ->  | AH61: =IF(INT($T61)=0,1,IF(ISNUMBER(MATCH($T61,CostMaster!$L$3:$P$3,0)),MATCH($T61,CostMaster!$L$3:$P$3,0),IF(MATCH($T61,CostMaster!$L$3:$P$3,1)+1>COUNT(CostMaster!$L$3:$P$3),COUNT(CostMaster!$L$3:$P$3),MATCH($T61,CostMaster!$L$3:$P$3,1)+1))) -> 3
A62: Engineered Storage Buffer - Chloramines | B62: CT (mg/min-L) | C62: ='Train (3)'!F97 -> 450 | D62: =LOOKUP($C62,Master!$A$173:$A$180,Master!B$173:B$180) -> 0 | E62: =LOOKUP($C62,Master!$A$173:$A$180,Master!C$173:C$180) -> 0 | F62: =LOOKUP($C62,Master!$A$173:$A$180,Master!D$173:D$180) -> 0 | G62: =LOOKUP($C62,Master!$A$173:$A$180,Master!E$173:E$180) -> 0 | H62: 0 | I62: 0 | J62: 0 | K62: 0 | L62: 0 | M62: 0 | Q62: =IF(A62='Train (3)'!FINAL_Optional,1,0) -> 0 | R62: 0 | X62: =P62*R62 -> 0 | Y62: 1 | Z62: Not Available
A63: No environmental buffer | D63: 0 | E63: 0 | F63: 0 | G63: 0 | H63: 0 | I63: 0 | J63: 0 | K63: 0 | L63: 0 | M63: 0 | Q63: =IF(A63='Train (3)'!FINAL_Optional,1,0) -> 0 | R63: 0 | X63: =P63*R63 -> 0 | Y63: 1 | Z63: 0
A64: Soil Aquifer Treatment (Percolation and Subsurface Migration) | B64: Trave Time (Months) | C64: ='Train (3)'!F95 -> 6 | D64: =IF(4+C64>4,4,3+C64) -> 4 | E64: =IF(4+E60>4,4,3+E60) -> 4 | F64: =IF(4+F60>4,4,3+F60) -> 4 | G64: =IF(4+G60>4,4,3+G60) -> 4 | H64: =Master!F68+0 -> 0.5 | I64: =Master!G68+0 -> 0.5 | J64: =Master!H$68 -> 0.5 | K64: 0.5 | L64: =Master!J$68 -> 0.5 | M64: 0 | Q64: =IF(A64='Train (3)'!FINAL_Optional,1,0) -> 0 | R64: 0 | X64: =P64*R64 -> 0 | Y64: 1 | Z64: Not Available
A65: Surface Water Augmentation | B65: Travel Time (Days) | C65: ='Train (3)'!F94 -> 7 | D65: =Master!B72 -> 0 | E65: =IF(Master!C72*C65>6,6,Master!C72*C65) -> 0 | F65: =Master!D72 -> 0 | G65: =Master!E72 -> 0 | H65: =1-(0.5)^(C65/Master!F72) -> 0.3844277933 | I65: =1-(0.5)^(C65/Master!G72) -> 0.2928932188 | J65: =1-(0.5)^($C$65/Master!H72) -> 0.8015748685 | K65: 0 | L65: =Master!J72 -> 0 | M65: 0 | Q65: =IF(A65='Train (3)'!FINAL_Optional,1,0) -> 0 | R65: 0 | X65: =P65*R65 -> 0 | Y65: 1 | Z65: Not Available
Q66: Effluent Available | R66: =IF(PasteRange2="[[enter size here]]", "", PasteRange2) ->  | S66: mgd
P74: =M74*O74 -> 0

Sheet Train Comparison (hidden)
C3: Water Quality and Treatment Goal Summary | F3: Edit inputs
D5: =Input!D12 -> Bacteria | E5: =Input!E12 -> Virus | F5: =Input!F12 -> Cryptosporidium | G5: =Input!G12 -> Giardia
C6: =Input!C13 -> Treatment Goal* | D6: =Input!D13 -> 9 | E6: =Input!E13 -> 12 | F6: =Input!F13 -> 10 | G6: =IF(Input!T3=TRUE,"NA",Input!G13) -> NA
A7: =IF(Input!T3=FALSE,TRUE,FALSE) -> FALSE | C7: =Input!C14 -> Secondary Effluent Concentration | D7: =Input!D14 -> Not Applicable | E7: =Input!E14 -> 100 | F7: =Input!F14 -> 50 | G7: =Input!G14 -> 230
C8: =Input!C16 -> Target Removal* | D8: =Input!D16 -> 9 | E8: =Input!E16 -> 12 | F8: =Input!F16 -> 10 | G8: =IF(Input!T3=TRUE,"NA",Input!G16) -> NA
C9: =Input!C17 -> *Microbial target removal includes secondary treatment log removal credits (National case only)
D12: TOC | E12: Nitrate as N | F12: =Input!F22 -> TOrCs | G12: =Input!G22 -> EEQ | H12: =Input!H22 -> NDMA | I12: PFOS+PFOA
C13: =IF(Input!T3=TRUE,Input!C23,Input!C26) -> Primary Effluent* | D13: =IF(Input!T3=TRUE,Input!D23,Input!D26) -> 50 | E13: =IF(Input!T3=TRUE,Input!E23,Input!E26) -> 50 | F13: =IF(Input!T3=TRUE,Input!F23,Input!F26) -> 10 | G13: =IF(Input!T3=TRUE,Input!G23,Input!G26) -> 50 | H13: =IF(Input!T3=TRUE,Input!H23,Input!H26) -> 80 | I13: =IF(Input!U3=TRUE,Input!I23,Input!I26) -> 50
A14: FALSE | C14: =Input!C24 -> Primary Effluent* | D14: =Input!D24 -> 50 | F14: =Input!F24 -> 10 | G14: =Input!G24 -> 50 | H14: =Input!H24 -> 80
A15: FALSE | C15: =Input!C25 -> Secondary Effluent* | D15: =Input!D25 -> 30 | F15: =Input!F25 -> 10 | G15: =Input!G25 -> 5 | H15: =Input!H25 -> 80
C16: =Input!C34 -> Treatment Goal | D16: =Input!D34 -> 1.5 | E16: =Input!E34 -> 7 | F16: =Input!F34 -> 1 | G16: =Input!G34 -> 1 | H16: =Input!H34 -> 8 | I16: =Input!I34 -> 50
C17: =Input!C35 -> Target Removal | D17: =Input!D35 -> 0.97 | E17: =Input!E35 -> 0.86 | F17: =Input!F35 -> 0.9 | G17: =Input!G35 -> 0.98 | H17: =Input!H35 -> 0.9 | I17: =Input!I35 -> 0
C20: Train Comparison Summary | E20: =IF(A22=FALSE,"No treatment train was built.","") -> No treatment train was built.
A22: =OR(Train_select=1,Train_select2=1,Train_select3=1) -> FALSE | D22: Secondary | E22: Advanced 1 | F22: Advanced 2 | G22: Advanced 3 | H22: Advanced 4 | I22: Optional Environmental Buffers | J22: Required Influent Flow Rate | L22: RO Concentrate Produced
A23: =Train_select=1 -> FALSE | C23: Train 1 | D23: =Train!H115 -> Secondary - Nitrified Only | E23: =Train!I115 -> MF | F23: =Train!J115 -> RO | G23: =Train!K115 -> UV/H2O2 | H23: =Train!L115 -> Cl2 | I23: =Train!M115 -> Engineered Storage Buffer - Chloramines | J23: =Master_Lookup!R9 ->  | L23: =IF(OR(Master_Lookup!$R$47<>0,Master_Lookup!$R$34<>0),IF(Master_Lookup!$R$34<>0,Master_Lookup!$R$28-Master_Lookup!$R$40,IF(Master_Lookup!$R$47<>0,Master_Lookup!$R$40-Master_Lookup!$R$52,"NA")),"NA") -> 
A24: =Train_select2=1 -> FALSE | C24: Train 2 | D24: ='Train (2)'!H115 -> Secondary - BOD Only | E24: ='Train (2)'!I115 -> UV | F24: ='Train (2)'!J115 -> None | G24: ='Train (2)'!K115 -> None | H24: ='Train (2)'!L115 -> None | I24: ='Train (2)'!M115 -> Engineered Storage Buffer - Chloramines | J24: ='Master_Lookup (2)'!R9 ->  | L24: =IF(OR('Master_Lookup (2)'!$R$48<>0,'Master_Lookup (2)'!$R$35<>0),IF('Master_Lookup (2)'!$R$35<>0,'Master_Lookup (2)'!$R$29-'Master_Lookup (2)'!$R$41,IF('Master_Lookup (2)'!$R$48<>0,'Master_Lookup (2)'!$R$41-'Master_Lookup (2)'!$R$53,"NA")),"NA") -> NA
A25: =Train_select3=1 -> FALSE | C25: Train 3 | D25: ='Train (3)'!H115 -> Secondary - BOD Only | E25: ='Train (3)'!I115 -> MF | F25: ='Train (3)'!J115 -> Ozone/BAF | G25: ='Train (3)'!K115 -> Ozone | H25: ='Train (3)'!L115 -> None | I25: ='Train (3)'!M115 -> Engineered Storage Buffer - Cl2 | J25: ='Master_Lookup (3)'!R9 ->  | L25: =IF(OR('Master_Lookup (3)'!$R$48<>0,'Master_Lookup (3)'!$R$35<>0),IF('Master_Lookup (3)'!$R$35<>0,'Master_Lookup (3)'!$R$29-'Master_Lookup (3)'!$R$41,IF('Master_Lookup (3)'!$R$48<>0,'Master_Lookup (3)'!$R$41-'Master_Lookup (3)'!$R$53,"NA")),"NA") -> NA
A26: =OR(Train_select=1,Train_select2=1,Train_select3=1) -> FALSE | P26: For internal reference only:
A27: =OR(Train_select=1,Train_select2=1,Train_select3=1) -> FALSE | D27: Bacteria | E27: Virus | F27: Cryptosporidium | G27: Giardia | H27: TOC | I27: Nitrate as N | J27: TOrCs | L27: EEQ | M27: NDMA | N27: PFOA+PFOA | O27: Estimated Total Costs | P27: Cost per mgd
A28: =OR(Train_select=1,Train_select2=1,Train_select3=1) -> FALSE | C28: Target Removal | D28: =D8 -> 9 | E28: =E8 -> 12 | F28: =F8 -> 10 | G28: =IF(Input!T3=TRUE,"NA",G8) -> NA | H28: =D17 -> 0.97 | I28: =E17 -> 0.86 | J28: =F17 -> 0.9 | L28: =G17 -> 0.98 | M28: =H17 -> 0.9 | N28: =I17 -> 0
A29: =Train_select=1 -> FALSE | C29: Train 1 | D29: =Train!K$102 -> 18 | E29: =Train!K$103 -> 15.76244153 | F29: =Train!K$104 -> 11 | G29: =IF(Input!T3=TRUE,"NA",Train!K$105) -> NA | H29: =Train!K$106 -> 0.991 | I29: =Train!K$107 -> 0.9 | J29: =Train!K$108 -> 0.9946 | L29: =Train!K$109 -> 0.9993 | M29: =Train!K$110 -> 0.95 | N29: =Train!K$111 -> 0.99 | O29: =SUM(Train!$H$126:$M$126) ->  | P29: =O29/PasteRange2 -> 
A30: =Train_select2=1 -> FALSE | C30: Train 2 | D30: ='Train (2)'!K$102 -> 9 | E30: ='Train (2)'!K$103 -> 8.024513687 | F30: ='Train (2)'!K$104 -> 6 | G30: =IF(Input!T3=TRUE,"NA",'Train (2)'!K$105) -> NA | H30: ='Train (2)'!K$106 -> 0.55 | I30: ='Train (2)'!K$107 -> 0 | J30: ='Train (2)'!K$108 -> 0.76 | L30: ='Train (2)'!K$109 -> 0.92 | M30: ='Train (2)'!K$110 -> 0.6 | N30: ='Train (2)'!K$111 -> 0 | O30: =SUM('Train (2)'!$H$126:$M$126) -> 0 | P30: =O30/PasteRange2 -> 
A31: =Train_select3=1 -> FALSE | C31: Train 3 | D31: ='Train (3)'!K$102 -> 10 | E31: ='Train (3)'!K$103 -> 8 | F31: ='Train (3)'!K$104 -> 3 | G31: =IF(Input!T3=TRUE,"NA",'Train (3)'!K$105) -> NA | H31: ='Train (3)'!K$106 -> 0.7 | I31: ='Train (3)'!K$107 -> 0.8 | J31: ='Train (3)'!K$108 -> 0.9892 | L31: ='Train (3)'!K$109 -> 0.999996 | M31: ='Train (3)'!K$110 -> 0.5 | N31: ='Train (3)'!K$111 -> 0 | O31: =SUM('Train (3)'!$H$126:$M$126) ->  | P31: =O31/PasteRange2 -> 
K32: TOC
K33: =D17 -> 0.97
K34: =Train!K$106 -> 0.991
K35: ='Train (2)'!R$102 -> 0
K36: ='Train (2)'!R$102 -> 0

Sheet Master (hidden)
A9: Master Input Table
A11: Treatment | B11: Microbial Inactivation - Log Removal Value (LRV) Credits | F11: Removal of Chemical Constituents and Surrogates
A12: Process | B12: Bacteria | C12: Virus | D12: Cryptosporidium | E12: Giardia | F12: EEQ (ng/L) | G12: TOrCs (ng/L) | H12: NDMA (ng/L) | I12: Nitrate as N | J12: TOC (mg/L) | K12: PFOS+PFOA | L12: Notes | M12: Effluent Min/Max | N12: Min or Max?
A14: Secondary Processes
A16: Conventional Activated Sludge - BOD Only | B16: SRT Dependent | C16: 2 | D16: 0 | E16: =D16 -> 0 | F16: SRT Dependent | H16: 0 | I16: 0 | J16: 0.5 | K16: 0 | L16: for virus removal, see "secondary" tab | M16: 10 | N16: min
A17: Conventional Activated Sludge - Nitrified | B17: SRT Dependent | C17: 2 | D17: 0 | E17: =D17 -> 0 | F17: SRT Dependent | H17: 0 | I17: 0 | J17: 0.5 | K17: 0 | N17: 10 | O17: 1
A18: Conventional Activated Sludge - Denitrified | B18: SRT Dependent | C18: 2 | D18: 0 | E18: =D18 -> 0 | F18: SRT Dependent | H18: 0 | I18: 0.8 | J18: =1-15/50 -> 0.7 | K18: 0
A20: Tertiary Nitrification | B20: 3 | C20: 2 | D20: 0 | E20: 0 | F20: 0.9 | G20: 0.7 | H20: 0 | I20: 0 | J20: =1-20/50 -> 0.6 | K20: 0
F21: 0.9 | G21: 0.9
A22: Tertiary Denitrification | B22: 3 | C22: 2 | D22: 0 | E22: 0 | F22: 0.9 | G22: 0.7 | H22: 0 | I22: 0.8 | J22: =1-5/50 -> 0.9 | K22: 0
A24: MBR | B24: 5 | C24: 2 | D24: 4 | E24: =D24 -> 4 | F24: SRT Dependent | H24: 0 | I24: 0 | J24: 0.6 | K24: 0 | L24: for coliform and virus removal, see "secondary" tab | M24: 1 | N24: min
A26: MBR - Denitrified | B26: 5 | C26: 2 | D26: 4 | E26: 4 | F26: SRT Dependent | H26: 0 | I26: 0.8 | J26: 0.9 | K26: 0 | M26: 1 | N26: min
A29: Tertiary Media Filtration | B29: 0 | C29: 0 | D29: 0 | E29: =D29 -> 0 | F29: 0 | G29: 0 | H29: 0 | I29: 0 | J29: 0.2 | K29: 0 | L29: placeholders for now, numbers may change
A31: Tertiary Media Filtration - Denitrification | B31: 0 | C31: 0 | D31: 0 | E31: =D31 -> 0 | F31: 0.2 | G31: 0.2 | H31: 0 | I31: 0.8 | J31: 0.2 | K31: 0
A34: Membrane Processes
A36: MF | B36: 3 | C36: 0 | D36: 3 | E36: =D36 -> 3 | F36: 0.3 | G36: 0.1 | H36: 0 | I36: 0 | J36: 0 | K36: 0 | L36: total coliform removal based on MBR reference; *by analogy to UF, need better number
C37: Note (2) | G37: Note *
A38: UF | B38: 4 | C38: 0 | D38: 4 | E38: =D38 -> 4 | F38: 0.3 | G38: 0.3 | H38: 0 | I38: 0 | J38: 0 | K38: 0 | L38: total coliform removal based on MBR reference; **see data in WERF tab
G39: Note **
A40: "loose" NF (Note (3)) | B40: 0 | C40: 0 | D40: 0 | E40: =D40 -> 0 | F40: 0.75 | G40: 0.75 | H40: 0.05 | I40: 0.25 | J40: 0.93 | K40: 0.9
A41: Texas NF and RO get no credit | B41: 0 | C41: 0 | D41: 0 | E41: 0
A42: BWRO and "tight" NF | B42: 2 | C42: 2 | D42: 2 | E42: =D42 -> 2 | F42: 0.95 | G42: 0.95 | H42: 0.5 | I42: 0.9 | J42: 0.95 | K42: 0.99 | M42: 0.5 | N42: max
C43: 2-log(3)
A46: Oxidation Processes
A48: Chlorination | B48: Ct-Dependent | H48: 0 | I48: 0 | J48: 0 | K48: 0 | L48: removals vary too widely to provide any TOrC removal for this step…
A50: Chloramination | C50: see "Chlorination" sheet | F50: 0 | G50: 0 | H50: 0 | I50: 0 | J50: 0 | K50: 0 | L50: chloramination currently not allowed in the model
A52: Ozone | B52: see green box in "ozone" tab | H52: Formation | I52: 0 | J52: 0 | K52: 0 | L52: TCEP poorly removed, not captured by removals shown in "ozone" tab
A54: Ozone / H2O2 | B54: all the same as above | H54: 0 | I54: 0 | J54: 0 | K54: 0 | L54: (all the same behaviour expected, H2O2 only added post-RO to aid in OH* formation, post-RO, no NDMA formation expected)
A56: UV | B56: "UV_disinfection" Table | F56: see UV-H2O2 Table | I56: 0 | J56: 0 | K56: 0
A58: UV/H2O2 | B58: "UV_disinfection" Table | F58: see UV-H2O2 Table | I58: 0 | J58: 0 | K58: 0
A61: Fixed-Film Biological Processes
A63: Biofilter (with Pre-Ozonation) | B63: 0 | C63: 0 | D63: 0 | E63: 0 | F63: 0.5 | G63: 0.5 | H63: 0.5 | I63: 0 | J63: 0.4 | K63: 0 | L63: Snyder et al., 2007 (WateRF 91188), see other references from Chance in Table X.2 of lit review
A66: Environmental Buffers
A68: SAT | B68: 4 log + 1 log per month | C68: 4 log + 1 log per month | D68: 4 log + 1 log per month | E68: =D68 -> 4 log + 1 log per month | F68: 0.5 | G68: 0.5 | H68: 0.5 | I68: 0.5 | J68: 0.5 | K68: 0 | L68: virus reduction based on WRRF 10-10 results
A70: Injection / subsurface migration (log units per month of travel time) | B70: 1 | C70: 1 | D70: 1 | E70: =D70 -> 1 | F70: 0 | G70: 0 | H70: 0 | I70: 0 | J70: 0 | K70: 0 | L70: NDMA: biodegradation under aerobic conditions, but column studies and full-scale results show little/no degradation, at least in short term
A72: Surface Water Augmentation | B72: 0 | C72: 0 | D72: 0 | E72: 0 | F72: 10 | G72: 14 | H72: 3 | I72: 0 | J72: 0 | K72: 0 | L72: bacteria and protozoa don't get any credits because there is no specific literature available and they are ubiquitous in surface water anyway…
E73: 0
A74: Engineered Storage Buffer with Cl2 | B74: 4 | C74: 3 | D74: 0 | E74: 0 | F74: 0 | G74: 0 | H74: 0 | I74: 0 | J74: 0 | K74: 0
E75: 0
A76: Engineeered Storage Buffer with Chloramines | B76: 4 | C76: 3 | D76: 0 | E76: 0 | F76: 0 | G76: 0 | H76: 0 | I76: 0 | J76: 0 | K76: 0
A79: Notes and References
A80: (1) Unless otherwise noted, references are provided in Table 3.2 of User's Manual.
A81: (2) Based on Drury et al. (2012), assume >3-log adenovirus, >2-3-log norovirus, and
A82: >3-log rotavirus inactivation.
A95: Additional Input Values/Functions (Unit Process Models)
A97: WW_TC: Conventional Activated Sludge SRT versus Bacteria (Total Coliform) Removal | D97: Return
A99: Lookup_value | B99: SRT | D99: Total Coliform
A100: 0 | B100: Low | C100: <4 d | D100: 2
A101: 4 | B101: Mod | C101: 4-7 d | D101: 2
A102: 7 | B102: High | C102: >7d | D102: 3
A104: WERF: Conventional Activated Sludge SRT versus TOrCs and EEQ Removal | D104: Return
A106: Lookup_value | B106: SRT | D106: TOrCs | F106: EEQ
A107: 0 | B107: Low | C107: <4 d | D107: 0.1 | F107: 0.1
A108: 4 | B108: Mod | C108: 4-7 d | D108: 0.5 | F108: 0.5
A109: 7 | B109: High | C109: >7d | D109: 0.7 | F109: 0.9
A112: Chlorination: CT versus Log Removal | D112: Return
A113: CT options | B113: Log Removals
A114: mg-min/L | B114: Bacteria | C114: Viruses | D114: Protozoa (Crypto) | E114: Giardia | F114: TOrCs | G114: EEQ | H114: NDMA | I114: Nitrate as N | J114: TOC | L114: Giardia??
A115: 1 | B115: 2 | C115: 0 | D115: 0 | E115: 0 | F115: 0 | G115: 0 | H115: 0 | I115: 0 | J115: 0 | L115: 0
A116: 3 | B116: 3 | C116: 2 | D116: 0 | E116: 0 | F116: 0 | G116: 0 | H116: 0 | I116: 0 | J116: 0 | L116: 0
A117: 5 | B117: 3 | C117: 3 | D117: 0 | E117: 0 | F117: 0 | G117: 0 | H117: 0 | I117: 0 | J117: 0 | L117: 0
A118: 10 | B118: 4 | C118: 4 | D118: 0 | E118: 0 | F118: 0 | G118: 0 | H118: 0 | I118: 0 | J118: 0 | L118: 0
A119: 30 | B119: 4 | C119: 4 | D119: 0 | E119: 0 | F119: 0 | G119: 0 | H119: 0 | I119: 0 | J119: 0 | L119: 1
A120: 50 | B120: 4 | C120: 4 | D120: 0 | E120: 1 | F120: 0 | G120: 0 | H120: 0 | I120: 0 | J120: 0 | L120: 2
A121: 80 | B121: 4 | C121: 4 | D121: 0 | E121: 1 | F121: 0 | G121: 0 | H121: 0 | I121: 0 | J121: 0 | L121: 3
A122: 100 | B122: =B121 -> 4 | C122: =C121 -> 4 | D122: 0 | E122: 2 | F122: 0.25 | G122: 0.25 | H122: 0 | I122: 0 | J122: 0 | L122: =L121 -> 3
A124: Ozone: Ozone TOC Ratio versus Removal | D124: Return | M124: Ozone Disinfection Performance per US EPA Ct tables at 5 deg C
A125: O3:TOC | B125: Bacteria Removal(0) | C125: Virus Removal(1) | D125: TOrCs Removal(2) | F125: EEQ removal(3) | G125: Corres-ponding Ct(4) | H125: Giardia removal(5) | J125: Assumed Crypto removal(6) | M125: Ct | N125: Bacteria | O125: Virus | P125: Cryptosporidium | Q125: Giardia
A126: 0 | B126: 0 | C126: 0 | D126: 0 | F126: 0 | G126: 0 | H126: 0 | J126: 0 | M126: 0 | N126: 0 | O126: 0 | P126: 0 | Q126: 0
A127: 0.25 | B127: 1.5 | C127: 2 | D127: 0.15 | F127: 0.6 | G127: 0 | H127: 0 | J127: 0 | M127: 0.5 | N127: 1 | O127: 1 | P127: 0 | Q127: 0
A128: 0.5 | B128: 5 | C128: 5 | D128: 0.4 | F128: 0.95 | G128: 1 | H128: 3 | J128: 0 | M128: 1 | N128: 3 | O128: 3 | P128: 0 | Q128: 1
A129: 1 | B129: 6 | C129: 6 | D129: 0.7 | F129: 0.99 | G129: 5 | H129: 3 | J129: 2 | M129: 5 | N129: 6 | O129: 6 | P129: 0 | Q129: 3
A130: 1.5 | B130: 6 | C130: 6 | D130: 0.85 | F130: 0.99 | G130: 10 | H130: 3 | J130: 2 | M130: 10 | N130: 6 | O130: 6 | P130: 0 | Q130: 3
B131: DO NOT USE | C131: DO NOT USE | G131: DO NOT USE | H131: DO NOT USE | J131: DO NOT USE | M131: 15 | N131: 6 | O131: 6 | P131: 1 | Q131: 3
A132: Notes:
A133: (0) based on WRRF 10-09 (Synder et al, 2012), E. coli inactivation (see Table 3.88).
A134: (1) based on WRRF 10-09 (Snyder et al, 2012), MS2 inactivation (see Table 3.89); is consistent with EPA Ct tables.
A135: (2) based on WRRF 10-09 (Snyder et al, 2012), group 4 indicator values (see Table 3.86)
A136: (3) based on WRRF 10-09 (Snyder et al, 2012), group 2 indicator values (see Table 3.86)
A137: (4) based on WRRF 10-09 (Snyder et al, 2012), minimum values for Table 3.78 (excluding GCGA)
A138: (5) based on Ct tables, threshold at 3-log because tables don't go beyond that.
A139: (6) based on Table 3-8 of EPA Guidance Manual, Alternative Disinfectant and Oxidants, April 1999.
A142: UV Disinfection: UV Dose versus Removal | B142: UV Disinfection: UV Dose versus Removal
A144: Lookup_Value | B144: Dose (mJ/cm2) | C144: Bacteria / E. Coli | D144: Virus/Adeno | E144: Giardia | F144: Protozoa/Crypto | G144: NDMA | H144: Nitrate as N
A145: 1 | B145: 1-5 | C145: 2 | D145: 0 | E145: 0 | F145: 0 | G145: 0 | H145: 0
A146: 5 | B146: 5-10 | C146: 4 | D146: 0 | E146: =F146 -> 2 | F146: 2 | G146: 0 | H146: 0
A147: 10 | B147: 10-20 | C147: 5 | D147: 0 | E147: 3 | F147: 3 | G147: 0 | H147: 0
A148: 20 | B148: 20-50 | C148: 6 | D148: 0 | E148: 6 | F148: 6 | G148: 0 | H148: 0
A149: 50 | B149: 50-100 | C149: 6 | D149: 1 | E149: 6 | F149: 6 | G149: 0.1 | H149: 0
A150: 100 | B150: 100-200 | C150: 6 | D150: 2 | E150: 6 | F150: 6 | G150: 0.25 | H150: 0
A151: 200 | B151: 200-250 | C151: 6 | D151: 4 | E151: 6 | F151: 6 | G151: 0.6 | H151: 0
A152: 250 | B152: 250-500 | C152: 6 | D152: =0.024*250 -> 6 | E152: 6 | F152: 6 | G152: 0.65 | H152: 0
A153: 500 | B153: 500-800 | C153: 6 | D153: =0.024*250 -> 6 | E153: 6 | F153: 6 | G153: 0.8 | H153: 0
A154: 800 | B154: 800-1000 | C154: 6 | D154: =0.024*250 -> 6 | E154: 6 | F154: 6 | G154: 0.9 | H154: 0
A155: 1000 | B155: >1000 | C155: 6 | D155: =0.024*250 -> 6 | E155: 6 | F155: 6 | G155: 0.95 | H155: 0
A158: UV H2O2: UV H2O2 versus Removal | D158: Return
B160: UV (mJ/cm2) | C160: EEQ | F160: TOrCs | H160: NDMA | I160: Nitrate as N | J160: TOC
A161: Lookup_Value | B161: H2O2? | C161: NO | D161: YES | F161: NO | G161: YES | H161: both | I161: both | J161: NO | L161: 0 | M161: YES
A162: 10 | B162: 10-20 | C162: 0 | D162: 0 | F162: 0 | G162: 0 | H162: 0 | I162: 0 | J162: 0 | M162: 0
A163: 20 | B163: 20-50 | C163: 0 | D163: 0 | F163: 0 | G163: 0.15 | H163: 0 | I163: 0 | J163: 0 | M163: 0
A164: 50 | B164: 50-100 | C164: 0.05 | D164: 0.2 | F164: 0.05 | G164: 0.25 | H164: 0.1 | I164: 0.1 | J164: 0.05 | M164: 0.05
A165: 100 | B165: 100-200 | C165: 0.1 | D165: 0.4 | F165: 0.1 | G165: 0.35 | H165: 0.25 | I165: 0.25 | J165: 0.1 | M165: 0.1
A166: 200 | B166: 200-500 | C166: 0.2 | D166: 0.6 | F166: 0.2 | G166: 0.5 | H166: 0.6 | I166: 0.6 | J166: 0.1 | M166: 0.1
A167: 500 | B167: 500-800 | C167: 0.25 | D167: 0.8 | F167: 0.25 | G167: 0.6 | H167: 0.8 | I167: 0.8 | J167: 0.1 | M167: 0.1
A168: 800 | B168: 800-1000 | C168: 0.25 | D168: 0.8 | F168: 0.25 | G168: 0.6 | H168: 0.9 | I168: 0.9 | J168: 0.1 | M168: 0.1
A169: 1000 | B169: >1000 | C169: 0.25 | D169: 0.8 | F169: 0.25 | G169: 0.6 | H169: 0.95 | I169: 0.95 | J169: 0.1 | M169: 0.1
A171: Chloramines Ct (EPA Ct tables at 5C)
A172: Lookup Value | B172: Bacteria | C172: Virus | D172: Cryptosporidium | E172: Giardia
A173: 50 | B173: 0 | C173: 0 | D173: 0 | E173: 0
A174: 150 | B174: 0 | C174: 0 | D174: 0 | E174: 0
A175: 300 | B175: 0 | C175: 0 | D175: 0 | E175: 0
A176: 450 | B176: 0 | C176: 0 | D176: 0 | E176: 0
A177: 600 | B177: 0 | C177: 1 | D177: 0 | E177: 0
A178: 1000 | B178: 0 | C178: 2 | D178: 0 | E178: 1
A179: 1500 | B179: 0 | C179: 3 | D179: 0 | E179: 1
A180: 2000 | B180: 0 | C180: 4 | D180: 0 | E180: 2

Sheet CostMaster (hidden)
K1: Chlorine Lookup Table (Users Manual Table3.16)
A2: Treatment Process | B2: Lookup Name | C2: Cost Function | K2: Flow (mgd) | L2: Applied Chlorine Dose (mg/L)
L3: 1 | M3: 5 | N3: 10 | O3: 15 | P3: 25
A4: Secondary | K4: 1 | L4: 11000 | M4: 54000 | N4: 107000 | O4: 161000 | P4: 268000
A5: Conventional Activated Sludge - BOD Only | D5: Place holder | K5: 3 | L5: 32000 | M5: 161000 | N5: 322000 | O5: 482000 | P5: 804000
A6: Conventional Activated Sludge - Nutrient Removal | D6: Place holder | K6: 5 | L6: 54000 | M6: 268000 | N6: 536000 | O6: 804000 | P6: 1340000
A7: MBR | D7: Place holder | K7: 10 | L7: 107000 | M7: 536000 | N7: 1072000 | O7: 1608000 | P7: 2680000
A8: Membrane Processes | E8: Multiplier | F8: Equipment Cost | K8: 25 | L8: 268000 | M8: 1340000 | N8: 2680000 | O8: 4020000 | P8: 6700000
A9: MF | B9: MF | C9: =E9*F9 -> 2500000 | D9: ="/mgd" -> /mgd | E9: 5 | F9: 500000 | G9: / mgd
A10: UF | B10: UF | C10: =E10*F10 -> 2500000 | D10: ="/mgd" -> /mgd | E10: =E9 -> 5 | F10: 500000 | G10: / mgd
A11: "loose" NF | B11: NF | C11: =E11*F11 -> 3750000 | D11: ="/mgd" -> /mgd | E11: =E10 -> 5 | F11: 750000 | G11: / mgd
A12: BWRO and "tight" NF | B12: RO | C12: =E12*F12 -> 3750000 | D12: ="/mgd" -> /mgd | E12: =E11 -> 5 | F12: 750000 | G12: / mgd
K13: Ozone Lookup Table (Users Manual Table 3.17)
A14: Oxidation Processes | K14: Flow (mgd) | L14: Applied Ozone Dose (mg/L)
A15: Chlorination | B15: Cl2 | C15: Cl2 Lookup Table | L15: 1 | M15: 5 | N15: 10 | O15: 15 | P15: 20 | Q15: 25
A16: Chloramination | K16: 1 | L16: 1000000 | M16: 2000000 | N16: 3000000 | O16: 4000000 | P16: 5300000 | Q16: =P16/P15*Q15 -> 6625000
A17: Ozone | B17: Ozone | C17: O3 Lookup Table | K17: 3 | L17: 2000000 | M17: 4000000 | N17: 6000000 | O17: 8000000 | P17: 10000000 | Q17: =P17/P16*Q16 -> 12500000
A18: H2O2 | B18: H2O2 | C18: H2O2 Lookup Table | K18: 5 | L18: 2600000 | M18: 6000000 | N18: 9000000 | O18: 12000000 | P18: 16000000 | Q18: =P18/P17*Q17 -> 20000000
A19: UV | B19: UV | C19: UV Lookup Table | K19: 10 | L19: 3500000 | M19: 7500000 | N19: 10500000 | O19: 14000000 | P19: 19000000 | Q19: =P19/P18*Q18 -> 23750000
A20: Fixed-Film Biological Processes | K20: 25 | L20: 4000000 | M20: 9500000 | N20: 13000000 | O20: 17000000 | P20: 23000000 | Q20: =P20/P19*Q19 -> 28750000
A21: Biofilter (with Pre-Ozonation) | B21: BAF | C21: 725570 | D21: x mgd ^ | E21: 0.5862 | F21: (power function fit)
K25: H2O2 Lookup Table (Users Manual Table 3.18) | Q25: H2O2 Dose Equation
K26: Flow (mgd) | L26: Hydrogen Peroxide Dose (mg/L) | Q26: = $1,418*ln{8.34*DOSE(mg/L)*FLOW(mgd)}-$3,831
L27: 3 | M27: 5 | N27: 10 | O27: 15
K28: 1 | L28: =ROUND((1418*LN(8.34*L$27*$K28)-3831)*1000,-3) -> 734000 | M28: =ROUND((1418*LN(8.34*M$27*$K28)-3831)*1000,-3) -> 1459000 | N28: 2442000 | O28: 3017000
K29: 3 | L29: =ROUND((1418*LN(8.34*L$27*$K29)-3831)*1000,-3) -> 2292000 | M29: 3017000 | N29: 4000000 | O29: 4575000
K30: 5 | L30: =ROUND((1418*LN(8.34*L$27*$K30)-3831)*1000,-3) -> 3017000 | M30: 3741000 | N30: 4724000 | O30: 5299000
K31: 10 | L31: =ROUND((1418*LN(8.34*L$27*$K31)-3831)*1000,-3) -> 4000000 | M31: 4724000 | N31: 5707000 | O31: 6282000
K32: 25 | L32: =ROUND((1418*LN(8.34*L$27*$K32)-3831)*1000,-3) -> 5299000 | M32: 6023000 | N32: 7006000 | O32: 7581000
K37: UV Lookup Table (Users Manual Table 3.15)
K38: RED (mJ/cm2) | L38: Flow (mgd) | M38: Feed UVT
M39: 0.55 | N39: 0.6 | O39: 0.65 | P39: 0.7 | Q39: 0.75 | R39: 0.85 | S39: 0.9 | T39: 0.95
J40: 1 | K40: 10 | L40: 1 | M40: 521000 | N40: 521000 | O40: 521000 | P40: 521000 | Q40: 521000 | R40: 415000 | S40: 415000 | T40: 415000 | V40: =M40/1000 -> 521 | W40: =N40/1000 -> 521 | X40: 521 | Y40: 521 | Z40: 521 | AA40: 415 | AB40: 415 | AC40: 415
J41: 2 | K41: 10 | L41: 3 | M41: 781000 | N41: 781000 | O41: 781000 | P41: 781000 | Q41: 781000 | R41: 415000 | S41: 415000 | T41: 415000 | V41: =M41/1000 -> 781 | W41: =N41/1000 -> 781 | X41: =O41/1000 -> 781 | Y41: =P41/1000 -> 781 | Z41: =Q41/1000 -> 781 | AA41: =R41/1000 -> 415 | AB41: =S41/1000 -> 415 | AC41: =T41/1000 -> 415
J42: 3 | K42: 10 | L42: 5 | M42: 781000 | N42: 781000 | O42: 781000 | P42: 781000 | Q42: 781000 | R42: 415000 | S42: 415000 | T42: 415000 | V42: 781 | W42: 781 | X42: 781 | Y42: 781 | Z42: 781 | AA42: 415 | AB42: 415 | AC42: 415
J43: 4 | K43: 10 | L43: 10 | M43: 1301000 | N43: 1301000 | O43: 1301000 | P43: 1301000 | Q43: 1301000 | R43: 623000 | S43: 623000 | T43: 623000 | V43: 1301 | W43: 1301 | X43: 1301 | Y43: 1301 | Z43: 1301 | AA43: 623 | AB43: 623 | AC43: 623
J44: 5 | K44: 10 | L44: 25 | M44: 2863000 | N44: 2863000 | O44: 2863000 | P44: 2863000 | Q44: 2863000 | R44: 1850000 | S44: 1850000 | T44: 1850000 | V44: 2863 | W44: 2863 | X44: 2863 | Y44: 2863 | Z44: 2863 | AA44: 1850 | AB44: 1850 | AC44: 1850
J45: 6 | K45: 20 | L45: 1 | M45: 521000 | N45: 521000 | O45: 521000 | P45: 521000 | Q45: 521000 | R45: 415000 | S45: 415000 | T45: 415000 | V45: 521 | W45: 521 | X45: 521 | Y45: 521 | Z45: 521 | AA45: 415 | AB45: 415 | AC45: 415
J46: 7 | K46: 20 | L46: 3 | M46: 781000 | N46: 781000 | O46: 781000 | P46: 781000 | Q46: 781000 | R46: 415000 | S46: 415000 | T46: 415000 | V46: 781 | W46: 781 | X46: 781 | Y46: 781 | Z46: 781 | AA46: 415 | AB46: 415 | AC46: 415
J47: 8 | K47: 20 | L47: 5 | M47: 781000 | N47: 781000 | O47: 781000 | P47: 781000 | Q47: 781000 | R47: 623000 | S47: 415000 | T47: 415000 | V47: 781 | W47: 781 | X47: 781 | Y47: 781 | Z47: 781 | AA47: 623 | AB47: 415 | AC47: 415
J48: 9 | K48: 20 | L48: 10 | M48: 1301000 | N48: 1301000 | O48: 1301000 | P48: 1301000 | Q48: 1301000 | R48: 830000 | S48: 623000 | T48: 623000 | V48: 1301 | W48: 1301 | X48: 1301 | Y48: 1301 | Z48: 1301 | AA48: 830 | AB48: 623 | AC48: 623
J49: 10 | K49: 20 | L49: 25 | M49: 3019000 | N49: 2415000 | O49: 1811000 | P49: 1811000 | Q49: 1811000 | R49: 1850000 | S49: 1850000 | T49: 1850000 | V49: 3019 | W49: 2415 | X49: 1811 | Y49: 1811 | Z49: 1811 | AA49: 1850 | AB49: 1850 | AC49: 1850
J50: 11 | K50: 50 | L50: 1 | M50: 1041000 | N50: 911000 | O50: 781000 | P50: 651000 | Q50: 521000 | R50: 415000 | S50: 415000 | T50: 415000 | V50: 1041 | W50: 911 | X50: 781 | Y50: 651 | Z50: 521 | AA50: 415 | AB50: 415 | AC50: 415
J51: 12 | K51: 50 | L51: 3 | M51: 1811000 | N51: 1509500 | O51: 1208000 | P51: 1562000 | Q51: 1041000 | R51: 623000 | S51: 623000 | T51: 415000 | V51: 1811 | W51: 1509.5 | X51: 1208 | Y51: 1562 | Z51: 1041 | AA51: 623 | AB51: 623 | AC51: 415
J52: 13 | K52: 50 | L52: 5 | M52: 2415000 | N52: 2113000 | O52: 1811000 | P52: 1687000 | Q52: 1562000 | R52: 830000 | S52: 623000 | T52: 623000 | V52: 2415 | W52: 2113 | X52: 1811 | Y52: 1687 | Z52: 1562 | AA52: 830 | AB52: 623 | AC52: 623
J53: 14 | K53: 50 | L53: 10 | M53: 3623000 | N53: 3019000 | O53: 2415000 | P53: 2113000 | Q53: 1811000 | R53: 1110000 | S53: 1110000 | T53: 1110000 | V53: 3623 | W53: 3019 | X53: 2415 | Y53: 2113 | Z53: 1811 | AA53: 1110 | AB53: 1110 | AC53: 1110
J54: 15 | K54: 50 | L54: 25 | M54: 7245000 | N54: 6037500 | O54: 4830000 | P54: 3925000 | Q54: 3019000 | R54: 1850000 | S54: 1850000 | T54: 1850000 | V54: 7245 | W54: 6037.5 | X54: 4830 | Y54: 3925 | Z54: 3019 | AA54: 1850 | AB54: 1850 | AC54: 1850
J55: 16 | K55: 100 | L55: 1 | M55: 1811000 | N55: 1510000 | O55: 1208000 | P55: 995000 | Q55: 781000 | R55: 623000 | S55: 415000 | T55: 415000 | V55: 1811 | W55: 1510 | X55: 1208 | Y55: 995 | Z55: 781 | AA55: 623 | AB55: 415 | AC55: 415
J56: 17 | K56: 100 | L56: 3 | M56: 1811000 | N56: 1510000 | O56: 1208000 | P56: 1208000 | Q56: 1208000 | R56: 830000 | S56: 623000 | T56: 623000 | V56: 1811 | W56: 1510 | X56: 1208 | Y56: 1208 | Z56: 1208 | AA56: 830 | AB56: 623 | AC56: 623
J57: 18 | K57: 100 | L57: 5 | M57: 4830000 | N57: 3925000 | O57: 3019000 | P57: 2717000 | Q57: 2415000 | R57: 1038000 | S57: 830000 | T57: 830000 | V57: 4830 | W57: 3925 | X57: 3019 | Y57: 2717 | Z57: 2415 | AA57: 1038 | AB57: 830 | AC57: 830
J58: 19 | K58: 100 | L58: 10 | M58: 7245000 | N58: 6038000 | O58: 4830000 | P58: 4227000 | Q58: 3623000 | R58: 2220000 | S58: 2220000 | T58: 1110000 | V58: 7245 | W58: 6038 | X58: 4830 | Y58: 4227 | Z58: 3623 | AA58: 2220 | AB58: 2220 | AC58: 1110
J59: 20 | K59: 100 | L59: 25 | M59: 14490000 | N59: 12075000 | O59: 9660000 | P59: 7849000 | Q59: 6038000 | R59: 3700000 | S59: 3700000 | T59: 3700000 | V59: 14490 | W59: 12075 | X59: 9660 | Y59: 7849 | Z59: 6038 | AA59: 3700 | AB59: 3700 | AC59: 3700
J60: 21 | K60: 200 | L60: 1 | M60: 2415000 | N60: 2113000 | O60: 1811000 | P60: 1510000 | Q60: 1208000 | R60: 830000 | S60: 623000 | T60: 623000 | V60: 2415 | W60: 2113 | X60: 1811 | Y60: 1510 | Z60: 1208 | AA60: 830 | AB60: 623 | AC60: 623
J61: 22 | K61: 200 | L61: 3 | M61: 3019000 | N61: 2717000 | O61: 2415000 | P61: 2113000 | Q61: 1811000 | R61: 1245000 | S61: 1038000 | T61: 830000 | V61: 3019 | W61: 2717 | X61: 2415 | Y61: 2113 | Z61: 1811 | AA61: 1245 | AB61: 1038 | AC61: 830
J62: 23 | K62: 200 | L62: 5 | M62: 8453000 | N62: 7246000 | O62: 6038000 | P62: 5132000 | Q62: 4226000 | R62: 1480000 | S62: 1110000 | T62: 1110000 | V62: 8453 | W62: 7246 | X62: 6038 | Y62: 5132 | Z62: 4226 | AA62: 1480 | AB62: 1110 | AC62: 1110
J63: 24 | K63: 200 | L63: 10 | M63: 16905000 | N63: 13887000 | O63: 10868000 | P63: 9057000 | Q63: 7245000 | R63: 2960000 | S63: 2960000 | T63: 2220000 | V63: 16905 | W63: 13887 | X63: 10868 | Y63: 9057 | Z63: 7245 | AA63: 2960 | AB63: 2960 | AC63: 2220
J64: 25 | K64: 200 | L64: 25 | M64: 33810000 | N64: 28678000 | O64: 23546000 | P64: 18113000 | Q64: 12679000 | R64: 5550000 | S64: 5550000 | T64: 3700000 | V64: 33810 | W64: 28678 | X64: 23546 | Y64: 18113 | Z64: 12679 | AA64: 5550 | AB64: 5550 | AC64: 3700
J65: 26 | K65: 300 | L65: 1 | M65: 3623000 | N65: 3019000 | O65: 2415000 | P65: 2113000 | Q65: 1811000 | R65: 1038000 | S65: 830000 | T65: 623000 | V65: 3623 | W65: 3019 | X65: 2415 | Y65: 2113 | Z65: 1811 | AA65: 1038 | AB65: 830 | AC65: 623
J66: 27 | K66: 300 | L66: 3 | M66: 4830000 | N66: 4226500 | O66: 3623000 | P66: 3019000 | Q66: 2415000 | R66: 1480000 | S66: 1480000 | T66: 1480000 | V66: 4830 | W66: 4226.5 | X66: 3623 | Y66: 3019 | Z66: 2415 | AA66: 1480 | AB66: 1480 | AC66: 1480
J67: 28 | K67: 300 | L67: 5 | M67: 12075000 | N67: 10867500 | O67: 9660000 | P67: 7849000 | Q67: 6038000 | R67: 1850000 | S67: 1850000 | T67: 1480000 | V67: 12075 | W67: 10867.5 | X67: 9660 | Y67: 7849 | Z67: 6038 | AA67: 1850 | AB67: 1850 | AC67: 1480
J68: 29 | K68: 300 | L68: 10 | M68: 21735000 | N68: 19018000 | O68: 16301000 | P68: 12980500 | Q68: 9660000 | R68: 3700000 | S68: 3700000 | T68: 2960000 | V68: 21735 | W68: 19018 | X68: 16301 | Y68: 12980.5 | Z68: 9660 | AA68: 3700 | AB68: 3700 | AC68: 2960
J69: 30 | K69: 300 | L69: 25 | M69: 51319000 | N69: 43772000 | O69: 36225000 | P69: 28980000 | Q69: 21735000 | R69: 7400000 | S69: 7400000 | T69: 5550000 | V69: 51319 | W69: 43772 | X69: 36225 | Y69: 28980 | Z69: 21735 | AA69: 7400 | AB69: 7400 | AC69: 5550
J70: 31 | K70: 500 | L70: 1 | M70: 3623000 | N70: 3019000 | O70: 2415000 | P70: 2113000 | Q70: 1811000 | R70: 1453000 | S70: 1038000 | T70: 830000 | V70: 3623 | W70: 3019 | X70: 2415 | Y70: 2113 | Z70: 1811 | AA70: 1453 | AB70: 1038 | AC70: 830
J71: 32 | K71: 500 | L71: 3 | M71: 10868000 | N71: 9056500 | O71: 7245000 | P71: 6037500 | Q71: 4830000 | R71: 2960000 | S71: 1850000 | T71: 1850000 | V71: 10868 | W71: 9056.5 | X71: 7245 | Y71: 6037.5 | Z71: 4830 | AA71: 2960 | AB71: 1850 | AC71: 1850
J72: 33 | K72: 500 | L72: 5 | M72: 16905000 | N72: 13886500 | O72: 10868000 | P72: 9056500 | Q72: 7245000 | R72: 2590000 | S72: 2590000 | T72: 2220000 | V72: 16905 | W72: 13886.5 | X72: 10868 | Y72: 9056.5 | Z72: 7245 | AA72: 2590 | AB72: 2590 | AC72: 2220
J73: 34 | K73: 500 | L73: 10 | M73: 30188000 | N73: 24754000 | O73: 19320000 | P73: 15697500 | Q73: 12075000 | R73: 5180000 | S73: 5180000 | T73: 4440000 | V73: 30188 | W73: 24754 | X73: 19320 | Y73: 15697.5 | Z73: 12075 | AA73: 5180 | AB73: 5180 | AC73: 4440
J74: 35 | K74: 500 | L74: 25 | M74: 62790000 | N74: 52526500 | O74: 42263000 | P74: 33206500 | Q74: 24150000 | R74: 11840000 | S74: 10360000 | T74: 8880000 | V74: 62790 | W74: 52526.5 | X74: 42263 | Y74: 33206.5 | Z74: 24150 | AA74: 11840 | AB74: 10360 | AC74: 8880
J75: 36 | K75: 800 | L75: 1 | M75: 5434000 | N75: 4830000 | O75: 4226000 | P75: 3622500 | Q75: 3019000 | R75: 1850000 | S75: 1850000 | T75: 1850000 | V75: 5434 | W75: 4830 | X75: 4226 | Y75: 3622.5 | Z75: 3019 | AA75: 1850 | AB75: 1850 | AC75: 1850
J76: 37 | K76: =K75 -> 800 | L76: 3 | M76: 19320000 | N76: 16905000 | O76: 14490000 | P76: 10867500 | Q76: 7245000 | R76: 4440000 | S76: 4440000 | T76: 2590000 | V76: 19320 | W76: 16905 | X76: 14490 | Y76: 10867.5 | Z76: 7245 | AA76: 4440 | AB76: 4440 | AC76: 2590
J77: 38 | K77: =K76 -> 800 | L77: 5 | M77: 27169000 | N77: 23244500 | O77: 19320000 | P77: 15094000 | Q77: 10868000 | R77: 6660000 | S77: 5180000 | T77: 5180000 | V77: 27169 | W77: 23244.5 | X77: 19320 | Y77: 15094 | Z77: 10868 | AA77: 6660 | AB77: 5180 | AC77: 5180
J78: 39 | K78: =K77 -> 800 | L78: 10 | M78: 50715000 | N78: 43470000 | O78: 36225000 | P78: 27772500 | Q78: 19320000 | R78: 11840000 | S78: 8880000 | T78: 8880000 | V78: 50715 | W78: 43470 | X78: 36225 | Y78: 27772.5 | Z78: 19320 | AA78: 11840 | AB78: 8880 | AC78: 8880
J79: 40 | K79: =K78 -> 800 | L79: 25 | M79: 108675000 | N79: 90562500 | O79: 72450000 | P79: 57960000 | Q79: 43470000 | R79: 18500000 | S79: 14800000 | T79: 13320000 | V79: 108675 | W79: 90562.5 | X79: 72450 | Y79: 57960 | Z79: 43470 | AA79: 18500 | AB79: 14800 | AC79: 13320
J80: 41 | K80: 1000 | L80: 1 | M80: 7245000 | N80: 6037500 | O80: 4830000 | P80: 4226500 | Q80: 3623000 | R80: 2220000 | S80: 2220000 | T80: 2220000 | V80: 7245 | W80: 6037.5 | X80: 4830 | Y80: 4226.5 | Z80: 3623 | AA80: 2220 | AB80: 2220 | AC80: 2220
J81: 42 | K81: =K80 -> 1000 | L81: 3 | M81: 24150000 | N81: 19320000 | O81: 14490000 | P81: 11471500 | Q81: 8453000 | R81: 5180000 | S81: 5180000 | T81: 5180000 | V81: 24150 | W81: 19320 | X81: 14490 | Y81: 11471.5 | Z81: 8453 | AA81: 5180 | AB81: 5180 | AC81: 5180
J82: 43 | K82: =K81 -> 1000 | L82: 5 | M82: 36225000 | N82: 30187500 | O82: 24150000 | P82: 19320000 | Q82: 14490000 | R82: 8880000 | S82: 7770000 | T82: 7770000 | V82: 36225 | W82: 30187.5 | X82: 24150 | Y82: 19320 | Z82: 14490 | AA82: 8880 | AB82: 7770 | AC82: 7770
J83: 44 | K83: =K82 -> 1000 | L83: 10 | M83: 67620000 | N83: 55545000 | O83: 43470000 | P83: 35319500 | Q83: 27169000 | R83: 14800000 | S83: 14800000 | T83: 11840000 | V83: 67620 | W83: 55545 | X83: 43470 | Y83: 35319.5 | Z83: 27169 | AA83: 14800 | AB83: 14800 | AC83: 11840
J84: 45 | K84: =K83 -> 1000 | L84: 25 | M84: 144900000 | N84: 118637000 | O84: 92374000 | P84: 73657500 | Q84: 54941000 | R84: 26640000 | S84: 24420000 | T84: 22200000 | V84: 144900 | W84: 118637 | X84: 92374 | Y84: 73657.5 | Z84: 54941 | AA84: 26640 | AB84: 24420 | AC84: 22200

Sheet Help
C6: Last Updated: | D6: 2017-05-31 | F6: Version 2.1
B8: QUICK START GUIDE
B11: The Integrated Treatment Train Toolbox for Potable Reuse is an excel macro-based model for
B12: evaluating the effectiveness of advanced water treatment trains for microbial inactivation and
B13: microconstituent removals.
B15: Enable macros. Click on Image and go to Input Page.
B20: Input Page
B22: Color coding is followed through out the Toolbox. | H22: represents user's input.
B23: See Figure below for instructions.
B52: Train Builder Page
B54: Facility names and sizes are automatically transferred as an option.
B55: Use blue cells for process selection via drop down menus.
B123: Train Comparison Page
B125: The Toolbox allows comparison of multiple treatment trains and includes a summary
B126: for up to three trains. Work on individual train sheets to select the unit process.
B127: Use the train comparison sheet for a review of three trains side-by-side.
